Workbook

Sheet الرئيسية
A1: بسم الله الرحمن الرحيم | J1: كنترول شيت الصف الاول
B2: ادارة | C2: ….................... | J2: للعام الدراسى : | K2: 2019 / 2020
B3: مدرسة | C3: …....................
J4: اضغط زر تعليمات للتعرف على طريقة الاستخدام
B5: مدير إدارة المدرسة الاستاذ /
B6: مدير المدرسة الاستاذ …. /
B7: رئيس الكنترول الاستاذ .... /
B8: مسئول كنترول الاستاذ …. /
B9: تاريخ حساب السن ........ / | E9: 2021-10-01

Sheet تعليمات
A1: بسم الله الرحمن الرحيم | G1: تعليمات و إرشادات | L1: كل الخلايا الملونة بها معادلات و العبث بها بفقد البرنامج اهم مميزاته
A2: و الحمد لله رب العالمين و الصلاة و السلام على اشرف المرسلين سيدنا محمد و على آله وصحبه وسلم
A3: اما بعد :
A4: الى اخوتى و احبتى العاملين في مجال الكنترول بالمدارس التجارية نظام الثلاث سنوات
A5: اليكم الشيت كنترول للصف الاول التجارى
A6: بداية يمكنكم الاستغناء عن التعليمات الآتية اذا كان تعداد المدرسة صغير و لا تحتوى على شعب متعددة و سيعمل معك البرنامج فيما تبقى بمنتهى الكفاءة - كما اسلفت في تعليمات الصف الثانى
A7: وهذه ترتيبات و تعليمات الاستخدام : - ( عذرا فالتعليمات طويلة نوعا ما نظرا لاهميتها القصوى)
B9: المرحلة الأولى :
A10: 1 - البداية في ورقة الرئيسية ملء جميع البيانات الخاصة بالمحافظة و الإدارة التعليمية و اسم المدرسة و العام الدراسى و تاريخ حساب سن الطالب اما باقى البيانات فهى اختيارية
A11: 2 - الذهاب مباشرة الى الورقة المسماة شيت و إتمام البيانات التالية جميعها دون نقصان او زيادة في الاعمدة المخصصة لها قبل الشروع في اى عمل آخر
B12: ا - اسم الطالب | D12: ب - فصل الطالب | F12: ج - تاريخ الميلاد | H12: د - ديانة الطالب | J12: هـ - النوع ( بنين - بنات و ليس ذكر - انثى )
D13: و - الفئة ( انتظام - خدمات ) | G13: م - لا يتم تسجيل اى بيانات أخرى في الورقة " شيت"
D14: ن - الحالة ( يكتفى بكلمة باقى للبنين - باقية للبنات و لاتوجد ضرورة لكلمة مستجد -مستجدة)
A15: 3 - الذهاب الى ورقة الاعدادات
B16: ا - تم ترتيب الخطوات كما سوف ترى ( الخطوة الأولى - الثانية - الثالثة و هكذا ...... ) عليك اتباع الترتيب حتى تحصل على نتائج جيدة
B18: ******* لا تقم بتسطير اى ورقة فالتسطير يتم تلقائيا
B20: الخطوة الأولى :
B21: يمكنك التغيير بين المعايير المختلفة لاجراء عملية الفرز الشامل على اساسها ( بنين - بنات - انتظام - خدمات ) من الخلايا E6 و E7
B22: ضغط الزر "اضغط للفرز الشامل" و انتظر حتى تتم العملية بنجاح
B25: الخطوة الثانية :
B26: في الخلية F13 قم بكتابة الأرقام المتفق عليها بالنسبة للفترة الصباحية و اترك الباقى للبرنامج
B27: اضغط زر " اضغط لتوزيع الفترات "
B29: الخطوة الثالثة :
B30: اضغط الزر المكتوب عليه : "اضغط لتعبئة الجداول "
B31: املأ العمود S و العمود Z بأول رقم جلوس بما تم الاتفاق عليه مع السادة المنوطين بالامر في السابق و كذلك عدد اللجان المقترحة في العمود W و العمود AD حسب رؤية القائمين على هذا الامر امام كل شريحة
B32: سيقوم البرنامج بوضع رقم اول لجنة و رقم آخر لجنة في الاعمدة المخصصة لذلك
B33: اعود و اكرر الحذر كل الحذر من الاقتراب من الاعمدة التي تحتوى معادلات
B34: الضغط على زر : "توزيع ارقام الجلوس على الشيت العام" و قد يستغرق وقتا بعض الشئ
B35: سيقوم الكود بتوزيع ارقام الجلوس حسب الجداول السابقة بمنتهى الدقة
B36: هنا ينتهى العمل بورقة الاعدادات و ان كان هناك أمور مرتبطة بها في الأوراق الأخرى و لكن دون الرجوع الى ورقة الاعدادات مرةاخرى . لذا الرجاء إخفاء هذه الورقة ( الاعدادات ) بعد نهاية الخطوة الرابعة
B37: لا يمكن الحصول على اخطارات ارقام الجلوس في الورقة المسماة ارقام الجلوس الا بعد اجراء الخطوات السابقة
B40: المرحلة الثانية :
B41: في الورقة المسماة اعدادات اللجان
B42: اكتب أسماء الفصول او المقرات المتاحة لآداء التلاميذ الامتحان فيها ( الصباحية في العمود "K" - المسائية في العمود "T" ) و اترك الباقى للبرنامج
B43: اذا اردت الاستفادة من كامل مزايا هذه الورقة عليك اختيار توزيع آلى من القائمة المنسدلة
B44: في حالة اختيار توزيع يدوى من الخلية D3 او الخلية S3 لن يعمل الكود بهذه الخاصية لكل فترة على حدة الا الزر الثالث
B45: اضغط زر توزيع لجان الفترة الصباحية ثم زر توزيع لجان الفترة المسائية
B46: اما قوائم اللجان فهى سهلة الاستخدام و لا تحتاج الى شرح يكفى الاختيار من القوائم المنسدلة بين صباحى و مسائى -- وأرقام اللجان
B49: المرحلة الثالثة :
B50: في الورقة "شيت" قبل عملية الفرز يتم عمل الأرقام السرية بإحدى الطريقتين : -
B51: 1 - وضع السرى يدويا كما خطط له من قبل القائمين على العمل في عمود السرى بالشيت مباشرة
B52: 2 - او الذهاب الى ورقة السرى كالآتى :
B53: ا - الضغط أولا على زر اضغط لاستدعاء البيانات فيقوم البرنامج باستعاء جميع بيانات ارقم الجلوس
B54: ب - ثم نقوم بتوزيع الأرقام السرية المقترحة يدويا في الجدول المقابل ( يقبل السرى التنازلى )
B55: ج - بعد ذلك نقوم بالضغط على زر فرز سرى و بعد انتهاء عملية الفرز نقوم باخفاء الاعمد من A الى L كما هو متبع مع الشيتات
B56: الان أصبحت الشيتات جاهزة لرصد الدرجات لاى فترة كانت
B57: لا تنسى في عمود الحالة من كتابة ( باقى - باقية ) و لا داعى ل ( مستجد - مستجدة )
B58: في حالة وجود طلاب مسيحين يجب كتابة كلمة ( مسيحى - مسيحية ) لان ذلك سيظهر في ورقة اللجان اثناء امتحان مادة التربية الدينية
B61: المرحلة الرابعة :
B62: و هي تخص شهادات نصف العام و آخر العام
B65: المرحلة الخامسة :
B66: وهى الخاصة بأوائل الطلبة يمكنك التبديل بين الفترات باستخدام القوائم المنسدلة
B67: ينطبق هذا الامر على أوائل آخر العام
B68: أوائل آخر العام للطلاب الناجحين فقط لذلك لن تحصل على نتيجة الا بعد عملية ترحيل الناجحين
B72: المرحلة السادسة :
B73: و هي تخص آخر العام
B74: - ملحوظة هامة بالنسبة لشهاد ة آخر العام و هي نادرة بالنسبة للطلاب الحاصلين على ملحق في مادة رغم درجاتهم اكبر من درجة النجاح و سترى اسم المادة في الخلية المخصصة لمواد الرسوب
B75: و السبب هو عدم حصول الطالب على ربع الدرجة في امتحان آخر العام في هذه الحالة يجب على مسئول الكنترول وضع دائرة يدويا بالقلم الأحمر ( بالشهادة المطبوعة ) على درجة المادة و ذكر السبب في خلية مادة الرسوب
B76: و هو ( عدم الحصول على ربع الدرجة )
B77: - بالنسبة للورقة المسماة " رفع " يمكن في هذه الورقة معرفة الأوراق المحتاجة الى درجات رفع يتم تحديدها في الورقة بالارقام السرية ( و رؤية الورقة على الطبيعة و تجربتها افضل من اى شرح )
B78: - يوجد أيضا ورقة تسمى " رصد " لمتابعة العدد الذى تم رصده سواء درجات اعمال سنة او درجات نصف العام او درجات آخر العام و متابعة الغياب أيضا
B79: - توجد العديد من الأوراق التي يسهل التعامل معها و لها العديد من المزايا يستحسن التعرف عليها بأنفسكم
B82: المرحلة السابعة :
B83: بالنسبة للدور الثانى
B84: 1 - بعد عملية الترحيل لا نفعل اى شيء في شيت الملاحق الا بعد امتحان الدور الثانى فقط نقوم بكتابة درجة امتحان الدور الثانى في الخلية التي تعلو مجموع درجة مادة الرسوب
B85: 2 - يوجد شيت لاستدعاة طلاب الدور الثانى كل مادة على حدة و المواد المشتركة بين الشعب دفعة واحدة و يتم ترقيم الجلوس و المقار يدويا
B86: لان الطالب الواحد قد يكون له اكثر من رقم جلوس في حال تعدد مواد تخلفه
B87: حسب رؤية القائمين على الامر فالبعض يفضل ان يمتحن الطالب في الدور الثانى بنفس رقم جلوس الدور الأول
B88: 3 - توجد شيت مخصص لادراج درجات الدور الثانى يسمى مساعد إدارة - مساعد تسويق ........... وهكذا لكل شعبة
B89: 4 - في هذا الشيت نقوم بالضغط على زر استدعاء مواد الرسوب فيمتلئ الشيت ببيانات الطلاب و بياناتهم
B90: 5 - في هذا الشيت يتم تبديل الدرجة الجديدة بدلا من الدرجة القديمة و هكذا لباقى مواد الرسوب لجميع طلاب الشعبة
B91: و نفس الدرجة الجديدة توضع فوق درجة مجموع المادة في شيت الملاحق لتظهر شكلا عند طبع شيت الملاحق ( كما اسلفت في رقم 1 )
B92: 6 - بعد الانتهاء من جميع عمليات الرصد نضغط زر نتيجة الدور الثانى فسيظهر الطلاب الناجحون من الطلاب الراسبون سواء لهم حق الإعادة ام لا
B93: 7 - الضغط على زر ترحيل النتيجة لتظهر النتائج في شيت الدور الثانى الذى سوف يتم طبعه
B94: 8 - توجد ورقة خاصة لشهادات الدور الثانى كما يوجد كشف خاص للطلاب الراسبون
C96: هذا و الله ولى التوفيق
D97: مستعد لاى استفسار على منتدى اوفيسنا او منتدى اكاديمية الصقر
E98: و السلام عليكم ورحمته و بركاته
G99: اخيكم / إبراهيم الحداد

Sheet اعدادات
N1: 617
C3: الخطوة الأولى : اعداد معايير الفرز ثم اجراء عملية الفرز | Z3: 2 - | AA3: بعد تعبئة الجدول اضغط الزر التالى
B4: 1 - | C4: اختر معايير الفرز التي تريدها ثم اضغط الزر المخصص لذلك | M4: الخطوة الثانية : | O4: 1 - اضغط الزر التالى :
B5: أسس الفرز | C5: معايير الفرز | P5: اعدادات الفترة الصباحية | X5: اعدادات الفترة المسائية
C6: المعيار الأول : | E6: بنات | N6: م | O6: النوع | P6: الفئة | Q6: الفترة | R6: عدد الشريحة | S6: اول رقم جلوس | T6: آخر رقم جلوس | U6: من لجنة | V6: الى لجنة | W6: عدد اللجان | X6: الفترة | Y6: عدد الشريحة | Z6: اول رقم جلوس | AA6: آخر رقم جلوس | AB6: من لجنة | AC6: الى لجنة | AD6: عدد اللجان
C7: المعيار الثانى : | E7: انتظام
C8: العـــدد : | E8: 75 | N8: 1 | O8: بنات | P8: انتظام | Q8: صباحى | R8: 125 | S8: 101 | T8: =IF(AND(R8>0,S8>0),R8+S8-1,"") -> 225 | U8: =IF(W8>0,1,"") -> 1 | V8: =IF(W8>0,SUM($W$8:W8),"") -> 6 | W8: 6 | X8: مسائى | Y8: 0 | AA8: =IF(AND(Y8>0,Z8>0),Y8+Z8-1,"") ->  | AB8: =IF(AD8>0,1,"") ->  | AC8: =IF(AD8>0,SUM(AD8:$AD$8),"") -> 
C9: العــدد الكلى : | E9: 320 | N9: 2 | O9: بنات | P9: خدمات | Q9: صباحى | R9: 65 | S9: 251 | T9: =IF(AND(R9>0,S9>0),R9+S9-1,"") -> 315 | U9: =IF(W9>0,SUM($W$8:W8)+1,"") -> 7 | V9: =IF(W9>0,SUM($W$8:W9),"") -> 9 | W9: 3 | X9: مسائى | Y9: 10 | Z9: 401 | AA9: =IF(AND(Y9>0,Z9>0),Y9+Z9-1,"") -> 410 | AB9: =IF(AD9>0,SUM(AD8:$AD$8)+1,"") -> 1 | AC9: =IF(AD9>0,SUM(AD$8:$AD9),"") -> 1 | AD9: 1
N10: 3 | O10: بنين | P10: انتظام | Q10: صباحى | R10: 0 | U10: =IF(W10>0,SUM($W$8:W9)+1,"") ->  | V10: =IF(W10>0,SUM($W$8:W10),"") ->  | X10: مسائى | Y10: 82 | Z10: 451 | AA10: 532 | AB10: =IF(AD10>0,SUM(AD$8:$AD9)+1,"") -> 2 | AC10: =IF(AD10>0,SUM(AD$8:$AD10),"") -> 5 | AD10: 4
C11: 2 - | D11: قم بتعبئة خلية الصباحى ثم اضغط الزر التالى : | N11: 4 | O11: بنين | P11: خدمات | Q11: صباحى | R11: 0 | U11: =IF(W11>0,SUM($W$8:W10)+1,"") ->  | V11: =IF(W11>0,SUM($W$8:W11),"") ->  | X11: مسائى | Y11: 38 | Z11: 551 | AA11: 588 | AB11: =IF(AD11>0,SUM(AD$8:$AD10)+1,"") -> 6 | AC11: =IF(AD11>0,SUM(AD$8:$AD11),"") -> 7 | AD11: 2
E12: اجمالى | F12: صباحى | G12: مسائى
E13: 320 | F13: 190 | G13: =IF(E13="","",E13-F13) -> 130 | Q13: وهكذا ينتهى العمل بهذه الورقة و يجب اخفائها نهائيا لان التعامل معها مرة أخرى سيلزمكم إعادة الخطوات من جديد

Sheet اعدادات اللجان
A1: حتى يتسنى لك الاستفادة من مميزات هذه الورقة ( آليا ) لابد من استيفاء جميع الخطوات في كل من الشيت العام و ورقة الاعدادات او الاستخدام اليدوى فقط
C2: اختر نوع التوزيع للفترة | H2: اعداد و توزيع اللجان على الفترتين | R2: اختر نوع التوزيع للفترة
D3: توزيع آلى | S3: توزيع آلى
E5: لجان الفترة الصباحية | N5: لجان الفترة المسائية
D6: لجنة | E6: من | F6: الى | G6: العدد | H6: الشعبة | I6: النوع | J6: القئة | K6: لجان صباحى | M6: لجنة | N6: من | O6: الى | P6: العدد | Q6: الصف | R6: النوع | S6: القئة | T6: لجان صباحى
D7: 1 | E7: 101 | F7: 121 | G7: 21 | H7: شعبة عامة | I7: بنات | J7: انتظام | K7: 1/3 | M7: 1 | N7: 401 | O7: 410 | P7: 10 | Q7: شعبة عامة | R7: بنات | S7: خدمات | T7: 11/2
D8: 2 | E8: 122 | F8: 142 | G8: 21 | H8: شعبة عامة | I8: بنات | J8: انتظام | K8: 2/3 | M8: 2 | N8: 451 | O8: 471 | P8: 21 | Q8: شعبة عامة | R8: بنين | S8: انتظام | T8: 12/2
D9: 3 | E9: 143 | F9: 163 | G9: 21 | H9: شعبة عامة | I9: بنات | J9: انتظام | K9: 3/3 | M9: 3 | N9: 472 | O9: 492 | P9: 21 | Q9: شعبة عامة | R9: بنين | S9: انتظام | T9: 1/1
D10: 4 | E10: 164 | F10: 184 | G10: 21 | H10: شعبة عامة | I10: بنات | J10: انتظام | K10: 4/3 | M10: 4 | N10: 493 | O10: 512 | P10: 20 | Q10: شعبة عامة | R10: بنين | S10: انتظام | T10: 2/1
D11: 5 | E11: 185 | F11: 205 | G11: 21 | H11: شعبة عامة | I11: بنات | J11: انتظام | K11: 5/3 | M11: 5 | N11: 513 | O11: 532 | P11: 20 | Q11: شعبة عامة | R11: بنين | S11: انتظام | T11: 3/1
D12: 6 | E12: 206 | F12: 225 | G12: 20 | H12: شعبة عامة | I12: بنات | J12: انتظام | K12: 6/3 | M12: 6 | N12: 551 | O12: 569 | P12: 19 | Q12: شعبة عامة | R12: بنين | S12: خدمات | T12: 4/1
D13: 7 | E13: 251 | F13: 272 | G13: 22 | H13: شعبة عامة | I13: بنات | J13: خدمات | K13: 7/3 | M13: 7 | N13: 570 | O13: 588 | P13: 19 | Q13: شعبة عامة | R13: بنين | S13: خدمات | T13: 5/1
D14: 8 | E14: 273 | F14: 294 | G14: 22 | H14: شعبة عامة | I14: بنات | J14: خدمات | K14: 8/3 | M14: 8 | T14: 6/1
D15: 9 | E15: 295 | F15: 315 | G15: 21 | H15: شعبة عامة | I15: بنات | J15: خدمات | K15: 9/3 | M15: 9 | T15: 7/1
D16: 10 | K16: 10/3 | M16: 10 | T16: 8/1
D17: 11 | K17: 1/2 | M17: 11 | T17: 9/1
D18: 12 | K18: 2/2 | M18: 12 | T18: 10/1
D19: 13 | K19: 3/2 | M19: 13
D20: 14 | K20: 4/2 | M20: 14
D21: 15 | K21: 5/2 | M21: 15
D22: 16 | K22: 6/2 | M22: 16
D23: 17 | K23: 7/2 | M23: 17
D24: 18 | K24: 8/2 | M24: 18
D25: 19 | K25: 9/2 | M25: 19
D26: 20 | K26: 10/2 | M26: 20
D27: 21 | M27: 21
D28: 22 | M28: 22
D29: 23 | M29: 23
D30: 24 | M30: 24
D31: 25 | M31: 25
D32: 26 | M32: 26
D33: 27 | M33: 27
D34: 28 | M34: 28
D35: 29 | M35: 29
D36: 30 | M36: 30
D37: 31 | M37: 31
D38: 32 | M38: 32
D39: 33 | M39: 33
D40: 34 | M40: 34
D41: 35 | M41: 35
D42: 36 | M42: 36
D43: 37 | M43: 37
D44: 38 | M44: 38
D45: 39 | M45: 39
D46: 40 | M46: 40
D47: 41 | M47: 41
D48: 42 | M48: 42
D49: 43 | M49: 43
D50: 44 | M50: 44
D51: 45 | M51: 45
D52: 46 | M52: 46
D53: 47 | M53: 47
D54: 48 | M54: 48
D55: 49 | M55: 49
D56: 50 | M56: 50

Sheet لجان
C1: =" ادارة "&الرئيسية!$C$2 -> ادارة ….................... | F1: لجنة : | G1: 1 | I1: =" ادارة "&الرئيسية!$C$2 -> ادارة ….................... | L1: لجنة : | M1: =$G$1+1 -> 2
C2: ="مدرسة "& الرئيسية!$C$3 -> مدرسة ….................... | F2: المقر : | I2: ="مدرسة "& الرئيسية!$C$3 -> مدرسة ….................... | L2: المقر :
C3: الصف الأول - | F3: شعبة عامة | I3: الصف الأول - | L3: شعبة عامة
C4: من : | F4: الى : | I4: من : | L4: الى :
C5: العدد : | E5: =" للعام الدراسى"&الرئيسية!$K$2 -> للعام الدراسى 2019 / 2020 | F5: الفترة : | I5: العدد : | K5: =" للعام الدراسى"&الرئيسية!$K$2 -> للعام الدراسى 2019 / 2020 | L5: الفترة : | P5: الفترة
C6: م | D6: جلوس | E6: اسم الطالبة | F6: الفصل | G6: ملاحظات | I6: م | J6: جلوس | K6: اسم الطالبة | L6: الفصل | M6: ملاحظات | P6: صباحى
C35: كنترول الصف الثانى | F35: رئيس الكنترول | I35: كنترول الصف الثانى | L35: رئيس الكنترول

Sheet جلوس
C1: مدرسة كوم امبو التجارية بنات | N1: 51 | P1: الورقة رقم : | R1: 16
G2: ارقام جلوس الصف الاول : | J2: =الرئيسية!$K$2 -> 2019 / 2020
C4: اخطار رقم جلوس | H4: صباحى | J4: اخطار رقم جلوس | O4: صباحى
C5: ="مدرسة "& الرئيسية!$C$3 -> مدرسة ….................... | G5: رقم الجلوس / | H5: 306 | J5: ="مدرسة "& الرئيسية!$C$3 -> مدرسة ….................... | N5: رقم الجلوس / | O5: 312
C6: الاسم / | D6: فوزيه خالد حجاج احمد | G6: رقم اللجنة / | H6: 9 | J6: الاسم / | K6: منيرة عبد المؤمن عبد الرحيم محمد | N6: رقم اللجنة / | O6: 9
C7: الفصل / | D7: 7/1 | G7: مقر اللجنة : | H7: 9/3 | J7: الفصل / | K7: 7/1 | N7: مقر اللجنة : | O7: 9/3
C9: اخطار رقم جلوس | H9: صباحى | J9: اخطار رقم جلوس | O9: صباحى
C10: ="مدرسة "& الرئيسية!$C$3 -> مدرسة ….................... | G10: رقم الجلوس / | H10: 307 | J10: ="مدرسة "& الرئيسية!$C$3 -> مدرسة ….................... | N10: رقم الجلوس / | O10: 313
C11: الاسم / | D11: لمياء محمد مصطفى محمد | G11: رقم اللجنة / | H11: 9 | J11: الاسم / | K11: مها احمد مرتضى نوبى | N11: رقم اللجنة / | O11: 9
C12: الفصل / | D12: 7/1 | G12: مقر اللجنة : | H12: 9/3 | J12: الفصل / | K12: 6/1 | N12: مقر اللجنة : | O12: 9/3
C14: اخطار رقم جلوس | H14: صباحى | J14: اخطار رقم جلوس | O14: صباحى
C15: ="مدرسة "& الرئيسية!$C$3 -> مدرسة ….................... | G15: رقم الجلوس / | H15: 308 | J15: ="مدرسة "& الرئيسية!$C$3 -> مدرسة ….................... | N15: رقم الجلوس / | O15: 314
C16: الاسم / | D16: مريم ابوزيد محمد امين | G16: رقم اللجنة / | H16: 9 | J16: الاسم / | K16: مها محمود محمد حسنين | N16: رقم اللجنة / | O16: 9
C17: الفصل / | D17: 6/1 | G17: مقر اللجنة : | H17: 9/3 | J17: الفصل / | K17: 7/1 | N17: مقر اللجنة : | O17: 9/3
C19: اخطار رقم جلوس | H19: صباحى | J19: اخطار رقم جلوس | O19: صباحى
C20: ="مدرسة "& الرئيسية!$C$3 -> مدرسة ….................... | G20: رقم الجلوس / | H20: 309 | J20: ="مدرسة "& الرئيسية!$C$3 -> مدرسة ….................... | N20: رقم الجلوس / | O20: 315
C21: الاسم / | D21: منى احمد النوبى محمد | G21: رقم اللجنة / | H21: 9 | J21: الاسم / | K21: نعمة جابر سيد على | N21: رقم اللجنة / | O21: 9
C22: الفصل / | D22: 6/1 | G22: مقر اللجنة : | H22: 9/3 | J22: الفصل / | K22: 6/1 | N22: مقر اللجنة : | O22: 9/3
C24: اخطار رقم جلوس | H24: صباحى | J24: اخطار رقم جلوس | O24: مسائى
C25: ="مدرسة "& الرئيسية!$C$3 -> مدرسة ….................... | G25: رقم الجلوس / | H25: 310 | J25: ="مدرسة "& الرئيسية!$C$3 -> مدرسة ….................... | N25: رقم الجلوس / | O25: 401
C26: الاسم / | D26: منى حسين عبد الحفيظ جعفر | G26: رقم اللجنة / | H26: 9 | J26: الاسم / | K26: نهلة شعبان محمود حسن | N26: رقم اللجنة / | O26: 1
C27: الفصل / | D27: 6/1 | G27: مقر اللجنة : | H27: 9/3 | J27: الفصل / | K27: 7/1 | N27: مقر اللجنة : | O27: 11/2
C29: اخطار رقم جلوس | H29: صباحى | J29: اخطار رقم جلوس | O29: مسائى
C30: ="مدرسة "& الرئيسية!$C$3 -> مدرسة ….................... | G30: رقم الجلوس / | H30: 311 | J30: ="مدرسة "& الرئيسية!$C$3 -> مدرسة ….................... | N30: رقم الجلوس / | O30: 402
C31: الاسم / | D31: منى عيد حسين محمد | G31: رقم اللجنة / | H31: 9 | J31: الاسم / | K31: نور الهدى محمود احمد البربرى | N31: رقم اللجنة / | O31: 1
C32: الفصل / | D32: 7/1 | G32: مقر اللجنة : | H32: 9/3 | J32: الفصل / | K32: 7/1 | N32: مقر اللجنة : | O32: 11/2

Sheet لجان ملاحق
A1: FALSE | H1: اعدادات اللجان | M1: اختر المادة من القائمة اسفله | X1: ادارة | Y1: =[1]الرئيسية!$E1 -> ….................. | AA1: لجنة رقم : | AB1: 1 | AD1: ادارة | AE1: =[1]الرئيسية!$E1 -> ….................. | AG1: لجنة رقم : | AH1: =IF($AB$1="","",$AB$1+1) -> 2 | BI1: لغة عربية
G2: الاعداد لامتحان الدور الثانى كل مادة على حدة | K2: أولا : | L2: مــادة التخلف : | N2: لغة انجليزية | X2: مدرسة | Y2: =[1]الرئيسية!$E2 -> ….................. | AA2: المقر : | AD2: مدرسة | AE2: =[1]الرئيسية!$E2 -> ….................. | AG2: المقر : | BI2: لغة انجليزية
K3: ثانيا : | X3: الصف الاول - | AD3: الصف الاول - | BI3: لغة فرنسية
F4: م | G4: رقم الجلوس | H4: اسم الطلب | I4: الشعبة | J4: الديانة | K4: النوع | L4: ثالثا : | M4: توضع قبل كل امتحان يدويا | X4: من : | AA4: الى : | AD4: من : | AG4: الى : | BI4: رياضة عامة
L5: الفئة | M5: الجلوس الجديد | N5: رقم اللجنة | O5: مقر اللجنة | X5: العدد : | AA5: ="للعام الدراسى"&" "&الرئيسية!$K$2 -> للعام الدراسى 2019 / 2020 | AD5: العدد : | AG5: ="للعام الدراسى"&" "&الرئيسية!$K$2 -> للعام الدراسى 2019 / 2020 | BI5: حاسب ألى
X6: مسلسل | Y6: جلوس | Z6: الاســـــــــــــــــــــــم | AA6: الشعبة | AB6: ملاحظات | AD6: مسلسل | AE6: جلوس | AF6: الاســـــــــــــــــــــــم | AG6: الشعبة | AH6: ملاحظات | AJ6: رابعا : عرض اللجان | BI6: اقتصاد
BI7: سكرتارية عربية
BI8: سكرتارية اجنبية
BI9: ادارة اعمال
BI10: محاسبة مالية
BI11: تسويق
BI12: قانون تجارى
BI13: جغرافيا
BI14: مجموع كلى
BI15: تربية دينية
BI16: تربية وطنية
X36: كنترول الصف الثانى | AA36: رئيس الكنترول | AD36: كنترول الصف الثانى | AG36: رئيس الكنترول

Sheet رفع
C1: خاص برفع دراجات مواد الصف الاول | K1: معايير البحث | O1: عدد الاوراق
K2: اختر المادة : | M2: لغة انجليزية | O2: =MAX(D7:D100) -> 0 | P2: ورقــــة | AG2: المواد
K3: الدرجة المطلوب رفعها : | M3: 3
D4: بيانات الأوراق المحتاجة الى الرفع
A5: ملحوظة : يمكنك إخفاء عمود رقم الجلوس ان كان هذا من ضروريات السرية التامة | D5: مسلسل | E5: رقم الجلوس | F5: رقم سرى | G5: الدرجة | H5: عدد مواد الرسوب | AG5: المواد | AH5: عمود المادة
AG7: لغة عربية | AH7: 17
AG8: لغة انجليزية | AH8: 21
AG9: لغة فرنسية | AH9: 25
AG10: رياضة عامة | AH10: 29
AG11: حاسب ألى تحريرى | AH11: 36
AG12: حاسب ألى عملى | AH12: 37
AG13: اقتصاد | AH13: 42
AG14: سكرتارية عربية | AH14: 46
AG15: سكرتارية اجنبية | AH15: 50
AG16: ادارة اعمال | AH16: 54
AG17: محاسبة مالية | AH17: 58
AG18: تسويق | AH18: 62
AG19: قانون تجارى | AH19: 66
AG20: جغرافيا | AH20: 70
AG21: تربية دينية | AH21: 76
AG22: تربية قومية | AH22: 80
AG23: مجموع | AH23: 72

Sheet شيت
O1: =الرئيسية!$B$2&""&الرئيسية!$C$2 -> ادارة ….................... | AY1: 9.1
O2: =الرئيسية!$B$3&" "&الرئيسية!$C$3 -> مدرسة ….................... | AY2: للعام الدراسى | BE2: =الرئيسية!$K$2 -> 2019 / 2020
A5: مسلسل | B5: بيانات أساسية | M5: سرى | N5: لغة عربية | R5: لغة انجليزية | V5: لغة فرنسية | Z5: جغرافيا | AD5: رياضة عامة | AH5: حاسب آلى | AQ5: اقتصاد | AU5: سكرتارية عربية | AY5: سكرتارية اجنبية | BC5: ادارة اعمال | BG5: محاسبة مالية | BK5: تسويق | BO5: قانون تجارى | BS5: مجموع نصف العام | BT5: مجموع كلى | BU5: تربية دينية | BY5: تربية قومية | CC5: النتيجة | CD5: مواد الرسوب | CE5: عدد المواد | CF5: رقم اللجنة | CG5: مقر اللجنة | CM5: لغة عربية | CN5: لغة انجليزية | CO5: لغة فرنسية | CP5: جغرافيا | CQ5: رياضة عامة | CR5: حاسب ألى | CS5: اقتصاد | CT5: سكرتارية عربية | CU5: سكرتارية اجنبية | CV5: ادارة اعمال | CW5: محاسبة مالية | CX5: تسويق | CY5: قانون تجارى | CZ5: مجموع كلى | DA5: تربية دينية | DB5: تربية وطنية | DC5: مواد لا تستوجب الرسوب | DD5: مواد الرسوب
B6: جلوس | C6: اسم الطالب | D6: الفصل | E6: تاريخ الميلاد | F6: سن الطالب في | G6: الجنسية | H6: الديانة | I6: النوع | J6: الفئة | K6: الفترة | L6: الحــــالة | N6: اعمال السنة | O6: نصف العام | P6: آخر العام | Q6: المجموع | R6: اعمال السنة | S6: نصف العام | T6: آخر العام | U6: المجموع | V6: اعمال السنة | W6: نصف العام | X6: آخر العام | Y6: المجموع | Z6: اعمال السنة | AA6: نصف العام | AB6: آخر العام | AC6: المجموع | AD6: اعمال السنة | AE6: نصف العام | AF6: آخر العام | AG6: المجموع | AH6: اعمال السنة | AJ6: نصف العام | AL6: آخر العام | AN6: مج تحريرى | AO6: مج عملى | AP6: مج حاسب | AQ6: اعمال السنة | AR6: نصف العام | AS6: آخر العام | AT6: المجموع | AU6: اعمال السنة | AV6: نصف العام | AW6: آخر العام | AX6: المجموع | AY6: اعمال السنة | AZ6: نصف العام | BA6: آخر العام | BB6: المجموع | BC6: اعمال السنة | BD6: نصف العام | BE6: آخر العام | BF6: المجموع | BG6: اعمال السنة | BH6: نصف العام | BI6: آخر العام | BJ6: المجموع | BK6: اعمال السنة | BL6: نصف العام | BM6: آخر العام | BN6: المجموع | BO6: اعمال السنة | BP6: نصف العام | BQ6: آخر العام | BR6: المجموع | BU6: اعمال السنة | BV6: نصف العام | BW6: آخر العام | BX6: المجموع | BY6: اعمال السنة | BZ6: نصف العام | CA6: آخر العام | CB6: المجموع
AH7: تحريرى | AI7: عملى | AJ7: تحريرى | AK7: عملى | AL7: تحريرى | AM7: عملى
M8: عظمى | N8: 10 | O8: 20 | P8: 20 | Q8: 50 | R8: 10 | S8: 20 | T8: 20 | U8: 50 | V8: 6 | W8: 12 | X8: 12 | Y8: 30 | Z8: 8 | AA8: 16 | AB8: 16 | AC8: 40 | AD8: 6 | AE8: 12 | AF8: 12 | AG8: 30 | AH8: 6 | AI8: 4 | AJ8: 12 | AK8: 8 | AL8: 12 | AM8: 8 | AN8: 30 | AO8: 20 | AP8: 50 | AQ8: 10 | AR8: 20 | AS8: 20 | AT8: 50 | AU8: 10 | AV8: 20 | AW8: 20 | AX8: 50 | AY8: 10 | AZ8: 20 | BA8: 20 | BB8: 50 | BC8: 10 | BD8: 20 | BE8: 20 | BF8: 50 | BG8: 10 | BH8: 20 | BI8: 20 | BJ8: 50 | BK8: 10 | BL8: 20 | BM8: 20 | BN8: 50 | BO8: 10 | BP8: 20 | BQ8: 20 | BR8: 50 | BS8: 240 | BT8: 600 | BU8: 4 | BV8: 8 | BW8: 8 | BX8: 20 | BY8: 4 | BZ8: 8 | CA8: 8 | CB8: 20 | DC8: دين و وطنية | DD8: باقى المواد
F9: =الرئيسية!$E$9 -> 2021-10-01 | M9: صغرى | N9: 0 | O9: 0 | P9: 5 | Q9: 25 | R9: 0 | S9: 0 | T9: 5 | U9: 25 | V9: 0 | W9: 0 | X9: 3 | Y9: 9 | Z9: 0 | AA9: 0 | AB9: 4 | AC9: 20 | AD9: 0 | AE9: 0 | AF9: 3 | AG9: 15 | AH9: 0 | AI9: 0 | AJ9: 0 | AK9: 0 | AL9: 3 | AM9: 2 | AN9: 15 | AO9: 10 | AP9: 25 | AQ9: 0 | AR9: 0 | AS9: 5 | AT9: 25 | AU9: 0 | AV9: 0 | AW9: 5 | AX9: 20 | AY9: 0 | AZ9: 0 | BA9: 5 | BB9: 25 | BC9: 0 | BD9: 0 | BE9: 5 | BF9: 25 | BG9: 0 | BH9: 0 | BI9: 5 | BJ9: 25 | BK9: 0 | BL9: 0 | BM9: 5 | BN9: 25 | BO9: 0 | BP9: 0 | BQ9: 5 | BR9: 25 | BS9: 0 | BT9: 300 | BU9: 0 | BV9: 0 | BW9: 2 | BX9: 10 | BY9: 0 | BZ9: 0 | CA9: 2 | CB9: 10
A10: 1 | B10: 101 | C10: ابتسام قاسم محمد حسن | D10: 1/1 | E10: 2004-03-22 | F10: 10 - 06 - 17 | I10: بنات | J10: انتظام | K10: صباحى | M10: 675 | N10: 7.5 | O10: 14.1 | P10: 8.5 | Q10: =IF(P10="غ","غ",SUM(N10,O10,P10)) -> 30.1 | R10: 7.5 | S10: غ | T10: 15 | U10: =IF(T10="غ","غ",SUM(R10,S10,T10)) -> 22.5 | V10: 3.5 | W10: 5.5 | X10: غ | Y10: =IF(X10="غ","غ",SUM(V10,W10,X10)) -> غ | Z10: 5.5 | AA10: 7.5 | AB10: 11.1 | AC10: =IF(AB10="غ","غ",SUM(Z10,AA10,AB10)) -> 24.1 | AD10: 4.9 | AE10: 10.9 | AF10: 11.7 | AG10: =IF(AF10="غ","غ",SUM(AD10,AE10,AF10)) -> 27.5 | AH10: 5.6 | AI10: 4 | AJ10: 6.5 | AK10: 3.5 | AL10: 7.3 | AM10: 7.3 | AN10: =IF(AL10="غ","غ",SUM(AH10,AJ10,AL10)) -> 19.4 | AO10: =IF(AM10="غ","غ",SUM(AI10,AK10,AM10)) -> 14.8 | AP10: =IF(OR(AN10="غ",AO10="غ"),"غ",SUM(AN10,AO10)) -> 34.2 | AQ10: 7.5 | AR10: 9.5 | AS10: 9.5 | AT10: =IF(AS10="غ","غ",SUM(AQ10,AR10,AS10)) -> 26.5 | AU10: 7.5 | AV10: 17.7 | AW10: 18.6 | AX10: =IF(AW10="غ","غ",SUM(AU10,AV10,AW10)) -> 43.8 | AY10: 7.6 | AZ10: 19.1 | BA10: 12.6 | BB10: =IF(BA10="غ","غ",SUM(AY10,AZ10,BA10)) -> 39.3 | BC10: 8.8 | BD10: 9.5 | BE10: 9.5 | BF10: =IF(BE10="غ","غ",SUM(BC10,BD10,BE10)) -> 27.8 | BG10: 7.5 | BH10: 9.5 | BI10: 15 | BJ10: =IF(BI10="غ","غ",SUM(BG10,BH10,BI10)) -> 32 | BK10: 7.5 | BL10: 10.7 | BM10: 9.5 | BN10: =IF(BM10="غ","غ",SUM(BK10,BL10,BM10)) -> 27.7 | BO10: 7.5 | BP10: 9.7 | BQ10: 9.5 | BR10: =IF(BQ10="غ","غ",SUM(BO10,BP10,BQ10)) -> 26.7 | BS10: =IF(C10="","",SUM(O10,S10,W10,AE10,AR10,AV10,AZ10,BD10,BH10,BL10,BP10,AA10,AJ10,AK10)) -> 133.7 | BT10: =SUM(Q10,U10,Y10,AG10,AT10,AX10,BB10,BF10,BJ10,BN10,BR10,AC10,AP10) -> 362.2 | BU10: 2.3 | BV10: 7 | BW10: 4 | BX10: =IF(BW10="غ","غ",SUM(BU10,BV10,BW10)) -> 13.3 | BY10: 3.6 | BZ10: 4 | CA10: 6.1 | CB10: =IF(CA10="غ","غ",SUM(BY10,BZ10,CA10)) -> 13.7 | CC10: =IF(I10="","",IF(I10="بنات",IF(CE10=0,"ناجحة",IF(DD10>2,"راسبة","دورثان")),IF(I10="بنين",IF(CE10=0,"ناجح",IF(DD10>2,"راسب","دورثان"))))) -> دورثان | CD10: =IF(C10="","",IF(AND($L10="باقية",$CC10="راسبة"),"وليس لها حق الاعادة",IF(AND($L10<>"باقية",$CC10="راسبة"),"و لها حق الاعادة",IF(AND($L10="باقى",$CC10="راسب"),"وليس له حق الاعادة",IF(AND($L10<>"باقى",$CC10="راسب"),"و له حق الاعادة",IF($CC10="ناجحة","و منقولة للصف الثانى",IF($CC10="ناجح","و منقول للصف الثانى",IF($CC10="دورثان","فى : "&CONCATENATE($CM10,$CN10,$CO10,$CQ10,$CR10,$CS10,$CT10,$CU10,$CV10,$CW10,$CX10,$CY10,$CP10,$CZ10,$DA10,$DB10))))))))) -> فى : لغة انجليزية - لغة فرنسية - | CE10: =IF(C10="","",$DC10+$DD10) -> 2 | CF10: 1 | CG10: 1/3 | CM10: =IF(C10="","",IF(OR(P10<$P$9,P10="غ",Q10<$Q$9),CM$5&" - ","")) ->  | CN10: =IF(C10="","",IF(OR(T10<$T$9,T10="غ",U10<$U$9),CN$5&" - ","")) -> لغة انجليزية - | CO10: =IF(C10="","",IF(OR(X10<$X$9,X10="غ",Y10<$Y$9),CO$5&" - ","")) -> لغة فرنسية - | CP10: =IF(C10="","",IF(OR(AB10<$AB$9,AB10="غ",AC10<$AC$9),CP$5&" - ","")) ->  | CQ10: =IF(C10="","",IF(OR(AF10<$AF$9,AF10="غ",AG10<$AG$9),CQ$5&" - ","")) ->  | CR10: =IF(C10="","",IF(OR(AL10<$AL$9,AM10<$AM$9,AN10<$AN$9,AN10="غ",AO10<$AO$9,AO10="غ"),CR$5&" - ","")) ->  | CS10: =IF(C10="","",IF(OR(AS10<$AS$9,AS10="غ",AT10<$AT$9),CS$5&" - ","")) ->  | CT10: =IF(C10="","",IF(OR(AW10<$AW$9,AW10="غ",AX10<$AX$9),CT$5&" - ","")) ->  | CU10: =IF(C10="","",IF(OR(BA10<$BA$9,BA10="غ",BB10<$BB$9),CU$5&" - ","")) ->  | CV10: =IF(C10="","",IF(OR(BE10<$BE$9,BE10="غ",BF10<$BF$9),CV$5&" - ","")) ->  | CW10: =IF(C10="","",IF(OR(BI10<$BI$9,BI10="غ",BJ10<$BJ$9),CW$5&" - ","")) ->  | CX10: =IF(C10="","",IF(OR(BM10<$BM$9,BM10="غ",BN10<$BN$9),CX$5&" - ","")) ->  | CY10: =IF(C10="","",IF(OR(BQ10<$BQ$9,BQ10="غ",BR10<$BR$9),CY$5&" - ","")) ->  | CZ10: =IF(C10="","",IF(BT10<$BT$9,CZ$5&" - ","")) ->  | DA10: =IF(C10="","",IF(OR(BW10<$BW$9,BW10="غ",BX10<$BX$9),DA$5,"")) ->  | DB10: =IF(C10="","",IF(OR(CA10<$CA$9,CA10="غ",CB10<$CB$9),DB$5,"")) ->  | DC10: =COUNTIF($CZ10:$DB10,"?*") -> 0 | DD10: =COUNTIF($CM10:$CY10,"?*") -> 2
A11: 2 | B11: 102 | C11: ابتسام محمود احمد عبدالرحيم | D11: 2/1 | E11: 2003-11-01 | F11: 00 - 11 - 17 | I11: بنات | J11: انتظام | K11: صباحى | M11: 674 | N11: غ | O11: 10.7 | P11: 16.3 | Q11: 27 | R11: 8.9 | S11: 8.5 | T11: 16.2 | U11: 33.6 | V11: 3.5 | W11: 5.5 | X11: 9.7 | Y11: 18.7 | Z11: 5.5 | AA11: 14.2 | AB11: 16.5 | AC11: 36.2 | AD11: 3.5 | AE11: 5.5 | AF11: 3 | AG11: 12 | AH11: 5.9 | AI11: 6.7 | AJ11: 6.5 | AK11: 7.3 | AL11: 9.8 | AM11: 4 | AN11: 22.2 | AO11: 18 | AP11: 40.2 | AQ11: 8.4 | AR11: 9.9 | AS11: 9.5 | AT11: 27.8 | AU11: 7.5 | AV11: 11.3 | AW11: 19.8 | AX11: 38.6 | AY11: 7.5 | AZ11: 9.5 | BA11: 12.1 | BB11: 29.1 | BC11: 7.5 | BD11: 13 | BE11: 18.3 | BF11: 38.8 | BG11: 7.5 | BH11: 9.5 | BI11: 9.5 | BJ11: 26.5 | BK11: 7.5 | BL11: 15.2 | BM11: 17.2 | BN11: 39.9 | BO11: 7.5 | BP11: 9.5 | BQ11: 11.8 | BR11: 28.8 | BS11: 136.1 | BT11: 397.2 | BU11: 2 | BV11: 4 | BW11: 6.7 | BX11: 12.7 | BY11: 2.1 | BZ11: 4 | CA11: 5.2 | CB11: 11.3 | CC11: دورثان | CD11: فى : رياضة عامة - | CE11: 1 | CF11: 1 | CG11: 1/3 | CQ11: رياضة عامة - | DC11: 0 | DD11: 1
A12: 3 | B12: 103 | C12: احلام منصور احمد عبداللطيف | D12: 2/1 | E12: 2004-06-15 | F12: 16 - 03 - 17 | I12: بنات | J12: انتظام | K12: صباحى | M12: 673 | N12: 7.5 | O12: 11.6 | P12: 8.5 | Q12: 27.6 | R12: 7.5 | S12: 8.5 | T12: 10.2 | U12: 26.2 | V12: 3.5 | W12: 5.5 | X12: 6.1 | Y12: 15.1 | Z12: 5.5 | AA12: 11.1 | AB12: 9.5 | AC12: 26.1 | AD12: 3.5 | AE12: 7.2 | AF12: 7.4 | AG12: 18.1 | AH12: 4.9 | AI12: 4.2 | AJ12: 10.9 | AK12: 3.5 | AL12: 9.5 | AM12: 4.8 | AN12: 25.3 | AO12: 12.5 | AP12: 37.8 | AQ12: 7.5 | AR12: 14.2 | AS12: 9.5 | AT12: 31.2 | AU12: 7.5 | AV12: 15.8 | AW12: 16.3 | AX12: 39.6 | AY12: 7.5 | AZ12: 9.5 | BA12: 16.9 | BB12: 33.9 | BC12: 7.9 | BD12: 16.3 | BE12: 9.5 | BF12: 33.7 | BG12: 7.5 | BH12: 18.6 | BI12: 9.5 | BJ12: 35.6 | BK12: 8.2 | BL12: 15.7 | BM12: 15.6 | BN12: 39.5 | BO12: 9.3 | BP12: 12.4 | BQ12: 14.7 | BR12: 36.4 | BS12: 160.8 | BT12: 400.8 | BU12: 3.9 | BV12: 4.5 | BW12: 4.2 | BX12: 12.6 | BY12: 2 | BZ12: 5.7 | CA12: 4 | CB12: 11.7 | CC12: ناجحة | CD12: و منقولة للصف الثانى | CE12: 0 | CF12: 1 | CG12: 1/3 | DC12: 0 | DD12: 0
A13: 4 | B13: 104 | C13: اسراء سيد ركابى مصطفى | D13: 1/1 | E13: 2003-09-18 | F13: 13 - 00 - 18 | I13: بنات | J13: انتظام | K13: صباحى | L13: باقية | M13: 672 | N13: 7.5 | O13: 8.5 | P13: 8.5 | Q13: 24.5 | R13: 7.5 | S13: غ | T13: 8.5 | U13: 16 | V13: 3.5 | W13: 7.6 | X13: 4.5 | Y13: 15.6 | Z13: 5.5 | AA13: 7.5 | AB13: 9.5 | AC13: 22.5 | AD13: 3.5 | AE13: 6 | AF13: 6 | AG13: 15.5 | AH13: 4.6 | AI13: 6.9 | AJ13: 7.2 | AK13: 3.5 | AL13: 6.5 | AM13: 4 | AN13: 18.3 | AO13: 14.4 | AP13: 32.7 | AQ13: 8.7 | AR13: 17.4 | AS13: 9.5 | AT13: 35.6 | AU13: 8.7 | AV13: 15 | AW13: 15.4 | AX13: 39.1 | AY13: 7.5 | AZ13: 16 | BA13: 6.5 | BB13: 30 | BC13: 7.5 | BD13: 16.2 | BE13: 9.5 | BF13: 33.2 | BG13: 7.5 | BH13: 9.5 | BI13: 14.7 | BJ13: 31.7 | BK13: 8.1 | BL13: 9.5 | BM13: 9.5 | BN13: 27.1 | BO13: 7.5 | BP13: 9.5 | BQ13: 17 | BR13: 34 | BS13: 133.4 | BT13: 357.5 | BU13: 2 | BV13: 4 | BW13: 6.9 | BX13: 12.9 | BY13: 3.5 | BZ13: 6.9 | CA13: 4 | CB13: 14.4 | CC13: دورثان | CD13: فى : لغة عربية - لغة انجليزية - | CE13: 2 | CF13: 1 | CG13: 1/3 | CM13: لغة عربية - | CN13: لغة انجليزية - | DC13: 0 | DD13: 2
A14: 5 | B14: 105 | C14: اسماء عبدالمنعم محمد محمود | D14: 2/1 | I14: بنات | J14: انتظام | K14: صباحى | M14: 671 | N14: 7.5 | O14: 8.5 | P14: 8.5 | Q14: 24.5 | R14: 7.5 | S14: 12.9 | T14: 8.5 | U14: 28.9 | V14: 5.6 | W14: 5.5 | X14: 4.5 | Y14: 15.6 | Z14: 7.6 | AA14: 7.5 | AB14: 9.5 | AC14: 24.6 | AD14: 3.5 | AE14: 10.5 | AF14: 10.2 | AG14: 24.2 | AH14: 3.5 | AI14: 3.5 | AJ14: 6.5 | AK14: 3.5 | AL14: 6.5 | AM14: 7 | AN14: 16.5 | AO14: 14 | AP14: 30.5 | AQ14: 7.5 | AR14: 13.4 | AS14: 18.8 | AT14: 39.7 | AU14: 7.5 | AV14: 12.5 | AW14: 9.5 | AX14: 29.5 | AY14: 7.5 | AZ14: 9.8 | BA14: 6.5 | BB14: 23.8 | BC14: 7.5 | BD14: 9.5 | BE14: 9.5 | BF14: 26.5 | BG14: 7.8 | BH14: 13.9 | BI14: 9.5 | BJ14: 31.2 | BK14: 7.5 | BL14: 19.1 | BM14: 9.5 | BN14: 36.1 | BO14: 7.5 | BP14: 9.5 | BQ14: 10.9 | BR14: 27.9 | BS14: 142.6 | BT14: 363 | BU14: 3.4 | BV14: 4 | BW14: 4 | BX14: 11.4 | BY14: 3.4 | BZ14: 5.4 | CA14: 4 | CB14: 12.8 | CC14: دورثان | CD14: فى : لغة عربية - سكرتارية اجنبية - | CE14: 2 | CF14: 1 | CG14: 1/3 | CM14: لغة عربية - | CU14: سكرتارية اجنبية - | DC14: 0 | DD14: 2
A15: 6 | B15: 106 | C15: اسماء فاروق دياب مكى | D15: 1/1 | I15: بنات | J15: انتظام | K15: صباحى | M15: 670 | N15: غ | O15: 15.5 | P15: 8.5 | Q15: 24 | R15: 7.5 | S15: 17 | T15: 8.5 | U15: 33 | V15: 3.5 | W15: 5.5 | X15: غ | Y15: غ | Z15: 5.5 | AA15: 7.5 | AB15: 14.4 | AC15: 27.4 | AD15: 5 | AE15: 5.5 | AF15: 6 | AG15: 16.5 | AH15: 3.8 | AI15: 3.5 | AJ15: 10.3 | AK15: 3.5 | AL15: 6.5 | AM15: 4 | AN15: 20.6 | AO15: 11 | AP15: 31.6 | AQ15: 7.5 | AR15: 9.5 | AS15: 9.5 | AT15: 26.5 | AU15: 7.5 | AV15: 13.6 | AW15: 12.5 | AX15: 33.6 | AY15: 7.5 | AZ15: 9.5 | BA15: 14.8 | BB15: 31.8 | BC15: 7.5 | BD15: 11.9 | BE15: 9.5 | BF15: 28.9 | BG15: 7.5 | BH15: 15.4 | BI15: 17.9 | BJ15: 40.8 | BK15: 7.5 | BL15: 9.5 | BM15: 15.5 | BN15: 32.5 | BO15: 7.7 | BP15: 16.1 | BQ15: 9.5 | BR15: 33.3 | BS15: 150.3 | BT15: 359.9 | BU15: 4 | BV15: 4.8 | BW15: 4 | BX15: 12.8 | BY15: 2 | BZ15: 4 | CA15: 4 | CB15: 10 | CC15: دورثان | CD15: فى : لغة عربية - لغة فرنسية - | CE15: 2 | CF15: 1 | CG15: 1/3 | CM15: لغة عربية - | CO15: لغة فرنسية - | DC15: 0 | DD15: 2
A16: 7 | B16: 107 | C16: الاء احمد ابراهيم دسوقى | D16: 3/1 | I16: بنات | J16: انتظام | K16: صباحى | M16: 669 | N16: 8.2 | O16: 8.5 | P16: 8.5 | Q16: 25.2 | R16: 7.5 | S16: غ | T16: 19.5 | U16: 27 | V16: 3.5 | W16: 5.5 | X16: 11.7 | Y16: 20.7 | Z16: 5.5 | AA16: 7.5 | AB16: 9.5 | AC16: 22.5 | AD16: 5.2 | AE16: 10 | AF16: 9.5 | AG16: 24.7 | AH16: 3.5 | AI16: 3.5 | AJ16: 10.3 | AK16: 3.5 | AL16: 6.5 | AM16: 6.6 | AN16: 20.3 | AO16: 13.6 | AP16: 33.9 | AQ16: 7.5 | AR16: 9.5 | AS16: 9.5 | AT16: 26.5 | AU16: 7.5 | AV16: 13.1 | AW16: 9.5 | AX16: 30.1 | AY16: 7.5 | AZ16: 11.3 | BA16: 6.5 | BB16: 25.3 | BC16: 7.5 | BD16: 9.5 | BE16: 9.5 | BF16: 26.5 | BG16: 7.5 | BH16: 10.2 | BI16: 10.1 | BJ16: 27.8 | BK16: 7.5 | BL16: 9.5 | BM16: 11.5 | BN16: 28.5 | BO16: 7.5 | BP16: 16.3 | BQ16: 14.1 | BR16: 37.9 | BS16: 124.7 | BT16: 356.6 | BU16: 2.9 | BV16: 4 | BW16: 4 | BX16: 10.9 | BY16: 2 | BZ16: 4 | CA16: 5.3 | CB16: 11.3 | CC16: ناجحة | CD16: و منقولة للصف الثانى | CE16: 0 | CF16: 1 | CG16: 1/3 | DC16: 0 | DD16: 0
A17: 8 | B17: 108 | C17: الاميره محمد عبدالقادر محمد | D17: 1/1 | I17: بنات | J17: انتظام | K17: صباحى | M17: 668 | N17: 7.5 | O17: 15.2 | P17: 8.5 | Q17: 31.2 | R17: 7.5 | S17: 8.5 | T17: 14.5 | U17: 30.5 | V17: 4.5 | W17: 11.6 | X17: 8.7 | Y17: 24.8 | Z17: 5.5 | AA17: 10.7 | AB17: 9.5 | AC17: 25.7 | AD17: 3.5 | AE17: 9.9 | AF17: 6 | AG17: 19.4 | AH17: 3.5 | AI17: 5.7 | AJ17: 11.4 | AK17: 5 | AL17: 6.5 | AM17: 6.6 | AN17: 21.4 | AO17: 17.3 | AP17: 38.7 | AQ17: 7.5 | AR17: 9.5 | AS17: 14.8 | AT17: 31.8 | AU17: 7.5 | AV17: 15 | AW17: 9.5 | AX17: 32 | AY17: 8.5 | AZ17: 16.2 | BA17: 19 | BB17: 43.7 | BC17: 7.5 | BD17: 9.7 | BE17: 12.4 | BF17: 29.6 | BG17: 7.5 | BH17: 16.3 | BI17: 14.8 | BJ17: 38.6 | BK17: 7.5 | BL17: 9.5 | BM17: 9.5 | BN17: 26.5 | BO17: 8.2 | BP17: 13.2 | BQ17: 18.1 | BR17: 39.5 | BS17: 161.7 | BT17: 412 | BU17: 2.3 | BV17: 7.9 | BW17: 5.7 | BX17: 15.9 | BY17: 2 | BZ17: 4 | CA17: 6.8 | CB17: 12.8 | CC17: ناجحة | CD17: و منقولة للصف الثانى | CE17: 0 | CF17: 1 | CG17: 1/3 | DC17: 0 | DD17: 0
A18: 9 | B18: 109 | C18: ام هاشم محمد على محمد | D18: 1/1 | I18: بنات | J18: انتظام | K18: صباحى | M18: 667 | N18: 7.5 | O18: 16.3 | P18: 8.5 | Q18: 32.3 | R18: 7.5 | S18: 17.9 | T18: 8.5 | U18: 33.9 | V18: 4.1 | W18: 5.5 | X18: 4.5 | Y18: 14.1 | Z18: 5.5 | AA18: 8.5 | AB18: 9.5 | AC18: 23.5 | AD18: 5.4 | AE18: 5.5 | AF18: 6 | AG18: 16.9 | AH18: 3.5 | AI18: 3.5 | AJ18: 6.5 | AK18: 3.5 | AL18: 6.7 | AM18: 4 | AN18: 16.7 | AO18: 11 | AP18: 27.7 | AQ18: 7.5 | AR18: 17.7 | AS18: 13.7 | AT18: 38.9 | AU18: 8.9 | AV18: 9.5 | AW18: 9.5 | AX18: 27.9 | AY18: 7.5 | AZ18: 11.3 | BA18: 10.2 | BB18: 29 | BC18: 7.5 | BD18: 12.8 | BE18: 10 | BF18: 30.3 | BG18: 7.5 | BH18: 9.5 | BI18: 10.2 | BJ18: 27.2 | BK18: 7.5 | BL18: 9.5 | BM18: 16.8 | BN18: 33.8 | BO18: 7.5 | BP18: 9.5 | BQ18: 14.8 | BR18: 31.8 | BS18: 143.5 | BT18: 367.3 | BU18: 2 | BV18: 7.5 | BW18: 4 | BX18: 13.5 | BY18: 3.6 | BZ18: 7.1 | CA18: 4 | CB18: 14.7 | CC18: ناجحة | CD18: و منقولة للصف الثانى | CE18: 0 | CF18: 1 | CG18: 1/3 | DC18: 0 | DD18: 0
A19: 10 | B19: 110 | C19: امانى عبدالمنعم محمد صالح | D19: 3/1 | I19: بنات | J19: انتظام | K19: صباحى | M19: 666 | N19: 7.5 | O19: 14.2 | P19: 8.5 | Q19: 30.2 | R19: 7.5 | S19: 8.5 | T19: 14.2 | U19: 30.2 | V19: 4 | W19: 5.5 | X19: 8.5 | Y19: 18 | Z19: 5.5 | AA19: 7.5 | AB19: 12.2 | AC19: 25.2 | AD19: 5.4 | AE19: 7 | AF19: 6 | AG19: 18.4 | AH19: 3.5 | AI19: 3.5 | AJ19: 6.8 | AK19: 6.8 | AL19: 11.4 | AM19: 4.6 | AN19: 21.7 | AO19: 14.9 | AP19: 36.6 | AQ19: 7.5 | AR19: 17.3 | AS19: 13.3 | AT19: 38.1 | AU19: 8.6 | AV19: 19.7 | AW19: 9.5 | AX19: 37.8 | AY19: 7.5 | AZ19: 15 | BA19: 16.8 | BB19: 39.3 | BC19: 9.8 | BD19: 9.5 | BE19: 17 | BF19: 36.3 | BG19: 9.7 | BH19: 9.5 | BI19: 14.7 | BJ19: 33.9 | BK19: 7.5 | BL19: 13.1 | BM19: 13.2 | BN19: 33.8 | BO19: 7.5 | BP19: 9.5 | BQ19: 17.3 | BR19: 34.3 | BS19: 149.9 | BT19: 412.1 | BU19: 2 | BV19: 7.1 | BW19: 4 | BX19: 13.1 | BY19: 3.5 | BZ19: 6.9 | CA19: 4 | CB19: 14.4 | CC19: ناجحة | CD19: و منقولة للصف الثانى | CE19: 0 | CF19: 1 | CG19: 1/3 | DC19: 0 | DD19: 0
A20: 11 | B20: 111 | C20: اميره خالد وحيدالدين محمود | D20: 2/1 | I20: بنات | J20: انتظام | K20: صباحى | M20: 665 | N20: 7.5 | O20: 8.5 | P20: 9.6 | Q20: 25.6 | R20: 7.5 | S20: 8.5 | T20: 8.5 | U20: 24.5 | V20: 3.5 | W20: 9.7 | X20: 4.5 | Y20: 17.7 | Z20: 5.5 | AA20: 9.4 | AB20: 16.1 | AC20: 31 | AD20: 3.5 | AE20: 6.1 | AF20: 6 | AG20: 15.6 | AH20: 3.5 | AI20: 3.5 | AJ20: 9.1 | AK20: 3.5 | AL20: 10.3 | AM20: 4.1 | AN20: 22.9 | AO20: 11.1 | AP20: 34 | AQ20: 7.5 | AR20: 9.5 | AS20: 9.8 | AT20: 26.8 | AU20: 7.5 | AV20: 12.9 | AW20: 9.5 | AX20: 29.9 | AY20: 7.5 | AZ20: 9.5 | BA20: 6.5 | BB20: 23.5 | BC20: 7.5 | BD20: 9.5 | BE20: 9.5 | BF20: 26.5 | BG20: 9.5 | BH20: 9.5 | BI20: 12.5 | BJ20: 31.5 | BK20: 7.5 | BL20: 14.1 | BM20: 9.5 | BN20: 31.1 | BO20: 7.5 | BP20: 9.5 | BQ20: 15.4 | BR20: 32.4 | BS20: 129.3 | BT20: 350.1 | BU20: 2 | BV20: 6.8 | BW20: 4 | BX20: 12.8 | BY20: 2 | BZ20: 4 | CA20: 4 | CB20: 10 | CC20: دورثان | CD20: فى : لغة انجليزية - سكرتارية اجنبية - | CE20: 2 | CF20: 1 | CG20: 1/3 | CN20: لغة انجليزية - | CU20: سكرتارية اجنبية - | DC20: 0 | DD20: 2
A21: 12 | B21: 112 | C21: اميره عبدالرحيم محمود جاه الرسول | D21: 1/1 | I21: بنات | J21: انتظام | K21: صباحى | M21: 664 | N21: 7.5 | O21: 8.5 | P21: 17.9 | Q21: 33.9 | R21: 7.5 | S21: 15.4 | T21: 8.5 | U21: 31.4 | V21: 3.5 | W21: 8.5 | X21: 4.6 | Y21: 16.6 | Z21: 5.5 | AA21: 10.6 | AB21: 14.6 | AC21: 30.7 | AD21: 4.2 | AE21: 9.5 | AF21: 6 | AG21: 19.7 | AH21: 3.5 | AI21: 3.5 | AJ21: 6.5 | AK21: 3.5 | AL21: 6.5 | AM21: 6.3 | AN21: 16.5 | AO21: 13.3 | AP21: 29.8 | AQ21: 7.5 | AR21: 9.8 | AS21: 9.5 | AT21: 26.8 | AU21: 7.5 | AV21: 9.5 | AW21: 11.8 | AX21: 28.8 | AY21: 7.5 | AZ21: 9.5 | BA21: 8.8 | BB21: 25.8 | BC21: 7.5 | BD21: 9.5 | BE21: 9.5 | BF21: 26.5 | BG21: 7.5 | BH21: 9.5 | BI21: 14 | BJ21: 31 | BK21: 7.5 | BL21: 18.4 | BM21: 9.5 | BN21: 35.4 | BO21: 7.5 | BP21: 9.5 | BQ21: 12.9 | BR21: 29.9 | BS21: 138.2 | BT21: 366.3 | BU21: 2.5 | BV21: 7.6 | BW21: 4 | BX21: 14.1 | BY21: 2 | BZ21: 4 | CA21: 4 | CB21: 10 | CC21: ناجحة | CD21: و منقولة للصف الثانى | CE21: 0 | CF21: 1 | CG21: 1/3 | DC21: 0 | DD21: 0
A22: 13 | B22: 113 | C22: اميره محمد احمد رشيد | D22: 3/1 | I22: بنات | J22: انتظام | K22: صباحى | M22: 663 | N22: 7.5 | O22: 17.3 | P22: 8.5 | Q22: 33.3 | R22: 7.5 | S22: 8.5 | T22: 8.5 | U22: 24.5 | V22: 3.5 | W22: 5.5 | X22: غ | Y22: غ | Z22: 5.5 | AA22: 8.1 | AB22: 9.5 | AC22: 23.1 | AD22: 3.5 | AE22: 5.5 | AF22: 7.2 | AG22: 16.2 | AH22: 6 | AI22: 3.5 | AJ22: 6.5 | AK22: 4.9 | AL22: 6.5 | AM22: 4 | AN22: 19 | AO22: 12.4 | AP22: 31.4 | AQ22: 7.5 | AR22: 12.3 | AS22: 9.6 | AT22: 29.4 | AU22: 7.5 | AV22: 18.8 | AW22: 19.9 | AX22: 46.2 | AY22: 7.5 | AZ22: 9.5 | BA22: 19.6 | BB22: 36.6 | BC22: 9.4 | BD22: 9.5 | BE22: 12.2 | BF22: 31.1 | BG22: 7.5 | BH22: 14.8 | BI22: 19.1 | BJ22: 41.4 | BK22: 7.5 | BL22: 17.7 | BM22: 9.5 | BN22: 34.7 | BO22: 7.5 | BP22: 9.5 | BQ22: 19.3 | BR22: 36.3 | BS22: 148.4 | BT22: 384.2 | BU22: 2.2 | BV22: 4 | BW22: 4 | BX22: 10.2 | BY22: 2 | BZ22: 4.9 | CA22: 4 | CB22: 10.9 | CC22: دورثان | CD22: فى : لغة انجليزية - لغة فرنسية - | CE22: 2 | CF22: 1 | CG22: 1/3 | CN22: لغة انجليزية - | CO22: لغة فرنسية - | DC22: 0 | DD22: 2
A23: 14 | B23: 114 | C23: اميره محمد على عبدالمولى | D23: 3/1 | I23: بنات | J23: انتظام | K23: صباحى | M23: 662 | N23: 7.5 | O23: 15.8 | P23: 8.5 | Q23: 31.8 | R23: 7.5 | S23: 8.9 | T23: 8.5 | U23: 24.9 | V23: 3.5 | W23: 9.5 | X23: 4.5 | Y23: 17.5 | Z23: 5.5 | AA23: 11.2 | AB23: 9.5 | AC23: 26.2 | AD23: 5.9 | AE23: 11.7 | AF23: 6 | AG23: 23.6 | AH23: 3.5 | AI23: 5 | AJ23: 6.5 | AK23: 3.5 | AL23: 6.5 | AM23: 7.8 | AN23: 16.5 | AO23: 16.3 | AP23: 32.8 | AQ23: 7.5 | AR23: 12 | AS23: 10.1 | AT23: 29.6 | AU23: 7.5 | AV23: 9.5 | AW23: 9.5 | AX23: 26.5 | AY23: 9.9 | AZ23: 19.8 | BA23: 16.7 | BB23: 46.4 | BC23: 7.5 | BD23: 9.5 | BE23: 9.5 | BF23: 26.5 | BG23: 7.5 | BH23: 16.7 | BI23: 13.9 | BJ23: 38.1 | BK23: 7.5 | BL23: 9.5 | BM23: 9.5 | BN23: 26.5 | BO23: 8.3 | BP23: 9.5 | BQ23: 9.5 | BR23: 27.3 | BS23: 153.6 | BT23: 377.7 | BU23: 3.6 | BV23: 6.7 | BW23: 5 | BX23: 15.3 | BY23: 2 | BZ23: 4.8 | CA23: 7.9 | CB23: 14.7 | CC23: دورثان | CD23: فى : لغة انجليزية - | CE23: 1 | CF23: 1 | CG23: 1/3 | CN23: لغة انجليزية - | DC23: 0 | DD23: 1
A24: 15 | B24: 115 | C24: ايمان حمدى حسن العدل | D24: 3/1 | I24: بنات | J24: انتظام | K24: صباحى | M24: 661 | N24: 7.5 | O24: 8.5 | P24: 17.1 | Q24: 33.1 | R24: 7.5 | S24: 8.5 | T24: 8.5 | U24: 24.5 | V24: 3.5 | W24: 10.4 | X24: 4.5 | Y24: 18.4 | Z24: 5.5 | AA24: 7.5 | AB24: 14.4 | AC24: 27.4 | AD24: 5.5 | AE24: 5.5 | AF24: 6 | AG24: 17 | AH24: 3.5 | AI24: 6.8 | AJ24: 6.5 | AK24: 3.5 | AL24: 7 | AM24: 4 | AN24: 17 | AO24: 14.3 | AP24: 31.3 | AQ24: 8.4 | AR24: 15.5 | AS24: 10.8 | AT24: 34.7 | AU24: 7.8 | AV24: 9.5 | AW24: 10.3 | AX24: 27.6 | AY24: 7.5 | AZ24: 11.7 | BA24: 6.5 | BB24: 25.7 | BC24: 7.5 | BD24: 9.5 | BE24: 9.5 | BF24: 26.5 | BG24: 8.9 | BH24: 9.5 | BI24: 9.5 | BJ24: 27.9 | BK24: 7.5 | BL24: 9.5 | BM24: 9.5 | BN24: 26.5 | BO24: 7.5 | BP24: 9.5 | BQ24: 11 | BR24: 28 | BS24: 125.1 | BT24: 348.6 | BU24: 2.7 | BV24: 4 | BW24: 6.8 | BX24: 13.5 | BY24: 3 | BZ24: 6.2 | CA24: 4 | CB24: 13.2 | CC24: دورثان | CD24: فى : لغة انجليزية - | CE24: 1 | CF24: 1 | CG24: 1/3 | CN24: لغة انجليزية - | DC24: 0 | DD24: 1
A25: 16 | B25: 116 | C25: ايمان خالد محمود عبدالحميد | D25: 1/1 | I25: بنات | J25: انتظام | K25: صباحى | M25: 660 | N25: 8.1 | O25: 19.2 | P25: 8.5 | Q25: 35.8 | R25: 7.5 | S25: 17.6 | T25: 11.1 | U25: 36.2 | V25: 3.5 | W25: 11.8 | X25: غ | Y25: غ | Z25: 7.7 | AA25: 7.5 | AB25: 9.5 | AC25: 24.7 | AD25: 5.4 | AE25: 8.1 | AF25: 6 | AG25: 19.5 | AH25: 3.6 | AI25: 4.6 | AJ25: 7 | AK25: 3.5 | AL25: 6.5 | AM25: 5.4 | AN25: 17.1 | AO25: 13.5 | AP25: 30.6 | AQ25: 7.5 | AR25: 9.5 | AS25: 10.5 | AT25: 27.5 | AU25: 7.5 | AV25: 9.6 | AW25: 12.1 | AX25: 29.2 | AY25: 8.4 | AZ25: 18.1 | BA25: 12.1 | BB25: 38.6 | BC25: 7.5 | BD25: 9.5 | BE25: 9.5 | BF25: 26.5 | BG25: 7.5 | BH25: 9.5 | BI25: 9.5 | BJ25: 26.5 | BK25: 7.5 | BL25: 19.2 | BM25: 17.1 | BN25: 43.8 | BO25: 7.5 | BP25: 16.1 | BQ25: 9.5 | BR25: 33.1 | BS25: 166.2 | BT25: 372 | BU25: 2 | BV25: 4 | BW25: 4.6 | BX25: 10.6 | BY25: 2 | BZ25: 4 | CA25: 6.7 | CB25: 12.7 | CC25: دورثان | CD25: فى : لغة فرنسية - | CE25: 1 | CF25: 1 | CG25: 1/3 | CO25: لغة فرنسية - | DC25: 0 | DD25: 1
A26: 17 | B26: 117 | C26: ايمان عامر عباس رزق | D26: 1/1 | I26: بنات | J26: انتظام | K26: صباحى | M26: 659 | N26: 7.5 | O26: 17.4 | P26: 12.2 | Q26: 37.1 | R26: 7.5 | S26: 12.2 | T26: 15.7 | U26: 35.4 | V26: 6 | W26: 5.5 | X26: 9.4 | Y26: 20.9 | Z26: 5.5 | AA26: 7.5 | AB26: 9.5 | AC26: 22.5 | AD26: 3.5 | AE26: 8.3 | AF26: 6 | AG26: 17.8 | AH26: 4.4 | AI26: 7.7 | AJ26: 6.5 | AK26: 3.5 | AL26: 6.5 | AM26: 5.5 | AN26: 17.4 | AO26: 16.7 | AP26: 34.1 | AQ26: 9.7 | AR26: 9.5 | AS26: 20 | AT26: 39.2 | AU26: 7.5 | AV26: 14.3 | AW26: 14.7 | AX26: 36.5 | AY26: 7.5 | AZ26: 9.5 | BA26: 6.5 | BB26: 23.5 | BC26: 7.5 | BD26: 9.5 | BE26: 9.5 | BF26: 26.5 | BG26: 7.5 | BH26: 9.5 | BI26: 9.5 | BJ26: 26.5 | BK26: 7.5 | BL26: 9.5 | BM26: 18.8 | BN26: 35.8 | BO26: 7.5 | BP26: 9.5 | BQ26: 18.7 | BR26: 35.7 | BS26: 132.2 | BT26: 391.5 | BU26: 2 | BV26: 6.7 | BW26: 7.7 | BX26: 16.4 | BY26: 2 | BZ26: 4 | CA26: 4 | CB26: 10 | CC26: دورثان | CD26: فى : سكرتارية اجنبية - | CE26: 1 | CF26: 1 | CG26: 1/3 | CU26: سكرتارية اجنبية - | DC26: 0 | DD26: 1
A27: 18 | B27: 118 | C27: ايه السيد محمود موسى | D27: 3/1 | I27: بنات | J27: انتظام | K27: صباحى | M27: 658 | N27: 7.5 | O27: 8.5 | P27: 8.5 | Q27: 24.5 | R27: 7.5 | S27: 8.5 | T27: 8.5 | U27: 24.5 | V27: 3.5 | W27: 5.6 | X27: 4.5 | Y27: 13.6 | Z27: 7.6 | AA27: 10.5 | AB27: 9.5 | AC27: 27.6 | AD27: 3.8 | AE27: 8.8 | AF27: 9.1 | AG27: 21.7 | AH27: 3.5 | AI27: 7.8 | AJ27: 6.6 | AK27: 3.5 | AL27: 6.5 | AM27: 5.9 | AN27: 16.6 | AO27: 17.2 | AP27: 33.8 | AQ27: 9.8 | AR27: 9.5 | AS27: 9.5 | AT27: 28.8 | AU27: 7.5 | AV27: 9.5 | AW27: 9.5 | AX27: 26.5 | AY27: 7.5 | AZ27: 17.5 | BA27: 6.5 | BB27: 31.5 | BC27: 7.5 | BD27: 10.2 | BE27: 9.5 | BF27: 27.2 | BG27: 7.5 | BH27: 9.5 | BI27: 9.5 | BJ27: 26.5 | BK27: 7.5 | BL27: 19 | BM27: 12.4 | BN27: 38.9 | BO27: 7.5 | BP27: 12.9 | BQ27: 9.5 | BR27: 29.9 | BS27: 140.1 | BT27: 355 | BU27: 2 | BV27: 6.6 | BW27: 7.8 | BX27: 16.4 | BY27: 2 | BZ27: 4 | CA27: 4 | CB27: 10 | CC27: دورثان | CD27: فى : لغة عربية - لغة انجليزية - | CE27: 2 | CF27: 1 | CG27: 1/3 | CM27: لغة عربية - | CN27: لغة انجليزية - | DC27: 0 | DD27: 2
A28: 19 | B28: 119 | C28: ايه عبدالنبى دسوقى حسانين | D28: 2/1 | I28: بنات | J28: انتظام | K28: صباحى | M28: 657 | N28: 7.5 | O28: 19 | P28: 8.5 | Q28: 35 | R28: 7.5 | S28: 8.5 | T28: 13.8 | U28: 29.8 | V28: 4.4 | W28: 11 | X28: 8.3 | Y28: 23.7 | Z28: 5.5 | AA28: 7.5 | AB28: 14.3 | AC28: 27.3 | AD28: 5.6 | AE28: 6 | AF28: 7.5 | AG28: 19.1 | AH28: 5.6 | AI28: 4.5 | AJ28: 6.5 | AK28: 3.5 | AL28: 10.3 | AM28: 4 | AN28: 22.4 | AO28: 12 | AP28: 34.4 | AQ28: 7.5 | AR28: 10.7 | AS28: 14.6 | AT28: 32.8 | AU28: 7.5 | AV28: 12.6 | AW28: 18.8 | AX28: 38.9 | AY28: 8.1 | AZ28: 19.8 | BA28: 6.8 | BB28: 34.7 | BC28: 7.5 | BD28: 18.4 | BE28: 9.5 | BF28: 35.4 | BG28: 7.5 | BH28: 17.7 | BI28: 9.5 | BJ28: 34.7 | BK28: 9.2 | BL28: 9.5 | BM28: 18.6 | BN28: 37.3 | BO28: 8.9 | BP28: 14.3 | BQ28: 13.5 | BR28: 36.7 | BS28: 165 | BT28: 419.8 | BU28: 2 | BV28: 5 | BW28: 4.5 | BX28: 11.5 | BY28: 3.6 | BZ28: 4.3 | CA28: 6.5 | CB28: 14.4 | CC28: ناجحة | CD28: و منقولة للصف الثانى | CE28: 0 | CF28: 1 | CG28: 1/3 | DC28: 0 | DD28: 0
A29: 20 | B29: 120 | C29: ايه محمود عطا احمد | D29: 1/1 | I29: بنات | J29: انتظام | K29: صباحى | M29: 656 | N29: 7.5 | O29: 8.5 | P29: 14.2 | Q29: 30.2 | R29: 7.5 | S29: 17.2 | T29: 8.5 | U29: 33.2 | V29: 3.5 | W29: 11.1 | X29: 4.5 | Y29: 19.1 | Z29: 5.5 | AA29: 7.5 | AB29: 13.2 | AC29: 26.2 | AD29: 3.5 | AE29: 11.9 | AF29: 11.6 | AG29: 27 | AH29: 3.5 | AI29: 3.5 | AJ29: 10.6 | AK29: 3.5 | AL29: 6.5 | AM29: 7.9 | AN29: 20.6 | AO29: 14.9 | AP29: 35.5 | AQ29: 7.5 | AR29: 9.5 | AS29: 9.5 | AT29: 26.5 | AU29: 7.5 | AV29: 13.3 | AW29: 9.5 | AX29: 30.3 | AY29: 7.5 | AZ29: 15 | BA29: 10.1 | BB29: 32.6 | BC29: 7.5 | BD29: 9.5 | BE29: 10.4 | BF29: 27.4 | BG29: 7.5 | BH29: 9.5 | BI29: 12.9 | BJ29: 29.9 | BK29: 7.5 | BL29: 12.4 | BM29: 9.5 | BN29: 29.4 | BO29: 7.5 | BP29: 10.1 | BQ29: 19.3 | BR29: 36.9 | BS29: 149.6 | BT29: 384.2 | BU29: 2 | BV29: 4 | BW29: 4 | BX29: 10 | BY29: 2 | BZ29: 4 | CA29: 4 | CB29: 10 | CC29: ناجحة | CD29: و منقولة للصف الثانى | CE29: 0 | CF29: 1 | CG29: 1/3 | DC29: 0 | DD29: 0
A30: 21 | B30: 121 | C30: ايه مصطفى محمد حسين | D30: 1/1 | I30: بنات | J30: انتظام | K30: صباحى | M30: 655 | N30: 8.2 | O30: 10.5 | P30: 8.5 | Q30: 27.2 | R30: 7.5 | S30: 11.7 | T30: 16.6 | U30: 35.8 | V30: 3.5 | W30: 6 | X30: 9.9 | Y30: 19.4 | Z30: 5.5 | AA30: 7.5 | AB30: 17.1 | AC30: 30.1 | AD30: 3.5 | AE30: 10.2 | AF30: 9.9 | AG30: 23.6 | AH30: 3.5 | AI30: 4.8 | AJ30: 10 | AK30: 3.5 | AL30: 6.5 | AM30: 6.8 | AN30: 20 | AO30: 15.1 | AP30: 35.1 | AQ30: 7.5 | AR30: 9.9 | AS30: 9.5 | AT30: 26.9 | AU30: 7.5 | AV30: 11.6 | AW30: 9.5 | AX30: 28.6 | AY30: 7.5 | AZ30: 16.6 | BA30: 6.5 | BB30: 30.6 | BC30: 7.5 | BD30: 9.5 | BE30: 9.5 | BF30: 26.5 | BG30: 7.5 | BH30: 9.5 | BI30: 9.5 | BJ30: 26.5 | BK30: 7.5 | BL30: 18.2 | BM30: 12 | BN30: 37.7 | BO30: 7.5 | BP30: 16.4 | BQ30: 9.5 | BR30: 33.4 | BS30: 151.1 | BT30: 381.4 | BU30: 3.6 | BV30: 4 | BW30: 4.8 | BX30: 12.4 | BY30: 2 | BZ30: 4 | CA30: 4 | CB30: 10 | CC30: ناجحة | CD30: و منقولة للصف الثانى | CE30: 0 | CF30: 1 | CG30: 1/3 | DC30: 0 | DD30: 0
A31: 22 | B31: 122 | C31: بسمه عيد محمد عبيد | D31: 1/1 | I31: بنات | J31: انتظام | K31: صباحى | M31: 654 | N31: 7.5 | O31: 15.3 | P31: 8.5 | Q31: 31.3 | R31: 7.5 | S31: 18.6 | T31: 17.9 | U31: 44 | V31: 3.5 | W31: 10.6 | X31: 10.7 | Y31: 24.8 | Z31: 5.5 | AA31: 7.5 | AB31: 9.5 | AC31: 22.5 | AD31: 5.1 | AE31: 5.5 | AF31: 6.6 | AG31: 17.2 | AH31: 4.8 | AI31: 5 | AJ31: 6.5 | AK31: 3.5 | AL31: 6.5 | AM31: 4 | AN31: 17.8 | AO31: 12.5 | AP31: 30.3 | AQ31: 7.5 | AR31: 9.5 | AS31: 9.5 | AT31: 26.5 | AU31: 7.5 | AV31: 14.7 | AW31: 16 | AX31: 38.2 | AY31: 9.1 | AZ31: 9.5 | BA31: 11.8 | BB31: 30.4 | BC31: 7.5 | BD31: 9.5 | BE31: 9.5 | BF31: 26.5 | BG31: 7.5 | BH31: 19.4 | BI31: 18 | BJ31: 44.9 | BK31: 7.5 | BL31: 9.5 | BM31: 9.5 | BN31: 26.5 | BO31: 9.7 | BP31: 15 | BQ31: 9.5 | BR31: 34.2 | BS31: 154.6 | BT31: 397.3 | BU31: 2 | BV31: 5.4 | BW31: 5 | BX31: 12.4 | BY31: 2 | BZ31: 4 | CA31: 7.3 | CB31: 13.3 | CC31: ناجحة | CD31: و منقولة للصف الثانى | CE31: 0 | CF31: 2 | CG31: 2/3 | DC31: 0 | DD31: 0
A32: 23 | B32: 123 | C32: تبارك الشاذلى محمد حسن | D32: 2/1 | I32: بنات | J32: انتظام | K32: صباحى | M32: 653 | N32: 7.5 | O32: 8.5 | P32: 8.8 | Q32: 24.8 | R32: 7.5 | S32: 10.3 | T32: 11 | U32: 28.8 | V32: 3.5 | W32: 6.9 | X32: 6.6 | Y32: 17 | Z32: 5.5 | AA32: 7.8 | AB32: 19 | AC32: 32.3 | AD32: 3.5 | AE32: 8 | AF32: 7.3 | AG32: 18.8 | AH32: 3.5 | AI32: 3.5 | AJ32: 6.5 | AK32: 3.5 | AL32: 7.9 | AM32: 5.3 | AN32: 17.9 | AO32: 12.3 | AP32: 30.2 | AQ32: 7.5 | AR32: 9.5 | AS32: 11.8 | AT32: 28.8 | AU32: 7.5 | AV32: 15.2 | AW32: 9.5 | AX32: 32.2 | AY32: 7.5 | AZ32: 9.5 | BA32: 6.5 | BB32: 23.5 | BC32: 7.6 | BD32: 16.7 | BE32: 9.5 | BF32: 33.8 | BG32: 8.6 | BH32: 18.6 | BI32: 14.9 | BJ32: 42.1 | BK32: 8.3 | BL32: 9.5 | BM32: 17.1 | BN32: 34.9 | BO32: 9.3 | BP32: 10.2 | BQ32: 16.8 | BR32: 36.3 | BS32: 140.7 | BT32: 383.5 | BU32: 2 | BV32: 4 | BW32: 4 | BX32: 10 | BY32: 2 | BZ32: 4 | CA32: 4 | CB32: 10 | CC32: دورثان | CD32: فى : لغة عربية - سكرتارية اجنبية - | CE32: 2 | CF32: 2 | CG32: 2/3 | CM32: لغة عربية - | CU32: سكرتارية اجنبية - | DC32: 0 | DD32: 2
A33: 24 | B33: 124 | C33: جهاد عطاالله احمد محمد | D33: 1/1 | I33: بنات | J33: انتظام | K33: صباحى | M33: 652 | N33: 7.5 | O33: 11.8 | P33: 13.2 | Q33: 32.5 | R33: 7.5 | S33: 8.5 | T33: 9 | U33: 25 | V33: 3.5 | W33: 5.5 | X33: 5.4 | Y33: 14.4 | Z33: 5.5 | AA33: 7.5 | AB33: 19.8 | AC33: 32.8 | AD33: 4.4 | AE33: 5.5 | AF33: 6 | AG33: 15.9 | AH33: 3.5 | AI33: 6.8 | AJ33: 7.3 | AK33: 3.5 | AL33: 6.5 | AM33: 4 | AN33: 17.3 | AO33: 14.3 | AP33: 31.6 | AQ33: 8.5 | AR33: 9.5 | AS33: 9.5 | AT33: 27.5 | AU33: 7.5 | AV33: 12.6 | AW33: 11 | AX33: 31.1 | AY33: 9.1 | AZ33: 14.7 | BA33: 19.6 | BB33: 43.4 | BC33: 7.5 | BD33: 13.5 | BE33: 10.9 | BF33: 31.9 | BG33: 7.5 | BH33: 10.1 | BI33: 9.5 | BJ33: 27.1 | BK33: 7.5 | BL33: 9.5 | BM33: 9.5 | BN33: 26.5 | BO33: 7.5 | BP33: 9.5 | BQ33: 9.5 | BR33: 26.5 | BS33: 129 | BT33: 366.2 | BU33: 2 | BV33: 4 | BW33: 6.8 | BX33: 12.8 | BY33: 2 | BZ33: 4 | CA33: 7.3 | CB33: 13.3 | CC33: ناجحة | CD33: و منقولة للصف الثانى | CE33: 0 | CF33: 2 | CG33: 2/3 | DC33: 0 | DD33: 0
A34: 25 | B34: 125 | C34: حسناء احمد سلطان قاسم | D34: 2/1 | I34: بنات | J34: انتظام | K34: صباحى | M34: 651 | N34: 7.5 | O34: 9.4 | P34: 12 | Q34: 28.9 | R34: 7.6 | S34: 17.4 | T34: 16.9 | U34: 41.9 | V34: 5.5 | W34: 9.8 | X34: 10.1 | Y34: 25.4 | Z34: 5.5 | AA34: 12.2 | AB34: 19.8 | AC34: 37.5 | AD34: 3.5 | AE34: 10.4 | AF34: 10.8 | AG34: 24.7 | AH34: 3.8 | AI34: 3.5 | AJ34: 11.7 | AK34: 7.1 | AL34: 6.5 | AM34: 7 | AN34: 22 | AO34: 17.6 | AP34: 39.6 | AQ34: 7.5 | AR34: 9.5 | AS34: 18.4 | AT34: 35.4 | AU34: 7.5 | AV34: 17.7 | AW34: 12.7 | AX34: 37.9 | AY34: 7.5 | AZ34: 13.8 | BA34: 6.5 | BB34: 27.8 | BC34: 8.8 | BD34: 19.5 | BE34: 17.7 | BF34: 46 | BG34: 9.9 | BH34: 9.5 | BI34: 9.5 | BJ34: 28.9 | BK34: 9.7 | BL34: 12 | BM34: 13.4 | BN34: 35.1 | BO34: 7.5 | BP34: 14.8 | BQ34: 15.2 | BR34: 37.5 | BS34: 174.8 | BT34: 446.6 | BU34: 3.4 | BV34: 4 | BW34: 4 | BX34: 11.4 | BY34: 2 | BZ34: 4 | CA34: 4 | CB34: 10 | CC34: ناجحة | CD34: و منقولة للصف الثانى | CE34: 0 | CF34: 2 | CG34: 2/3 | DC34: 0 | DD34: 0
A35: 26 | B35: 126 | C35: حسناء احمد عبدالحميد سيد | D35: 1/1 | I35: بنات | J35: انتظام | K35: صباحى | M35: 650 | N35: 7.5 | O35: 8.5 | P35: 18.2 | Q35: 34.2 | R35: 8.2 | S35: 8.5 | T35: 8.5 | U35: 25.2 | V35: 3.5 | W35: 8.7 | X35: 4.5 | Y35: 16.7 | Z35: 7.9 | AA35: 13.1 | AB35: 11.6 | AC35: 32.6 | AD35: 3.5 | AE35: 8.8 | AF35: 6 | AG35: 18.3 | AH35: 4.1 | AI35: 4.3 | AJ35: 6.5 | AK35: 3.5 | AL35: 6.5 | AM35: 5.9 | AN35: 17.1 | AO35: 13.7 | AP35: 30.8 | AQ35: 7.5 | AR35: 16.9 | AS35: 10.2 | AT35: 34.6 | AU35: 8.5 | AV35: 9.9 | AW35: 13.7 | AX35: 32.1 | AY35: 7.5 | AZ35: 13.4 | BA35: 14 | BB35: 34.9 | BC35: 7.5 | BD35: 10.9 | BE35: 9.5 | BF35: 27.9 | BG35: 7.5 | BH35: 9.5 | BI35: 13.8 | BJ35: 30.8 | BK35: 7.5 | BL35: 19.7 | BM35: 9.5 | BN35: 36.7 | BO35: 7.5 | BP35: 14.5 | BQ35: 9.5 | BR35: 31.5 | BS35: 152.4 | BT35: 386.3 | BU35: 2 | BV35: 4.7 | BW35: 4.3 | BX35: 11 | BY35: 2 | BZ35: 6.8 | CA35: 6 | CB35: 14.8 | CC35: ناجحة | CD35: و منقولة للصف الثانى | CE35: 0 | CF35: 2 | CG35: 2/3 | DC35: 0 | DD35: 0
A36: 27 | B36: 127 | C36: خلود مصطفى شحات احمد | D36: 1/1 | I36: بنات | J36: انتظام | K36: صباحى | M36: 649 | N36: 7.5 | O36: 12.5 | P36: 15.5 | Q36: 35.5 | R36: 8.6 | S36: 8.5 | T36: 8.5 | U36: 25.6 | V36: 3.5 | W36: 10.7 | X36: 4.5 | Y36: 18.7 | Z36: 5.5 | AA36: 13.7 | AB36: 9.5 | AC36: 28.7 | AD36: 3.5 | AE36: 5.5 | AF36: 7.2 | AG36: 16.2 | AH36: 4.9 | AI36: 3.5 | AJ36: 6.5 | AK36: 3.5 | AL36: 7.3 | AM36: 4 | AN36: 18.7 | AO36: 11 | AP36: 29.7 | AQ36: 7.5 | AR36: 12.3 | AS36: 9.5 | AT36: 29.3 | AU36: 7.5 | AV36: 14 | AW36: 16.3 | AX36: 37.8 | AY36: 7.5 | AZ36: 9.5 | BA36: 10.4 | BB36: 27.4 | BC36: 7.5 | BD36: 12.1 | BE36: 9.5 | BF36: 29.1 | BG36: 7.5 | BH36: 14.7 | BI36: 9.5 | BJ36: 31.7 | BK36: 7.5 | BL36: 9.5 | BM36: 9.5 | BN36: 26.5 | BO36: 7.5 | BP36: 12.2 | BQ36: 9.5 | BR36: 29.2 | BS36: 145.2 | BT36: 365.4 | BU36: 4 | BV36: 4 | BW36: 4 | BX36: 12 | BY36: 2 | BZ36: 4.9 | CA36: 4 | CB36: 10.9 | CC36: ناجحة | CD36: و منقولة للصف الثانى | CE36: 0 | CF36: 2 | CG36: 2/3 | DC36: 0 | DD36: 0
A37: 28 | B37: 128 | C37: دعاء احمد رجب محمود | D37: 1/1 | I37: بنات | J37: انتظام | K37: صباحى | M37: 648 | N37: 8.6 | O37: 13 | P37: 8.5 | Q37: 30.1 | R37: 7.5 | S37: 8.5 | T37: 19 | U37: 35 | V37: 4 | W37: 5.5 | X37: 11.4 | Y37: 20.9 | Z37: 5.5 | AA37: 9.1 | AB37: 9.5 | AC37: 24.1 | AD37: 3.5 | AE37: 5.5 | AF37: 7.2 | AG37: 16.2 | AH37: 3.5 | AI37: 3.5 | AJ37: 9.7 | AK37: 7.4 | AL37: 6.5 | AM37: 4 | AN37: 19.7 | AO37: 14.9 | AP37: 34.6 | AQ37: 7.5 | AR37: 15.1 | AS37: 13.3 | AT37: 35.9 | AU37: 7.6 | AV37: 9.5 | AW37: 9.5 | AX37: 26.6 | AY37: 7.5 | AZ37: 15.6 | BA37: 12.7 | BB37: 35.8 | BC37: 7.5 | BD37: 11.2 | BE37: 18.5 | BF37: 37.2 | BG37: 9 | BH37: 12.1 | BI37: 14.2 | BJ37: 35.3 | BK37: 7.5 | BL37: 9.5 | BM37: 9.5 | BN37: 26.5 | BO37: 7.5 | BP37: 17.2 | BQ37: 9.5 | BR37: 34.2 | BS37: 148.9 | BT37: 392.4 | BU37: 2.5 | BV37: 5.4 | BW37: 4 | BX37: 11.9 | BY37: 3.1 | BZ37: 6 | CA37: 6 | CB37: 15.1 | CC37: ناجحة | CD37: و منقولة للصف الثانى | CE37: 0 | CF37: 2 | CG37: 2/3 | DC37: 0 | DD37: 0
A38: 29 | B38: 129 | C38: دعاء زين العابدين احمد خليل | D38: 3/1 | I38: بنات | J38: انتظام | K38: صباحى | M38: 647 | N38: 7.5 | O38: 8.5 | P38: 8.5 | Q38: 24.5 | R38: 7.5 | S38: 8.5 | T38: 18.5 | U38: 34.5 | V38: 3.5 | W38: 9.3 | X38: 11.1 | Y38: 23.9 | Z38: 5.5 | AA38: 10.2 | AB38: 9.5 | AC38: 25.2 | AD38: 3.5 | AE38: 7.4 | AF38: 9.2 | AG38: 20.1 | AH38: 3.5 | AI38: 6.5 | AJ38: 6.5 | AK38: 7.5 | AL38: 11.4 | AM38: 4.9 | AN38: 21.4 | AO38: 18.9 | AP38: 40.3 | AQ38: 8.2 | AR38: 13.4 | AS38: 9.5 | AT38: 31.1 | AU38: 7.5 | AV38: 9.5 | AW38: 9.5 | AX38: 26.5 | AY38: 7.5 | AZ38: 14.1 | BA38: 6.5 | BB38: 28.1 | BC38: 7.5 | BD38: 19.2 | BE38: 18.8 | BF38: 45.5 | BG38: 7.5 | BH38: 10 | BI38: 9.5 | BJ38: 27 | BK38: 9.6 | BL38: 9.5 | BM38: 18.4 | BN38: 37.5 | BO38: 7.5 | BP38: 9.5 | BQ38: 9.5 | BR38: 26.5 | BS38: 143.1 | BT38: 390.7 | BU38: 2 | BV38: 4.4 | BW38: 6.5 | BX38: 12.9 | BY38: 2 | BZ38: 5.4 | CA38: 4 | CB38: 11.4 | CC38: دورثان | CD38: فى : لغة عربية - | CE38: 1 | CF38: 2 | CG38: 2/3 | CM38: لغة عربية - | DC38: 0 | DD38: 1
A39: 30 | B39: 130 | C39: دعاء عبدالناصر فراج احمد | D39: 1/1 | I39: بنات | J39: انتظام | K39: صباحى | M39: 646 | N39: 7.5 | O39: 8.5 | P39: 8.5 | Q39: 24.5 | R39: 7.5 | S39: 8.5 | T39: 11.8 | U39: 27.8 | V39: 3.5 | W39: 8 | X39: 7.1 | Y39: 18.6 | Z39: 5.5 | AA39: 12 | AB39: 13.4 | AC39: 30.9 | AD39: 3.5 | AE39: 5.5 | AF39: 8.6 | AG39: 17.6 | AH39: 3.9 | AI39: 3.7 | AJ39: 6.5 | AK39: 5.6 | AL39: 6.5 | AM39: 4 | AN39: 16.9 | AO39: 13.3 | AP39: 30.2 | AQ39: 7.5 | AR39: 17.3 | AS39: 11.2 | AT39: 36 | AU39: 8.7 | AV39: 9.5 | AW39: 13.1 | AX39: 31.3 | AY39: 7.6 | AZ39: 9.5 | BA39: 9 | BB39: 26.1 | BC39: 7.5 | BD39: 17.9 | BE39: 14 | BF39: 39.4 | BG39: 7.5 | BH39: 9.5 | BI39: 14.2 | BJ39: 31.2 | BK39: 8.9 | BL39: 9.5 | BM39: 14.1 | BN39: 32.5 | BO39: 7.5 | BP39: 9.5 | BQ39: 18.9 | BR39: 35.9 | BS39: 137.3 | BT39: 382 | BU39: 2 | BV39: 4 | BW39: 4 | BX39: 10 | BY39: 2.9 | BZ39: 6.9 | CA39: 6.1 | CB39: 15.9 | CC39: دورثان | CD39: فى : لغة عربية - | CE39: 1 | CF39: 2 | CG39: 2/3 | CM39: لغة عربية - | DC39: 0 | DD39: 1
A40: 31 | B40: 131 | C40: دنيا شحات حسين شحات | D40: 2/1 | I40: بنات | J40: انتظام | K40: صباحى | M40: 645 | N40: 7.5 | O40: 16.6 | P40: 8.5 | Q40: 32.6 | R40: 7.5 | S40: 14.8 | T40: 8.5 | U40: 30.8 | V40: 3.5 | W40: 11 | X40: 4.5 | Y40: 19 | Z40: 5.5 | AA40: 10.4 | AB40: 12.5 | AC40: 28.4 | AD40: 4.4 | AE40: 8.1 | AF40: 8.2 | AG40: 20.7 | AH40: 3.5 | AI40: 6.3 | AJ40: 6.5 | AK40: 3.5 | AL40: 6.8 | AM40: 5.4 | AN40: 16.8 | AO40: 15.2 | AP40: 32 | AQ40: 7.9 | AR40: 12.9 | AS40: 9.5 | AT40: 30.3 | AU40: 7.5 | AV40: 9.5 | AW40: 9.5 | AX40: 26.5 | AY40: 7.5 | AZ40: 18.6 | BA40: 17.1 | BB40: 43.2 | BC40: 7.5 | BD40: 17.8 | BE40: 9.5 | BF40: 34.8 | BG40: 7.5 | BH40: 18.1 | BI40: 9.5 | BJ40: 35.1 | BK40: 8.9 | BL40: 14.1 | BM40: 9.5 | BN40: 32.5 | BO40: 9.1 | BP40: 10.8 | BQ40: 14.4 | BR40: 34.3 | BS40: 172.7 | BT40: 400.2 | BU40: 3.7 | BV40: 4 | BW40: 6.3 | BX40: 14 | BY40: 2.8 | BZ40: 5.2 | CA40: 4 | CB40: 12 | CC40: ناجحة | CD40: و منقولة للصف الثانى | CE40: 0 | CF40: 2 | CG40: 2/3 | DC40: 0 | DD40: 0
A41: 32 | B41: 132 | C41: دولاجى داود بشاى داود | D41: 3/1 | I41: بنات | J41: انتظام | K41: صباحى | M41: 644 | N41: 7.5 | O41: 16.5 | P41: 8.5 | Q41: 32.5 | R41: 7.5 | S41: 16.8 | T41: 16.5 | U41: 40.8 | V41: 3.5 | W41: 10 | X41: 9.9 | Y41: 23.4 | Z41: 8 | AA41: 10.7 | AB41: 10.6 | AC41: 29.3 | AD41: 5.7 | AE41: 5.5 | AF41: 9.1 | AG41: 20.3 | AH41: 3.5 | AI41: 3.8 | AJ41: 7 | AK41: 6.2 | AL41: 8.8 | AM41: 4 | AN41: 19.3 | AO41: 14 | AP41: 33.3 | AQ41: 7.5 | AR41: 13.2 | AS41: 9.7 | AT41: 30.4 | AU41: 7.5 | AV41: 9.8 | AW41: 9.5 | AX41: 26.8 | AY41: 7.5 | AZ41: 17 | BA41: 6.5 | BB41: 31 | BC41: 7.5 | BD41: 18.7 | BE41: 15.6 | BF41: 41.8 | BG41: 7.5 | BH41: 12.8 | BI41: 9.5 | BJ41: 29.8 | BK41: 9.4 | BL41: 19.9 | BM41: 17 | BN41: 46.3 | BO41: 7.5 | BP41: 9.5 | BQ41: 9.8 | BR41: 26.8 | BS41: 173.6 | BT41: 412.5 | BU41: 2 | BV41: 4 | BW41: 4 | BX41: 10 | BY41: 2.6 | BZ41: 5.3 | CA41: 4 | CB41: 11.9 | CC41: ناجحة | CD41: و منقولة للصف الثانى | CE41: 0 | CF41: 2 | CG41: 2/3 | DC41: 0 | DD41: 0
A42: 33 | B42: 133 | C42: رحاب سيد عباس عبدالباسط | D42: 3/1 | I42: بنات | J42: انتظام | K42: صباحى | M42: 643 | N42: 7.5 | O42: 11.8 | P42: 16.7 | Q42: 36 | R42: 7.5 | S42: 8.5 | T42: 15.5 | U42: 31.5 | V42: 3.5 | W42: 9.3 | X42: 9.3 | Y42: 22.1 | Z42: 5.5 | AA42: 7.5 | AB42: 9.5 | AC42: 22.5 | AD42: 4.5 | AE42: 5.5 | AF42: 6 | AG42: 16 | AH42: 3.5 | AI42: 3.5 | AJ42: 6.5 | AK42: 3.5 | AL42: 6.5 | AM42: 4 | AN42: 16.5 | AO42: 11 | AP42: 27.5 | AQ42: 7.5 | AR42: 9.5 | AS42: 9.5 | AT42: 26.5 | AU42: 7.5 | AV42: 9.5 | AW42: 9.5 | AX42: 26.5 | AY42: 7.5 | AZ42: 10.7 | BA42: 11.6 | BB42: 29.8 | BC42: 7.5 | BD42: 9.5 | BE42: 9.7 | BF42: 26.7 | BG42: 7.5 | BH42: 9.5 | BI42: 9.5 | BJ42: 26.5 | BK42: 7.5 | BL42: 13.5 | BM42: 15.1 | BN42: 36.1 | BO42: 7.5 | BP42: 12.7 | BQ42: 11.5 | BR42: 31.7 | BS42: 127.5 | BT42: 359.4 | BU42: 2 | BV42: 4 | BW42: 4 | BX42: 10 | BY42: 3.2 | BZ42: 4 | CA42: 4 | CB42: 11.2 | CC42: ناجحة | CD42: و منقولة للصف الثانى | CE42: 0 | CF42: 2 | CG42: 2/3 | DC42: 0 | DD42: 0
A43: 34 | B43: 134 | C43: رحاب عبدالله احمد جابر | D43: 2/1 | I43: بنات | J43: انتظام | K43: صباحى | M43: 642 | N43: 8.4 | O43: 19.7 | P43: 17.5 | Q43: 45.6 | R43: 7.5 | S43: 14.1 | T43: 16.7 | U43: 38.3 | V43: 3.5 | W43: 9.3 | X43: 10 | Y43: 22.8 | Z43: 7.5 | AA43: 7.5 | AB43: 9.5 | AC43: 24.5 | AD43: 5 | AE43: 7.6 | AF43: 6.6 | AG43: 19.2 | AH43: 4.6 | AI43: 3.5 | AJ43: 6.5 | AK43: 3.5 | AL43: 6.5 | AM43: 5.1 | AN43: 17.6 | AO43: 12.1 | AP43: 29.7 | AQ43: 7.5 | AR43: 9.6 | AS43: 9.5 | AT43: 26.6 | AU43: 7.5 | AV43: 9.5 | AW43: 15.2 | AX43: 32.2 | AY43: 7.5 | AZ43: 9.5 | BA43: 7.1 | BB43: 24.1 | BC43: 7.5 | BD43: 9.5 | BE43: 9.5 | BF43: 26.5 | BG43: 10 | BH43: 9.5 | BI43: 16.3 | BJ43: 35.8 | BK43: 7.5 | BL43: 18.7 | BM43: 15.2 | BN43: 41.4 | BO43: 7.5 | BP43: 16.8 | BQ43: 9.5 | BR43: 33.8 | BS43: 151.3 | BT43: 400.5 | BU43: 3.7 | BV43: 4 | BW43: 4 | BX43: 11.7 | BY43: 2 | BZ43: 4 | CA43: 4 | CB43: 10 | CC43: دورثان | CD43: فى : سكرتارية اجنبية - | CE43: 1 | CF43: 2 | CG43: 2/3 | CU43: سكرتارية اجنبية - | DC43: 0 | DD43: 1
A44: 35 | B44: 135 | C44: رحاب محمد ابوالوفا خليفه | D44: 3/1 | I44: بنات | J44: انتظام | K44: صباحى | M44: 641 | N44: 7.5 | O44: 18.2 | P44: 8.5 | Q44: 34.2 | R44: 7.5 | S44: 8.5 | T44: 8.5 | U44: 24.5 | V44: 3.5 | W44: 5.7 | X44: 4.5 | Y44: 13.7 | Z44: 5.5 | AA44: 7.5 | AB44: 9.5 | AC44: 22.5 | AD44: 3.5 | AE44: 6.6 | AF44: 6.1 | AG44: 16.2 | AH44: 3.5 | AI44: 3.5 | AJ44: 8.8 | AK44: 6 | AL44: 6.5 | AM44: 4.4 | AN44: 18.8 | AO44: 13.9 | AP44: 32.7 | AQ44: 7.5 | AR44: 18.7 | AS44: 9.5 | AT44: 35.7 | AU44: 9.4 | AV44: 9.5 | AW44: 9.5 | AX44: 28.4 | AY44: 9.5 | AZ44: 18.3 | BA44: 15.7 | BB44: 43.5 | BC44: 7.5 | BD44: 9.5 | BE44: 15.1 | BF44: 32.1 | BG44: 7.5 | BH44: 9.5 | BI44: 19.1 | BJ44: 36.1 | BK44: 7.5 | BL44: 9.5 | BM44: 15.4 | BN44: 32.4 | BO44: 7.5 | BP44: 9.5 | BQ44: 9.5 | BR44: 26.5 | BS44: 145.8 | BT44: 378.5 | BU44: 2 | BV44: 7.9 | BW44: 4 | BX44: 13.9 | BY44: 2.2 | BZ44: 7.5 | CA44: 7.6 | CB44: 17.3 | CC44: دورثان | CD44: فى : لغة انجليزية - | CE44: 1 | CF44: 2 | CG44: 2/3 | CN44: لغة انجليزية - | DC44: 0 | DD44: 1
A45: 36 | B45: 136 | C45: رحاب محمد حفنى ابودوح | D45: 1/1 | I45: بنات | J45: انتظام | K45: صباحى | M45: 640 | N45: 7.9 | O45: 8.5 | P45: 10.6 | Q45: 27 | R45: 7.5 | S45: 16.2 | T45: 8.5 | U45: 32.2 | V45: 5.1 | W45: 8.9 | X45: 4.5 | Y45: 18.5 | Z45: 5.5 | AA45: 7.8 | AB45: 17.8 | AC45: 31.1 | AD45: 3.5 | AE45: 7 | AF45: 6.8 | AG45: 17.3 | AH45: 3.6 | AI45: 3.5 | AJ45: 6.8 | AK45: 3.5 | AL45: 6.5 | AM45: 4.6 | AN45: 16.9 | AO45: 11.6 | AP45: 28.5 | AQ45: 7.5 | AR45: 12.4 | AS45: 17.1 | AT45: 37 | AU45: 7.5 | AV45: 11.4 | AW45: 12 | AX45: 30.9 | AY45: 7.5 | AZ45: 9.5 | BA45: 13.2 | BB45: 30.2 | BC45: 7.5 | BD45: 9.5 | BE45: 9.5 | BF45: 26.5 | BG45: 7.5 | BH45: 9.5 | BI45: 9.7 | BJ45: 26.7 | BK45: 7.5 | BL45: 10.1 | BM45: 9.5 | BN45: 27.1 | BO45: 7.5 | BP45: 15.7 | BQ45: 9.5 | BR45: 32.7 | BS45: 136.8 | BT45: 365.7 | BU45: 2 | BV45: 4 | BW45: 4 | BX45: 10 | BY45: 2.8 | BZ45: 4.9 | CA45: 5.1 | CB45: 12.8 | CC45: ناجحة | CD45: و منقولة للصف الثانى | CE45: 0 | CF45: 2 | CG45: 2/3 | DC45: 0 | DD45: 0
A46: 37 | B46: 137 | C46: رحاب محمد عباس كجه | D46: 2/1 | I46: بنات | J46: انتظام | K46: صباحى | M46: 639 | N46: 7.5 | O46: 13.9 | P46: 16.2 | Q46: 37.6 | R46: 9.3 | S46: 14.8 | T46: 8.5 | U46: 32.6 | V46: 3.7 | W46: 6.8 | X46: 4.5 | Y46: 15 | Z46: 5.5 | AA46: 14.8 | AB46: 18.6 | AC46: 38.9 | AD46: 3.5 | AE46: 10.1 | AF46: 6 | AG46: 19.6 | AH46: 5.9 | AI46: 3.5 | AJ46: 6.5 | AK46: 3.5 | AL46: 6.5 | AM46: 6.7 | AN46: 18.9 | AO46: 13.7 | AP46: 32.6 | AQ46: 7.5 | AR46: 9.5 | AS46: 12.4 | AT46: 29.4 | AU46: 7.5 | AV46: 17.4 | AW46: 19.8 | AX46: 44.7 | AY46: 8.8 | AZ46: 9.5 | BA46: 6.5 | BB46: 24.8 | BC46: 8.7 | BD46: 11.6 | BE46: 9.5 | BF46: 29.8 | BG46: 7.5 | BH46: 16.1 | BI46: 14.8 | BJ46: 38.4 | BK46: 7.5 | BL46: 9.5 | BM46: 12.9 | BN46: 29.9 | BO46: 8 | BP46: 9.5 | BQ46: 9.5 | BR46: 27 | BS46: 153.5 | BT46: 400.3 | BU46: 2 | BV46: 4 | BW46: 4 | BX46: 10 | BY46: 2 | BZ46: 4 | CA46: 7 | CB46: 13 | CC46: دورثان | CD46: فى : سكرتارية اجنبية - | CE46: 1 | CF46: 2 | CG46: 2/3 | CU46: سكرتارية اجنبية - | DC46: 0 | DD46: 1
A47: 38 | B47: 138 | C47: رحاب محمد على احمد | D47: 2/1 | I47: بنات | J47: انتظام | K47: صباحى | M47: 638 | N47: 7.5 | O47: 19.6 | P47: 11.5 | Q47: 38.6 | R47: 7.5 | S47: 8.8 | T47: 8.5 | U47: 24.8 | V47: 4.6 | W47: 5.5 | X47: 4.5 | Y47: 14.6 | Z47: 5.5 | AA47: 7.5 | AB47: 12.5 | AC47: 25.5 | AD47: 3.5 | AE47: 11.2 | AF47: 6 | AG47: 20.7 | AH47: 5.1 | AI47: 4.3 | AJ47: 6.5 | AK47: 3.5 | AL47: 6.6 | AM47: 7.5 | AN47: 18.2 | AO47: 15.3 | AP47: 33.5 | AQ47: 7.5 | AR47: 17.3 | AS47: 15.3 | AT47: 40.1 | AU47: 8.6 | AV47: 16.7 | AW47: 17.1 | AX47: 42.4 | AY47: 7.5 | AZ47: 18.6 | BA47: 19.1 | BB47: 45.2 | BC47: 8.4 | BD47: 17.8 | BE47: 9.5 | BF47: 35.7 | BG47: 9.8 | BH47: 16.5 | BI47: 9.5 | BJ47: 35.8 | BK47: 8.9 | BL47: 9.5 | BM47: 9.5 | BN47: 27.9 | BO47: 8.3 | BP47: 15.1 | BQ47: 18.9 | BR47: 42.3 | BS47: 174.1 | BT47: 427.1 | BU47: 2 | BV47: 7.8 | BW47: 4.3 | BX47: 14.1 | BY47: 2 | BZ47: 6.9 | CA47: 4 | CB47: 12.9 | CC47: دورثان | CD47: فى : لغة انجليزية - | CE47: 1 | CF47: 2 | CG47: 2/3 | CN47: لغة انجليزية - | DC47: 0 | DD47: 1
A48: 39 | B48: 139 | C48: رضا احمد بسطاوى احمد | D48: 2/1 | I48: بنات | J48: انتظام | K48: صباحى | M48: 637 | N48: 8.2 | O48: 8.5 | P48: 12.8 | Q48: 29.5 | R48: 7.5 | S48: 8.5 | T48: 8.7 | U48: 24.7 | V48: 3.5 | W48: 5.5 | X48: 5.2 | Y48: 14.2 | Z48: 5.5 | AA48: 8.7 | AB48: 9.5 | AC48: 23.7 | AD48: 3.5 | AE48: 5.5 | AF48: 6 | AG48: 15 | AH48: 3.5 | AI48: 6.6 | AJ48: 11 | AK48: 3.5 | AL48: 6.5 | AM48: 4 | AN48: 21 | AO48: 14.1 | AP48: 35.1 | AQ48: 8.3 | AR48: 9.5 | AS48: 9.5 | AT48: 27.3 | AU48: 7.5 | AV48: 10.7 | AW48: 9.5 | AX48: 27.7 | AY48: 7.5 | AZ48: 9.5 | BA48: 14.8 | BB48: 31.8 | BC48: 7.5 | BD48: 15.7 | BE48: 9.5 | BF48: 32.7 | BG48: 7.5 | BH48: 9.5 | BI48: 9.5 | BJ48: 26.5 | BK48: 7.8 | BL48: 15.8 | BM48: 17.6 | BN48: 41.2 | BO48: 7.5 | BP48: 16.4 | BQ48: 9.5 | BR48: 33.4 | BS48: 138.3 | BT48: 362.8 | BU48: 2 | BV48: 4 | BW48: 6.6 | BX48: 12.6 | BY48: 2 | BZ48: 4 | CA48: 4 | CB48: 10 | CC48: دورثان | CD48: فى : لغة انجليزية - | CE48: 1 | CF48: 2 | CG48: 2/3 | CN48: لغة انجليزية - | DC48: 0 | DD48: 1
A49: 40 | B49: 140 | C49: رضوى عادل محمد احمد | D49: 2/1 | I49: بنات | J49: انتظام | K49: صباحى | M49: 636 | N49: 7.5 | O49: 10.7 | P49: 16.5 | Q49: 34.7 | R49: 7.5 | S49: 8.5 | T49: 16.3 | U49: 32.3 | V49: 4.3 | W49: 5.6 | X49: 9.8 | Y49: 19.7 | Z49: 5.5 | AA49: 7.5 | AB49: 10.3 | AC49: 23.3 | AD49: 3.5 | AE49: 5.5 | AF49: 11.7 | AG49: 20.7 | AH49: 3.5 | AI49: 3.5 | AJ49: 8.9 | AK49: 3.5 | AL49: 10.2 | AM49: 4 | AN49: 22.6 | AO49: 11 | AP49: 33.6 | AQ49: 7.5 | AR49: 15.9 | AS49: 14.2 | AT49: 37.6 | AU49: 8 | AV49: 9.5 | AW49: 9.5 | AX49: 27 | AY49: 7.5 | AZ49: 10.1 | BA49: 15.8 | BB49: 33.4 | BC49: 7.5 | BD49: 9.5 | BE49: 9.5 | BF49: 26.5 | BG49: 7.5 | BH49: 9.5 | BI49: 9.5 | BJ49: 26.5 | BK49: 7.5 | BL49: 16.6 | BM49: 19.2 | BN49: 43.3 | BO49: 7.5 | BP49: 9.5 | BQ49: 12.9 | BR49: 29.9 | BS49: 130.8 | BT49: 388.5 | BU49: 3.9 | BV49: 4 | BW49: 4 | BX49: 11.9 | BY49: 2 | BZ49: 6.4 | CA49: 5.7 | CB49: 14.1 | CC49: ناجحة | CD49: و منقولة للصف الثانى | CE49: 0 | CF49: 2 | CG49: 2/3 | DC49: 0 | DD49: 0
A50: 41 | B50: 141 | C50: روضة عبد الرحمن مسلوب احمد | D50: 3/1 | I50: بنات | J50: انتظام | K50: صباحى | M50: 635 | N50: 7.5 | O50: 8.5 | P50: 16.4 | Q50: 32.4 | R50: 7.5 | S50: 8.5 | T50: 14.2 | U50: 30.2 | V50: 3.5 | W50: 10.7 | X50: 8.5 | Y50: 22.7 | Z50: 5.5 | AA50: 11.4 | AB50: 17.5 | AC50: 34.4 | AD50: 4.6 | AE50: 8.6 | AF50: 6.2 | AG50: 19.4 | AH50: 3.5 | AI50: 5.6 | AJ50: 9.5 | AK50: 4.5 | AL50: 6.5 | AM50: 5.7 | AN50: 19.5 | AO50: 15.8 | AP50: 35.3 | AQ50: 7.5 | AR50: 9.5 | AS50: 9.5 | AT50: 26.5 | AU50: 7.5 | AV50: 9.5 | AW50: 9.5 | AX50: 26.5 | AY50: 7.5 | AZ50: 12 | BA50: 6.5 | BB50: 26 | BC50: 7.5 | BD50: 19.3 | BE50: 11.2 | BF50: 38 | BG50: 7.5 | BH50: 9.5 | BI50: 9.5 | BJ50: 26.5 | BK50: 9.7 | BL50: 9.5 | BM50: 16.5 | BN50: 35.7 | BO50: 7.5 | BP50: 9.6 | BQ50: 12.5 | BR50: 29.6 | BS50: 140.6 | BT50: 383.2 | BU50: 3.8 | BV50: 4 | BW50: 5.6 | BX50: 13.4 | BY50: 3 | BZ50: 4 | CA50: 4 | CB50: 11 | CC50: ناجحة | CD50: و منقولة للصف الثانى | CE50: 0 | CF50: 2 | CG50: 2/3 | DC50: 0 | DD50: 0
A51: 42 | B51: 142 | C51: رؤيه عبدالناصر النجار محمد | D51: 2/1 | I51: بنات | J51: انتظام | K51: صباحى | M51: 634 | N51: 7.5 | O51: 20 | P51: 8.5 | Q51: 36 | R51: 7.5 | S51: 14.2 | T51: 17.1 | U51: 38.8 | V51: 4.3 | W51: 10.4 | X51: 10.3 | Y51: 25 | Z51: 5.5 | AA51: 7.5 | AB51: 10.8 | AC51: 23.8 | AD51: 3.5 | AE51: 9.7 | AF51: 7 | AG51: 20.2 | AH51: 3.5 | AI51: 5.5 | AJ51: 6.5 | AK51: 6.7 | AL51: 9.8 | AM51: 6.5 | AN51: 19.8 | AO51: 18.7 | AP51: 38.5 | AQ51: 7.5 | AR51: 9.5 | AS51: 14.3 | AT51: 31.3 | AU51: 7.5 | AV51: 9.5 | AW51: 9.5 | AX51: 26.5 | AY51: 7.5 | AZ51: 9.5 | BA51: 14.4 | BB51: 31.4 | BC51: 7.5 | BD51: 18.7 | BE51: 16.7 | BF51: 42.9 | BG51: 7.5 | BH51: 9.5 | BI51: 9.5 | BJ51: 26.5 | BK51: 9.3 | BL51: 9.5 | BM51: 17.3 | BN51: 36.1 | BO51: 7.5 | BP51: 12.4 | BQ51: 17.4 | BR51: 37.3 | BS51: 153.6 | BT51: 414.3 | BU51: 3.8 | BV51: 5.3 | BW51: 5.5 | BX51: 14.6 | BY51: 3.8 | BZ51: 4 | CA51: 4 | CB51: 11.8 | CC51: ناجحة | CD51: و منقولة للصف الثانى | CE51: 0 | CF51: 2 | CG51: 2/3 | DC51: 0 | DD51: 0
A52: 43 | B52: 143 | C52: زينب احمد زغلول احمد | D52: 1/1 | I52: بنات | J52: انتظام | K52: صباحى | M52: 633 | N52: 7.5 | O52: 13.5 | P52: 11.2 | Q52: 32.2 | R52: 7.5 | S52: 8.5 | T52: 8.5 | U52: 24.5 | V52: 5.1 | W52: 5.5 | X52: 4.5 | Y52: 15.1 | Z52: 5.5 | AA52: 7.5 | AB52: 10.5 | AC52: 23.5 | AD52: 4.5 | AE52: 5.5 | AF52: 6 | AG52: 16 | AH52: 3.5 | AI52: 3.5 | AJ52: 6.5 | AK52: 3.5 | AL52: 9.2 | AM52: 4 | AN52: 19.2 | AO52: 11 | AP52: 30.2 | AQ52: 7.5 | AR52: 14.6 | AS52: 16.9 | AT52: 39 | AU52: 7.5 | AV52: 20 | AW52: 9.5 | AX52: 37 | AY52: 7.5 | AZ52: 9.5 | BA52: 7.3 | BB52: 24.3 | BC52: 10 | BD52: 9.5 | BE52: 11.1 | BF52: 30.6 | BG52: 7.5 | BH52: 9.5 | BI52: 9.5 | BJ52: 26.5 | BK52: 7.5 | BL52: 14.8 | BM52: 9.5 | BN52: 31.8 | BO52: 7.5 | BP52: 11.8 | BQ52: 15.1 | BR52: 34.4 | BS52: 140.2 | BT52: 365.1 | BU52: 2 | BV52: 4.2 | BW52: 4 | BX52: 10.2 | BY52: 2 | BZ52: 5.8 | CA52: 4 | CB52: 11.8 | CC52: دورثان | CD52: فى : لغة انجليزية - سكرتارية اجنبية - | CE52: 2 | CF52: 3 | CG52: 3/3 | CN52: لغة انجليزية - | CU52: سكرتارية اجنبية - | DC52: 0 | DD52: 2
A53: 44 | B53: 144 | C53: زينب سعيد احمد موسى | D53: 3/1 | I53: بنات | J53: انتظام | K53: صباحى | M53: 632 | N53: 9.5 | O53: 8.5 | P53: 13 | Q53: 31 | R53: 7.8 | S53: 16 | T53: 13.8 | U53: 37.6 | V53: 3.5 | W53: 11.6 | X53: 8.3 | Y53: 23.4 | Z53: 5.5 | AA53: 12.5 | AB53: 9.5 | AC53: 27.5 | AD53: 3.5 | AE53: 10.2 | AF53: 6 | AG53: 19.7 | AH53: 5.9 | AI53: 3.7 | AJ53: 6.5 | AK53: 3.5 | AL53: 6.5 | AM53: 6.8 | AN53: 18.9 | AO53: 14 | AP53: 32.9 | AQ53: 7.5 | AR53: 14 | AS53: 11.4 | AT53: 32.9 | AU53: 7.5 | AV53: 9.5 | AW53: 19.8 | AX53: 36.8 | AY53: 8.9 | AZ53: 9.5 | BA53: 7.6 | BB53: 26 | BC53: 7.5 | BD53: 12.8 | BE53: 9.5 | BF53: 29.8 | BG53: 7.5 | BH53: 9.5 | BI53: 10 | BJ53: 27 | BK53: 7.5 | BL53: 16.2 | BM53: 9.5 | BN53: 33.2 | BO53: 7.5 | BP53: 18.9 | BQ53: 13.5 | BR53: 39.9 | BS53: 159.2 | BT53: 397.7 | BU53: 2.6 | BV53: 7.5 | BW53: 4 | BX53: 14.1 | BY53: 2 | BZ53: 5.6 | CA53: 7.1 | CB53: 14.7 | CC53: ناجحة | CD53: و منقولة للصف الثانى | CE53: 0 | CF53: 3 | CG53: 3/3 | DC53: 0 | DD53: 0
A54: 45 | B54: 145 | C54: زينب شاذلى احمد سليمان | D54: 1/1 | I54: بنات | J54: انتظام | K54: صباحى | M54: 631 | N54: 7.5 | O54: 11.5 | P54: 16.3 | Q54: 35.3 | R54: 7.5 | S54: 8.5 | T54: 12.5 | U54: 28.5 | V54: 4.4 | W54: 6 | X54: 7.5 | Y54: 17.9 | Z54: 5.5 | AA54: 7.5 | AB54: 13 | AC54: 26 | AD54: 4.2 | AE54: 9.3 | AF54: 6 | AG54: 19.5 | AH54: 3.5 | AI54: 6.2 | AJ54: 6.5 | AK54: 3.5 | AL54: 6.5 | AM54: 6.2 | AN54: 16.5 | AO54: 15.9 | AP54: 32.4 | AQ54: 7.8 | AR54: 20 | AS54: 14.6 | AT54: 42.4 | AU54: 10 | AV54: 9.5 | AW54: 9.5 | AX54: 29 | AY54: 7.5 | AZ54: 16.6 | BA54: 6.5 | BB54: 30.6 | BC54: 7.5 | BD54: 17.7 | BE54: 9.9 | BF54: 35.1 | BG54: 7.5 | BH54: 9.5 | BI54: 11.2 | BJ54: 28.2 | BK54: 8.9 | BL54: 9.5 | BM54: 9.5 | BN54: 27.9 | BO54: 7.5 | BP54: 14.9 | BQ54: 17.8 | BR54: 40.2 | BS54: 150.5 | BT54: 393 | BU54: 3.7 | BV54: 4 | BW54: 6.2 | BX54: 13.9 | BY54: 2 | BZ54: 8 | CA54: 4 | CB54: 14 | CC54: ناجحة | CD54: و منقولة للصف الثانى | CE54: 0 | CF54: 3 | CG54: 3/3 | DC54: 0 | DD54: 0
A55: 46 | B55: 146 | C55: زينب شاذلى رفاعى ابراهيم | D55: 1/1 | I55: بنات | J55: انتظام | K55: صباحى | M55: 630 | N55: 7.5 | O55: 8.5 | P55: 19 | Q55: 35 | R55: 7.5 | S55: 11.9 | T55: 14.8 | U55: 34.2 | V55: 3.5 | W55: 11.8 | X55: 8.9 | Y55: 24.2 | Z55: 5.5 | AA55: 10.9 | AB55: 9.5 | AC55: 25.9 | AD55: 3.5 | AE55: 5.5 | AF55: 6 | AG55: 15 | AH55: 5.4 | AI55: 6.7 | AJ55: 9.9 | AK55: 6.3 | AL55: 6.5 | AM55: 4 | AN55: 21.8 | AO55: 17 | AP55: 38.8 | AQ55: 8.3 | AR55: 9.5 | AS55: 9.5 | AT55: 27.3 | AU55: 7.5 | AV55: 9.5 | AW55: 17.8 | AX55: 34.8 | AY55: 7.5 | AZ55: 11.3 | BA55: 6.5 | BB55: 25.3 | BC55: 7.5 | BD55: 12.4 | BE55: 15.9 | BF55: 35.8 | BG55: 7.5 | BH55: 9.5 | BI55: 16.4 | BJ55: 33.4 | BK55: 7.5 | BL55: 9.5 | BM55: 18 | BN55: 35 | BO55: 7.5 | BP55: 14.2 | BQ55: 9.5 | BR55: 31.2 | BS55: 140.7 | BT55: 395.9 | BU55: 2 | BV55: 4.7 | BW55: 6.7 | BX55: 13.4 | BY55: 2 | BZ55: 4 | CA55: 4 | CB55: 10 | CC55: ناجحة | CD55: و منقولة للصف الثانى | CE55: 0 | CF55: 3 | CG55: 3/3 | DC55: 0 | DD55: 0
A56: 47 | B56: 147 | C56: زينب شعبان على محمد | D56: 2/1 | I56: بنات | J56: انتظام | K56: صباحى | M56: 629 | N56: 9.2 | O56: 8.5 | P56: 17 | Q56: 34.7 | R56: 7.5 | S56: 19.1 | T56: 16.5 | U56: 43.1 | V56: 3.5 | W56: 5.5 | X56: 9.9 | Y56: 18.9 | Z56: 5.5 | AA56: 7.5 | AB56: 14.5 | AC56: 27.5 | AD56: 3.5 | AE56: 7 | AF56: 7.9 | AG56: 18.4 | AH56: 4.2 | AI56: 7.1 | AJ56: 10.7 | AK56: 5.3 | AL56: 6.5 | AM56: 4.7 | AN56: 21.4 | AO56: 17.1 | AP56: 38.5 | AQ56: 8.9 | AR56: 11.3 | AS56: 9.5 | AT56: 29.7 | AU56: 7.5 | AV56: 9.5 | AW56: 14.1 | AX56: 31.1 | AY56: 7.5 | AZ56: 9.5 | BA56: 6.5 | BB56: 23.5 | BC56: 7.5 | BD56: 9.5 | BE56: 13.3 | BF56: 30.3 | BG56: 7.5 | BH56: 9.5 | BI56: 18.3 | BJ56: 35.3 | BK56: 7.5 | BL56: 11.7 | BM56: 9.5 | BN56: 28.7 | BO56: 7.5 | BP56: 18.4 | BQ56: 9.5 | BR56: 35.4 | BS56: 143 | BT56: 395.1 | BU56: 2.2 | BV56: 4 | BW56: 7.1 | BX56: 13.3 | BY56: 3.6 | BZ56: 4.5 | CA56: 4.6 | CB56: 12.7 | CC56: دورثان | CD56: فى : سكرتارية اجنبية - | CE56: 1 | CF56: 3 | CG56: 3/3 | CU56: سكرتارية اجنبية - | DC56: 0 | DD56: 1
A57: 48 | B57: 148 | C57: زينب محمد الصادق شحات | D57: 2/1 | I57: بنات | J57: انتظام | K57: صباحى | M57: 628 | N57: 7.5 | O57: 16 | P57: 13 | Q57: 36.5 | R57: 7.5 | S57: 8.5 | T57: 14.8 | U57: 30.8 | V57: 4.8 | W57: 9.3 | X57: 8.9 | Y57: 23 | Z57: 5.5 | AA57: 7.5 | AB57: 9.5 | AC57: 22.5 | AD57: 4.2 | AE57: 5.5 | AF57: 6 | AG57: 15.7 | AH57: 3.5 | AI57: 3.6 | AJ57: 6.6 | AK57: 3.5 | AL57: 6.5 | AM57: 4 | AN57: 16.6 | AO57: 11.1 | AP57: 27.7 | AQ57: 7.5 | AR57: 9.5 | AS57: 16.1 | AT57: 33.1 | AU57: 7.5 | AV57: 11.3 | AW57: 9.5 | AX57: 28.3 | AY57: 7.5 | AZ57: 9.5 | BA57: 18.5 | BB57: 35.5 | BC57: 7.5 | BD57: 11.1 | BE57: 9.5 | BF57: 28.1 | BG57: 7.5 | BH57: 17.5 | BI57: 9.5 | BJ57: 34.5 | BK57: 7.5 | BL57: 9.5 | BM57: 9.5 | BN57: 26.5 | BO57: 8.7 | BP57: 9.5 | BQ57: 12.4 | BR57: 30.6 | BS57: 134.8 | BT57: 372.8 | BU57: 2.6 | BV57: 4 | BW57: 4 | BX57: 10.6 | BY57: 2.5 | BZ57: 4 | CA57: 4 | CB57: 10.5 | CC57: ناجحة | CD57: و منقولة للصف الثانى | CE57: 0 | CF57: 3 | CG57: 3/3 | DC57: 0 | DD57: 0
A58: 49 | B58: 149 | C58: زينب محمود احمد عبدالله | D58: 1/1 | I58: بنات | J58: انتظام | K58: صباحى | M58: 627 | N58: 7.5 | O58: 8.5 | P58: 8.7 | Q58: 24.7 | R58: 7.5 | S58: 18.8 | T58: 8.5 | U58: 34.8 | V58: 3.5 | W58: 5.5 | X58: 4.5 | Y58: 13.5 | Z58: 5.5 | AA58: 7.5 | AB58: 9.5 | AC58: 22.5 | AD58: 3.5 | AE58: 6.3 | AF58: 6 | AG58: 15.8 | AH58: 3.5 | AI58: 3.5 | AJ58: 8.7 | AK58: 7 | AL58: 6.5 | AM58: 4.2 | AN58: 18.7 | AO58: 14.7 | AP58: 33.4 | AQ58: 7.5 | AR58: 9.5 | AS58: 9.5 | AT58: 26.5 | AU58: 7.5 | AV58: 17.5 | AW58: 9.5 | AX58: 34.5 | AY58: 7.5 | AZ58: 9.5 | BA58: 10.7 | BB58: 27.7 | BC58: 8.8 | BD58: 17.7 | BE58: 17.5 | BF58: 44 | BG58: 9.5 | BH58: 18.4 | BI58: 9.5 | BJ58: 37.4 | BK58: 8.8 | BL58: 9.5 | BM58: 17.8 | BN58: 36.1 | BO58: 9.2 | BP58: 9.5 | BQ58: 11.1 | BR58: 29.8 | BS58: 153.9 | BT58: 380.7 | BU58: 2 | BV58: 4 | BW58: 4 | BX58: 10 | BY58: 2 | BZ58: 4 | CA58: 4 | CB58: 10 | CC58: دورثان | CD58: فى : لغة عربية - | CE58: 1 | CF58: 3 | CG58: 3/3 | CM58: لغة عربية - | DC58: 0 | DD58: 1
A59: 50 | B59: 150 | C59: زينب ممدوح احمد عبدالله | D59: 3/1 | I59: بنات | J59: انتظام | K59: صباحى | M59: 626 | N59: 7.5 | O59: 8.5 | P59: 9.6 | Q59: 25.6 | R59: 7.5 | S59: 8.5 | T59: 8.5 | U59: 24.5 | V59: 3.5 | W59: 5.5 | X59: 4.5 | Y59: 13.5 | Z59: 5.5 | AA59: 7.5 | AB59: 15.8 | AC59: 28.8 | AD59: 3.5 | AE59: 5.7 | AF59: 6 | AG59: 15.2 | AH59: 4.3 | AI59: 3.5 | AJ59: 8.1 | AK59: 7.8 | AL59: 8.3 | AM59: 4 | AN59: 20.7 | AO59: 15.3 | AP59: 36 | AQ59: 7.5 | AR59: 9.5 | AS59: 9.5 | AT59: 26.5 | AU59: 7.5 | AV59: 11.8 | AW59: 14.3 | AX59: 33.6 | AY59: 9.8 | AZ59: 10 | BA59: 7.7 | BB59: 27.5 | BC59: 7.5 | BD59: 12.6 | BE59: 19.4 | BF59: 39.5 | BG59: 7.5 | BH59: 11.3 | BI59: 9.5 | BJ59: 28.3 | BK59: 7.5 | BL59: 9.5 | BM59: 19.9 | BN59: 36.9 | BO59: 7.5 | BP59: 10.3 | BQ59: 9.5 | BR59: 27.3 | BS59: 126.6 | BT59: 363.2 | BU59: 2 | BV59: 6.5 | BW59: 4 | BX59: 12.5 | BY59: 2 | BZ59: 4 | CA59: 7.9 | CB59: 13.9 | CC59: دورثان | CD59: فى : لغة انجليزية - | CE59: 1 | CF59: 3 | CG59: 3/3 | CN59: لغة انجليزية - | DC59: 0 | DD59: 1
A60: 51 | B60: 151 | C60: زينب يحى ابوالمجد احمد | D60: 2/1 | I60: بنات | J60: انتظام | K60: صباحى | M60: 625 | N60: 7.5 | O60: 8.5 | P60: 8.5 | Q60: 24.5 | R60: 7.7 | S60: 19.7 | T60: 12.5 | U60: 39.9 | V60: 3.5 | W60: 10.6 | X60: 7.5 | Y60: 21.6 | Z60: 5.5 | AA60: 12.4 | AB60: 10.5 | AC60: 28.4 | AD60: 3.5 | AE60: 7 | AF60: 6 | AG60: 16.5 | AH60: 3.5 | AI60: 6.2 | AJ60: 6.7 | AK60: 3.5 | AL60: 6.5 | AM60: 4.7 | AN60: 16.7 | AO60: 14.4 | AP60: 31.1 | AQ60: 7.7 | AR60: 14.9 | AS60: 9.5 | AT60: 32.1 | AU60: 7.5 | AV60: 14.3 | AW60: 9.5 | AX60: 31.3 | AY60: 7.5 | AZ60: 18.7 | BA60: 6.5 | BB60: 32.7 | BC60: 7.5 | BD60: 9.5 | BE60: 9.5 | BF60: 26.5 | BG60: 7.5 | BH60: 9.5 | BI60: 9.5 | BJ60: 26.5 | BK60: 7.5 | BL60: 14.6 | BM60: 9.5 | BN60: 31.6 | BO60: 7.5 | BP60: 9.5 | BQ60: 17.2 | BR60: 34.2 | BS60: 159.4 | BT60: 376.9 | BU60: 2.9 | BV60: 4 | BW60: 6.2 | BX60: 13.1 | BY60: 3.2 | BZ60: 6 | CA60: 5.1 | CB60: 14.3 | CC60: دورثان | CD60: فى : لغة عربية - | CE60: 1 | CF60: 3 | CG60: 3/3 | CM60: لغة عربية - | DC60: 0 | DD60: 1
A61: 52 | B61: 152 | C61: ساره نظمى بولس شاكر | D61: 1/1 | I61: بنات | J61: انتظام | K61: صباحى | M61: 624 | N61: 7.5 | O61: 8.5 | P61: 8.5 | Q61: 24.5 | R61: 7.5 | S61: 12.7 | T61: 12.5 | U61: 32.7 | V61: 3.5 | W61: 7 | X61: 7.5 | Y61: 18 | Z61: 5.5 | AA61: 11.2 | AB61: 9.5 | AC61: 26.2 | AD61: 3.5 | AE61: 9.3 | AF61: 7.4 | AG61: 20.2 | AH61: 4.9 | AI61: 6.9 | AJ61: 6.5 | AK61: 3.5 | AL61: 10.7 | AM61: 6.2 | AN61: 22.1 | AO61: 16.6 | AP61: 38.7 | AQ61: 8.6 | AR61: 9.5 | AS61: 9.5 | AT61: 27.6 | AU61: 7.5 | AV61: 19.5 | AW61: 16.2 | AX61: 43.2 | AY61: 8.7 | AZ61: 9.5 | BA61: 6.5 | BB61: 24.7 | BC61: 9.7 | BD61: 12.4 | BE61: 9.5 | BF61: 31.6 | BG61: 8.1 | BH61: 13.4 | BI61: 15.1 | BJ61: 36.6 | BK61: 7.5 | BL61: 9.5 | BM61: 17.3 | BN61: 34.3 | BO61: 7.5 | BP61: 9.5 | BQ61: 19.2 | BR61: 36.2 | BS61: 142 | BT61: 394.5 | BU61: 3.8 | BV61: 4 | BW61: 6.9 | BX61: 14.7 | BY61: 2 | BZ61: 4 | CA61: 7 | CB61: 13 | CC61: دورثان | CD61: فى : لغة عربية - سكرتارية اجنبية - | CE61: 2 | CF61: 3 | CG61: 3/3 | CM61: لغة عربية - | CU61: سكرتارية اجنبية - | DC61: 0 | DD61: 2
A62: 53 | B62: 153 | C62: ساره هانى حكيم بطرس | D62: 1/1 | I62: بنات | J62: انتظام | K62: صباحى | M62: 623 | N62: 7.9 | O62: 8.5 | P62: 8.9 | Q62: 25.3 | R62: 7.5 | S62: 12 | T62: 17.7 | U62: 37.2 | V62: 4.5 | W62: 10.3 | X62: 10.6 | Y62: 25.4 | Z62: 5.5 | AA62: 7.5 | AB62: 16.3 | AC62: 29.3 | AD62: 5.6 | AE62: 5.5 | AF62: 8.4 | AG62: 19.5 | AH62: 5.6 | AI62: 3.5 | AJ62: 6.5 | AK62: 3.5 | AL62: 6.5 | AM62: 4 | AN62: 18.6 | AO62: 11 | AP62: 29.6 | AQ62: 7.5 | AR62: 9.5 | AS62: 14.9 | AT62: 31.9 | AU62: 7.5 | AV62: 19.7 | AW62: 18.6 | AX62: 45.8 | AY62: 7.5 | AZ62: 19.6 | BA62: 18.4 | BB62: 45.5 | BC62: 9.9 | BD62: 9.5 | BE62: 9.5 | BF62: 28.9 | BG62: 7.5 | BH62: 9.5 | BI62: 9.5 | BJ62: 26.5 | BK62: 7.5 | BL62: 10.3 | BM62: 19.3 | BN62: 37.1 | BO62: 7.5 | BP62: 15.7 | BQ62: 14.7 | BR62: 37.9 | BS62: 147.6 | BT62: 419.9 | BU62: 2 | BV62: 4 | BW62: 4 | BX62: 10 | BY62: 3.9 | BZ62: 4 | CA62: 4 | CB62: 11.9 | CC62: ناجحة | CD62: و منقولة للصف الثانى | CE62: 0 | CF62: 3 | CG62: 3/3 | DC62: 0 | DD62: 0
A63: 54 | B63: 154 | C63: سحر عبدالهادى قاسم محمد | D63: 3/1 | I63: بنات | J63: انتظام | K63: صباحى | M63: 622 | N63: 7.5 | O63: 19 | P63: 14 | Q63: 40.5 | R63: 7.5 | S63: 18.1 | T63: 8.5 | U63: 34.1 | V63: 3.5 | W63: 9.7 | X63: 4.5 | Y63: 17.7 | Z63: 5.5 | AA63: 7.5 | AB63: 15.1 | AC63: 28.1 | AD63: 3.5 | AE63: 5.5 | AF63: 6 | AG63: 15 | AH63: 3.5 | AI63: 3.5 | AJ63: 7.1 | AK63: 6.4 | AL63: 6.5 | AM63: 4 | AN63: 17.1 | AO63: 13.9 | AP63: 31 | AQ63: 7.5 | AR63: 12.4 | AS63: 9.5 | AT63: 29.4 | AU63: 7.5 | AV63: 10.5 | AW63: 9.5 | AX63: 27.5 | AY63: 9 | AZ63: 9.5 | BA63: 7.4 | BB63: 25.9 | BC63: 7.5 | BD63: 15.2 | BE63: 16 | BF63: 38.7 | BG63: 7.5 | BH63: 17.5 | BI63: 18.3 | BJ63: 43.3 | BK63: 7.6 | BL63: 9.5 | BM63: 12.2 | BN63: 29.3 | BO63: 8.8 | BP63: 9.5 | BQ63: 9.5 | BR63: 27.8 | BS63: 157.4 | BT63: 388.3 | BU63: 3.3 | BV63: 4 | BW63: 4 | BX63: 11.3 | BY63: 2 | BZ63: 5 | CA63: 7.2 | CB63: 14.2 | CC63: ناجحة | CD63: و منقولة للصف الثانى | CE63: 0 | CF63: 3 | CG63: 3/3 | DC63: 0 | DD63: 0
A64: 55 | B64: 155 | C64: سعاد ابوالوفا محمد عبدالوهاب | D64: 3/1 | I64: بنات | J64: انتظام | K64: صباحى | M64: 621 | N64: 7.5 | O64: 19.6 | P64: 8.5 | Q64: 35.6 | R64: 7.5 | S64: 11.5 | T64: 8.5 | U64: 27.5 | V64: 3.7 | W64: 9.2 | X64: 4.5 | Y64: 17.4 | Z64: 5.5 | AA64: 7.5 | AB64: 10.6 | AC64: 23.6 | AD64: 3.5 | AE64: 10.4 | AF64: 6 | AG64: 19.9 | AH64: 3.5 | AI64: 3.5 | AJ64: 6.5 | AK64: 4.5 | AL64: 6.5 | AM64: 6.9 | AN64: 16.5 | AO64: 14.9 | AP64: 31.4 | AQ64: 7.5 | AR64: 9.5 | AS64: 12.4 | AT64: 29.4 | AU64: 7.5 | AV64: 9.5 | AW64: 9.5 | AX64: 26.5 | AY64: 7.7 | AZ64: 9.5 | BA64: 17.6 | BB64: 34.8 | BC64: 7.5 | BD64: 11.6 | BE64: 11.3 | BF64: 30.4 | BG64: 7.5 | BH64: 13.7 | BI64: 13.6 | BJ64: 34.8 | BK64: 7.5 | BL64: 15.8 | BM64: 9.5 | BN64: 32.8 | BO64: 7.5 | BP64: 9.5 | BQ64: 18.3 | BR64: 35.3 | BS64: 148.3 | BT64: 379.4 | BU64: 2 | BV64: 7.7 | BW64: 4 | BX64: 13.7 | BY64: 2.3 | BZ64: 4 | CA64: 6.1 | CB64: 12.4 | CC64: ناجحة | CD64: و منقولة للصف الثانى | CE64: 0 | CF64: 3 | CG64: 3/3 | DC64: 0 | DD64: 0
A65: 56 | B65: 156 | C65: سلمى سيد ادم موسى | D65: 3/1 | I65: بنات | J65: انتظام | K65: صباحى | M65: 620 | N65: 7.5 | O65: 8.5 | P65: 12.3 | Q65: 28.3 | R65: 7.5 | S65: 8.5 | T65: 12.8 | U65: 28.8 | V65: 3.5 | W65: 11.1 | X65: 7.7 | Y65: 22.3 | Z65: 5.5 | AA65: 12 | AB65: 16.9 | AC65: 34.4 | AD65: 3.5 | AE65: 5.5 | AF65: 6 | AG65: 15 | AH65: 3.5 | AI65: 3.5 | AJ65: 6.5 | AK65: 3.5 | AL65: 6.5 | AM65: 4 | AN65: 16.5 | AO65: 11 | AP65: 27.5 | AQ65: 7.5 | AR65: 9.5 | AS65: 11 | AT65: 28 | AU65: 7.5 | AV65: 17.8 | AW65: 9.5 | AX65: 34.8 | AY65: 7.5 | AZ65: 18.7 | BA65: 6.5 | BB65: 32.7 | BC65: 8.9 | BD65: 10.4 | BE65: 9.5 | BF65: 28.8 | BG65: 9.6 | BH65: 16.7 | BI65: 10.1 | BJ65: 36.4 | BK65: 7.5 | BL65: 9.5 | BM65: 9.5 | BN65: 26.5 | BO65: 8.3 | BP65: 14 | BQ65: 9.5 | BR65: 31.8 | BS65: 152.2 | BT65: 375.3 | BU65: 2 | BV65: 4.7 | BW65: 4 | BX65: 10.7 | BY65: 2.8 | BZ65: 4 | CA65: 4 | CB65: 10.8 | CC65: ناجحة | CD65: و منقولة للصف الثانى | CE65: 0 | CF65: 3 | CG65: 3/3 | DC65: 0 | DD65: 0
A66: 57 | B66: 157 | C66: سلوى عبدالهادى محمد | D66: 2/1 | I66: بنات | J66: انتظام | K66: صباحى | M66: 619 | N66: 9.7 | O66: 8.5 | P66: 9.2 | Q66: 27.4 | R66: 9.3 | S66: 17.2 | T66: 10.3 | U66: 36.8 | V66: 3.9 | W66: 5.5 | X66: 6.2 | Y66: 15.6 | Z66: 5.5 | AA66: 14.9 | AB66: 13.4 | AC66: 33.8 | AD66: 3.5 | AE66: 5.5 | AF66: 8.4 | AG66: 17.4 | AH66: 3.5 | AI66: 5.2 | AJ66: 6.5 | AK66: 3.5 | AL66: 6.5 | AM66: 4 | AN66: 16.5 | AO66: 12.7 | AP66: 29.2 | AQ66: 7.5 | AR66: 10.7 | AS66: 12.9 | AT66: 31.1 | AU66: 7.5 | AV66: 16.6 | AW66: 9.5 | AX66: 33.6 | AY66: 7.5 | AZ66: 16.7 | BA66: 8.1 | BB66: 32.3 | BC66: 8.3 | BD66: 9.5 | BE66: 9.5 | BF66: 27.3 | BG66: 7.5 | BH66: 9.5 | BI66: 9.5 | BJ66: 26.5 | BK66: 7.5 | BL66: 10.6 | BM66: 17.2 | BN66: 35.3 | BO66: 7.5 | BP66: 19.5 | BQ66: 17.7 | BR66: 44.7 | BS66: 154.7 | BT66: 391 | BU66: 2 | BV66: 4 | BW66: 5.2 | BX66: 11.2 | BY66: 2 | BZ66: 4.3 | CA66: 4 | CB66: 10.3 | CC66: ناجحة | CD66: و منقولة للصف الثانى | CE66: 0 | CF66: 3 | CG66: 3/3 | DC66: 0 | DD66: 0
A67: 58 | B67: 158 | C67: سمر خالد محمد حسن | D67: 2/1 | I67: بنات | J67: انتظام | K67: صباحى | M67: 618 | N67: 7.5 | O67: 8.5 | P67: 8.5 | Q67: 24.5 | R67: 7.5 | S67: 8.5 | T67: 12.4 | U67: 28.4 | V67: 3.8 | W67: 9.9 | X67: 7.4 | Y67: 21.1 | Z67: 7.9 | AA67: 7.5 | AB67: 16.6 | AC67: 32 | AD67: 3.5 | AE67: 5.5 | AF67: 6 | AG67: 15 | AH67: 5 | AI67: 3.5 | AJ67: 7.2 | AK67: 7.5 | AL67: 6.5 | AM67: 4 | AN67: 18.7 | AO67: 15 | AP67: 33.7 | AQ67: 7.5 | AR67: 9.5 | AS67: 12.6 | AT67: 29.6 | AU67: 7.5 | AV67: 9.5 | AW67: 16.7 | AX67: 33.7 | AY67: 7.5 | AZ67: 9.5 | BA67: 6.5 | BB67: 23.5 | BC67: 7.5 | BD67: 15.4 | BE67: 18.8 | BF67: 41.7 | BG67: 7.5 | BH67: 17.9 | BI67: 16.6 | BJ67: 42 | BK67: 7.7 | BL67: 19.8 | BM67: 18.8 | BN67: 46.3 | BO67: 8.9 | BP67: 9.5 | BQ67: 10.5 | BR67: 28.9 | BS67: 145.7 | BT67: 400.4 | BU67: 3.3 | BV67: 4 | BW67: 4 | BX67: 11.3 | BY67: 2 | BZ67: 4 | CA67: 5.9 | CB67: 11.9 | CC67: دورثان | CD67: فى : لغة عربية - سكرتارية اجنبية - | CE67: 2 | CF67: 3 | CG67: 3/3 | CM67: لغة عربية - | CU67: سكرتارية اجنبية - | DC67: 0 | DD67: 2
A68: 59 | B68: 159 | C68: سها رمضان على مغربى | D68: 3/1 | I68: بنات | J68: انتظام | K68: صباحى | M68: 617 | N68: 9.8 | O68: 8.5 | P68: 15.9 | Q68: 34.2 | R68: 7.5 | S68: 8.8 | T68: 8.5 | U68: 24.8 | V68: 3.5 | W68: 5.5 | X68: 4.5 | Y68: 13.5 | Z68: 5.5 | AA68: 9.7 | AB68: 12.4 | AC68: 27.6 | AD68: 3.7 | AE68: 5.5 | AF68: 6 | AG68: 15.2 | AH68: 3.5 | AI68: 6 | AJ68: 6.5 | AK68: 3.5 | AL68: 6.5 | AM68: 4 | AN68: 16.5 | AO68: 13.5 | AP68: 30 | AQ68: 7.6 | AR68: 15.1 | AS68: 9.5 | AT68: 32.2 | AU68: 7.6 | AV68: 9.9 | AW68: 9.7 | AX68: 27.2 | AY68: 7.5 | AZ68: 18.7 | BA68: 10 | BB68: 36.2 | BC68: 7.5 | BD68: 11 | BE68: 9.5 | BF68: 28 | BG68: 7.5 | BH68: 9.5 | BI68: 11.4 | BJ68: 28.4 | BK68: 7.5 | BL68: 18.4 | BM68: 9.5 | BN68: 35.4 | BO68: 7.5 | BP68: 19.5 | BQ68: 10.5 | BR68: 37.5 | BS68: 150.1 | BT68: 370.2 | BU68: 2 | BV68: 4 | BW68: 6 | BX68: 12 | BY68: 2 | BZ68: 6 | CA68: 4.7 | CB68: 12.7 | CC68: دورثان | CD68: فى : لغة انجليزية - | CE68: 1 | CF68: 3 | CG68: 3/3 | CN68: لغة انجليزية - | DC68: 0 | DD68: 1
A69: 60 | B69: 160 | C69: سهام محجوب احمد ابراهيم | D69: 1/1 | I69: بنات | J69: انتظام | K69: صباحى | M69: 616 | N69: 7.5 | O69: 12.9 | P69: 8.5 | Q69: 28.9 | R69: 7.5 | S69: 15.2 | T69: 14.4 | U69: 37.1 | V69: 5.9 | W69: 5.5 | X69: 8.6 | Y69: 20 | Z69: 5.5 | AA69: 7.5 | AB69: 17.4 | AC69: 30.4 | AD69: 3.5 | AE69: 5.5 | AF69: 10.6 | AG69: 19.6 | AH69: 3.8 | AI69: 4.1 | AJ69: 6.5 | AK69: 3.5 | AL69: 7.4 | AM69: 4 | AN69: 17.7 | AO69: 11.6 | AP69: 29.3 | AQ69: 7.5 | AR69: 9.5 | AS69: 19.7 | AT69: 36.7 | AU69: 7.5 | AV69: 9.5 | AW69: 12.6 | AX69: 29.6 | AY69: 9.1 | AZ69: 9.5 | BA69: 16.3 | BB69: 34.9 | BC69: 7.5 | BD69: 16.8 | BE69: 9.5 | BF69: 33.8 | BG69: 7.5 | BH69: 16.9 | BI69: 9.5 | BJ69: 33.9 | BK69: 8.4 | BL69: 12.2 | BM69: 9.5 | BN69: 30.1 | BO69: 8.5 | BP69: 9.5 | BQ69: 9.5 | BR69: 27.5 | BS69: 140.5 | BT69: 391.8 | BU69: 3.5 | BV69: 6.7 | BW69: 4.1 | BX69: 14.3 | BY69: 3.5 | BZ69: 4 | CA69: 7.3 | CB69: 14.8 | CC69: ناجحة | CD69: و منقولة للصف الثانى | CE69: 0 | CF69: 3 | CG69: 3/3 | DC69: 0 | DD69: 0
A70: 61 | B70: 161 | C70: سيمون عادل اسحاق | D70: 2/1 | I70: بنات | J70: انتظام | K70: صباحى | M70: 615 | N70: 7.5 | O70: 8.5 | P70: 17.5 | Q70: 33.5 | R70: 7.5 | S70: 8.5 | T70: 15.2 | U70: 31.2 | V70: 3.5 | W70: 5.5 | X70: 9.1 | Y70: 18.1 | Z70: 5.5 | AA70: 11.1 | AB70: 19.1 | AC70: 35.7 | AD70: 3.5 | AE70: 6.3 | AF70: 6 | AG70: 15.8 | AH70: 3.7 | AI70: 6.8 | AJ70: 10.2 | AK70: 7.1 | AL70: 6.5 | AM70: 4.2 | AN70: 20.4 | AO70: 18.1 | AP70: 38.5 | AQ70: 8.5 | AR70: 9.5 | AS70: 9.5 | AT70: 27.5 | AU70: 7.5 | AV70: 11.2 | AW70: 12.5 | AX70: 31.2 | AY70: 7.5 | AZ70: 9.5 | BA70: 7.1 | BB70: 24.1 | BC70: 7.5 | BD70: 15.1 | BE70: 17.7 | BF70: 40.3 | BG70: 7.5 | BH70: 18.5 | BI70: 9.5 | BJ70: 35.5 | BK70: 7.6 | BL70: 16 | BM70: 19.9 | BN70: 43.5 | BO70: 9.2 | BP70: 12.9 | BQ70: 14.9 | BR70: 37 | BS70: 149.9 | BT70: 411.9 | BU70: 2.1 | BV70: 5.7 | BW70: 6.8 | BX70: 14.6 | BY70: 2.9 | BZ70: 4 | CA70: 4 | CB70: 10.9 | CC70: دورثان | CD70: فى : سكرتارية اجنبية - | CE70: 1 | CF70: 3 | CG70: 3/3 | CU70: سكرتارية اجنبية - | DC70: 0 | DD70: 1
A71: 62 | B71: 162 | C71: شهد جمعه حماده احمد | D71: 1/1 | I71: بنات | J71: انتظام | K71: صباحى | M71: 614 | N71: 7.5 | O71: 8.5 | P71: 16.7 | Q71: 32.7 | R71: 7.5 | S71: 8.5 | T71: 13.2 | U71: 29.2 | V71: 3.5 | W71: 10.8 | X71: 7.9 | Y71: 22.2 | Z71: 5.5 | AA71: 10.4 | AB71: 9.5 | AC71: 25.4 | AD71: 3.5 | AE71: 11.5 | AF71: 6 | AG71: 21 | AH71: 3.5 | AI71: 7.4 | AJ71: 10.1 | AK71: 3.5 | AL71: 7.7 | AM71: 7.7 | AN71: 21.3 | AO71: 18.6 | AP71: 39.9 | AQ71: 9.2 | AR71: 9.5 | AS71: 11.5 | AT71: 30.2 | AU71: 7.5 | AV71: 9.5 | AW71: 9.5 | AX71: 26.5 | AY71: 7.5 | AZ71: 11 | BA71: 6.5 | BB71: 25 | BC71: 7.5 | BD71: 11.4 | BE71: 9.5 | BF71: 28.4 | BG71: 7.5 | BH71: 10.9 | BI71: 9.5 | BJ71: 27.9 | BK71: 7.5 | BL71: 9.5 | BM71: 9.5 | BN71: 26.5 | BO71: 7.5 | BP71: 9.5 | BQ71: 9.5 | BR71: 26.5 | BS71: 134.6 | BT71: 361.4 | BU71: 2.7 | BV71: 7.1 | BW71: 7.4 | BX71: 17.2 | BY71: 2.4 | BZ71: 4 | CA71: 4 | CB71: 10.4 | CC71: ناجحة | CD71: و منقولة للصف الثانى | CE71: 0 | CF71: 3 | CG71: 3/3 | DC71: 0 | DD71: 0
A72: 63 | B72: 163 | C72: شهد سليمان محمد سليمان | D72: 3/1 | I72: بنات | J72: انتظام | K72: صباحى | M72: 613 | N72: 7.5 | O72: 14.3 | P72: 19.9 | Q72: 41.7 | R72: 7.5 | S72: 8.5 | T72: 8.5 | U72: 24.5 | V72: 3.5 | W72: 11.9 | X72: 4.5 | Y72: 19.9 | Z72: 5.5 | AA72: 11.8 | AB72: 10.7 | AC72: 28 | AD72: 4.4 | AE72: 5.5 | AF72: 8.9 | AG72: 18.8 | AH72: 3.5 | AI72: 5.4 | AJ72: 6.5 | AK72: 3.5 | AL72: 6.5 | AM72: 4 | AN72: 16.5 | AO72: 12.9 | AP72: 29.4 | AQ72: 7.5 | AR72: 9.5 | AS72: 10.6 | AT72: 27.6 | AU72: 7.5 | AV72: 10.7 | AW72: 11.8 | AX72: 30 | AY72: 7.5 | AZ72: 9.5 | BA72: 6.5 | BB72: 23.5 | BC72: 7.5 | BD72: 12.8 | BE72: 9.5 | BF72: 29.8 | BG72: 7.5 | BH72: 9.5 | BI72: 12.1 | BJ72: 29.1 | BK72: 7.5 | BL72: 9.5 | BM72: 11.8 | BN72: 28.8 | BO72: 7.5 | BP72: 9.5 | BQ72: 9.7 | BR72: 26.7 | BS72: 133 | BT72: 357.8 | BU72: 2 | BV72: 4 | BW72: 5.4 | BX72: 11.4 | BY72: 3.3 | BZ72: 4 | CA72: 4.7 | CB72: 12 | CC72: دورثان | CD72: فى : لغة انجليزية - سكرتارية اجنبية - | CE72: 2 | CF72: 3 | CG72: 3/3 | CN72: لغة انجليزية - | CU72: سكرتارية اجنبية - | DC72: 0 | DD72: 2
A73: 64 | B73: 164 | C73: شهد محمود احمد مرسى | D73: 2/1 | I73: بنات | J73: انتظام | K73: صباحى | M73: 612 | N73: 7.5 | O73: 8.5 | P73: 16.6 | Q73: 32.6 | R73: 7.5 | S73: 10.5 | T73: 14.8 | U73: 32.8 | V73: 5.6 | W73: 5.5 | X73: 8.9 | Y73: 20 | Z73: 5.5 | AA73: 7.5 | AB73: 19 | AC73: 32 | AD73: 3.5 | AE73: 5.5 | AF73: 9.1 | AG73: 18.1 | AH73: 3.5 | AI73: 7.6 | AJ73: 11.1 | AK73: 5.7 | AL73: 7.7 | AM73: 4 | AN73: 22.3 | AO73: 17.3 | AP73: 39.6 | AQ73: 9.5 | AR73: 9.5 | AS73: 18.6 | AT73: 37.6 | AU73: 7.5 | AV73: 9.5 | AW73: 9.5 | AX73: 26.5 | AY73: 7.5 | AZ73: 9.5 | BA73: 9.1 | BB73: 26.1 | BC73: 7.5 | BD73: 9.5 | BE73: 14.3 | BF73: 31.3 | BG73: 7.5 | BH73: 12 | BI73: 19.6 | BJ73: 39.1 | BK73: 7.5 | BL73: 12.8 | BM73: 9.5 | BN73: 29.8 | BO73: 7.5 | BP73: 14.2 | BQ73: 17 | BR73: 38.7 | BS73: 131.3 | BT73: 404.2 | BU73: 2 | BV73: 4 | BW73: 7.6 | BX73: 13.6 | BY73: 3.6 | BZ73: 4 | CA73: 5.8 | CB73: 13.4 | CC73: ناجحة | CD73: و منقولة للصف الثانى | CE73: 0 | CF73: 4 | CG73: 4/3 | DC73: 0 | DD73: 0
A74: 65 | B74: 165 | C74: شهد مرسى مصطفى محمد | D74: 2/1 | I74: بنات | J74: انتظام | K74: صباحى | M74: 611 | N74: 8.2 | O74: 12.7 | P74: 8.5 | Q74: =IF(P74="غ","غ",SUM(N74,O74,P74)) -> 29.4 | R74: 7.5 | S74: 8.5 | T74: 11.8 | U74: =IF(T74="غ","غ",SUM(R74,S74,T74)) -> 27.8 | V74: 3.8 | W74: 6.5 | X74: 7.1 | Y74: =IF(X74="غ","غ",SUM(V74,W74,X74)) -> 17.4 | Z74: 5.5 | AA74: 7.5 | AB74: 9.5 | AC74: =IF(AB74="غ","غ",SUM(Z74,AA74,AB74)) -> 22.5 | AD74: 5.5 | AE74: 8.1 | AF74: 9.9 | AG74: =IF(AF74="غ","غ",SUM(AD74,AE74,AF74)) -> 23.5 | AH74: 3.5 | AI74: 3.5 | AJ74: 6.5 | AK74: 3.5 | AL74: 6.5 | AM74: 5.4 | AN74: =IF(AL74="غ","غ",SUM(AH74,AJ74,AL74)) -> 16.5 | AO74: =IF(AM74="غ","غ",SUM(AI74,AK74,AM74)) -> 12.4 | AP74: =IF(OR(AN74="غ",AO74="غ"),"غ",SUM(AN74,AO74)) -> 28.9 | AQ74: 7.5 | AR74: 9.5 | AS74: 12.7 | AT74: =IF(AS74="غ","غ",SUM(AQ74,AR74,AS74)) -> 29.7 | AU74: 7.5 | AV74: 9.5 | AW74: 9.5 | AX74: =IF(AW74="غ","غ",SUM(AU74,AV74,AW74)) -> 26.5 | AY74: 7.5 | AZ74: 9.5 | BA74: 12.6 | BB74: =IF(BA74="غ","غ",SUM(AY74,AZ74,BA74)) -> 29.6 | BC74: 7.5 | BD74: 9.5 | BE74: 9.5 | BF74: =IF(BE74="غ","غ",SUM(BC74,BD74,BE74)) -> 26.5 | BG74: 7.5 | BH74: 13.4 | BI74: 13.4 | BJ74: =IF(BI74="غ","غ",SUM(BG74,BH74,BI74)) -> 34.3 | BK74: 7.5 | BL74: 15.8 | BM74: 9.5 | BN74: =IF(BM74="غ","غ",SUM(BK74,BL74,BM74)) -> 32.8 | BO74: 7.5 | BP74: 16.4 | BQ74: 10.9 | BR74: =IF(BQ74="غ","غ",SUM(BO74,BP74,BQ74)) -> 34.8 | BS74: =IF(C74="","",SUM(O74,S74,W74,AE74,AR74,AV74,AZ74,BD74,BH74,BL74,BP74,AA74,AJ74,AK74)) -> 136.9 | BT74: =SUM(Q74,U74,Y74,AG74,AT74,AX74,BB74,BF74,BJ74,BN74,BR74,AC74,AP74) -> 363.7 | BU74: 2 | BV74: 4 | BW74: 4 | BX74: =IF(BW74="غ","غ",SUM(BU74,BV74,BW74)) -> 10 | BY74: 2 | BZ74: 4 | CA74: 4 | CB74: =IF(CA74="غ","غ",SUM(BY74,BZ74,CA74)) -> 10 | CC74: =IF(I74="","",IF(I74="بنات",IF(CE74=0,"ناجحة",IF(DD74>2,"راسبة","دورثان")),IF(I74="بنين",IF(CE74=0,"ناجح",IF(DD74>2,"راسب","دورثان"))))) -> ناجحة | CD74: =IF(C74="","",IF(AND($L74="باقية",$CC74="راسبة"),"وليس لها حق الاعادة",IF(AND($L74<>"باقية",$CC74="راسبة"),"و لها حق الاعادة",IF(AND($L74="باقى",$CC74="راسب"),"وليس له حق الاعادة",IF(AND($L74<>"باقى",$CC74="راسب"),"و له حق الاعادة",IF($CC74="ناجحة","و منقولة للصف الثانى",IF($CC74="ناجح","و منقول للصف الثانى",IF($CC74="دورثان","فى : "&CONCATENATE($CM74,$CN74,$CO74,$CQ74,$CR74,$CS74,$CT74,$CU74,$CV74,$CW74,$CX74,$CY74,$CP74,$CZ74,$DA74,$DB74))))))))) -> و منقولة للصف الثانى | CE74: =IF(C74="","",$DC74+$DD74) -> 0 | CF74: 4 | CG74: 4/3 | CM74: =IF(C74="","",IF(OR(P74<$P$9,P74="غ",Q74<$Q$9),CM$5&" - ","")) ->  | CN74: =IF(C74="","",IF(OR(T74<$T$9,T74="غ",U74<$U$9),CN$5&" - ","")) ->  | CO74: =IF(C74="","",IF(OR(X74<$X$9,X74="غ",Y74<$Y$9),CO$5&" - ","")) ->  | CP74: =IF(C74="","",IF(OR(AB74<$AB$9,AB74="غ",AC74<$AC$9),CP$5&" - ","")) ->  | CQ74: =IF(C74="","",IF(OR(AF74<$AF$9,AF74="غ",AG74<$AG$9),CQ$5&" - ","")) ->  | CR74: =IF(C74="","",IF(OR(AL74<$AL$9,AM74<$AM$9,AN74<$AN$9,AN74="غ",AO74<$AO$9,AO74="غ"),CR$5&" - ","")) ->  | CS74: =IF(C74="","",IF(OR(AS74<$AS$9,AS74="غ",AT74<$AT$9),CS$5&" - ","")) ->  | CT74: =IF(C74="","",IF(OR(AW74<$AW$9,AW74="غ",AX74<$AX$9),CT$5&" - ","")) ->  | CU74: =IF(C74="","",IF(OR(BA74<$BA$9,BA74="غ",BB74<$BB$9),CU$5&" - ","")) ->  | CV74: =IF(C74="","",IF(OR(BE74<$BE$9,BE74="غ",BF74<$BF$9),CV$5&" - ","")) ->  | CW74: =IF(C74="","",IF(OR(BI74<$BI$9,BI74="غ",BJ74<$BJ$9),CW$5&" - ","")) ->  | CX74: =IF(C74="","",IF(OR(BM74<$BM$9,BM74="غ",BN74<$BN$9),CX$5&" - ","")) ->  | CY74: =IF(C74="","",IF(OR(BQ74<$BQ$9,BQ74="غ",BR74<$BR$9),CY$5&" - ","")) ->  | CZ74: =IF(C74="","",IF(BT74<$BT$9,CZ$5&" - ","")) ->  | DA74: =IF(C74="","",IF(OR(BW74<$BW$9,BW74="غ",BX74<$BX$9),DA$5,"")) ->  | DB74: =IF(C74="","",IF(OR(CA74<$CA$9,CA74="غ",CB74<$CB$9),DB$5,"")) ->  | DC74: =COUNTIF($CZ74:$DB74,"?*") -> 0 | DD74: =COUNTIF($CM74:$CY74,"?*") -> 0
A75: 66 | B75: 166 | C75: شهندا محمد سعيد احمد | D75: 1/1 | I75: بنات | J75: انتظام | K75: صباحى | M75: 610 | N75: 7.5 | O75: 8.5 | P75: 8.5 | Q75: 24.5 | R75: 7.5 | S75: 11.6 | T75: 15.2 | U75: 34.3 | V75: 4.6 | W75: 5.5 | X75: 9.1 | Y75: 19.2 | Z75: 5.5 | AA75: 7.5 | AB75: 10.4 | AC75: 23.4 | AD75: 3.5 | AE75: 5.5 | AF75: 6 | AG75: 15 | AH75: 5.6 | AI75: 3.5 | AJ75: 6.5 | AK75: 3.5 | AL75: 6.5 | AM75: 4 | AN75: 18.6 | AO75: 11 | AP75: 29.6 | AQ75: 7.5 | AR75: 18.5 | AS75: 15.4 | AT75: 41.4 | AU75: 9.3 | AV75: 14.9 | AW75: 18.6 | AX75: 42.8 | AY75: 7.5 | AZ75: 9.5 | BA75: 6.5 | BB75: 23.5 | BC75: 7.5 | BD75: 11.7 | BE75: 9.5 | BF75: 28.7 | BG75: 7.5 | BH75: 10.3 | BI75: 9.5 | BJ75: 27.3 | BK75: 7.5 | BL75: 9.5 | BM75: 9.5 | BN75: 26.5 | BO75: 7.5 | BP75: 12.7 | BQ75: 9.5 | BR75: 29.7 | BS75: 135.7 | BT75: 365.9 | BU75: 2 | BV75: 4 | BW75: 4 | BX75: 10 | BY75: 2 | BZ75: 7.4 | CA75: 4 | CB75: 13.4 | CC75: دورثان | CD75: فى : لغة عربية - سكرتارية اجنبية - | CE75: 2 | CF75: 4 | CG75: 4/3 | CM75: لغة عربية - | CU75: سكرتارية اجنبية - | DC75: 0 | DD75: 2
A76: 67 | B76: 167 | C76: شيرين سلامه عبدالفتاح احمد | D76: 3/1 | I76: بنات | J76: انتظام | K76: صباحى | M76: 609 | N76: 9.3 | O76: 8.5 | P76: 8.5 | Q76: 26.3 | R76: 7.5 | S76: 8.5 | T76: 8.5 | U76: 24.5 | V76: 4.8 | W76: 5.5 | X76: 4.5 | Y76: 14.8 | Z76: 5.5 | AA76: 7.5 | AB76: 14.2 | AC76: 27.2 | AD76: 3.6 | AE76: 8.3 | AF76: 6 | AG76: 17.9 | AH76: 3.7 | AI76: 6.9 | AJ76: 8.2 | AK76: 3.5 | AL76: 9.7 | AM76: 5.5 | AN76: 21.6 | AO76: 15.9 | AP76: 37.5 | AQ76: 8.6 | AR76: 9.5 | AS76: 16.1 | AT76: 34.2 | AU76: 7.5 | AV76: 17.4 | AW76: 12.4 | AX76: 37.3 | AY76: 9.7 | AZ76: 9.5 | BA76: 6.5 | BB76: 25.7 | BC76: 8.7 | BD76: 12.8 | BE76: 9.5 | BF76: 31 | BG76: 7.5 | BH76: 9.5 | BI76: 12.1 | BJ76: 29.1 | BK76: 7.5 | BL76: 9.5 | BM76: 9.5 | BN76: 26.5 | BO76: 7.5 | BP76: 18.7 | BQ76: 9.5 | BR76: 35.7 | BS76: 136.9 | BT76: 367.7 | BU76: 2.7 | BV76: 4 | BW76: 6.9 | BX76: 13.6 | BY76: 2.9 | BZ76: 4 | CA76: 7.7 | CB76: 14.6 | CC76: دورثان | CD76: فى : لغة انجليزية - | CE76: 1 | CF76: 4 | CG76: 4/3 | CN76: لغة انجليزية - | DC76: 0 | DD76: 1
A77: 68 | B77: 168 | C77: شيماء ادريس فراج مبارك | D77: 3/1 | I77: بنات | J77: انتظام | K77: صباحى | M77: 608 | N77: 7.5 | O77: 11.7 | P77: 8.5 | Q77: 27.7 | R77: 7.5 | S77: 8.5 | T77: 19.9 | U77: 35.9 | V77: 4.7 | W77: 5.5 | X77: 11.9 | Y77: 22.1 | Z77: 5.5 | AA77: 10 | AB77: 12 | AC77: 27.5 | AD77: 5.9 | AE77: 5.5 | AF77: 10.4 | AG77: 21.8 | AH77: 3.5 | AI77: 7.7 | AJ77: 6.5 | AK77: 3.5 | AL77: 6.8 | AM77: 4 | AN77: 16.8 | AO77: 15.2 | AP77: 32 | AQ77: 9.6 | AR77: 19.5 | AS77: 15.6 | AT77: 44.7 | AU77: 9.7 | AV77: 12.5 | AW77: 9.5 | AX77: 31.7 | AY77: 7.8 | AZ77: 10.2 | BA77: 7.5 | BB77: 25.5 | BC77: 7.5 | BD77: 9.5 | BE77: 9.5 | BF77: 26.5 | BG77: 7.6 | BH77: 18.6 | BI77: 9.5 | BJ77: 35.7 | BK77: 7.5 | BL77: 9.5 | BM77: 9.5 | BN77: 26.5 | BO77: 9.3 | BP77: 9.5 | BQ77: 9.5 | BR77: 28.3 | BS77: 140.5 | BT77: 385.9 | BU77: 2 | BV77: 4 | BW77: 7.7 | BX77: 13.7 | BY77: 3.5 | BZ77: 7.8 | CA77: 6.2 | CB77: 17.5 | CC77: ناجحة | CD77: و منقولة للصف الثانى | CE77: 0 | CF77: 4 | CG77: 4/3 | DC77: 0 | DD77: 0
A78: 69 | B78: 169 | C78: شيماء السيد عبدالمنعم احمد | D78: 1/1 | I78: بنات | J78: انتظام | K78: صباحى | M78: 607 | N78: 7.5 | O78: 8.5 | P78: 18 | Q78: 34 | R78: 7.5 | S78: 17.9 | T78: 13.3 | U78: 38.7 | V78: 3.5 | W78: 5.5 | X78: 8 | Y78: 17 | Z78: 5.5 | AA78: 7.5 | AB78: 9.5 | AC78: 22.5 | AD78: 3.5 | AE78: 5.5 | AF78: 9.9 | AG78: 18.9 | AH78: 4.9 | AI78: 5.9 | AJ78: 9.6 | AK78: 6.6 | AL78: 6.7 | AM78: 4 | AN78: 21.2 | AO78: 16.5 | AP78: 37.7 | AQ78: 7.5 | AR78: 9.5 | AS78: 9.5 | AT78: 26.5 | AU78: 7.5 | AV78: 13.3 | AW78: 16.5 | AX78: 37.3 | AY78: 9.1 | AZ78: 9.5 | BA78: 6.5 | BB78: 25.1 | BC78: 7.5 | BD78: 15.8 | BE78: 16.5 | BF78: 39.8 | BG78: 7.5 | BH78: 13.1 | BI78: 10.1 | BJ78: 30.7 | BK78: 7.9 | BL78: 9.5 | BM78: 9.5 | BN78: 26.9 | BO78: 7.5 | BP78: 9.5 | BQ78: 9.5 | BR78: 26.5 | BS78: 141.3 | BT78: 381.6 | BU78: 2.3 | BV78: 6.7 | BW78: 5.9 | BX78: 14.9 | BY78: 2.2 | BZ78: 4 | CA78: 7.3 | CB78: 13.5 | CC78: ناجحة | CD78: و منقولة للصف الثانى | CE78: 0 | CF78: 4 | CG78: 4/3 | DC78: 0 | DD78: 0
A79: 70 | B79: 170 | C79: شيماء عبدالحارس جبريل | D79: 3/1 | I79: بنات | J79: انتظام | K79: صباحى | M79: 606 | N79: 7.5 | O79: 9.2 | P79: 8.9 | Q79: 25.6 | R79: 7.9 | S79: 8.5 | T79: 8.5 | U79: 24.9 | V79: 3.5 | W79: 7.3 | X79: 4.5 | Y79: 15.3 | Z79: 5.5 | AA79: 12.6 | AB79: 9.5 | AC79: 27.6 | AD79: 3.5 | AE79: 11.3 | AF79: 6 | AG79: 20.8 | AH79: 5.9 | AI79: 3.5 | AJ79: 11.1 | AK79: 3.5 | AL79: 9.1 | AM79: 7.6 | AN79: 26.1 | AO79: 14.6 | AP79: 40.7 | AQ79: 7.5 | AR79: 9.5 | AS79: 9.5 | AT79: 26.5 | AU79: 7.5 | AV79: 11.5 | AW79: 19.7 | AX79: 38.7 | AY79: 7.6 | AZ79: 10.1 | BA79: 12.5 | BB79: 30.2 | BC79: 7.5 | BD79: 9.5 | BE79: 9.5 | BF79: 26.5 | BG79: 7.5 | BH79: 18.1 | BI79: 9.5 | BJ79: 35.1 | BK79: 7.5 | BL79: 16.1 | BM79: 18.9 | BN79: 42.5 | BO79: 9 | BP79: 9.5 | BQ79: 11 | BR79: 29.5 | BS79: 147.8 | BT79: 383.9 | BU79: 3.5 | BV79: 5.4 | BW79: 4 | BX79: 12.9 | BY79: 2 | BZ79: 4 | CA79: 6.1 | CB79: 12.1 | CC79: دورثان | CD79: فى : لغة انجليزية - | CE79: 1 | CF79: 4 | CG79: 4/3 | CN79: لغة انجليزية - | DC79: 0 | DD79: 1
A80: 71 | B80: 171 | C80: شيماء على عبداللطيف على | D80: 3/1 | I80: بنات | J80: انتظام | K80: صباحى | M80: 605 | N80: 7.5 | O80: 18.1 | P80: 12.3 | Q80: 37.9 | R80: 7.5 | S80: 13 | T80: 19 | U80: 39.5 | V80: 3.5 | W80: 7 | X80: 11.4 | Y80: 21.9 | Z80: 5.5 | AA80: 8.3 | AB80: 9.5 | AC80: 23.3 | AD80: 3.5 | AE80: 5.5 | AF80: 6 | AG80: 15 | AH80: 3.5 | AI80: 3.5 | AJ80: 7.1 | AK80: 7.2 | AL80: 9.7 | AM80: 4 | AN80: 20.3 | AO80: 14.7 | AP80: 35 | AQ80: 7.5 | AR80: 9.5 | AS80: 9.5 | AT80: 26.5 | AU80: 7.5 | AV80: 18.2 | AW80: 9.5 | AX80: 35.2 | AY80: 7.5 | AZ80: 9.5 | BA80: 6.5 | BB80: 23.5 | BC80: 9.1 | BD80: 17.2 | BE80: 18 | BF80: 44.3 | BG80: 7.5 | BH80: 9.5 | BI80: 9.5 | BJ80: 26.5 | BK80: 8.6 | BL80: 9.5 | BM80: 19.9 | BN80: 38 | BO80: 7.5 | BP80: 9.5 | BQ80: 17.8 | BR80: 34.8 | BS80: 149.1 | BT80: 401.4 | BU80: 4 | BV80: 6.2 | BW80: 4 | BX80: 14.2 | BY80: 2 | BZ80: 4 | CA80: 5.2 | CB80: 11.2 | CC80: دورثان | CD80: فى : سكرتارية اجنبية - | CE80: 1 | CF80: 4 | CG80: 4/3 | CU80: سكرتارية اجنبية - | DC80: 0 | DD80: 1
A81: 72 | B81: 172 | C81: شيماء عيد جامع عبدالفراج | D81: 1/1 | I81: بنات | J81: انتظام | K81: صباحى | L81: باقية | M81: 604 | N81: 8.8 | O81: 8.5 | P81: 8.5 | Q81: 25.8 | R81: 7.5 | S81: 18 | T81: 19.7 | U81: 45.2 | V81: 3.8 | W81: 10.3 | X81: 11.8 | Y81: 25.9 | Z81: 5.5 | AA81: 9.6 | AB81: 9.5 | AC81: 24.6 | AD81: 3.5 | AE81: 8.1 | AF81: 6 | AG81: 17.6 | AH81: 3.8 | AI81: 3.5 | AJ81: 11.1 | AK81: 6.9 | AL81: 6.5 | AM81: 5.4 | AN81: 21.4 | AO81: 15.8 | AP81: 37.2 | AQ81: 7.5 | AR81: 9.7 | AS81: 12.7 | AT81: 29.9 | AU81: 7.5 | AV81: 9.5 | AW81: 12.5 | AX81: 29.5 | AY81: 7.5 | AZ81: 9.5 | BA81: 6.5 | BB81: 23.5 | BC81: 7.5 | BD81: 9.5 | BE81: 17.2 | BF81: 34.2 | BG81: 7.5 | BH81: 9.5 | BI81: 9.5 | BJ81: 26.5 | BK81: 7.5 | BL81: 9.5 | BM81: 9.5 | BN81: 26.5 | BO81: 7.5 | BP81: 17.6 | BQ81: 10.6 | BR81: 35.7 | BS81: 147.3 | BT81: 382.1 | BU81: 3.7 | BV81: 4 | BW81: 4 | BX81: 11.7 | BY81: 2 | BZ81: 4 | CA81: 4 | CB81: 10 | CC81: دورثان | CD81: فى : سكرتارية اجنبية - | CE81: 1 | CF81: 4 | CG81: 4/3 | CU81: سكرتارية اجنبية - | DC81: 0 | DD81: 1
A82: 73 | B82: 173 | C82: شيماء محمود ابوالحجاج محمود | D82: 1/1 | I82: بنات | J82: انتظام | K82: صباحى | M82: 603 | N82: 7.5 | O82: 15.7 | P82: 8.5 | Q82: 31.7 | R82: 7.5 | S82: 8.5 | T82: 8.5 | U82: 24.5 | V82: 3.5 | W82: 5.5 | X82: 4.5 | Y82: 13.5 | Z82: 5.5 | AA82: 7.5 | AB82: 9.5 | AC82: 22.5 | AD82: 3.5 | AE82: 12 | AF82: 6 | AG82: 21.5 | AH82: 3.5 | AI82: 3.5 | AJ82: 7.3 | AK82: 3.5 | AL82: 6.5 | AM82: 8 | AN82: 17.3 | AO82: 15 | AP82: 32.3 | AQ82: 7.5 | AR82: 13.1 | AS82: 9.6 | AT82: 30.2 | AU82: 7.5 | AV82: 9.5 | AW82: 9.5 | AX82: 26.5 | AY82: 7.5 | AZ82: 9.5 | BA82: 6.5 | BB82: 23.5 | BC82: 7.5 | BD82: 9.5 | BE82: 9.5 | BF82: 26.5 | BG82: 9.6 | BH82: 16.9 | BI82: 12.6 | BJ82: 39.1 | BK82: 7.5 | BL82: 13 | BM82: 11.5 | BN82: 32 | BO82: 8.5 | BP82: 9.5 | BQ82: 9.5 | BR82: 27.5 | BS82: 141 | BT82: 351.3 | BU82: 3.7 | BV82: 4 | BW82: 4 | BX82: 11.7 | BY82: 2 | BZ82: 5.3 | CA82: 4 | CB82: 11.3 | CC82: دورثان | CD82: فى : لغة انجليزية - سكرتارية اجنبية - | CE82: 2 | CF82: 4 | CG82: 4/3 | CN82: لغة انجليزية - | CU82: سكرتارية اجنبية - | DC82: 0 | DD82: 2
A83: 74 | B83: 174 | C83: صباح عامر خليفه سليمان | D83: 2/1 | I83: بنات | J83: انتظام | K83: صباحى | M83: 602 | N83: 7.5 | O83: 8.5 | P83: 9.9 | Q83: 25.9 | R83: 7.5 | S83: 19 | T83: 8.5 | U83: 35 | V83: 5.1 | W83: 5.5 | X83: 4.5 | Y83: 15.1 | Z83: 5.5 | AA83: 11.8 | AB83: 9.5 | AC83: 26.8 | AD83: 3.5 | AE83: 5.5 | AF83: 9.7 | AG83: 18.7 | AH83: 3.5 | AI83: 3.5 | AJ83: 6.5 | AK83: 3.5 | AL83: 6.5 | AM83: 4 | AN83: 16.5 | AO83: 11 | AP83: 27.5 | AQ83: 7.5 | AR83: 9.5 | AS83: 17 | AT83: 34 | AU83: 7.5 | AV83: 16.4 | AW83: 9.5 | AX83: 33.4 | AY83: 9.6 | AZ83: 9.5 | BA83: 17.6 | BB83: 36.7 | BC83: 8.2 | BD83: 12.9 | BE83: 9.5 | BF83: 30.6 | BG83: 9.6 | BH83: 9.5 | BI83: 19.2 | BJ83: 38.3 | BK83: 7.5 | BL83: 12.4 | BM83: 9.5 | BN83: 29.4 | BO83: 7.5 | BP83: 9.5 | BQ83: 13.1 | BR83: 30.1 | BS83: 140 | BT83: 381.5 | BU83: 2 | BV83: 4.8 | BW83: 4 | BX83: 10.8 | BY83: 2.3 | BZ83: 4 | CA83: 7.7 | CB83: 14 | CC83: ناجحة | CD83: و منقولة للصف الثانى | CE83: 0 | CF83: 4 | CG83: 4/3 | DC83: 0 | DD83: 0
A84: 75 | B84: 175 | C84: عبير حسن محمد محمود | D84: 2/1 | I84: بنات | J84: انتظام | K84: صباحى | M84: 601 | N84: 9.7 | O84: 8.5 | P84: 13.7 | Q84: 31.9 | R84: 7.5 | S84: 16.9 | T84: 15.6 | U84: 40 | V84: 3.5 | W84: 7.6 | X84: 9.4 | Y84: 20.5 | Z84: 5.5 | AA84: 7.5 | AB84: 14.6 | AC84: 27.6 | AD84: 3.5 | AE84: 5.5 | AF84: 6.5 | AG84: 15.5 | AH84: 5.8 | AI84: 6 | AJ84: 6.5 | AK84: 3.5 | AL84: 6.5 | AM84: 4 | AN84: 18.8 | AO84: 13.5 | AP84: 32.3 | AQ84: 7.5 | AR84: 18.2 | AS84: 9.5 | AT84: 35.2 | AU84: 9.1 | AV84: 9.5 | AW84: 19.4 | AX84: 38 | AY84: 7.5 | AZ84: 9.5 | BA84: 6.5 | BB84: 23.5 | BC84: 7.5 | BD84: 9.5 | BE84: 9.5 | BF84: 26.5 | BG84: 7.5 | BH84: 9.5 | BI84: 9.5 | BJ84: 26.5 | BK84: 7.5 | BL84: 9.5 | BM84: 9.5 | BN84: 26.5 | BO84: 7.5 | BP84: 19.3 | BQ84: 13.3 | BR84: 40.1 | BS84: 141 | BT84: 384.1 | BU84: 2.3 | BV84: 7.9 | BW84: 6 | BX84: 16.2 | BY84: 2 | BZ84: 7.3 | CA84: 5.7 | CB84: 15 | CC84: دورثان | CD84: فى : سكرتارية اجنبية - | CE84: 1 | CF84: 4 | CG84: 4/3 | CU84: سكرتارية اجنبية - | DC84: 0 | DD84: 1
A85: 76 | B85: 176 | C85: عفاف صادق سليم حميد | D85: 3/1 | I85: بنات | J85: انتظام | K85: صباحى | M85: 676 | N85: 7.5 | O85: 18.4 | P85: 10.5 | Q85: 36.4 | R85: 8.9 | S85: 8.8 | T85: 8.5 | U85: 26.2 | V85: 3.5 | W85: 5.5 | X85: 5.1 | Y85: 14.1 | Z85: 5.5 | AA85: 14.3 | AB85: 9.5 | AC85: 29.3 | AD85: 3.5 | AE85: 5.5 | AF85: 6.5 | AG85: 15.5 | AH85: 3.5 | AI85: 5.4 | AJ85: 6.5 | AK85: 5.1 | AL85: 11.5 | AM85: 4 | AN85: 21.5 | AO85: 14.5 | AP85: 36 | AQ85: 7.5 | AR85: 9.5 | AS85: 9.5 | AT85: 26.5 | AU85: 7.5 | AV85: 9.5 | AW85: 9.5 | AX85: 26.5 | AY85: 7.5 | AZ85: 9.5 | BA85: 6.5 | BB85: 23.5 | BC85: 7.5 | BD85: 10.9 | BE85: 12.9 | BF85: 31.3 | BG85: 7.5 | BH85: 9.5 | BI85: 9.5 | BJ85: 26.5 | BK85: 7.5 | BL85: 9.5 | BM85: 9.5 | BN85: 26.5 | BO85: 7.5 | BP85: 11.4 | BQ85: 9.5 | BR85: 28.4 | BS85: 133.9 | BT85: 346.7 | BU85: 2.5 | BV85: 6.2 | BW85: 5.4 | BX85: 14.1 | BY85: 2 | BZ85: 4 | CA85: 4 | CB85: 10 | CC85: دورثان | CD85: فى : سكرتارية اجنبية - | CE85: 1 | CF85: 4 | CG85: 4/3 | CU85: سكرتارية اجنبية - | DC85: 0 | DD85: 1
A86: 77 | B86: 177 | C86: غاده عبدالسلام محمد جادالرب | D86: 2/1 | I86: بنات | J86: انتظام | K86: صباحى | M86: 677 | N86: 7.5 | O86: 12.6 | P86: 9.3 | Q86: 29.4 | R86: 7.5 | S86: 9.8 | T86: 8.5 | U86: 25.8 | V86: 3.5 | W86: 5.5 | X86: 4.5 | Y86: 13.5 | Z86: 5.5 | AA86: 7.5 | AB86: 9.5 | AC86: 22.5 | AD86: 3.5 | AE86: 8.6 | AF86: 7.5 | AG86: 19.6 | AH86: 3.5 | AI86: 7.3 | AJ86: 6.5 | AK86: 7.8 | AL86: 6.5 | AM86: 5.8 | AN86: 16.5 | AO86: 20.9 | AP86: 37.4 | AQ86: 9.1 | AR86: 9.5 | AS86: 9.5 | AT86: 28.1 | AU86: 7.5 | AV86: 9.5 | AW86: 9.5 | AX86: 26.5 | AY86: 7.5 | AZ86: 9.5 | BA86: 13 | BB86: 30 | BC86: 7.5 | BD86: 9.5 | BE86: 19.5 | BF86: 36.5 | BG86: 7.5 | BH86: 9.5 | BI86: 16.5 | BJ86: 33.5 | BK86: 7.5 | BL86: 14.4 | BM86: 18.9 | BN86: 40.8 | BO86: 7.5 | BP86: 12.9 | BQ86: 11.9 | BR86: 32.3 | BS86: 133.1 | BT86: 375.9 | BU86: 3.2 | BV86: 4 | BW86: 7.3 | BX86: 14.5 | BY86: 2.5 | BZ86: 4 | CA86: 4 | CB86: 10.5 | CC86: ناجحة | CD86: و منقولة للصف الثانى | CE86: 0 | CF86: 4 | CG86: 4/3 | DC86: 0 | DD86: 0
A87: 78 | B87: 178 | C87: فاطمه الزهراء قاسم محمد يسين | D87: 1/1 | I87: بنات | J87: انتظام | K87: صباحى | M87: 678 | N87: 7.5 | O87: 12.6 | P87: 8.5 | Q87: 28.6 | R87: 7.5 | S87: 15.4 | T87: 15.2 | U87: 38.1 | V87: 3.5 | W87: 10 | X87: 9.1 | Y87: 22.6 | Z87: 5.5 | AA87: 7.5 | AB87: 16.4 | AC87: 29.4 | AD87: 3.5 | AE87: 5.5 | AF87: 6 | AG87: 15 | AH87: 3.5 | AI87: 3.5 | AJ87: 9 | AK87: 3.5 | AL87: 6.5 | AM87: 4 | AN87: 19 | AO87: 11 | AP87: 30 | AQ87: 7.5 | AR87: 9.5 | AS87: 9.5 | AT87: 26.5 | AU87: 7.5 | AV87: 9.5 | AW87: 9.5 | AX87: 26.5 | AY87: 7.5 | AZ87: 16 | BA87: 19.4 | BB87: 42.9 | BC87: 7.5 | BD87: 9.5 | BE87: 9.5 | BF87: 26.5 | BG87: 7.5 | BH87: 19.9 | BI87: 9.5 | BJ87: 36.9 | BK87: 7.5 | BL87: 15.2 | BM87: 11.6 | BN87: 34.3 | BO87: 10 | BP87: 14 | BQ87: 9.5 | BR87: 33.5 | BS87: 157.1 | BT87: 390.8 | BU87: 2 | BV87: 4.8 | BW87: 4 | BX87: 10.8 | BY87: 2 | BZ87: 4 | CA87: 5.7 | CB87: 11.7 | CC87: ناجحة | CD87: و منقولة للصف الثانى | CE87: 0 | CF87: 4 | CG87: 4/3 | DC87: 0 | DD87: 0
A88: 79 | B88: 179 | C88: فاطمه حسن محمود احمد | D88: 2/1 | I88: بنات | J88: انتظام | K88: صباحى | M88: 679 | N88: 8.6 | O88: 8.6 | P88: 10.1 | Q88: 27.3 | R88: 7.5 | S88: 16.7 | T88: 13.1 | U88: 37.3 | V88: 3.5 | W88: 5.5 | X88: 7.9 | Y88: 16.9 | Z88: 5.5 | AA88: 9.5 | AB88: 16.5 | AC88: 31.5 | AD88: 3.5 | AE88: 10.5 | AF88: 8.5 | AG88: 22.5 | AH88: 3.7 | AI88: 7.3 | AJ88: 6.5 | AK88: 6.4 | AL88: 6.5 | AM88: 7 | AN88: 16.7 | AO88: 20.7 | AP88: 37.4 | AQ88: 9.1 | AR88: 17.8 | AS88: 9.5 | AT88: 36.4 | AU88: 8.9 | AV88: 19.9 | AW88: 12.2 | AX88: 41 | AY88: 8.3 | AZ88: 14.5 | BA88: 6.5 | BB88: 29.3 | BC88: 10 | BD88: 19.7 | BE88: 16.1 | BF88: 45.8 | BG88: 7.5 | BH88: 9.5 | BI88: 9.5 | BJ88: 26.5 | BK88: 9.8 | BL88: 17 | BM88: 17.5 | BN88: 44.3 | BO88: 7.5 | BP88: 17.3 | BQ88: 9.5 | BR88: 34.3 | BS88: 179.4 | BT88: 430.5 | BU88: 2 | BV88: 5.3 | BW88: 7.3 | BX88: 14.6 | BY88: 2 | BZ88: 7.1 | CA88: 6.7 | CB88: 15.8 | CC88: ناجحة | CD88: و منقولة للصف الثانى | CE88: 0 | CF88: 4 | CG88: 4/3 | DC88: 0 | DD88: 0
A89: 80 | B89: 180 | C89: فاطمه زكى محمد عبدالله | D89: 1/1 | I89: بنات | J89: انتظام | K89: صباحى | M89: 680 | N89: 8.5 | O89: 8.5 | P89: 9.2 | Q89: 26.2 | R89: 7.5 | S89: 8.5 | T89: 10.3 | U89: 26.3 | V89: 3.5 | W89: 11.7 | X89: 6.2 | Y89: 21.4 | Z89: 5.5 | AA89: 7.5 | AB89: 19.9 | AC89: 32.9 | AD89: 3.5 | AE89: 9.4 | AF89: 6 | AG89: 18.9 | AH89: 3.7 | AI89: 5.3 | AJ89: 6.5 | AK89: 3.5 | AL89: 6.5 | AM89: 6.3 | AN89: 16.7 | AO89: 15.1 | AP89: 31.8 | AQ89: 7.5 | AR89: 9.5 | AS89: 11 | AT89: 28 | AU89: 7.5 | AV89: 18.6 | AW89: 12.3 | AX89: 38.4 | AY89: 9.2 | AZ89: 15.7 | BA89: 8 | BB89: 32.9 | BC89: 9.3 | BD89: 19.5 | BE89: 9.5 | BF89: 38.3 | BG89: 7.5 | BH89: 10.1 | BI89: 12.9 | BJ89: 30.5 | BK89: 9.7 | BL89: 9.5 | BM89: 16.8 | BN89: 36 | BO89: 7.5 | BP89: 16.9 | BQ89: 17.4 | BR89: 41.8 | BS89: 155.4 | BT89: 403.4 | BU89: 2 | BV89: 7.4 | BW89: 5.3 | BX89: 14.7 | BY89: 2 | BZ89: 4 | CA89: 7.3 | CB89: 13.3 | CC89: ناجحة | CD89: و منقولة للصف الثانى | CE89: 0 | CF89: 4 | CG89: 4/3 | DC89: 0 | DD89: 0
A90: 81 | B90: 181 | C90: فاطمه صابر حسن سليم | D90: 2/1 | I90: بنات | J90: انتظام | K90: صباحى | M90: 681 | N90: 7.5 | O90: 11.2 | P90: 13.7 | Q90: 32.4 | R90: 7.5 | S90: 8.5 | T90: 8.5 | U90: 24.5 | V90: 3.5 | W90: 5.5 | X90: 4.5 | Y90: 13.5 | Z90: 5.5 | AA90: 11.5 | AB90: 11.8 | AC90: 28.8 | AD90: 3.5 | AE90: 5.6 | AF90: 6 | AG90: 15.1 | AH90: 4.8 | AI90: 6.2 | AJ90: 9.7 | AK90: 3.5 | AL90: 6.5 | AM90: 4 | AN90: 21 | AO90: 13.7 | AP90: 34.7 | AQ90: 7.8 | AR90: 10.6 | AS90: 9.5 | AT90: 27.9 | AU90: 7.5 | AV90: 9.5 | AW90: 15.9 | AX90: 32.9 | AY90: 7.5 | AZ90: 15.5 | BA90: 15.7 | BB90: 38.7 | BC90: 7.5 | BD90: 9.5 | BE90: 9.7 | BF90: 26.7 | BG90: 7.5 | BH90: 9.5 | BI90: 9.5 | BJ90: 26.5 | BK90: 7.5 | BL90: 9.5 | BM90: 9.5 | BN90: 26.5 | BO90: 7.5 | BP90: 9.5 | BQ90: 9.5 | BR90: 26.5 | BS90: 129.1 | BT90: 354.7 | BU90: 2 | BV90: 4.1 | BW90: 6.2 | BX90: 12.3 | BY90: 2 | BZ90: 4.2 | CA90: 4 | CB90: 10.2 | CC90: دورثان | CD90: فى : لغة انجليزية - | CE90: 1 | CF90: 4 | CG90: 4/3 | CN90: لغة انجليزية - | DC90: 0 | DD90: 1
A91: 82 | B91: 182 | C91: فاطمه عادل احمد محمود | D91: 3/1 | I91: بنات | J91: انتظام | K91: صباحى | M91: 682 | N91: 7.5 | O91: 13.9 | P91: 14 | Q91: 35.4 | R91: 7.5 | S91: 8.5 | T91: 8.5 | U91: 24.5 | V91: 5.3 | W91: 9.5 | X91: 4.5 | Y91: 19.3 | Z91: 5.5 | AA91: 7.5 | AB91: 9.5 | AC91: 22.5 | AD91: 3.6 | AE91: 5.5 | AF91: 6 | AG91: 15.1 | AH91: 3.7 | AI91: 3.5 | AJ91: 6.5 | AK91: 5 | AL91: 6.5 | AM91: 4 | AN91: 16.7 | AO91: 12.5 | AP91: 29.2 | AQ91: 7.5 | AR91: 10.6 | AS91: 17.7 | AT91: 35.8 | AU91: 7.5 | AV91: 16.1 | AW91: 12.5 | AX91: 36.1 | AY91: 7.5 | AZ91: 9.5 | BA91: 12.2 | BB91: 29.2 | BC91: 8.1 | BD91: 9.5 | BE91: 12.6 | BF91: 30.2 | BG91: 7.5 | BH91: 9.5 | BI91: 9.5 | BJ91: 26.5 | BK91: 7.5 | BL91: 9.5 | BM91: 18.1 | BN91: 35.1 | BO91: 7.5 | BP91: 9.5 | BQ91: 9.5 | BR91: 26.5 | BS91: 130.6 | BT91: 365.4 | BU91: 2 | BV91: 4.2 | BW91: 4 | BX91: 10.2 | BY91: 3.3 | BZ91: 4.2 | CA91: 5.1 | CB91: 12.6 | CC91: دورثان | CD91: فى : لغة انجليزية - | CE91: 1 | CF91: 4 | CG91: 4/3 | CN91: لغة انجليزية - | DC91: 0 | DD91: 1
A92: 83 | B92: 183 | C92: فاطمه عبدالدايم عبدالحميد محمد | D92: 3/1 | I92: بنات | J92: انتظام | K92: صباحى | M92: 683 | N92: 7.5 | O92: 18.3 | P92: 15.1 | Q92: 40.9 | R92: 7.5 | S92: 8.5 | T92: 9.1 | U92: 25.1 | V92: 3.9 | W92: 9.7 | X92: 5.4 | Y92: 19 | Z92: 5.5 | AA92: 7.5 | AB92: 9.5 | AC92: 22.5 | AD92: 5.5 | AE92: 5.5 | AF92: 11.5 | AG92: 22.5 | AH92: 3.5 | AI92: 5 | AJ92: 6.5 | AK92: 8 | AL92: 11.9 | AM92: 4 | AN92: 21.9 | AO92: 17 | AP92: 38.9 | AQ92: 7.5 | AR92: 9.5 | AS92: 13 | AT92: 30 | AU92: 7.5 | AV92: 9.5 | AW92: 9.5 | AX92: 26.5 | AY92: 7.5 | AZ92: 16.7 | BA92: 8 | BB92: 32.2 | BC92: 7.5 | BD92: 9.5 | BE92: 19.9 | BF92: 36.9 | BG92: 7.5 | BH92: 9.5 | BI92: 19 | BJ92: 36 | BK92: 7.5 | BL92: 12.8 | BM92: 19.1 | BN92: 39.4 | BO92: 7.5 | BP92: 9.5 | BQ92: 9.5 | BR92: 26.5 | BS92: 141 | BT92: 396.4 | BU92: 2 | BV92: 4 | BW92: 5 | BX92: 11 | BY92: 2.6 | BZ92: 4 | CA92: 4 | CB92: 10.6 | CC92: ناجحة | CD92: و منقولة للصف الثانى | CE92: 0 | CF92: 4 | CG92: 4/3 | DC92: 0 | DD92: 0
A93: 84 | B93: 184 | C93: فاطمه محمد احمد شحاته | D93: 3/1 | I93: بنات | J93: انتظام | K93: صباحى | M93: 684 | N93: 7.5 | O93: 16.7 | P93: 14.3 | Q93: 38.5 | R93: 7.5 | S93: 8.5 | T93: 8.9 | U93: 24.9 | V93: 4.2 | W93: 7.3 | X93: 5.3 | Y93: 16.8 | Z93: 5.5 | AA93: 7.5 | AB93: 16.8 | AC93: 29.8 | AD93: 4.3 | AE93: 5.5 | AF93: 6 | AG93: 15.8 | AH93: 3.6 | AI93: 4.7 | AJ93: 6.5 | AK93: 7.3 | AL93: 6.5 | AM93: 4 | AN93: 16.6 | AO93: 16 | AP93: 32.6 | AQ93: 7.5 | AR93: 15.9 | AS93: 13.9 | AT93: 37.3 | AU93: 8 | AV93: 10.6 | AW93: 11.8 | AX93: 30.4 | AY93: 7.5 | AZ93: 11.5 | BA93: 13.7 | BB93: 32.7 | BC93: 7.5 | BD93: 13.7 | BE93: 18.3 | BF93: 39.5 | BG93: 7.5 | BH93: 9.5 | BI93: 17.3 | BJ93: 34.3 | BK93: 7.5 | BL93: 9.5 | BM93: 13.3 | BN93: 30.3 | BO93: 7.5 | BP93: 9.5 | BQ93: 11.5 | BR93: 28.5 | BS93: 139.5 | BT93: 391.4 | BU93: 3.5 | BV93: 4 | BW93: 4.7 | BX93: 12.2 | BY93: 2 | BZ93: 6.4 | CA93: 4 | CB93: 12.4 | CC93: دورثان | CD93: فى : لغة انجليزية - | CE93: 1 | CF93: 4 | CG93: 4/3 | CN93: لغة انجليزية - | DC93: 0 | DD93: 1
A94: 85 | B94: 185 | C94: فاطمه محمد اسماعيل محمد | D94: 3/1 | I94: بنات | J94: انتظام | K94: صباحى | M94: 685 | N94: 7.5 | O94: 8.5 | P94: 8.5 | Q94: 24.5 | R94: 9.5 | S94: 12.4 | T94: 10.3 | U94: 32.2 | V94: 3.5 | W94: 5.5 | X94: 6.2 | Y94: 15.2 | Z94: 5.5 | AA94: 15.2 | AB94: 9.5 | AC94: 30.2 | AD94: 4.5 | AE94: 11.9 | AF94: 7.8 | AG94: 24.2 | AH94: 4 | AI94: 3.5 | AJ94: 6.7 | AK94: 6.3 | AL94: 6.5 | AM94: 8 | AN94: 17.2 | AO94: 17.8 | AP94: 35 | AQ94: 7.5 | AR94: 19.9 | AS94: 9.5 | AT94: 36.9 | AU94: 10 | AV94: 18 | AW94: 13.3 | AX94: 41.3 | AY94: 8.6 | AZ94: 9.5 | BA94: 10.9 | BB94: 29 | BC94: 9 | BD94: 10.6 | BE94: 15.9 | BF94: 35.5 | BG94: 7.5 | BH94: 12.3 | BI94: 10.1 | BJ94: 29.9 | BK94: 7.5 | BL94: 17.6 | BM94: 12.9 | BN94: 38 | BO94: 7.5 | BP94: 11.5 | BQ94: 9.5 | BR94: 28.5 | BS94: 165.9 | BT94: 400.4 | BU94: 2 | BV94: 6.5 | BW94: 4 | BX94: 12.5 | BY94: 3.3 | BZ94: 8 | CA94: 6.9 | CB94: 18.2 | CC94: دورثان | CD94: فى : لغة عربية - | CE94: 1 | CF94: 5 | CG94: 5/3 | CM94: لغة عربية - | DC94: 0 | DD94: 1
A95: 86 | B95: 186 | C95: فاطمه محمود يوسف عثمان | D95: 1/1 | I95: بنات | J95: انتظام | K95: صباحى | M95: 686 | N95: 7.6 | O95: 10.9 | P95: 16.9 | Q95: 35.4 | R95: 9.7 | S95: 8.5 | T95: 8.5 | U95: 26.7 | V95: 3.5 | W95: 7 | X95: 4.5 | Y95: 15 | Z95: 5.5 | AA95: 15.6 | AB95: 9.5 | AC95: 30.6 | AD95: 3.5 | AE95: 5.5 | AF95: 6 | AG95: 15 | AH95: 5.3 | AI95: 4 | AJ95: 6.5 | AK95: 3.5 | AL95: 8.9 | AM95: 4 | AN95: 20.7 | AO95: 11.5 | AP95: 32.2 | AQ95: 7.5 | AR95: 9.5 | AS95: 9.5 | AT95: 26.5 | AU95: 7.5 | AV95: 9.5 | AW95: 17.5 | AX95: 34.5 | AY95: 8.2 | AZ95: 9.5 | BA95: 15.1 | BB95: 32.8 | BC95: 7.5 | BD95: 17 | BE95: 9.5 | BF95: 34 | BG95: 9.6 | BH95: 18.9 | BI95: 9.5 | BJ95: 38 | BK95: 8.5 | BL95: 9.9 | BM95: 9.5 | BN95: 27.9 | BO95: 9.4 | BP95: 15.1 | BQ95: 9.5 | BR95: 34 | BS95: 146.9 | BT95: 382.6 | BU95: 2.6 | BV95: 7.2 | BW95: 4 | BX95: 13.8 | BY95: 3.4 | BZ95: 4 | CA95: 6.5 | CB95: 13.9 | CC95: ناجحة | CD95: و منقولة للصف الثانى | CE95: 0 | CF95: 5 | CG95: 5/3 | DC95: 0 | DD95: 0
A96: 87 | B96: 187 | C96: فرحه سيد محمد سالم | D96: 3/1 | I96: بنات | J96: انتظام | K96: صباحى | M96: 687 | N96: 7.5 | O96: 18.3 | P96: 18.6 | Q96: 44.4 | R96: 9.8 | S96: 8.5 | T96: 8.5 | U96: 26.8 | V96: 3.9 | W96: 7.9 | X96: 4.5 | Y96: 16.3 | Z96: 5.5 | AA96: 15.6 | AB96: 12.4 | AC96: 33.5 | AD96: 5.8 | AE96: 5.5 | AF96: 6 | AG96: 17.3 | AH96: 3.5 | AI96: 6.3 | AJ96: 6.5 | AK96: 3.5 | AL96: 6.5 | AM96: 4 | AN96: 16.5 | AO96: 13.8 | AP96: 30.3 | AQ96: 7.9 | AR96: 9.5 | AS96: 13.1 | AT96: 30.5 | AU96: 7.5 | AV96: 9.5 | AW96: 9.5 | AX96: 26.5 | AY96: 7.5 | AZ96: 9.5 | BA96: 19 | BB96: 36 | BC96: 7.5 | BD96: 10.5 | BE96: 9.5 | BF96: 27.5 | BG96: 7.5 | BH96: 9.5 | BI96: 9.5 | BJ96: 26.5 | BK96: 7.5 | BL96: 10 | BM96: 12.4 | BN96: 29.9 | BO96: 7.5 | BP96: 13.5 | BQ96: 18.7 | BR96: 39.7 | BS96: 137.8 | BT96: 385.2 | BU96: 2 | BV96: 5 | BW96: 6.3 | BX96: 13.3 | BY96: 3.1 | BZ96: 4 | CA96: 6 | CB96: 13.1 | CC96: ناجحة | CD96: و منقولة للصف الثانى | CE96: 0 | CF96: 5 | CG96: 5/3 | DC96: 0 | DD96: 0
A97: 88 | B97: 188 | C97: لمياء رمضان انورمحمد | D97: 1/1 | I97: بنات | J97: انتظام | K97: صباحى | M97: 688 | N97: 9.6 | O97: 8.6 | P97: 12.2 | Q97: 30.4 | R97: 7.5 | S97: 13.9 | T97: 8.5 | U97: 29.9 | V97: 3.5 | W97: 7 | X97: 4.5 | Y97: 15 | Z97: 5.5 | AA97: 7.5 | AB97: 9.5 | AC97: 22.5 | AD97: 3.5 | AE97: 8.5 | AF97: 6 | AG97: 18 | AH97: 3.5 | AI97: 4.7 | AJ97: 6.5 | AK97: 3.5 | AL97: 6.5 | AM97: 5.7 | AN97: 16.5 | AO97: 13.9 | AP97: 30.4 | AQ97: 7.5 | AR97: 16.6 | AS97: 9.5 | AT97: 33.6 | AU97: 8.3 | AV97: 9.5 | AW97: 9.5 | AX97: 27.3 | AY97: 9.5 | AZ97: 9.5 | BA97: 6.5 | BB97: 25.5 | BC97: 7.5 | BD97: 9.5 | BE97: 9.5 | BF97: 26.5 | BG97: 8 | BH97: 9.5 | BI97: 11.4 | BJ97: 28.9 | BK97: 7.5 | BL97: 9.5 | BM97: 9.5 | BN97: 26.5 | BO97: 7.5 | BP97: 19.2 | BQ97: 9.5 | BR97: 36.2 | BS97: 138.8 | BT97: 350.7 | BU97: 2 | BV97: 7.7 | BW97: 4.7 | BX97: 14.4 | BY97: 2 | BZ97: 6.6 | CA97: 7.6 | CB97: 16.2 | CC97: ناجحة | CD97: و منقولة للصف الثانى | CE97: 0 | CF97: 5 | CG97: 5/3 | DC97: 0 | DD97: 0
A98: 89 | B98: 189 | C98: مروه سعيد عبدالرحيم سليم | D98: 3/1 | I98: بنات | J98: انتظام | K98: صباحى | M98: 689 | N98: 7.5 | O98: 13.6 | P98: 9.5 | Q98: 30.6 | R98: 7.5 | S98: 10.1 | T98: 8.5 | U98: 26.1 | V98: 5.7 | W98: 5.5 | X98: 4.8 | Y98: 16 | Z98: 5.5 | AA98: 10 | AB98: 9.5 | AC98: 25 | AD98: 5.5 | AE98: 5.5 | AF98: 6 | AG98: 17 | AH98: 4.6 | AI98: 7.2 | AJ98: 6.5 | AK98: 3.5 | AL98: 10.7 | AM98: 4 | AN98: 21.8 | AO98: 14.7 | AP98: 36.5 | AQ98: 8.9 | AR98: 15.5 | AS98: 19.1 | AT98: 43.5 | AU98: 7.7 | AV98: 18.7 | AW98: 15.5 | AX98: 41.9 | AY98: 7.5 | AZ98: 15.2 | BA98: 6.5 | BB98: 29.2 | BC98: 9.3 | BD98: 12.6 | BE98: 9.5 | BF98: 31.4 | BG98: 7.5 | BH98: 18.5 | BI98: 9.5 | BJ98: 35.5 | BK98: 7.5 | BL98: 17.2 | BM98: 9.5 | BN98: 34.2 | BO98: 9.3 | BP98: 13.5 | BQ98: 9.5 | BR98: 32.3 | BS98: 165.9 | BT98: 399.2 | BU98: 2.6 | BV98: 4 | BW98: 7.2 | BX98: 13.8 | BY98: 3.6 | BZ98: 6.2 | CA98: 4 | CB98: 13.8 | CC98: ناجحة | CD98: و منقولة للصف الثانى | CE98: 0 | CF98: 5 | CG98: 5/3 | DC98: 0 | DD98: 0
A99: 90 | B99: 190 | C99: منار شاذلى توفيق سلطان | D99: 2/1 | I99: بنات | J99: انتظام | K99: صباحى | M99: 690 | N99: 7.6 | O99: 10 | P99: 8.5 | Q99: 26.1 | R99: 7.5 | S99: 8.5 | T99: 10.1 | U99: 26.1 | V99: 3.5 | W99: 10.1 | X99: 6.1 | Y99: 19.7 | Z99: 5.5 | AA99: 7.5 | AB99: 9.5 | AC99: 22.5 | AD99: 3.5 | AE99: 5.5 | AF99: 6 | AG99: 15 | AH99: 3.5 | AI99: 6.5 | AJ99: 6.5 | AK99: 3.5 | AL99: 6.5 | AM99: 4 | AN99: 16.5 | AO99: 14 | AP99: 30.5 | AQ99: 8.2 | AR99: 9.5 | AS99: 9.5 | AT99: 27.2 | AU99: 7.5 | AV99: 9.5 | AW99: 9.5 | AX99: 26.5 | AY99: 7.5 | AZ99: 9.5 | BA99: 9.3 | BB99: 26.3 | BC99: 7.5 | BD99: 9.5 | BE99: 9.5 | BF99: 26.5 | BG99: 10 | BH99: 13.6 | BI99: 10.2 | BJ99: 33.8 | BK99: 7.5 | BL99: 9.5 | BM99: 9.5 | BN99: 26.5 | BO99: 7.5 | BP99: 15.1 | BQ99: 9.5 | BR99: 32.1 | BS99: 127.8 | BT99: 338.8 | BU99: 2.4 | BV99: 7.1 | BW99: 6.5 | BX99: 16 | BY99: 3.9 | BZ99: 4 | CA99: 5.7 | CB99: 13.6 | CC99: ناجحة | CD99: و منقولة للصف الثانى | CE99: 0 | CF99: 5 | CG99: 5/3 | DC99: 0 | DD99: 0
A100: 91 | B100: 191 | C100: منال سيد محمد احمد | D100: 2/1 | I100: بنات | J100: انتظام | K100: صباحى | M100: 691 | N100: 7.5 | O100: 10.3 | P100: 13.7 | Q100: 31.5 | R100: 7.5 | S100: 19.8 | T100: 8.5 | U100: 35.8 | V100: 3.9 | W100: 5.5 | X100: 4.5 | Y100: 13.9 | Z100: 5.5 | AA100: 9.8 | AB100: 9.5 | AC100: 24.8 | AD100: 3.5 | AE100: 5.5 | AF100: 6 | AG100: 15 | AH100: 3.5 | AI100: 5.5 | AJ100: 6.6 | AK100: 3.5 | AL100: 6.5 | AM100: 4 | AN100: 16.6 | AO100: 13 | AP100: 29.6 | AQ100: 7.5 | AR100: 12.9 | AS100: 13 | AT100: 33.4 | AU100: 7.5 | AV100: 9.5 | AW100: 9.5 | AX100: 26.5 | AY100: 7.5 | AZ100: 19.8 | BA100: 14.6 | BB100: 41.9 | BC100: 7.5 | BD100: 9.9 | BE100: 9.5 | BF100: 26.9 | BG100: 7.5 | BH100: 9.5 | BI100: 9.5 | BJ100: 26.5 | BK100: 7.5 | BL100: 12.9 | BM100: 9.5 | BN100: 29.9 | BO100: 7.5 | BP100: 9.5 | BQ100: 12.8 | BR100: 29.8 | BS100: 145 | BT100: 365.5 | BU100: 2 | BV100: 7.5 | BW100: 5.5 | BX100: 15 | BY100: 2.4 | BZ100: 5.1 | CA100: 4 | CB100: 11.5 | CC100: ناجحة | CD100: و منقولة للصف الثانى | CE100: 0 | CF100: 5 | CG100: 5/3 | DC100: 0 | DD100: 0
A101: 92 | B101: 192 | C101: منى حمزة يوسف محمود | D101: 3/1 | I101: بنات | J101: انتظام | K101: صباحى | M101: 692 | N101: 7.5 | O101: 9.3 | P101: 19.6 | Q101: 36.4 | R101: 8 | S101: 9.4 | T101: 8.7 | U101: 26.1 | V101: 3.5 | W101: 5.5 | X101: 5.2 | Y101: 14.2 | Z101: 5.5 | AA101: 12.8 | AB101: 13.4 | AC101: 31.7 | AD101: 3.5 | AE101: 5.5 | AF101: 7.4 | AG101: 16.4 | AH101: 4.1 | AI101: 4.6 | AJ101: 6.5 | AK101: 6.3 | AL101: 9 | AM101: 4 | AN101: 19.6 | AO101: 14.9 | AP101: 34.5 | AQ101: 7.5 | AR101: 9.5 | AS101: 9.5 | AT101: 26.5 | AU101: 7.5 | AV101: 9.9 | AW101: 13.6 | AX101: 31 | AY101: 7.5 | AZ101: 9.5 | BA101: 10 | BB101: 27 | BC101: 7.5 | BD101: 9.5 | BE101: 15.9 | BF101: 32.9 | BG101: 7.5 | BH101: 13 | BI101: 9.5 | BJ101: 30 | BK101: 7.5 | BL101: 16.3 | BM101: 9.5 | BN101: 33.3 | BO101: 7.5 | BP101: 9.5 | BQ101: 9.5 | BR101: 26.5 | BS101: 132.5 | BT101: 366.5 | BU101: 2.2 | BV101: 4 | BW101: 4.6 | BX101: 10.8 | BY101: 2.8 | BZ101: 4 | CA101: 4 | CB101: 10.8 | CC101: ناجحة | CD101: و منقولة للصف الثانى | CE101: 0 | CF101: 5 | CG101: 5/3 | DC101: 0 | DD101: 0
A102: 93 | B102: 193 | C102: منى حمزة يوسف محمود | D102: 1/1 | I102: بنات | J102: انتظام | K102: صباحى | M102: 693 | N102: 8.7 | O102: 8.5 | P102: 13.8 | Q102: 31 | R102: 7.5 | S102: 8.5 | T102: 8.5 | U102: 24.5 | V102: 3.5 | W102: 5.5 | X102: 4.5 | Y102: 13.5 | Z102: 5.5 | AA102: 7.8 | AB102: 19.1 | AC102: 32.4 | AD102: 3.5 | AE102: 5.7 | AF102: 6 | AG102: 15.2 | AH102: 5.2 | AI102: 3.5 | AJ102: 6.5 | AK102: 7 | AL102: 6.5 | AM102: 4 | AN102: 18.2 | AO102: 14.5 | AP102: 32.7 | AQ102: 7.5 | AR102: 19.6 | AS102: 9.5 | AT102: 36.6 | AU102: 9.8 | AV102: 9.5 | AW102: 17.2 | AX102: 36.5 | AY102: 9.9 | AZ102: 9.5 | BA102: 6.5 | BB102: 25.9 | BC102: 7.5 | BD102: 9.5 | BE102: 17.6 | BF102: 34.6 | BG102: 7.5 | BH102: 17.9 | BI102: 15.3 | BJ102: 40.7 | BK102: 7.5 | BL102: 9.5 | BM102: 9.5 | BN102: 26.5 | BO102: 9 | BP102: 17.4 | BQ102: 11.1 | BR102: 37.5 | BS102: 142.4 | BT102: 387.6 | BU102: 3.4 | BV102: 7.8 | BW102: 4 | BX102: 15.2 | BY102: 2 | BZ102: 7.9 | CA102: 7.9 | CB102: 17.8 | CC102: دورثان | CD102: فى : لغة انجليزية - | CE102: 1 | CF102: 5 | CG102: 5/3 | CN102: لغة انجليزية - | DC102: 0 | DD102: 1
A103: 94 | B103: 194 | C103: منى شاذلى يوسف طايع | D103: 1/1 | I103: بنات | J103: انتظام | K103: صباحى | M103: 694 | N103: 7.5 | O103: 8.5 | P103: 14.2 | Q103: 30.2 | R103: 7.5 | S103: 8.5 | T103: 14.2 | U103: 30.2 | V103: 3.5 | W103: 5.5 | X103: 8.5 | Y103: 17.5 | Z103: 5.5 | AA103: 9.5 | AB103: 18.9 | AC103: 33.9 | AD103: 3.5 | AE103: 11.1 | AF103: 8.2 | AG103: 22.8 | AH103: 3.5 | AI103: 3.5 | AJ103: 6.5 | AK103: 3.5 | AL103: 6.5 | AM103: 7.4 | AN103: 16.5 | AO103: 14.4 | AP103: 30.9 | AQ103: 7.5 | AR103: 9.5 | AS103: 9.5 | AT103: 26.5 | AU103: 7.5 | AV103: 9.5 | AW103: 9.5 | AX103: 26.5 | AY103: 7.5 | AZ103: 19.3 | BA103: 6.5 | BB103: 33.3 | BC103: 7.5 | BD103: 9.5 | BE103: 9.5 | BF103: 26.5 | BG103: 7.5 | BH103: 9.5 | BI103: 11.8 | BJ103: 28.8 | BK103: 7.5 | BL103: 16.8 | BM103: 9.5 | BN103: 33.8 | BO103: 7.5 | BP103: 9.5 | BQ103: 9.5 | BR103: 26.5 | BS103: 136.7 | BT103: 367.4 | BU103: 2.2 | BV103: 4 | BW103: 4 | BX103: 10.2 | BY103: 3.1 | BZ103: 4 | CA103: 4 | CB103: 11.1 | CC103: ناجحة | CD103: و منقولة للصف الثانى | CE103: 0 | CF103: 5 | CG103: 5/3 | DC103: 0 | DD103: 0
A104: 95 | B104: 195 | C104: منى عبد الحميد محمد سعيد صالح | D104: 1/1 | I104: بنات | J104: انتظام | K104: صباحى | M104: 695 | N104: 7.5 | O104: 8.5 | P104: 8.5 | Q104: 24.5 | R104: 9.4 | S104: 8.5 | T104: 9.7 | U104: 27.6 | V104: 3.5 | W104: 5.5 | X104: 5.8 | Y104: 14.8 | Z104: 5.5 | AA104: 15 | AB104: 12.4 | AC104: 32.9 | AD104: 5.9 | AE104: 5.5 | AF104: 7.1 | AG104: 18.5 | AH104: 4.8 | AI104: 4.9 | AJ104: 6.5 | AK104: 3.5 | AL104: 6.5 | AM104: 4 | AN104: 17.8 | AO104: 12.4 | AP104: 30.2 | AQ104: 7.5 | AR104: 9.5 | AS104: 9.5 | AT104: 26.5 | AU104: 7.5 | AV104: 12 | AW104: 15.8 | AX104: 35.3 | AY104: 7.5 | AZ104: 9.5 | BA104: 16.9 | BB104: 33.9 | BC104: 7.5 | BD104: 9.5 | BE104: 9.5 | BF104: 26.5 | BG104: 7.5 | BH104: 9.5 | BI104: 9.5 | BJ104: 26.5 | BK104: 7.5 | BL104: 9.5 | BM104: 17.6 | BN104: 34.6 | BO104: 7.5 | BP104: 9.5 | BQ104: 17.2 | BR104: 34.2 | BS104: 122 | BT104: 366 | BU104: 3.8 | BV104: 5.5 | BW104: 4.9 | BX104: 14.2 | BY104: 2 | BZ104: 4 | CA104: 4 | CB104: 10 | CC104: دورثان | CD104: فى : لغة عربية - | CE104: 1 | CF104: 5 | CG104: 5/3 | CM104: لغة عربية - | DC104: 0 | DD104: 1
A105: 96 | B105: 196 | C105: منيره رمضان محمد حامد | D105: 3/1 | I105: بنات | J105: انتظام | K105: صباحى | M105: 696 | N105: 7.7 | O105: 8.5 | P105: 9.5 | Q105: 25.7 | R105: 7.5 | S105: 15.1 | T105: 8.5 | U105: 31.1 | V105: 3.6 | W105: 10.3 | X105: 4.5 | Y105: 18.4 | Z105: 5.5 | AA105: 7.5 | AB105: 9.5 | AC105: 22.5 | AD105: 4.5 | AE105: 9.2 | AF105: 7.2 | AG105: 20.9 | AH105: 3.5 | AI105: 4.3 | AJ105: 11.3 | AK105: 3.5 | AL105: 6.5 | AM105: 6.1 | AN105: 21.3 | AO105: 13.9 | AP105: 35.2 | AQ105: 7.5 | AR105: 18.1 | AS105: 12.1 | AT105: 37.7 | AU105: 9 | AV105: 17 | AW105: 9.5 | AX105: 35.5 | AY105: 9.2 | AZ105: 15.3 | BA105: 14.1 | BB105: 38.6 | BC105: 8.5 | BD105: 9.5 | BE105: 9.5 | BF105: 27.5 | BG105: 9.2 | BH105: 10.8 | BI105: 9.5 | BJ105: 29.5 | BK105: 7.5 | BL105: 11.5 | BM105: 16.1 | BN105: 35.1 | BO105: 7.5 | BP105: 15.3 | BQ105: 12.5 | BR105: 35.3 | BS105: 162.9 | BT105: 393 | BU105: 2.9 | BV105: 4.6 | BW105: 4.3 | BX105: 11.8 | BY105: 2 | BZ105: 7.2 | CA105: 7.4 | CB105: 16.6 | CC105: ناجحة | CD105: و منقولة للصف الثانى | CE105: 0 | CF105: 5 | CG105: 5/3 | DC105: 0 | DD105: 0
A106: 97 | B106: 197 | C106: مها محمد حسين احمد | D106: 3/1 | I106: بنات | J106: انتظام | K106: صباحى | M106: 697 | N106: 7.5 | O106: 8.5 | P106: 8.8 | Q106: 24.8 | R106: 7.5 | S106: 17.8 | T106: 11.8 | U106: 37.1 | V106: 3.5 | W106: 5.5 | X106: 7.1 | Y106: 16.1 | Z106: 5.5 | AA106: 7.5 | AB106: 16.7 | AC106: 29.7 | AD106: 4.2 | AE106: 5.5 | AF106: 6 | AG106: 15.7 | AH106: 3.5 | AI106: 3.5 | AJ106: 6.5 | AK106: 6.4 | AL106: 6.5 | AM106: 4 | AN106: 16.5 | AO106: 13.9 | AP106: 30.4 | AQ106: 7.5 | AR106: 17.3 | AS106: 9.5 | AT106: 34.3 | AU106: 8.7 | AV106: 10.2 | AW106: 10.5 | AX106: 29.4 | AY106: 7.5 | AZ106: 9.5 | BA106: 6.5 | BB106: 23.5 | BC106: 7.5 | BD106: 9.5 | BE106: 16 | BF106: 33 | BG106: 7.5 | BH106: 13.1 | BI106: 15 | BJ106: 35.6 | BK106: 7.5 | BL106: 9.5 | BM106: 9.5 | BN106: 26.5 | BO106: 7.5 | BP106: 9.5 | BQ106: 10.3 | BR106: 27.3 | BS106: 136.3 | BT106: 363.4 | BU106: 2 | BV106: 4 | BW106: 4 | BX106: 10 | BY106: 2 | BZ106: 6.9 | CA106: 4.4 | CB106: 13.3 | CC106: دورثان | CD106: فى : لغة عربية - سكرتارية اجنبية - | CE106: 2 | CF106: 5 | CG106: 5/3 | CM106: لغة عربية - | CU106: سكرتارية اجنبية - | DC106: 0 | DD106: 2
A107: 98 | B107: 198 | C107: مها محمود محمد حسنين | D107: 2/1 | I107: بنات | J107: انتظام | K107: صباحى | M107: 698 | N107: 7.5 | O107: 19.6 | P107: 8.5 | Q107: 35.6 | R107: 7.5 | S107: 16.4 | T107: 8.5 | U107: 32.4 | V107: 3.5 | W107: 10.8 | X107: 4.5 | Y107: 18.8 | Z107: 5.5 | AA107: 7.5 | AB107: 9.5 | AC107: 22.5 | AD107: 5.8 | AE107: 7.6 | AF107: 6 | AG107: 19.4 | AH107: 3.5 | AI107: 5.9 | AJ107: 6.5 | AK107: 3.5 | AL107: 6.5 | AM107: 5 | AN107: 16.5 | AO107: 14.4 | AP107: 30.9 | AQ107: 7.5 | AR107: 12.1 | AS107: 9.5 | AT107: 29.1 | AU107: 7.5 | AV107: 9.5 | AW107: 9.5 | AX107: 26.5 | AY107: 7.5 | AZ107: 9.5 | BA107: 10.1 | BB107: 27.1 | BC107: 7.5 | BD107: 9.5 | BE107: 9.5 | BF107: 26.5 | BG107: 7.5 | BH107: 9.5 | BI107: 19.1 | BJ107: 36.1 | BK107: 7.5 | BL107: 9.5 | BM107: 9.5 | BN107: 26.5 | BO107: 7.5 | BP107: 9.5 | BQ107: 9.5 | BR107: 26.5 | BS107: 141 | BT107: 357.9 | BU107: 2 | BV107: 4 | BW107: 5.9 | BX107: 11.9 | BY107: 2.3 | BZ107: 4.9 | CA107: 4 | CB107: 11.2 | CC107: ناجحة | CD107: و منقولة للصف الثانى | CE107: 0 | CF107: 5 | CG107: 5/3 | DC107: 0 | DD107: 0
A108: 99 | B108: 199 | C108: مها محمود موسى الصادق | D108: 3/1 | I108: بنات | J108: انتظام | K108: صباحى | M108: 699 | N108: 9.8 | O108: 8.5 | P108: 8.5 | Q108: 26.8 | R108: 8.9 | S108: 8.5 | T108: 13.8 | U108: 31.2 | V108: 3.5 | W108: 5.5 | X108: 8.3 | Y108: 17.3 | Z108: 5.5 | AA108: 14.2 | AB108: 9.5 | AC108: 29.2 | AD108: 3.5 | AE108: 8.2 | AF108: 6 | AG108: 17.7 | AH108: 4.7 | AI108: 5.3 | AJ108: 6.5 | AK108: 6.8 | AL108: 6.5 | AM108: 5.5 | AN108: 17.7 | AO108: 17.6 | AP108: 35.3 | AQ108: 7.5 | AR108: 13.8 | AS108: 9.5 | AT108: 30.8 | AU108: 7.5 | AV108: 9.5 | AW108: 15.6 | AX108: 32.6 | AY108: 7.5 | AZ108: 12.7 | BA108: 9.4 | BB108: 29.6 | BC108: 7.5 | BD108: 18.1 | BE108: 16.9 | BF108: 42.5 | BG108: 9.4 | BH108: 9.5 | BI108: 13.4 | BJ108: 32.3 | BK108: 9.1 | BL108: 9.5 | BM108: 9.5 | BN108: 28.1 | BO108: 7.5 | BP108: 19.5 | BQ108: 9.5 | BR108: 36.5 | BS108: 150.8 | BT108: 389.9 | BU108: 3.2 | BV108: 6 | BW108: 5.3 | BX108: 14.5 | BY108: 2 | BZ108: 5.5 | CA108: 4 | CB108: 11.5 | CC108: ناجحة | CD108: و منقولة للصف الثانى | CE108: 0 | CF108: 5 | CG108: 5/3 | DC108: 0 | DD108: 0
A109: 100 | B109: 200 | C109: مى سيد حجاجى عبدالكريم | D109: 2/1 | I109: بنات | J109: انتظام | K109: صباحى | M109: 700 | N109: 7.5 | O109: 8.5 | P109: 8.5 | Q109: 24.5 | R109: 9.1 | S109: 8.5 | T109: 8.5 | U109: 26.1 | V109: 3.5 | W109: 5.5 | X109: 4.5 | Y109: 13.5 | Z109: 5.5 | AA109: 14.5 | AB109: 9.5 | AC109: 29.5 | AD109: 3.5 | AE109: 9.3 | AF109: 6 | AG109: 18.8 | AH109: 3.5 | AI109: 7.9 | AJ109: 6.5 | AK109: 3.5 | AL109: 10.4 | AM109: 6.2 | AN109: 20.4 | AO109: 17.6 | AP109: 38 | AQ109: 9.9 | AR109: 19.4 | AS109: 9.5 | AT109: 38.8 | AU109: 9.7 | AV109: 18.8 | AW109: 9.5 | AX109: 38 | AY109: 8.7 | AZ109: 18.6 | BA109: 6.5 | BB109: 33.8 | BC109: 9.4 | BD109: 11.7 | BE109: 9.5 | BF109: 30.6 | BG109: 7.5 | BH109: 13.3 | BI109: 19.1 | BJ109: 39.9 | BK109: 7.5 | BL109: 18.2 | BM109: 19.5 | BN109: 45.2 | BO109: 7.5 | BP109: 11.5 | BQ109: 13.2 | BR109: 32.2 | BS109: 167.8 | BT109: 408.9 | BU109: 2.1 | BV109: 5.4 | BW109: 7.9 | BX109: 15.4 | BY109: 2 | BZ109: 7.7 | CA109: 6.9 | CB109: 16.6 | CC109: دورثان | CD109: فى : لغة عربية - | CE109: 1 | CF109: 5 | CG109: 5/3 | CM109: لغة عربية - | DC109: 0 | DD109: 1
A110: 101 | B110: 201 | C110: نادية كمال الدين احمد عبد الماجد | D110: 3/1 | I110: بنات | J110: انتظام | K110: صباحى | M110: 701 | N110: 7.5 | O110: 8.5 | P110: 8.9 | Q110: 24.9 | R110: 8.3 | S110: 8.5 | T110: 13.4 | U110: 30.2 | V110: 5.2 | W110: 9.4 | X110: 8.1 | Y110: 22.7 | Z110: 5.5 | AA110: 13.2 | AB110: 19.3 | AC110: 38 | AD110: 3.5 | AE110: 5.5 | AF110: 6 | AG110: 15 | AH110: 4.1 | AI110: 3.5 | AJ110: 10.7 | AK110: 3.5 | AL110: 6.5 | AM110: 4 | AN110: 21.3 | AO110: 11 | AP110: 32.3 | AQ110: 7.5 | AR110: 9.5 | AS110: 17.4 | AT110: 34.4 | AU110: 7.5 | AV110: 18.5 | AW110: 13.7 | AX110: 39.7 | AY110: 7.5 | AZ110: 19.1 | BA110: 13.8 | BB110: 40.4 | BC110: 9.3 | BD110: 11.7 | BE110: 9.5 | BF110: 30.5 | BG110: 7.5 | BH110: 9.5 | BI110: 9.6 | BJ110: 26.6 | BK110: 7.5 | BL110: 9.5 | BM110: 9.5 | BN110: 26.5 | BO110: 7.5 | BP110: 9.5 | BQ110: 19.5 | BR110: 36.5 | BS110: 146.6 | BT110: 397.7 | BU110: 2 | BV110: 4.2 | BW110: 4 | BX110: 10.2 | BY110: 2 | BZ110: 4 | CA110: 4 | CB110: 10 | CC110: دورثان | CD110: فى : لغة عربية - | CE110: 1 | CF110: 5 | CG110: 5/3 | CM110: لغة عربية - | DC110: 0 | DD110: 1
A111: 102 | B111: 202 | C111: نادية مصطفى يونس محمود | D111: 1/1 | I111: بنات | J111: انتظام | K111: صباحى | L111: باقية | M111: 702 | N111: 8.7 | O111: 9.8 | P111: 8.5 | Q111: 27 | R111: 7.5 | S111: 8.5 | T111: 8.5 | U111: 24.5 | V111: 3.5 | W111: 5.5 | X111: 4.5 | Y111: 13.5 | Z111: 5.5 | AA111: 7.5 | AB111: 9.5 | AC111: 22.5 | AD111: 3.5 | AE111: 9.1 | AF111: 7 | AG111: 19.6 | AH111: 3.5 | AI111: 3.5 | AJ111: 6.5 | AK111: 3.5 | AL111: 6.5 | AM111: 6.1 | AN111: 16.5 | AO111: 13.1 | AP111: 29.6 | AQ111: 7.5 | AR111: 9.5 | AS111: 10.8 | AT111: 27.8 | AU111: 7.5 | AV111: 9.5 | AW111: 9.5 | AX111: 26.5 | AY111: 7.5 | AZ111: 9.5 | BA111: 6.5 | BB111: 23.5 | BC111: 7.5 | BD111: 9.5 | BE111: 9.5 | BF111: 26.5 | BG111: 7.8 | BH111: 9.5 | BI111: 13.9 | BJ111: 31.2 | BK111: 7.5 | BL111: 13.8 | BM111: 9.5 | BN111: 30.8 | BO111: 7.5 | BP111: 17.4 | BQ111: 9.5 | BR111: 34.4 | BS111: 129.1 | BT111: 337.4 | BU111: 2 | BV111: 4 | BW111: 4 | BX111: 10 | BY111: 3.5 | BZ111: 4 | CA111: 4 | CB111: 11.5 | CC111: دورثان | CD111: فى : لغة انجليزية - سكرتارية اجنبية - | CE111: 2 | CF111: 5 | CG111: 5/3 | CN111: لغة انجليزية - | CU111: سكرتارية اجنبية - | DC111: 0 | DD111: 2
A112: 103 | B112: 203 | C112: نجاة صابر قبيل محمد | D112: 3/1 | I112: بنات | J112: انتظام | K112: صباحى | M112: 703 | N112: 9.1 | O112: 8.5 | P112: 8.5 | Q112: 26.1 | R112: 7.5 | S112: 8.5 | T112: 13.5 | U112: 29.5 | V112: 3.5 | W112: 5.5 | X112: 8.1 | Y112: 17.1 | Z112: 5.5 | AA112: 8.3 | AB112: 9.9 | AC112: 23.7 | AD112: 3.5 | AE112: 5.5 | AF112: 6 | AG112: 15 | AH112: 3.5 | AI112: 6.5 | AJ112: 6.5 | AK112: 3.5 | AL112: 7.3 | AM112: 4 | AN112: 17.3 | AO112: 14 | AP112: 31.3 | AQ112: 8.1 | AR112: 18.3 | AS112: 9.5 | AT112: 35.9 | AU112: 9.2 | AV112: 18.7 | AW112: 9.7 | AX112: 37.6 | AY112: 7.5 | AZ112: 9.5 | BA112: 18.4 | BB112: 35.4 | BC112: 9.4 | BD112: 14.2 | BE112: 9.5 | BF112: 33.1 | BG112: 7.5 | BH112: 9.5 | BI112: 17.8 | BJ112: 34.8 | BK112: 7.5 | BL112: 9.5 | BM112: 9.5 | BN112: 26.5 | BO112: 7.5 | BP112: 18.2 | BQ112: 9.5 | BR112: 35.2 | BS112: 144.2 | BT112: 381.2 | BU112: 2.5 | BV112: 5.2 | BW112: 6.5 | BX112: 14.2 | BY112: 2.1 | BZ112: 7.3 | CA112: 4 | CB112: 13.4 | CC112: ناجحة | CD112: و منقولة للصف الثانى | CE112: 0 | CF112: 5 | CG112: 5/3 | DC112: 0 | DD112: 0
A113: 104 | B113: 204 | C113: نجوى عبدالفتاح على سعيد | D113: 2/1 | I113: بنات | J113: انتظام | K113: صباحى | M113: 704 | N113: 7.5 | O113: 9.5 | P113: 13.7 | Q113: 30.7 | R113: 7.5 | S113: 8.5 | T113: 15.3 | U113: 31.3 | V113: 3.5 | W113: 8 | X113: 9.2 | Y113: 20.7 | Z113: 5.5 | AA113: 7.5 | AB113: 10.9 | AC113: 23.9 | AD113: 4.3 | AE113: 11.2 | AF113: 10 | AG113: 25.5 | AH113: 3.5 | AI113: 6.2 | AJ113: 6.5 | AK113: 3.5 | AL113: 8.7 | AM113: 7.5 | AN113: 18.7 | AO113: 17.2 | AP113: 35.9 | AQ113: 7.8 | AR113: 16.9 | AS113: 9.5 | AT113: 34.2 | AU113: 8.5 | AV113: 10.8 | AW113: 9.5 | AX113: 28.8 | AY113: 7.5 | AZ113: 9.5 | BA113: 18.5 | BB113: 35.5 | BC113: 7.5 | BD113: 19.5 | BE113: 9.5 | BF113: 36.5 | BG113: 7.5 | BH113: 14.4 | BI113: 9.5 | BJ113: 31.4 | BK113: 9.8 | BL113: 9.5 | BM113: 9.5 | BN113: 28.8 | BO113: 7.5 | BP113: 10.2 | BQ113: 9.5 | BR113: 27.2 | BS113: 145.5 | BT113: 390.4 | BU113: 2 | BV113: 7.1 | BW113: 6.2 | BX113: 15.3 | BY113: 2.8 | BZ113: 6.8 | CA113: 4 | CB113: 13.6 | CC113: ناجحة | CD113: و منقولة للصف الثانى | CE113: 0 | CF113: 5 | CG113: 5/3 | DC113: 0 | DD113: 0
A114: 105 | B114: 205 | C114: نحمده عبد القادر احمد الطاهر | D114: 1/1 | I114: بنات | J114: انتظام | K114: صباحى | M114: 705 | N114: 7.5 | O114: 8.5 | P114: 8.5 | Q114: 24.5 | R114: 7.5 | S114: 19.6 | T114: 16.6 | U114: 43.7 | V114: 3.5 | W114: 5.5 | X114: 10 | Y114: 19 | Z114: 5.5 | AA114: 7.5 | AB114: 15.3 | AC114: 28.3 | AD114: 3.5 | AE114: 5.5 | AF114: 10.8 | AG114: 19.8 | AH114: 3.5 | AI114: 4.3 | AJ114: 10.9 | AK114: 8 | AL114: 8.1 | AM114: 4 | AN114: 22.5 | AO114: 16.3 | AP114: 38.8 | AQ114: 7.5 | AR114: 9.5 | AS114: 9.5 | AT114: 26.5 | AU114: 7.5 | AV114: 16.5 | AW114: 9.5 | AX114: 33.5 | AY114: 7.5 | AZ114: 15.9 | BA114: 13.4 | BB114: 36.8 | BC114: 8.2 | BD114: 9.5 | BE114: 19.9 | BF114: 37.6 | BG114: 7.5 | BH114: 17.6 | BI114: 9.5 | BJ114: 34.6 | BK114: 7.5 | BL114: 9.5 | BM114: 9.8 | BN114: 26.8 | BO114: 8.8 | BP114: 9.5 | BQ114: 9.5 | BR114: 27.8 | BS114: 153.5 | BT114: 397.7 | BU114: 3.3 | BV114: 4 | BW114: 4.3 | BX114: 11.6 | BY114: 2.4 | BZ114: 4 | CA114: 4.3 | CB114: 10.7 | CC114: دورثان | CD114: فى : لغة عربية - | CE114: 1 | CF114: 5 | CG114: 5/3 | CM114: لغة عربية - | DC114: 0 | DD114: 1
A115: 106 | B115: 206 | C115: ندا عادل عبد النبى امين | D115: 1/1 | I115: بنات | J115: انتظام | K115: صباحى | M115: 706 | N115: 7.5 | O115: 12.6 | P115: 8.5 | Q115: 28.6 | R115: 7.5 | S115: 17.4 | T115: 11.5 | U115: 36.4 | V115: 5.2 | W115: 10.1 | X115: 6.9 | Y115: 22.2 | Z115: 5.5 | AA115: 7.5 | AB115: 18.8 | AC115: 31.8 | AD115: 4.1 | AE115: 5.5 | AF115: 6.3 | AG115: 15.9 | AH115: 5.5 | AI115: 3.5 | AJ115: 9.1 | AK115: 4.9 | AL115: 10.2 | AM115: 4 | AN115: 24.8 | AO115: 12.4 | AP115: 37.2 | AQ115: 7.5 | AR115: 14.3 | AS115: 17.2 | AT115: 39 | AU115: 7.5 | AV115: 12.4 | AW115: 18.3 | AX115: 38.2 | AY115: 7.5 | AZ115: 16.1 | BA115: 6.5 | BB115: 30.1 | BC115: 7.5 | BD115: 9.5 | BE115: 12.2 | BF115: 29.2 | BG115: 7.5 | BH115: 13.7 | BI115: 11.5 | BJ115: 32.7 | BK115: 7.5 | BL115: 9.5 | BM115: 19.1 | BN115: 36.1 | BO115: 7.5 | BP115: 9.5 | BQ115: 19.9 | BR115: 36.9 | BS115: 152.1 | BT115: 414.3 | BU115: 2 | BV115: 4 | BW115: 4 | BX115: 10 | BY115: 2 | BZ115: 5.7 | CA115: 4 | CB115: 11.7 | CC115: ناجحة | CD115: و منقولة للصف الثانى | CE115: 0 | CF115: 6 | CG115: 6/3 | DC115: 0 | DD115: 0
A116: 107 | B116: 207 | C116: ندى حسن السيد حسن | D116: 2/1 | I116: بنات | J116: انتظام | K116: صباحى | M116: 707 | N116: 8.5 | O116: 10.8 | P116: 10.2 | Q116: 29.5 | R116: 7.5 | S116: 11.6 | T116: 14.3 | U116: 33.4 | V116: 3.5 | W116: 5.5 | X116: 8.6 | Y116: 17.6 | Z116: 5.5 | AA116: 7.5 | AB116: 9.5 | AC116: 22.5 | AD116: 3.5 | AE116: 5.5 | AF116: 6 | AG116: 15 | AH116: 3.5 | AI116: 3.5 | AJ116: 11.2 | AK116: 7.9 | AL116: 6.5 | AM116: 4 | AN116: 21.2 | AO116: 15.4 | AP116: 36.6 | AQ116: 7.5 | AR116: 13.3 | AS116: 9.5 | AT116: 30.3 | AU116: 7.5 | AV116: 9.9 | AW116: 10.8 | AX116: 28.2 | AY116: 7.5 | AZ116: 12.6 | BA116: 19.7 | BB116: 39.8 | BC116: 7.5 | BD116: 9.5 | BE116: 19.7 | BF116: 36.7 | BG116: 7.5 | BH116: 12.2 | BI116: 17.1 | BJ116: 36.8 | BK116: 7.5 | BL116: 9.5 | BM116: 9.9 | BN116: 26.9 | BO116: 7.5 | BP116: 17.1 | BQ116: 9.5 | BR116: 34.1 | BS116: 144.1 | BT116: 387.4 | BU116: 2.4 | BV116: 7.2 | BW116: 4 | BX116: 13.6 | BY116: 2 | BZ116: 5.3 | CA116: 4 | CB116: 11.3 | CC116: ناجحة | CD116: و منقولة للصف الثانى | CE116: 0 | CF116: 6 | CG116: 6/3 | DC116: 0 | DD116: 0
A117: 108 | B117: 208 | C117: ندى رجب جاد طه | D117: 2/1 | I117: بنات | J117: انتظام | K117: صباحى | M117: 708 | N117: 9 | O117: 8.5 | P117: 10.9 | Q117: 28.4 | R117: 7.5 | S117: 14.6 | T117: 12.4 | U117: 34.5 | V117: 3.5 | W117: 5.5 | X117: 7.4 | Y117: 16.4 | Z117: 5.5 | AA117: 7.5 | AB117: 9.5 | AC117: 22.5 | AD117: 3.5 | AE117: 7.8 | AF117: 6 | AG117: 17.3 | AH117: 3.6 | AI117: 3.5 | AJ117: 7.8 | AK117: 5.2 | AL117: 10.5 | AM117: 5.2 | AN117: 21.9 | AO117: 13.9 | AP117: 35.8 | AQ117: 7.5 | AR117: 12.4 | AS117: 9.5 | AT117: 29.4 | AU117: 7.5 | AV117: 10.4 | AW117: 12 | AX117: 29.9 | AY117: 7.5 | AZ117: 9.5 | BA117: 6.5 | BB117: 23.5 | BC117: 7.5 | BD117: 9.5 | BE117: 13.1 | BF117: 30.1 | BG117: 7.5 | BH117: 9.5 | BI117: 14.7 | BJ117: 31.7 | BK117: 7.5 | BL117: 14.4 | BM117: 10.2 | BN117: 32.1 | BO117: 7.5 | BP117: 18 | BQ117: 9.5 | BR117: 35 | BS117: 140.6 | BT117: 366.6 | BU117: 2.2 | BV117: 4.2 | BW117: 4 | BX117: 10.4 | BY117: 2 | BZ117: 5 | CA117: 4 | CB117: 11 | CC117: دورثان | CD117: فى : سكرتارية اجنبية - | CE117: 1 | CF117: 6 | CG117: 6/3 | CU117: سكرتارية اجنبية - | DC117: 0 | DD117: 1
A118: 109 | B118: 209 | C118: ندى على صندلان عجمى | D118: 3/1 | I118: بنات | J118: انتظام | K118: صباحى | M118: 709 | N118: 7.5 | O118: 18.8 | P118: 18.5 | Q118: 44.8 | R118: 7.5 | S118: 8.5 | T118: 12.3 | U118: 28.3 | V118: 3.5 | W118: 6.1 | X118: 7.4 | Y118: 17 | Z118: 5.5 | AA118: 7.5 | AB118: 9.5 | AC118: 22.5 | AD118: 4.6 | AE118: 5.5 | AF118: 6 | AG118: 16.1 | AH118: 3.5 | AI118: 5.3 | AJ118: 6.5 | AK118: 7.7 | AL118: 8.4 | AM118: 4 | AN118: 18.4 | AO118: 17 | AP118: 35.4 | AQ118: 7.5 | AR118: 9.5 | AS118: 9.5 | AT118: 26.5 | AU118: 7.5 | AV118: 9.5 | AW118: 9.5 | AX118: 26.5 | AY118: 7.7 | AZ118: 18.2 | BA118: 6.5 | BB118: 32.4 | BC118: 7.5 | BD118: 18.5 | BE118: 19.1 | BF118: 45.1 | BG118: 7.5 | BH118: 15.5 | BI118: 13 | BJ118: 36 | BK118: 9.3 | BL118: 9.5 | BM118: 9.5 | BN118: 28.3 | BO118: 7.8 | BP118: 13.5 | BQ118: 19.8 | BR118: 41.1 | BS118: 154.8 | BT118: 400 | BU118: 2 | BV118: 4 | BW118: 5.3 | BX118: 11.3 | BY118: 2 | BZ118: 4 | CA118: 6.2 | CB118: 12.2 | CC118: ناجحة | CD118: و منقولة للصف الثانى | CE118: 0 | CF118: 6 | CG118: 6/3 | DC118: 0 | DD118: 0
A119: 110 | B119: 210 | C119: ندى عويس النوبى عويس | D119: 1/1 | I119: بنات | J119: انتظام | K119: صباحى | M119: 710 | N119: 7.5 | O119: 13.1 | P119: 8.5 | Q119: 29.1 | R119: 7.5 | S119: 8.5 | T119: 8.5 | U119: 24.5 | V119: 3.5 | W119: 7.4 | X119: 4.9 | Y119: 15.8 | Z119: 5.5 | AA119: 7.5 | AB119: 9.5 | AC119: 22.5 | AD119: 5.7 | AE119: 10.5 | AF119: 6 | AG119: 22.2 | AH119: 4.1 | AI119: 6.4 | AJ119: 6.5 | AK119: 3.5 | AL119: 7.3 | AM119: 7 | AN119: 17.9 | AO119: 16.9 | AP119: 34.8 | AQ119: 8 | AR119: 19.3 | AS119: 10.4 | AT119: 37.7 | AU119: 9.6 | AV119: 18.9 | AW119: 13.7 | AX119: 42.2 | AY119: 9.3 | AZ119: 19.4 | BA119: 8.5 | BB119: 37.2 | BC119: 9.5 | BD119: 9.5 | BE119: 9.5 | BF119: 28.5 | BG119: 7.5 | BH119: 16.2 | BI119: 9.5 | BJ119: 33.2 | BK119: 7.5 | BL119: 10.7 | BM119: 12.7 | BN119: 30.9 | BO119: 8.1 | BP119: 11.2 | BQ119: 12.5 | BR119: 31.8 | BS119: 162.2 | BT119: 390.4 | BU119: 2 | BV119: 4 | BW119: 6.4 | BX119: 12.4 | BY119: 2 | BZ119: 7.7 | CA119: 7.4 | CB119: 17.1 | CC119: دورثان | CD119: فى : لغة انجليزية - | CE119: 1 | CF119: 6 | CG119: 6/3 | CN119: لغة انجليزية - | DC119: 0 | DD119: 1
A120: 111 | B120: 211 | C120: نرمين احمد يوسف مصطفى | D120: 2/1 | I120: بنات | J120: انتظام | K120: صباحى | M120: 711 | N120: 7.5 | O120: 10.1 | P120: 19.6 | Q120: 37.2 | R120: 7.5 | S120: 8.5 | T120: 17.4 | U120: 33.4 | V120: 3.5 | W120: 7.3 | X120: 10.4 | Y120: 21.2 | Z120: 5.5 | AA120: 7.5 | AB120: 9.5 | AC120: 22.5 | AD120: 3.5 | AE120: 5.5 | AF120: 7.7 | AG120: 16.7 | AH120: 3.5 | AI120: 3.5 | AJ120: 6.5 | AK120: 7.6 | AL120: 11.2 | AM120: 4 | AN120: 21.2 | AO120: 15.1 | AP120: 36.3 | AQ120: 7.5 | AR120: 18 | AS120: 9.5 | AT120: 35 | AU120: 9 | AV120: 12.3 | AW120: 9.5 | AX120: 30.8 | AY120: 7.5 | AZ120: 17.5 | BA120: 9.8 | BB120: 34.8 | BC120: 7.5 | BD120: 14.2 | BE120: 18.9 | BF120: 40.6 | BG120: 9.9 | BH120: 9.5 | BI120: 17.3 | BJ120: 36.7 | BK120: 7.5 | BL120: 9.5 | BM120: 17.5 | BN120: 34.5 | BO120: 7.5 | BP120: 9.5 | BQ120: 9.5 | BR120: 26.5 | BS120: 143.5 | BT120: 406.2 | BU120: 2.6 | BV120: 4.5 | BW120: 4 | BX120: 11.1 | BY120: 2 | BZ120: 7.2 | CA120: 4 | CB120: 13.2 | CC120: ناجحة | CD120: و منقولة للصف الثانى | CE120: 0 | CF120: 6 | CG120: 6/3 | DC120: 0 | DD120: 0
A121: 112 | B121: 212 | C121: نسمة حسن شاذلى محمد | D121: 2/1 | I121: بنات | J121: انتظام | K121: صباحى | M121: 712 | N121: 7.5 | O121: 8.5 | P121: 8.5 | Q121: 24.5 | R121: 8.6 | S121: 16.6 | T121: 8.5 | U121: 33.7 | V121: 3.5 | W121: 5.5 | X121: 4.9 | Y121: 13.9 | Z121: 5.5 | AA121: 13.8 | AB121: 9.5 | AC121: 28.8 | AD121: 3.5 | AE121: 5.5 | AF121: 11.8 | AG121: 20.8 | AH121: 4.7 | AI121: 6 | AJ121: 8.4 | AK121: 3.5 | AL121: 6.5 | AM121: 4 | AN121: 19.6 | AO121: 13.5 | AP121: 33.1 | AQ121: 7.5 | AR121: 9.5 | AS121: 9.5 | AT121: 26.5 | AU121: 7.5 | AV121: 9.5 | AW121: 15.7 | AX121: 32.7 | AY121: 9.3 | AZ121: 9.5 | BA121: 11.1 | BB121: 29.9 | BC121: 7.5 | BD121: 16.4 | BE121: 9.5 | BF121: 33.4 | BG121: 9.8 | BH121: 17.7 | BI121: 9.5 | BJ121: 37 | BK121: 8.2 | BL121: 9.5 | BM121: 9.5 | BN121: 27.2 | BO121: 8.8 | BP121: 13.1 | BQ121: 9.5 | BR121: 31.4 | BS121: 147 | BT121: 372.9 | BU121: 2 | BV121: 4 | BW121: 6 | BX121: 12 | BY121: 2.5 | BZ121: 4 | CA121: 7.5 | CB121: 14 | CC121: دورثان | CD121: فى : لغة عربية - | CE121: 1 | CF121: 6 | CG121: 6/3 | CM121: لغة عربية - | DC121: 0 | DD121: 1
A122: 113 | B122: 213 | C122: نسمة منصور على قناوى | D122: 3/1 | I122: بنات | J122: انتظام | K122: صباحى | M122: 713 | N122: 7.5 | O122: 8.5 | P122: 15.4 | Q122: 31.4 | R122: 7.5 | S122: 15.7 | T122: 15.2 | U122: 38.4 | V122: 3.5 | W122: 11.3 | X122: 9.1 | Y122: 23.9 | Z122: 5.5 | AA122: 8.2 | AB122: 12.6 | AC122: 26.3 | AD122: 3.5 | AE122: 11.1 | AF122: 6 | AG122: 20.6 | AH122: 4.3 | AI122: 7.6 | AJ122: 10.2 | AK122: 4.9 | AL122: 6.5 | AM122: 7.4 | AN122: 21 | AO122: 19.9 | AP122: 40.9 | AQ122: 9.5 | AR122: 9.9 | AS122: 9.5 | AT122: 28.9 | AU122: 7.5 | AV122: 17.7 | AW122: 14.3 | AX122: 39.5 | AY122: 7.5 | AZ122: 19.7 | BA122: 6.5 | BB122: 33.7 | BC122: 8.8 | BD122: 13.7 | BE122: 12.2 | BF122: 34.7 | BG122: 7.5 | BH122: 9.7 | BI122: 16.7 | BJ122: 33.9 | BK122: 7.5 | BL122: 17.9 | BM122: 18.3 | BN122: 43.7 | BO122: 7.5 | BP122: 9.5 | BQ122: 9.5 | BR122: 26.5 | BS122: 168 | BT122: 422.4 | BU122: 2 | BV122: 4.1 | BW122: 7.6 | BX122: 13.7 | BY122: 3.3 | BZ122: 4 | CA122: 4 | CB122: 11.3 | CC122: ناجحة | CD122: و منقولة للصف الثانى | CE122: 0 | CF122: 6 | CG122: 6/3 | DC122: 0 | DD122: 0
A123: 114 | B123: 214 | C123: نفيسه احمد فهمى احمد | D123: 1/1 | I123: بنات | J123: انتظام | K123: صباحى | M123: 714 | N123: 7.5 | O123: 15.7 | P123: 13.6 | Q123: 36.8 | R123: 7.5 | S123: 15.8 | T123: 14.9 | U123: 38.2 | V123: 5.9 | W123: 5.5 | X123: 8.9 | Y123: 20.3 | Z123: 5.5 | AA123: 7.5 | AB123: 9.5 | AC123: 22.5 | AD123: 3.5 | AE123: 5.6 | AF123: 6 | AG123: 15.1 | AH123: 3.6 | AI123: 3.7 | AJ123: 6.5 | AK123: 7.8 | AL123: 6.5 | AM123: 4 | AN123: 16.6 | AO123: 15.5 | AP123: 32.1 | AQ123: 7.5 | AR123: 17.5 | AS123: 19.7 | AT123: 44.7 | AU123: 8.7 | AV123: 15.5 | AW123: 11.9 | AX123: 36.1 | AY123: 7.5 | AZ123: 16.3 | BA123: 9.3 | BB123: 33.1 | BC123: 7.7 | BD123: 9.5 | BE123: 19.6 | BF123: 36.8 | BG123: 7.6 | BH123: 9.5 | BI123: 9.5 | BJ123: 26.6 | BK123: 7.5 | BL123: 17.7 | BM123: 9.5 | BN123: 34.7 | BO123: 7.5 | BP123: 9.5 | BQ123: 12.4 | BR123: 29.4 | BS123: 159.9 | BT123: 406.4 | BU123: 2 | BV123: 5.9 | BW123: 4 | BX123: 11.9 | BY123: 2 | BZ123: 7 | CA123: 4 | CB123: 13 | CC123: ناجحة | CD123: و منقولة للصف الثانى | CE123: 0 | CF123: 6 | CG123: 6/3 | DC123: 0 | DD123: 0
A124: 115 | B124: 215 | C124: نها حمدى محمود على | D124: 3/1 | I124: بنات | J124: انتظام | K124: صباحى | M124: 715 | N124: 9.1 | O124: 9.2 | P124: 8.5 | Q124: 26.8 | R124: 9.5 | S124: 8.5 | T124: 16.7 | U124: 34.7 | V124: 3.5 | W124: 5.5 | X124: 10 | Y124: 19 | Z124: 5.5 | AA124: 15.3 | AB124: 9.5 | AC124: 30.3 | AD124: 4.9 | AE124: 11.9 | AF124: 10.5 | AG124: 27.3 | AH124: 3.5 | AI124: 6.3 | AJ124: 6.5 | AK124: 6.1 | AL124: 6.5 | AM124: 7.9 | AN124: 16.5 | AO124: 20.3 | AP124: 36.8 | AQ124: 7.9 | AR124: 9.5 | AS124: 9.5 | AT124: 26.9 | AU124: 7.5 | AV124: 10.8 | AW124: 9.5 | AX124: 27.8 | AY124: 7.5 | AZ124: 9.5 | BA124: 6.5 | BB124: 23.5 | BC124: 7.5 | BD124: 9.5 | BE124: 15.2 | BF124: 32.2 | BG124: 7.5 | BH124: 9.5 | BI124: 11.9 | BJ124: 28.9 | BK124: 7.5 | BL124: 15.8 | BM124: 9.5 | BN124: 32.8 | BO124: 7.5 | BP124: 18.2 | BQ124: 10.4 | BR124: 36.1 | BS124: 145.8 | BT124: 383.1 | BU124: 2 | BV124: 4 | BW124: 6.3 | BX124: 12.3 | BY124: 2 | BZ124: 4 | CA124: 4 | CB124: 10 | CC124: دورثان | CD124: فى : سكرتارية اجنبية - | CE124: 1 | CF124: 6 | CG124: 6/3 | CU124: سكرتارية اجنبية - | DC124: 0 | DD124: 1
A125: 116 | B125: 216 | C125: نهله ناصر اسماعيل عربى | D125: 3/1 | I125: بنات | J125: انتظام | K125: صباحى | M125: 716 | N125: 8.3 | O125: 15.1 | P125: 12.4 | Q125: 35.8 | R125: 7.5 | S125: 9 | T125: 17 | U125: 33.5 | V125: 4.1 | W125: 5.5 | X125: 10.2 | Y125: 19.8 | Z125: 5.5 | AA125: 7.5 | AB125: 9.5 | AC125: 22.5 | AD125: 3.5 | AE125: 5.5 | AF125: 6 | AG125: 15 | AH125: 3.5 | AI125: 5.3 | AJ125: 6.5 | AK125: 3.5 | AL125: 6.5 | AM125: 4 | AN125: 16.5 | AO125: 12.8 | AP125: 29.3 | AQ125: 7.5 | AR125: 19.9 | AS125: 13.7 | AT125: 41.1 | AU125: 9.9 | AV125: 9.5 | AW125: 9.5 | AX125: 28.9 | AY125: 8.1 | AZ125: 9.5 | BA125: 9.8 | BB125: 27.4 | BC125: 7.5 | BD125: 13.1 | BE125: 9.5 | BF125: 30.1 | BG125: 8.9 | BH125: 17.9 | BI125: 20 | BJ125: 46.8 | BK125: 7.5 | BL125: 17.4 | BM125: 16.1 | BN125: 41 | BO125: 9 | BP125: 16.5 | BQ125: 16.9 | BR125: 42.4 | BS125: 156.4 | BT125: 413.6 | BU125: 3.5 | BV125: 4.4 | BW125: 5.3 | BX125: 13.2 | BY125: 3.6 | BZ125: 8 | CA125: 6.5 | CB125: 18.1 | CC125: ناجحة | CD125: و منقولة للصف الثانى | CE125: 0 | CF125: 6 | CG125: 6/3 | DC125: 0 | DD125: 0
A126: 117 | B126: 217 | C126: نهى رجب محمد الامين احمد | D126: 1/1 | I126: بنات | J126: انتظام | K126: صباحى | M126: 717 | N126: 7.5 | O126: 11.9 | P126: 8.5 | Q126: 27.9 | R126: 7.5 | S126: 11.1 | T126: 12.4 | U126: 31 | V126: 3.7 | W126: 10.7 | X126: 7.5 | Y126: 21.9 | Z126: 5.5 | AA126: 9.2 | AB126: 19.5 | AC126: 34.2 | AD126: 3.5 | AE126: 9.2 | AF126: 6.8 | AG126: 19.5 | AH126: 3.5 | AI126: 3.5 | AJ126: 6.5 | AK126: 3.5 | AL126: 6.5 | AM126: 6.1 | AN126: 16.5 | AO126: 13.1 | AP126: 29.6 | AQ126: 7.5 | AR126: 9.5 | AS126: 12.4 | AT126: 29.4 | AU126: 7.5 | AV126: 9.5 | AW126: 9.5 | AX126: 26.5 | AY126: 8.3 | AZ126: 11.7 | BA126: 19.2 | BB126: 39.2 | BC126: 7.5 | BD126: 9.5 | BE126: 9.5 | BF126: 26.5 | BG126: 7.5 | BH126: 15.6 | BI126: 18.5 | BJ126: 41.6 | BK126: 7.5 | BL126: 18.1 | BM126: 11.1 | BN126: 36.7 | BO126: 7.8 | BP126: 9.5 | BQ126: 9.7 | BR126: 27 | BS126: 145.5 | BT126: 391 | BU126: 2.9 | BV126: 4 | BW126: 4 | BX126: 10.9 | BY126: 2.9 | BZ126: 4 | CA126: 6.6 | CB126: 13.5 | CC126: ناجحة | CD126: و منقولة للصف الثانى | CE126: 0 | CF126: 6 | CG126: 6/3 | DC126: 0 | DD126: 0
A127: 118 | B127: 218 | C127: نورا حجاج احمد سالم | D127: 2/1 | I127: بنات | J127: انتظام | K127: صباحى | M127: 718 | N127: 7.5 | O127: 16.7 | P127: 8.5 | Q127: 32.7 | R127: 7.5 | S127: 16.1 | T127: 15.9 | U127: 39.5 | V127: 3.5 | W127: 5.9 | X127: 9.6 | Y127: 19 | Z127: 5.5 | AA127: 9.7 | AB127: 9.5 | AC127: 24.7 | AD127: 3.7 | AE127: 8.6 | AF127: 7.3 | AG127: 19.6 | AH127: 4.5 | AI127: 3.5 | AJ127: 8.1 | AK127: 3.5 | AL127: 10.6 | AM127: 5.7 | AN127: 23.2 | AO127: 12.7 | AP127: 35.9 | AQ127: 7.5 | AR127: 17.4 | AS127: 9.5 | AT127: 34.4 | AU127: 8.7 | AV127: 11.1 | AW127: 15.1 | AX127: 34.9 | AY127: 9.2 | AZ127: 19.4 | BA127: 6.5 | BB127: 35.1 | BC127: 7.5 | BD127: 11.5 | BE127: 10.3 | BF127: 29.3 | BG127: 7.5 | BH127: 9.5 | BI127: 12.9 | BJ127: 29.9 | BK127: 7.5 | BL127: 18.5 | BM127: 12.2 | BN127: 38.2 | BO127: 7.5 | BP127: 9.5 | BQ127: 13.2 | BR127: 30.2 | BS127: 165.5 | BT127: 403.4 | BU127: 3.2 | BV127: 4.1 | BW127: 4 | BX127: 11.3 | BY127: 2.7 | BZ127: 7 | CA127: 7.4 | CB127: 17.1 | CC127: ناجحة | CD127: و منقولة للصف الثانى | CE127: 0 | CF127: 6 | CG127: 6/3 | DC127: 0 | DD127: 0
A128: 119 | B128: 219 | C128: نورا محمد سيد حامد | D128: 1/1 | I128: بنات | J128: انتظام | K128: صباحى | M128: 719 | N128: 7.5 | O128: 8.5 | P128: 18.8 | Q128: 34.8 | R128: 7.5 | S128: 11.3 | T128: 8.5 | U128: 27.3 | V128: 5.2 | W128: 5.5 | X128: 4.5 | Y128: 15.2 | Z128: 5.5 | AA128: 8.8 | AB128: 9.5 | AC128: 23.8 | AD128: 3.5 | AE128: 5.5 | AF128: 7.3 | AG128: 16.3 | AH128: 3.5 | AI128: 6.4 | AJ128: 10 | AK128: 3.5 | AL128: 7.9 | AM128: 4 | AN128: 21.4 | AO128: 13.9 | AP128: 35.3 | AQ128: 8 | AR128: 9.5 | AS128: 17.2 | AT128: 34.7 | AU128: 7.5 | AV128: 19.2 | AW128: 9.6 | AX128: 36.3 | AY128: 7.5 | AZ128: 9.5 | BA128: 12.5 | BB128: 29.5 | BC128: 9.6 | BD128: 16.4 | BE128: 9.5 | BF128: 35.5 | BG128: 7.5 | BH128: 12.5 | BI128: 9.5 | BJ128: 29.5 | BK128: 8.2 | BL128: 13.7 | BM128: 14.8 | BN128: 36.7 | BO128: 7.5 | BP128: 9.5 | BQ128: 9.5 | BR128: 26.5 | BS128: 143.4 | BT128: 381.4 | BU128: 3.9 | BV128: 4 | BW128: 6.4 | BX128: 14.3 | BY128: 3.3 | BZ128: 4 | CA128: 4 | CB128: 11.3 | CC128: ناجحة | CD128: و منقولة للصف الثانى | CE128: 0 | CF128: 6 | CG128: 6/3 | DC128: 0 | DD128: 0
A129: 120 | B129: 220 | C129: نيرة حسن احمد محمد | D129: 3/1 | I129: بنات | J129: انتظام | K129: صباحى | M129: 720 | N129: 7.5 | O129: 8.5 | P129: 8.5 | Q129: 24.5 | R129: 7.5 | S129: 8.5 | T129: 11.6 | U129: 27.6 | V129: 4.5 | W129: 11.2 | X129: 7 | Y129: 22.7 | Z129: 5.5 | AA129: 7.5 | AB129: 9.5 | AC129: 22.5 | AD129: 4.2 | AE129: 5.5 | AF129: 8.3 | AG129: 18 | AH129: 3.5 | AI129: 5 | AJ129: 9 | AK129: 3.5 | AL129: 11 | AM129: 4 | AN129: 23.5 | AO129: 12.5 | AP129: 36 | AQ129: 7.5 | AR129: 9.5 | AS129: 15 | AT129: 32 | AU129: 7.5 | AV129: 9.5 | AW129: 9.5 | AX129: 26.5 | AY129: 7.5 | AZ129: 9.5 | BA129: 17.8 | BB129: 34.8 | BC129: 7.5 | BD129: 14.5 | BE129: 10.4 | BF129: 32.4 | BG129: 7.5 | BH129: 18.7 | BI129: 19.1 | BJ129: 45.3 | BK129: 7.5 | BL129: 9.5 | BM129: 17.7 | BN129: 34.7 | BO129: 9.4 | BP129: 9.5 | BQ129: 11.3 | BR129: 30.2 | BS129: 134.4 | BT129: 387.2 | BU129: 3.1 | BV129: 5.2 | BW129: 5 | BX129: 13.3 | BY129: 3.5 | BZ129: 4 | CA129: 4 | CB129: 11.5 | CC129: دورثان | CD129: فى : لغة عربية - | CE129: 1 | CF129: 6 | CG129: 6/3 | CM129: لغة عربية - | DC129: 0 | DD129: 1
A130: 121 | B130: 221 | C130: هاجر زكير عبده محمد | D130: 3/1 | I130: بنات | J130: انتظام | K130: صباحى | M130: 721 | N130: 7.5 | O130: 8.5 | P130: 8.5 | Q130: 24.5 | R130: 7.5 | S130: 8.5 | T130: 18.1 | U130: 34.1 | V130: 3.5 | W130: 5.5 | X130: 10.9 | Y130: 19.9 | Z130: 8 | AA130: 7.5 | AB130: 14.1 | AC130: 29.6 | AD130: 3.5 | AE130: 7.9 | AF130: 10.2 | AG130: 21.6 | AH130: 3.5 | AI130: 4.1 | AJ130: 6.5 | AK130: 3.5 | AL130: 6.5 | AM130: 5.3 | AN130: 16.5 | AO130: 12.9 | AP130: 29.4 | AQ130: 7.5 | AR130: 9.5 | AS130: 9.5 | AT130: 26.5 | AU130: 7.5 | AV130: 11.9 | AW130: 9.5 | AX130: 28.9 | AY130: 7.5 | AZ130: 17.3 | BA130: 11.1 | BB130: 35.9 | BC130: 7.5 | BD130: 15.5 | BE130: 9.5 | BF130: 32.5 | BG130: 7.5 | BH130: 9.5 | BI130: 9.5 | BJ130: 26.5 | BK130: 7.8 | BL130: 19.9 | BM130: 10.9 | BN130: 38.6 | BO130: 7.5 | BP130: 9.5 | BQ130: 12.4 | BR130: 29.4 | BS130: 141 | BT130: 377.4 | BU130: 2 | BV130: 4 | BW130: 4.1 | BX130: 10.1 | BY130: 3.4 | BZ130: 4 | CA130: 4 | CB130: 11.4 | CC130: دورثان | CD130: فى : لغة عربية - | CE130: 1 | CF130: 6 | CG130: 6/3 | CM130: لغة عربية - | DC130: 0 | DD130: 1
A131: 122 | B131: 222 | C131: هاجر محمد اسماعيل حماد | D131: 1/1 | I131: بنات | J131: انتظام | K131: صباحى | L131: باقية | M131: 722 | N131: 8.4 | O131: 8.5 | P131: 13.5 | Q131: 30.4 | R131: 7.5 | S131: 8.5 | T131: 15.5 | U131: 31.5 | V131: 3.5 | W131: 6.6 | X131: 9.3 | Y131: 19.4 | Z131: 5.5 | AA131: 7.6 | AB131: 9.5 | AC131: 22.6 | AD131: 5.6 | AE131: 11.8 | AF131: 6 | AG131: 23.4 | AH131: 3.5 | AI131: 6.1 | AJ131: 7.2 | AK131: 3.5 | AL131: 6.5 | AM131: 7.9 | AN131: 17.2 | AO131: 17.5 | AP131: 34.7 | AQ131: 7.7 | AR131: 12.3 | AS131: 9.5 | AT131: 29.5 | AU131: 7.5 | AV131: 9.8 | AW131: 9.5 | AX131: 26.8 | AY131: 7.5 | AZ131: 9.5 | BA131: 6.5 | BB131: 23.5 | BC131: 7.5 | BD131: 9.5 | BE131: 9.5 | BF131: 26.5 | BG131: 7.5 | BH131: 9.5 | BI131: 10.2 | BJ131: 27.2 | BK131: 7.5 | BL131: 18.4 | BM131: 9.5 | BN131: 35.4 | BO131: 7.5 | BP131: 16.7 | BQ131: 12.9 | BR131: 37.1 | BS131: 139.4 | BT131: 368 | BU131: 2 | BV131: 5.1 | BW131: 6.1 | BX131: 13.2 | BY131: 2 | BZ131: 4.9 | CA131: 4 | CB131: 10.9 | CC131: دورثان | CD131: فى : سكرتارية اجنبية - | CE131: 1 | CF131: 6 | CG131: 6/3 | CU131: سكرتارية اجنبية - | DC131: 0 | DD131: 1
A132: 123 | B132: 223 | C132: هاجر محمد عبدالعظيم خليل | D132: 1/1 | I132: بنات | J132: انتظام | K132: صباحى | M132: 723 | N132: 7.5 | O132: 8.5 | P132: 8.5 | Q132: 24.5 | R132: 7.5 | S132: 11.5 | T132: 16.5 | U132: 35.5 | V132: 4.2 | W132: 5.5 | X132: 9.9 | Y132: 19.6 | Z132: 5.5 | AA132: 8.2 | AB132: 19.4 | AC132: 33.1 | AD132: 3.5 | AE132: 9.3 | AF132: 6 | AG132: 18.8 | AH132: 3.5 | AI132: 3.8 | AJ132: 6.5 | AK132: 3.5 | AL132: 6.5 | AM132: 6.2 | AN132: 16.5 | AO132: 13.5 | AP132: 30 | AQ132: 7.5 | AR132: 18.7 | AS132: 13.9 | AT132: 40.1 | AU132: 9.4 | AV132: 9.5 | AW132: 9.5 | AX132: 28.4 | AY132: 7.5 | AZ132: 9.5 | BA132: 17.2 | BB132: 34.2 | BC132: 7.5 | BD132: 9.5 | BE132: 9.5 | BF132: 26.5 | BG132: 8.1 | BH132: 9.5 | BI132: 10.4 | BJ132: 28 | BK132: 7.5 | BL132: 9.5 | BM132: 9.5 | BN132: 26.5 | BO132: 7.5 | BP132: 9.5 | BQ132: 9.5 | BR132: 26.5 | BS132: 128.7 | BT132: 371.7 | BU132: 3.3 | BV132: 6.7 | BW132: 4 | BX132: 14 | BY132: 2 | BZ132: 7.5 | CA132: 4 | CB132: 13.5 | CC132: دورثان | CD132: فى : لغة عربية - | CE132: 1 | CF132: 6 | CG132: 6/3 | CM132: لغة عربية - | DC132: 0 | DD132: 1
A133: 124 | B133: 224 | C133: هالة سعدى يوسف عبد المجيد | D133: 3/1 | I133: بنات | J133: انتظام | K133: صباحى | M133: 724 | N133: 7.5 | O133: 8.5 | P133: 8.5 | Q133: 24.5 | R133: 7.5 | S133: 8.5 | T133: 8.5 | U133: 24.5 | V133: 3.5 | W133: 9.8 | X133: 4.5 | Y133: 17.8 | Z133: 5.5 | AA133: 11.2 | AB133: 16.3 | AC133: 33 | AD133: 3.5 | AE133: 6.8 | AF133: 9.9 | AG133: 20.2 | AH133: 3.5 | AI133: 3.5 | AJ133: 6.5 | AK133: 3.5 | AL133: 6.5 | AM133: 4.5 | AN133: 16.5 | AO133: 11.5 | AP133: 28 | AQ133: 7.5 | AR133: 18.1 | AS133: 9.5 | AT133: 35.1 | AU133: 9.1 | AV133: 10.6 | AW133: 9.5 | AX133: 29.2 | AY133: 7.5 | AZ133: 9.5 | BA133: 14.5 | BB133: 31.5 | BC133: 7.5 | BD133: 9.5 | BE133: 9.5 | BF133: 26.5 | BG133: 7.5 | BH133: 9.5 | BI133: 9.5 | BJ133: 26.5 | BK133: 7.5 | BL133: 18.5 | BM133: 11.2 | BN133: 37.2 | BO133: 7.5 | BP133: 9.5 | BQ133: 9.5 | BR133: 26.5 | BS133: 140 | BT133: 360.5 | BU133: 2.9 | BV133: 4 | BW133: 4 | BX133: 10.9 | BY133: 2 | BZ133: 7.3 | CA133: 4 | CB133: 13.3 | CC133: دورثان | CD133: فى : لغة عربية - لغة انجليزية - | CE133: 2 | CF133: 6 | CG133: 6/3 | CM133: لغة عربية - | CN133: لغة انجليزية - | DC133: 0 | DD133: 2
A134: 125 | B134: 225 | C134: هالة سعدى يوسف عبد المجيد | D134: 3/1 | I134: بنات | J134: انتظام | K134: صباحى | M134: 725 | N134: 7.5 | O134: 8.5 | P134: 15.5 | Q134: 31.5 | R134: 9.2 | S134: 10.6 | T134: 12 | U134: 31.8 | V134: 5.3 | W134: 5.6 | X134: 7.2 | Y134: 18.1 | Z134: 5.5 | AA134: 14.7 | AB134: 9.5 | AC134: 29.7 | AD134: 4.8 | AE134: 5.5 | AF134: 6 | AG134: 16.3 | AH134: 5.6 | AI134: 3.5 | AJ134: 10.7 | AK134: 6.6 | AL134: 10.6 | AM134: 4 | AN134: 26.9 | AO134: 14.1 | AP134: 41 | AQ134: 7.5 | AR134: 17.9 | AS134: 17.6 | AT134: 43 | AU134: 9 | AV134: 9.5 | AW134: 18.5 | AX134: 37 | AY134: 7.5 | AZ134: 10.4 | BA134: 13.2 | BB134: 31.1 | BC134: 7.5 | BD134: 14.3 | BE134: 16.5 | BF134: 38.3 | BG134: 8.2 | BH134: 9.5 | BI134: 9.5 | BJ134: 27.2 | BK134: 7.5 | BL134: 17.9 | BM134: 11.4 | BN134: 36.8 | BO134: 7.5 | BP134: 13.5 | BQ134: 10.2 | BR134: 31.2 | BS134: 155.2 | BT134: 413 | BU134: 4 | BV134: 4 | BW134: 4 | BX134: 12 | BY134: 2 | BZ134: 7.2 | CA134: 4 | CB134: 13.2 | CC134: ناجحة | CD134: و منقولة للصف الثانى | CE134: 0 | CF134: 6 | CG134: 6/3 | DC134: 0 | DD134: 0
A135: 126 | B135: 251 | C135: ابتسام عبداللاه بدرى يوسف | D135: 7/1 | I135: بنات | J135: خدمات | K135: صباحى | M135: 790 | N135: 7.5 | O135: 10.7 | P135: 8.5 | Q135: 26.7 | R135: 8.6 | S135: 8.5 | T135: 8.5 | U135: 25.6 | V135: 3.5 | W135: 6.5 | X135: 4.5 | Y135: 14.5 | Z135: 5.5 | AA135: 13.8 | AB135: 9.5 | AC135: 28.8 | AD135: 3.5 | AE135: 5.5 | AF135: 8.1 | AG135: 17.1 | AH135: 3.5 | AI135: 3.5 | AJ135: 7.6 | AK135: 3.5 | AL135: 6.5 | AM135: 4 | AN135: 17.6 | AO135: 11 | AP135: 28.6 | AQ135: 7.5 | AR135: 9.5 | AS135: 9.5 | AT135: 26.5 | AU135: 7.5 | AV135: 13 | AW135: 9.5 | AX135: 30 | AY135: 8.5 | AZ135: 19.2 | BA135: 6.5 | BB135: 34.2 | BC135: 7.5 | BD135: 11.9 | BE135: 10.4 | BF135: 29.8 | BG135: 8.2 | BH135: 9.5 | BI135: 9.5 | BJ135: 27.2 | BK135: 7.5 | BL135: 9.5 | BM135: 9.5 | BN135: 26.5 | BO135: 7.5 | BP135: 9.5 | BQ135: 17.7 | BR135: 34.7 | BS135: 138.2 | BT135: 350.2 | BU135: 2 | BV135: 4 | BW135: 4 | BX135: 10 | BY135: 2.2 | BZ135: 4 | CA135: 6.8 | CB135: 13 | CC135: ناجحة | CD135: و منقولة للصف الثانى | CE135: 0 | CF135: 7 | CG135: 7/3 | DC135: 0 | DD135: 0
A136: 127 | B136: 252 | C136: اسماء جمال يوسف محمد | D136: 7/1 | I136: بنات | J136: خدمات | K136: صباحى | M136: 789 | N136: 7.5 | O136: 13.1 | P136: 14.5 | Q136: 35.1 | R136: 7.5 | S136: 11.5 | T136: 8.5 | U136: 27.5 | V136: 3.5 | W136: 5.5 | X136: 4.5 | Y136: 13.5 | Z136: 5.5 | AA136: 7.5 | AB136: 9.5 | AC136: 22.5 | AD136: 3.7 | AE136: 9.2 | AF136: 6 | AG136: 18.9 | AH136: 5.7 | AI136: 6.1 | AJ136: 6.5 | AK136: 3.5 | AL136: 6.5 | AM136: 6.1 | AN136: 18.7 | AO136: 15.7 | AP136: 34.4 | AQ136: 7.6 | AR136: 17.4 | AS136: 9.5 | AT136: 34.5 | AU136: 8.7 | AV136: 11.2 | AW136: 19 | AX136: 38.9 | AY136: 7.5 | AZ136: 9.5 | BA136: 13.2 | BB136: 30.2 | BC136: 7.5 | BD136: 17.6 | BE136: 9.5 | BF136: 34.6 | BG136: 7.5 | BH136: 10.5 | BI136: 18.2 | BJ136: 36.2 | BK136: 8.8 | BL136: 16.6 | BM136: 9.5 | BN136: 34.9 | BO136: 7.5 | BP136: 9.5 | BQ136: 9.5 | BR136: 26.5 | BS136: 149.1 | BT136: 387.7 | BU136: 3.2 | BV136: 6.5 | BW136: 6.1 | BX136: 15.8 | BY136: 2 | BZ136: 7 | CA136: 4 | CB136: 13 | CC136: ناجحة | CD136: و منقولة للصف الثانى | CE136: 0 | CF136: 7 | CG136: 7/3 | DC136: 0 | DD136: 0
A137: 128 | B137: 253 | C137: اسماء دسوقى محمد احمد | D137: 6/1 | I137: بنات | J137: خدمات | K137: صباحى | M137: 788 | N137: 9.6 | O137: 10.9 | P137: 13.8 | Q137: 34.3 | R137: 7.5 | S137: 8.5 | T137: 8.5 | U137: 24.5 | V137: 3.5 | W137: 5.5 | X137: 4.5 | Y137: 13.5 | Z137: 5.5 | AA137: 7.5 | AB137: 10.1 | AC137: 23.1 | AD137: 6 | AE137: 5.5 | AF137: 10 | AG137: 21.5 | AH137: 3.5 | AI137: 6 | AJ137: 6.5 | AK137: 3.5 | AL137: 11 | AM137: 4 | AN137: 21 | AO137: 13.5 | AP137: 34.5 | AQ137: 7.6 | AR137: 13.6 | AS137: 9.5 | AT137: 30.7 | AU137: 7.5 | AV137: 9.5 | AW137: 9.5 | AX137: 26.5 | AY137: 7.5 | AZ137: 9.5 | BA137: 8 | BB137: 25 | BC137: 7.5 | BD137: 13.4 | BE137: 10.9 | BF137: 31.8 | BG137: 7.5 | BH137: 19.7 | BI137: 9.5 | BJ137: 36.7 | BK137: 7.5 | BL137: 9.5 | BM137: 19.4 | BN137: 36.4 | BO137: 9.9 | BP137: 19.1 | BQ137: 9.5 | BR137: 38.5 | BS137: 142.2 | BT137: 377 | BU137: 3.2 | BV137: 4 | BW137: 6 | BX137: 13.2 | BY137: 2 | BZ137: 5.4 | CA137: 4 | CB137: 11.4 | CC137: دورثان | CD137: فى : لغة انجليزية - | CE137: 1 | CF137: 7 | CG137: 7/3 | CN137: لغة انجليزية - | DC137: 0 | DD137: 1
A138: 129 | B138: 254 | C138: الاء عبدالعظيم عبدالله حسين | D138: 7/1 | I138: بنات | J138: خدمات | K138: صباحى | M138: 787 | N138: 9.3 | O138: 16.5 | P138: 8.5 | Q138: =IF(P138="غ","غ",SUM(N138,O138,P138)) -> 34.3 | R138: 7.5 | S138: 11 | T138: 8.5 | U138: =IF(T138="غ","غ",SUM(R138,S138,T138)) -> 27 | V138: 3.5 | W138: 8.8 | X138: 4.5 | Y138: =IF(X138="غ","غ",SUM(V138,W138,X138)) -> 16.8 | Z138: 5.5 | AA138: 11.3 | AB138: 13.3 | AC138: =IF(AB138="غ","غ",SUM(Z138,AA138,AB138)) -> 30.1 | AD138: 3.5 | AE138: 8.4 | AF138: 6 | AG138: =IF(AF138="غ","غ",SUM(AD138,AE138,AF138)) -> 17.9 | AH138: 3.5 | AI138: 5 | AJ138: 6.5 | AK138: 4.7 | AL138: 6.5 | AM138: 5.6 | AN138: =IF(AL138="غ","غ",SUM(AH138,AJ138,AL138)) -> 16.5 | AO138: =IF(AM138="غ","غ",SUM(AI138,AK138,AM138)) -> 15.3 | AP138: =IF(OR(AN138="غ",AO138="غ"),"غ",SUM(AN138,AO138)) -> 31.8 | AQ138: 7.5 | AR138: 9.5 | AS138: 9.5 | AT138: =IF(AS138="غ","غ",SUM(AQ138,AR138,AS138)) -> 26.5 | AU138: 7.5 | AV138: 9.5 | AW138: 9.5 | AX138: =IF(AW138="غ","غ",SUM(AU138,AV138,AW138)) -> 26.5 | AY138: 7.5 | AZ138: 19.7 | BA138: 12.9 | BB138: =IF(BA138="غ","غ",SUM(AY138,AZ138,BA138)) -> 40.1 | BC138: 7.5 | BD138: 9.5 | BE138: 11.8 | BF138: =IF(BE138="غ","غ",SUM(BC138,BD138,BE138)) -> 28.8 | BG138: 7.5 | BH138: 9.5 | BI138: 9.5 | BJ138: =IF(BI138="غ","غ",SUM(BG138,BH138,BI138)) -> 26.5 | BK138: 7.5 | BL138: 11.3 | BM138: 15.9 | BN138: =IF(BM138="غ","غ",SUM(BK138,BL138,BM138)) -> 34.7 | BO138: 7.5 | BP138: 18.6 | BQ138: 17.9 | BR138: =IF(BQ138="غ","غ",SUM(BO138,BP138,BQ138)) -> 44 | BS138: =IF(C138="","",SUM(O138,S138,W138,AE138,AR138,AV138,AZ138,BD138,BH138,BL138,BP138,AA138,AJ138,AK138)) -> 154.8 | BT138: =SUM(Q138,U138,Y138,AG138,AT138,AX138,BB138,BF138,BJ138,BN138,BR138,AC138,AP138) -> 385 | BU138: 2 | BV138: 4.6 | BW138: 5 | BX138: =IF(BW138="غ","غ",SUM(BU138,BV138,BW138)) -> 11.6 | BY138: 2 | BZ138: 4 | CA138: 4 | CB138: =IF(CA138="غ","غ",SUM(BY138,BZ138,CA138)) -> 10 | CC138: =IF(I138="","",IF(I138="بنات",IF(CE138=0,"ناجحة",IF(DD138>2,"راسبة","دورثان")),IF(I138="بنين",IF(CE138=0,"ناجح",IF(DD138>2,"راسب","دورثان"))))) -> ناجحة | CD138: =IF(C138="","",IF(AND($L138="باقية",$CC138="راسبة"),"وليس لها حق الاعادة",IF(AND($L138<>"باقية",$CC138="راسبة"),"و لها حق الاعادة",IF(AND($L138="باقى",$CC138="راسب"),"وليس له حق الاعادة",IF(AND($L138<>"باقى",$CC138="راسب"),"و له حق الاعادة",IF($CC138="ناجحة","و منقولة للصف الثانى",IF($CC138="ناجح","و منقول للصف الثانى",IF($CC138="دورثان","فى : "&CONCATENATE($CM138,$CN138,$CO138,$CQ138,$CR138,$CS138,$CT138,$CU138,$CV138,$CW138,$CX138,$CY138,$CP138,$CZ138,$DA138,$DB138))))))))) -> و منقولة للصف الثانى | CE138: =IF(C138="","",$DC138+$DD138) -> 0 | CF138: 7 | CG138: 7/3 | CM138: =IF(C138="","",IF(OR(P138<$P$9,P138="غ",Q138<$Q$9),CM$5&" - ","")) ->  | CN138: =IF(C138="","",IF(OR(T138<$T$9,T138="غ",U138<$U$9),CN$5&" - ","")) ->  | CO138: =IF(C138="","",IF(OR(X138<$X$9,X138="غ",Y138<$Y$9),CO$5&" - ","")) ->  | CP138: =IF(C138="","",IF(OR(AB138<$AB$9,AB138="غ",AC138<$AC$9),CP$5&" - ","")) ->  | CQ138: =IF(C138="","",IF(OR(AF138<$AF$9,AF138="غ",AG138<$AG$9),CQ$5&" - ","")) ->  | CR138: =IF(C138="","",IF(OR(AL138<$AL$9,AM138<$AM$9,AN138<$AN$9,AN138="غ",AO138<$AO$9,AO138="غ"),CR$5&" - ","")) ->  | CS138: =IF(C138="","",IF(OR(AS138<$AS$9,AS138="غ",AT138<$AT$9),CS$5&" - ","")) ->  | CT138: =IF(C138="","",IF(OR(AW138<$AW$9,AW138="غ",AX138<$AX$9),CT$5&" - ","")) ->  | CU138: =IF(C138="","",IF(OR(BA138<$BA$9,BA138="غ",BB138<$BB$9),CU$5&" - ","")) ->  | CV138: =IF(C138="","",IF(OR(BE138<$BE$9,BE138="غ",BF138<$BF$9),CV$5&" - ","")) ->  | CW138: =IF(C138="","",IF(OR(BI138<$BI$9,BI138="غ",BJ138<$BJ$9),CW$5&" - ","")) ->  | CX138: =IF(C138="","",IF(OR(BM138<$BM$9,BM138="غ",BN138<$BN$9),CX$5&" - ","")) ->  | CY138: =IF(C138="","",IF(OR(BQ138<$BQ$9,BQ138="غ",BR138<$BR$9),CY$5&" - ","")) ->  | CZ138: =IF(C138="","",IF(BT138<$BT$9,CZ$5&" - ","")) ->  | DA138: =IF(C138="","",IF(OR(BW138<$BW$9,BW138="غ",BX138<$BX$9),DA$5,"")) ->  | DB138: =IF(C138="","",IF(OR(CA138<$CA$9,CA138="غ",CB138<$CB$9),DB$5,"")) ->  | DC138: =COUNTIF($CZ138:$DB138,"?*") -> 0 | DD138: =COUNTIF($CM138:$CY138,"?*") -> 0
A139: 130 | B139: 255 | C139: امل عبدالفتاح على ابراهيم | D139: 7/1 | I139: بنات | J139: خدمات | K139: صباحى | M139: 786 | N139: 7.7 | O139: 8.5 | P139: 13.2 | Q139: 29.4 | R139: 7.5 | S139: 8.5 | T139: 8.5 | U139: 24.5 | V139: 4 | W139: 5.5 | X139: 4.9 | Y139: 14.4 | Z139: 5.5 | AA139: 11.4 | AB139: 9.5 | AC139: 26.4 | AD139: 5.2 | AE139: 7.3 | AF139: 10 | AG139: 22.5 | AH139: 3.5 | AI139: 3.5 | AJ139: 10.9 | AK139: 3.5 | AL139: 6.5 | AM139: 4.9 | AN139: 20.9 | AO139: 11.9 | AP139: 32.8 | AQ139: 7.5 | AR139: 9.5 | AS139: 13.2 | AT139: 30.2 | AU139: 7.5 | AV139: 9.5 | AW139: 11.4 | AX139: 28.4 | AY139: 7.5 | AZ139: 9.5 | BA139: 9.3 | BB139: 26.3 | BC139: 7.5 | BD139: 9.5 | BE139: 10 | BF139: 27 | BG139: 7.5 | BH139: 18 | BI139: 9.5 | BJ139: 35 | BK139: 7.5 | BL139: 11.6 | BM139: 9.5 | BN139: 28.6 | BO139: 9 | BP139: 15.4 | BQ139: 9.5 | BR139: 33.9 | BS139: 138.6 | BT139: 359.4 | BU139: 3.2 | BV139: 4 | BW139: 4 | BX139: 11.2 | BY139: 2 | BZ139: 4 | CA139: 4 | CB139: 10 | CC139: دورثان | CD139: فى : لغة انجليزية - | CE139: 1 | CF139: 7 | CG139: 7/3 | CN139: لغة انجليزية - | DC139: 0 | DD139: 1
A140: 131 | B140: 256 | C140: امنيه احمد عادلى شهدى | D140: 6/1 | I140: بنات | J140: خدمات | K140: صباحى | M140: 785 | N140: 7.5 | O140: 8.5 | P140: 8.5 | Q140: 24.5 | R140: 7.5 | S140: 19.3 | T140: 19.4 | U140: 46.2 | V140: 4.6 | W140: 5.5 | X140: 11.6 | Y140: 21.7 | Z140: 5.5 | AA140: 7.5 | AB140: 12.9 | AC140: 25.9 | AD140: 3.5 | AE140: 5.5 | AF140: 6 | AG140: 15 | AH140: 3.5 | AI140: 3.5 | AJ140: 7.3 | AK140: 6.6 | AL140: 6.5 | AM140: 4 | AN140: 17.3 | AO140: 14.1 | AP140: 31.4 | AQ140: 7.5 | AR140: 10.6 | AS140: 15.3 | AT140: 33.4 | AU140: 7.5 | AV140: 12 | AW140: 9.5 | AX140: 29 | AY140: 9.5 | AZ140: 9.5 | BA140: 10.5 | BB140: 29.5 | BC140: 7.5 | BD140: 12.3 | BE140: 16.5 | BF140: 36.3 | BG140: 7.5 | BH140: 9.5 | BI140: 16 | BJ140: 33 | BK140: 7.5 | BL140: 11.4 | BM140: 9.5 | BN140: 28.4 | BO140: 7.5 | BP140: 9.5 | BQ140: 9.5 | BR140: 26.5 | BS140: 135 | BT140: 380.8 | BU140: 2 | BV140: 4 | BW140: 4 | BX140: 10 | BY140: 2.3 | BZ140: 4.2 | CA140: 7.6 | CB140: 14.1 | CC140: دورثان | CD140: فى : لغة عربية - | CE140: 1 | CF140: 7 | CG140: 7/3 | CM140: لغة عربية - | DC140: 0 | DD140: 1
A141: 132 | B141: 257 | C141: انجى باخوم وهيب جرجس | D141: 6/1 | I141: بنات | J141: خدمات | K141: صباحى | L141: باقية | M141: 784 | N141: 7.5 | O141: 13.6 | P141: 8.5 | Q141: 29.6 | R141: 7.5 | S141: 18.7 | T141: 8.5 | U141: 34.7 | V141: 3.5 | W141: 5.5 | X141: 4.5 | Y141: 13.5 | Z141: 5.5 | AA141: 7.5 | AB141: 18.1 | AC141: 31.1 | AD141: 5.9 | AE141: 11.5 | AF141: 8.8 | AG141: 26.2 | AH141: 3.5 | AI141: 3.5 | AJ141: 8.6 | AK141: 3.5 | AL141: 6.5 | AM141: 7.7 | AN141: 18.6 | AO141: 14.7 | AP141: 33.3 | AQ141: 7.5 | AR141: 12.6 | AS141: 9.5 | AT141: 29.6 | AU141: 7.5 | AV141: 11 | AW141: 9.5 | AX141: 28 | AY141: 9.4 | AZ141: 15.4 | BA141: 6.5 | BB141: 31.3 | BC141: 7.5 | BD141: 12.8 | BE141: 9.5 | BF141: 29.8 | BG141: 7.5 | BH141: 12.6 | BI141: 14.9 | BJ141: 35 | BK141: 7.5 | BL141: 18.2 | BM141: 18.4 | BN141: 44.1 | BO141: 7.5 | BP141: 14.7 | BQ141: 17.8 | BR141: 40 | BS141: 166.2 | BT141: 406.2 | BU141: 2.9 | BV141: 7.1 | BW141: 4 | BX141: 14 | BY141: 2 | BZ141: 5 | CA141: 7.5 | CB141: 14.5 | CC141: ناجحة | CD141: و منقولة للصف الثانى | CE141: 0 | CF141: 7 | CG141: 7/3 | DC141: 0 | DD141: 0
A142: 133 | B142: 258 | C142: انغام منصور عبدالعال حسن | D142: 6/1 | I142: بنات | J142: خدمات | K142: صباحى | M142: 783 | N142: 7.5 | O142: 9.1 | P142: 8.5 | Q142: 25.1 | R142: 9.4 | S142: 19.9 | T142: 8.5 | U142: 37.8 | V142: 3.5 | W142: 5.5 | X142: 4.5 | Y142: 13.5 | Z142: 5.5 | AA142: 15 | AB142: 19.8 | AC142: 40.3 | AD142: 4.1 | AE142: 9.8 | AF142: 10.8 | AG142: 24.7 | AH142: 3.5 | AI142: 3.5 | AJ142: 6.5 | AK142: 3.5 | AL142: 8.3 | AM142: 6.5 | AN142: 18.3 | AO142: 13.5 | AP142: 31.8 | AQ142: 7.5 | AR142: 14.1 | AS142: 9.5 | AT142: 31.1 | AU142: 7.5 | AV142: 11.1 | AW142: 9.5 | AX142: 28.1 | AY142: 7.5 | AZ142: 17.8 | BA142: 6.5 | BB142: 31.8 | BC142: 7.5 | BD142: 17.5 | BE142: 9.5 | BF142: 34.5 | BG142: 7.5 | BH142: 9.5 | BI142: 11.5 | BJ142: 28.5 | BK142: 8.8 | BL142: 13.4 | BM142: 9.5 | BN142: 31.7 | BO142: 7.5 | BP142: 9.9 | BQ142: 14.6 | BR142: 32 | BS142: 162.6 | BT142: 390.9 | BU142: 2 | BV142: 4 | BW142: 4 | BX142: 10 | BY142: 2.3 | BZ142: 5.6 | CA142: 4 | CB142: 11.9 | CC142: ناجحة | CD142: و منقولة للصف الثانى | CE142: 0 | CF142: 7 | CG142: 7/3 | DC142: 0 | DD142: 0
A143: 134 | B143: 259 | C143: ايمان سعدى احمد محمد | D143: 7/1 | I143: بنات | J143: خدمات | K143: صباحى | M143: 782 | N143: 7.5 | O143: 8.5 | P143: 8.5 | Q143: 24.5 | R143: 7.5 | S143: 16.8 | T143: 18.9 | U143: 43.2 | V143: 3.5 | W143: 8.9 | X143: 11.3 | Y143: 23.7 | Z143: 7.8 | AA143: 7.5 | AB143: 9.5 | AC143: 24.8 | AD143: 3.5 | AE143: 7.9 | AF143: 6 | AG143: 17.4 | AH143: 3.5 | AI143: 5.5 | AJ143: 11.5 | AK143: 3.5 | AL143: 6.5 | AM143: 5.3 | AN143: 21.5 | AO143: 14.3 | AP143: 35.8 | AQ143: 7.5 | AR143: 9.5 | AS143: 10.8 | AT143: 27.8 | AU143: 7.5 | AV143: 18.8 | AW143: 9.5 | AX143: 35.8 | AY143: 7.5 | AZ143: 18.2 | BA143: 9.6 | BB143: 35.3 | BC143: 9.4 | BD143: 9.5 | BE143: 9.5 | BF143: 28.4 | BG143: 7.5 | BH143: 9.5 | BI143: 9.5 | BJ143: 26.5 | BK143: 7.5 | BL143: 19.6 | BM143: 16.7 | BN143: 43.8 | BO143: 7.5 | BP143: 12.1 | BQ143: 15.4 | BR143: 35 | BS143: 161.8 | BT143: 402 | BU143: 2 | BV143: 4 | BW143: 5.5 | BX143: 11.5 | BY143: 4 | BZ143: 4 | CA143: 4 | CB143: 12 | CC143: دورثان | CD143: فى : لغة عربية - | CE143: 1 | CF143: 7 | CG143: 7/3 | CM143: لغة عربية - | DC143: 0 | DD143: 1
A144: 135 | B144: 260 | C144: ايمان عبدالحارس محمد حفنى | D144: 6/1 | I144: بنات | J144: خدمات | K144: صباحى | M144: 781 | N144: 7.5 | O144: 8.5 | P144: 13.5 | Q144: 29.5 | R144: 7.5 | S144: 8.5 | T144: 15.5 | U144: 31.5 | V144: 5.5 | W144: 5.5 | X144: 9.3 | Y144: 20.3 | Z144: 5.5 | AA144: 11.3 | AB144: 17.9 | AC144: 34.7 | AD144: 3.5 | AE144: 5.5 | AF144: 11.8 | AG144: 20.8 | AH144: 4.7 | AI144: 3.5 | AJ144: 6.5 | AK144: 7.2 | AL144: 10.9 | AM144: 4 | AN144: 22.1 | AO144: 14.7 | AP144: 36.8 | AQ144: 7.5 | AR144: 9.5 | AS144: 18.3 | AT144: 35.3 | AU144: 7.5 | AV144: 15.4 | AW144: 15.6 | AX144: 38.5 | AY144: 7.5 | AZ144: 18.6 | BA144: 14.1 | BB144: 40.2 | BC144: 7.7 | BD144: 9.9 | BE144: 17.9 | BF144: 35.5 | BG144: 8.5 | BH144: 19 | BI144: 18.5 | BJ144: 46 | BK144: 7.5 | BL144: 9.5 | BM144: 9.5 | BN144: 26.5 | BO144: 9.5 | BP144: 9.5 | BQ144: 9.5 | BR144: 28.5 | BS144: 144.4 | BT144: 424.1 | BU144: 2 | BV144: 4 | BW144: 4 | BX144: 10 | BY144: 2 | BZ144: 4 | CA144: 4 | CB144: 10 | CC144: ناجحة | CD144: و منقولة للصف الثانى | CE144: 0 | CF144: 7 | CG144: 7/3 | DC144: 0 | DD144: 0
A145: 136 | B145: 261 | C145: ايمان محمد مشاهر محمد | D145: 6/1 | I145: بنات | J145: خدمات | K145: صباحى | M145: 780 | N145: 7.5 | O145: 14.1 | P145: 8.5 | Q145: 30.1 | R145: 7.5 | S145: 16.1 | T145: 13.8 | U145: 37.4 | V145: 3.5 | W145: 5.5 | X145: 8.3 | Y145: 17.3 | Z145: 5.5 | AA145: 7.5 | AB145: 11.3 | AC145: 24.3 | AD145: 3.5 | AE145: 5.6 | AF145: 11.6 | AG145: 20.7 | AH145: 3.8 | AI145: 3.5 | AJ145: 7 | AK145: 3.5 | AL145: 6.5 | AM145: 4 | AN145: 17.3 | AO145: 11 | AP145: 28.3 | AQ145: 7.5 | AR145: 9.5 | AS145: 9.5 | AT145: 26.5 | AU145: 7.5 | AV145: 15.1 | AW145: 12.7 | AX145: 35.3 | AY145: 7.5 | AZ145: 9.5 | BA145: 6.5 | BB145: 23.5 | BC145: 7.6 | BD145: 9.5 | BE145: 9.5 | BF145: 26.6 | BG145: 7.5 | BH145: 16.9 | BI145: 16.7 | BJ145: 41.1 | BK145: 7.5 | BL145: 9.5 | BM145: 13.7 | BN145: 30.7 | BO145: 8.5 | BP145: 10.8 | BQ145: 16.9 | BR145: 36.2 | BS145: 140.1 | BT145: 378 | BU145: 2.9 | BV145: 4 | BW145: 4 | BX145: 10.9 | BY145: 2 | BZ145: 4 | CA145: 4 | CB145: 10 | CC145: دورثان | CD145: فى : سكرتارية اجنبية - | CE145: 1 | CF145: 7 | CG145: 7/3 | CU145: سكرتارية اجنبية - | DC145: 0 | DD145: 1
A146: 137 | B146: 262 | C146: ايه حسن سيد خليل | D146: 7/1 | I146: بنات | J146: خدمات | K146: صباحى | M146: 779 | N146: 7.5 | O146: 18.6 | P146: 16.6 | Q146: 42.7 | R146: 8.2 | S146: 19.8 | T146: 8.5 | U146: 36.5 | V146: 3.5 | W146: 9.9 | X146: 5.1 | Y146: 18.5 | Z146: 5.5 | AA146: 13.2 | AB146: 9.5 | AC146: 28.2 | AD146: 3.9 | AE146: 5.5 | AF146: 10.5 | AG146: 19.9 | AH146: 4.1 | AI146: 4.9 | AJ146: 6.5 | AK146: 3.5 | AL146: 6.5 | AM146: 4 | AN146: 17.1 | AO146: 12.4 | AP146: 29.5 | AQ146: 7.5 | AR146: 9.5 | AS146: 9.5 | AT146: 26.5 | AU146: 7.5 | AV146: 9.5 | AW146: 13.6 | AX146: 30.6 | AY146: 7.5 | AZ146: 15.4 | BA146: 9.2 | BB146: 32.1 | BC146: 7.5 | BD146: 9.5 | BE146: 9.5 | BF146: 26.5 | BG146: 7.5 | BH146: 17.2 | BI146: 9.5 | BJ146: 34.2 | BK146: 7.5 | BL146: 9.5 | BM146: 19.6 | BN146: 36.6 | BO146: 8.6 | BP146: 10.3 | BQ146: 17.2 | BR146: 36.1 | BS146: 157.9 | BT146: 397.9 | BU146: 2 | BV146: 7.6 | BW146: 4.9 | BX146: 14.5 | BY146: 2 | BZ146: 4 | CA146: 4 | CB146: 10 | CC146: ناجحة | CD146: و منقولة للصف الثانى | CE146: 0 | CF146: 7 | CG146: 7/3 | DC146: 0 | DD146: 0
A147: 138 | B147: 263 | C147: ايه على مصطفى على | D147: 6/1 | I147: بنات | J147: خدمات | K147: صباحى | M147: 778 | N147: 7.5 | O147: 10.6 | P147: 11.5 | Q147: 29.6 | R147: 7.5 | S147: 8.5 | T147: 14.1 | U147: 30.1 | V147: 3.5 | W147: 6.9 | X147: 8.5 | Y147: 18.9 | Z147: 5.5 | AA147: 8 | AB147: 19.6 | AC147: 33.1 | AD147: 4.9 | AE147: 7.9 | AF147: 6.3 | AG147: 19.1 | AH147: 4 | AI147: 7.5 | AJ147: 7.5 | AK147: 7.7 | AL147: 6.9 | AM147: 5.3 | AN147: 18.4 | AO147: 20.5 | AP147: 38.9 | AQ147: 9.4 | AR147: 12.7 | AS147: 10.4 | AT147: 32.5 | AU147: 7.5 | AV147: 9.5 | AW147: 13.3 | AX147: 30.3 | AY147: 7.5 | AZ147: 9.5 | BA147: 6.5 | BB147: 23.5 | BC147: 7.5 | BD147: 9.5 | BE147: 19.2 | BF147: 36.2 | BG147: 9.4 | BH147: 13.1 | BI147: 18.2 | BJ147: 40.7 | BK147: 7.5 | BL147: 9.5 | BM147: 9.5 | BN147: 26.5 | BO147: 7.5 | BP147: 10.3 | BQ147: 13.4 | BR147: 31.2 | BS147: 131.2 | BT147: 390.6 | BU147: 2.8 | BV147: 4 | BW147: 7.5 | BX147: 14.3 | BY147: 2 | BZ147: 5.1 | CA147: 4 | CB147: 11.1 | CC147: دورثان | CD147: فى : سكرتارية اجنبية - | CE147: 1 | CF147: 7 | CG147: 7/3 | CU147: سكرتارية اجنبية - | DC147: 0 | DD147: 1
A148: 139 | B148: 264 | C148: بثينه مصطفى محمود محمد | D148: 7/1 | I148: بنات | J148: خدمات | K148: صباحى | M148: 777 | N148: 9.1 | O148: 8.5 | P148: 13.8 | Q148: 31.4 | R148: 7.5 | S148: 8.5 | T148: 11.3 | U148: 27.3 | V148: 3.5 | W148: 9.2 | X148: 6.8 | Y148: 19.5 | Z148: 5.5 | AA148: 7.5 | AB148: 9.5 | AC148: 22.5 | AD148: 4.7 | AE148: 9.3 | AF148: 7.8 | AG148: 21.8 | AH148: 3.5 | AI148: 3.8 | AJ148: 6.5 | AK148: 3.5 | AL148: 6.5 | AM148: 6.2 | AN148: 16.5 | AO148: 13.5 | AP148: 30 | AQ148: 7.5 | AR148: 13.1 | AS148: 9.5 | AT148: 30.1 | AU148: 7.5 | AV148: 19 | AW148: 10.6 | AX148: 37.1 | AY148: 7.5 | AZ148: 18.3 | BA148: 11.3 | BB148: 37.1 | BC148: 9.5 | BD148: 16.2 | BE148: 9.5 | BF148: 35.2 | BG148: 7.5 | BH148: 19.1 | BI148: 12.2 | BJ148: 38.8 | BK148: 8.1 | BL148: 9.5 | BM148: 9.5 | BN148: 27.1 | BO148: 9.5 | BP148: 18.3 | BQ148: 17.3 | BR148: 45.1 | BS148: 166.5 | BT148: 403 | BU148: 2 | BV148: 7.4 | BW148: 4 | BX148: 13.4 | BY148: 3.8 | BZ148: 5.3 | CA148: 5.9 | CB148: 15 | CC148: ناجحة | CD148: و منقولة للصف الثانى | CE148: 0 | CF148: 7 | CG148: 7/3 | DC148: 0 | DD148: 0
A149: 140 | B149: 265 | C149: بسمه يوسف احمد محمد | D149: 7/1 | I149: بنات | J149: خدمات | K149: صباحى | M149: 776 | N149: 9.7 | O149: 15.2 | P149: 14.8 | Q149: 39.7 | R149: 7.5 | S149: 13.9 | T149: 8.5 | U149: 29.9 | V149: 4.6 | W149: 5.5 | X149: 4.5 | Y149: 14.6 | Z149: 5.5 | AA149: 7.5 | AB149: 19.9 | AC149: 32.9 | AD149: 5.5 | AE149: 5.5 | AF149: 6 | AG149: 17 | AH149: 5.3 | AI149: 6.1 | AJ149: 11.4 | AK149: 3.5 | AL149: 11 | AM149: 4 | AN149: 27.7 | AO149: 13.6 | AP149: 41.3 | AQ149: 7.6 | AR149: 9.5 | AS149: 15.4 | AT149: 32.5 | AU149: 7.5 | AV149: 17.9 | AW149: 17.5 | AX149: 42.9 | AY149: 7.5 | AZ149: 18.3 | BA149: 6.5 | BB149: 32.3 | BC149: 9 | BD149: 14 | BE149: 9.5 | BF149: 32.5 | BG149: 7.5 | BH149: 9.5 | BI149: 9.5 | BJ149: 26.5 | BK149: 7.5 | BL149: 16 | BM149: 19.8 | BN149: 43.3 | BO149: 7.5 | BP149: 19.3 | BQ149: 16.6 | BR149: 43.4 | BS149: 167 | BT149: 428.8 | BU149: 2 | BV149: 4 | BW149: 6.1 | BX149: 12.1 | BY149: 3.7 | BZ149: 4 | CA149: 4 | CB149: 11.7 | CC149: ناجحة | CD149: و منقولة للصف الثانى | CE149: 0 | CF149: 7 | CG149: 7/3 | DC149: 0 | DD149: 0
A150: 141 | B150: 266 | C150: تقوى عطا احمد جمال الدين | D150: 6/1 | I150: بنات | J150: خدمات | K150: صباحى | M150: 775 | N150: 7.5 | O150: 8.5 | P150: 8.5 | Q150: 24.5 | R150: 7.5 | S150: 8.5 | T150: 16.6 | U150: 32.6 | V150: 3.5 | W150: 5.5 | X150: 10 | Y150: 19 | Z150: 5.5 | AA150: 7.5 | AB150: 18.1 | AC150: 31.1 | AD150: 3.5 | AE150: 5.5 | AF150: 6 | AG150: 15 | AH150: 4.3 | AI150: 7.7 | AJ150: 6.5 | AK150: 3.5 | AL150: 10.3 | AM150: 4 | AN150: 21.1 | AO150: 15.2 | AP150: 36.3 | AQ150: 9.6 | AR150: 9.5 | AS150: 9.5 | AT150: 28.6 | AU150: 7.5 | AV150: 16.3 | AW150: 14.2 | AX150: 38 | AY150: 7.5 | AZ150: 9.5 | BA150: 6.5 | BB150: 23.5 | BC150: 8.2 | BD150: 9.5 | BE150: 9.5 | BF150: 27.2 | BG150: 7.5 | BH150: 9.5 | BI150: 18.9 | BJ150: 35.9 | BK150: 7.5 | BL150: 16.1 | BM150: 9.5 | BN150: 33.1 | BO150: 7.5 | BP150: 14.7 | BQ150: 19.5 | BR150: 41.7 | BS150: 130.6 | BT150: 386.5 | BU150: 2.3 | BV150: 4 | BW150: 7.7 | BX150: 14 | BY150: 2.6 | BZ150: 4 | CA150: 4 | CB150: 10.6 | CC150: دورثان | CD150: فى : لغة عربية - سكرتارية اجنبية - | CE150: 2 | CF150: 7 | CG150: 7/3 | CM150: لغة عربية - | CU150: سكرتارية اجنبية - | DC150: 0 | DD150: 2
A151: 142 | B151: 267 | C151: جهاد عبدالنعيم محمد عثمان | D151: 7/1 | I151: بنات | J151: خدمات | K151: صباحى | M151: 774 | N151: 7.5 | O151: 9.2 | P151: 8.5 | Q151: 25.2 | R151: 7.5 | S151: 8.5 | T151: 19.3 | U151: 35.3 | V151: 4.2 | W151: 7.5 | X151: 11.6 | Y151: 23.3 | Z151: 5.5 | AA151: 7.5 | AB151: 9.5 | AC151: 22.5 | AD151: 3.5 | AE151: 6.4 | AF151: 7.7 | AG151: 17.6 | AH151: 3.5 | AI151: 3.5 | AJ151: 6.5 | AK151: 3.5 | AL151: 6.5 | AM151: 4.3 | AN151: 16.5 | AO151: 11.3 | AP151: 27.8 | AQ151: 7.5 | AR151: 9.5 | AS151: 14.2 | AT151: 31.2 | AU151: 7.5 | AV151: 14.4 | AW151: 10.9 | AX151: 32.8 | AY151: 7.5 | AZ151: 9.5 | BA151: 17 | BB151: 34 | BC151: 7.5 | BD151: 16.7 | BE151: 9.5 | BF151: 33.7 | BG151: 7.5 | BH151: 9.5 | BI151: 9.5 | BJ151: 26.5 | BK151: 8.3 | BL151: 13.1 | BM151: 9.5 | BN151: 30.9 | BO151: 7.5 | BP151: 11.6 | BQ151: 9.5 | BR151: 28.6 | BS151: 133.4 | BT151: 369.4 | BU151: 2 | BV151: 4.9 | BW151: 4 | BX151: 10.9 | BY151: 2.3 | BZ151: 4 | CA151: 4 | CB151: 10.3 | CC151: ناجحة | CD151: و منقولة للصف الثانى | CE151: 0 | CF151: 7 | CG151: 7/3 | DC151: 0 | DD151: 0
A152: 143 | B152: 268 | C152: حنان محمد حمدى | D152: 7/1 | I152: بنات | J152: خدمات | K152: صباحى | M152: 773 | N152: 7.9 | O152: 9.8 | P152: 8.5 | Q152: 26.2 | R152: 8.2 | S152: 13.9 | T152: 12.3 | U152: 34.4 | V152: 3.5 | W152: 6 | X152: 7.4 | Y152: 16.9 | Z152: 5.5 | AA152: 13.1 | AB152: 18.9 | AC152: 37.5 | AD152: 4.7 | AE152: 7.3 | AF152: 7.4 | AG152: 19.4 | AH152: 3.5 | AI152: 3.9 | AJ152: 9.3 | AK152: 3.5 | AL152: 6.5 | AM152: 4.9 | AN152: 19.3 | AO152: 12.3 | AP152: 31.6 | AQ152: 7.5 | AR152: 15.2 | AS152: 9.5 | AT152: 32.2 | AU152: 7.6 | AV152: 9.5 | AW152: 9.5 | AX152: 26.6 | AY152: 7.5 | AZ152: 12.5 | BA152: 6.5 | BB152: 26.5 | BC152: 7.5 | BD152: 10.6 | BE152: 9.5 | BF152: 27.6 | BG152: 8.8 | BH152: 9.5 | BI152: 9.5 | BJ152: 27.8 | BK152: 7.5 | BL152: 14.7 | BM152: 9.5 | BN152: 31.7 | BO152: 7.5 | BP152: 15.9 | BQ152: 18.8 | BR152: 42.2 | BS152: 150.8 | BT152: 380.6 | BU152: 2 | BV152: 4 | BW152: 4 | BX152: 10 | BY152: 2.5 | BZ152: 6.1 | CA152: 4 | CB152: 12.6 | CC152: ناجحة | CD152: و منقولة للصف الثانى | CE152: 0 | CF152: 7 | CG152: 7/3 | DC152: 0 | DD152: 0
A153: 144 | B153: 269 | C153: حنان ناصر يوسف احمد | D153: 7/1 | I153: بنات | J153: خدمات | K153: صباحى | M153: 772 | N153: 7.5 | O153: 8.5 | P153: 8.5 | Q153: 24.5 | R153: 7.9 | S153: 8.5 | T153: 18.9 | U153: 35.3 | V153: 3.5 | W153: 8.3 | X153: 11.4 | Y153: 23.2 | Z153: 5.5 | AA153: 12.6 | AB153: 18.8 | AC153: 36.9 | AD153: 5.4 | AE153: 10.4 | AF153: 10.2 | AG153: 26 | AH153: 3.5 | AI153: 3.5 | AJ153: 11.5 | AK153: 3.5 | AL153: 6.5 | AM153: 6.9 | AN153: 21.5 | AO153: 13.9 | AP153: 35.4 | AQ153: 7.5 | AR153: 18.7 | AS153: 11 | AT153: 37.2 | AU153: 9.3 | AV153: 12 | AW153: 9.5 | AX153: 30.8 | AY153: 9.7 | AZ153: 9.5 | BA153: 18.5 | BB153: 37.7 | BC153: 7.5 | BD153: 12.7 | BE153: 9.5 | BF153: 29.7 | BG153: 7.5 | BH153: 10.7 | BI153: 9.5 | BJ153: 27.7 | BK153: 7.5 | BL153: 9.5 | BM153: 9.5 | BN153: 26.5 | BO153: 7.5 | BP153: 9.5 | BQ153: 9.5 | BR153: 26.5 | BS153: 145.9 | BT153: 397.4 | BU153: 2 | BV153: 5 | BW153: 4 | BX153: 11 | BY153: 2.2 | BZ153: 7.5 | CA153: 7.8 | CB153: 17.5 | CC153: دورثان | CD153: فى : لغة عربية - | CE153: 1 | CF153: 7 | CG153: 7/3 | CM153: لغة عربية - | DC153: 0 | DD153: 1
A154: 145 | B154: 270 | C154: حنين عوض الله محمد سيد | D154: 7/1 | I154: بنات | J154: خدمات | K154: صباحى | M154: 771 | N154: 7.5 | O154: 8.5 | P154: 8.5 | Q154: 24.5 | R154: 9.2 | S154: 8.5 | T154: 16.2 | U154: 33.9 | V154: 3.5 | W154: 5.5 | X154: 9.7 | Y154: 18.7 | Z154: 5.5 | AA154: 14.7 | AB154: 17 | AC154: 37.2 | AD154: 3.5 | AE154: 5.5 | AF154: 6 | AG154: 15 | AH154: 3.5 | AI154: 3.5 | AJ154: 6.5 | AK154: 5.3 | AL154: 8.2 | AM154: 4 | AN154: 18.2 | AO154: 12.8 | AP154: 31 | AQ154: 7.5 | AR154: 11.4 | AS154: 9.5 | AT154: 28.4 | AU154: 7.5 | AV154: 10.8 | AW154: 9.5 | AX154: 27.8 | AY154: 9.4 | AZ154: 9.5 | BA154: 6.5 | BB154: 25.4 | BC154: 7.5 | BD154: 9.5 | BE154: 13.2 | BF154: 30.2 | BG154: 7.5 | BH154: 9.5 | BI154: 9.9 | BJ154: 26.9 | BK154: 7.5 | BL154: 9.5 | BM154: 16 | BN154: 33 | BO154: 7.5 | BP154: 14.1 | BQ154: 16.7 | BR154: 38.3 | BS154: 128.8 | BT154: 370.3 | BU154: 2 | BV154: 4 | BW154: 4 | BX154: 10 | BY154: 2 | BZ154: 4.5 | CA154: 7.5 | CB154: 14 | CC154: دورثان | CD154: فى : لغة عربية - | CE154: 1 | CF154: 7 | CG154: 7/3 | CM154: لغة عربية - | DC154: 0 | DD154: 1
A155: 146 | B155: 271 | C155: خلود شاذلى حمدى ابوالوفا | D155: 7/1 | I155: بنات | J155: خدمات | K155: صباحى | M155: 770 | N155: 7.5 | O155: 8.5 | P155: 8.5 | Q155: 24.5 | R155: 7.5 | S155: 8.5 | T155: 11.4 | U155: 27.4 | V155: 3.5 | W155: 7.6 | X155: 6.8 | Y155: 17.9 | Z155: 5.5 | AA155: 7.5 | AB155: 9.5 | AC155: 22.5 | AD155: 3.5 | AE155: 5.5 | AF155: 6 | AG155: 15 | AH155: 3.5 | AI155: 6.2 | AJ155: 9.2 | AK155: 6.4 | AL155: 6.5 | AM155: 4 | AN155: 19.2 | AO155: 16.6 | AP155: 35.8 | AQ155: 7.8 | AR155: 9.5 | AS155: 9.5 | AT155: 26.8 | AU155: 7.5 | AV155: 9.5 | AW155: 9.5 | AX155: 26.5 | AY155: 7.5 | AZ155: 9.5 | BA155: 14.6 | BB155: 31.6 | BC155: 7.5 | BD155: 14 | BE155: 16 | BF155: 37.5 | BG155: 7.5 | BH155: 17.7 | BI155: 16.9 | BJ155: 42.1 | BK155: 7.5 | BL155: 9.5 | BM155: 9.5 | BN155: 26.5 | BO155: 8.8 | BP155: 9.5 | BQ155: 17.6 | BR155: 35.9 | BS155: 132.4 | BT155: 370 | BU155: 3.6 | BV155: 4 | BW155: 6.2 | BX155: 13.8 | BY155: 2.8 | BZ155: 4 | CA155: 4.3 | CB155: 11.1 | CC155: دورثان | CD155: فى : لغة عربية - | CE155: 1 | CF155: 7 | CG155: 7/3 | CM155: لغة عربية - | DC155: 0 | DD155: 1
A156: 147 | B156: 272 | C156: خلود مصطفى عبدالحفيظ احمد | D156: 6/1 | I156: بنات | J156: خدمات | K156: صباحى | M156: 769 | N156: 7.5 | O156: 11.8 | P156: 8.5 | Q156: 27.8 | R156: 7.5 | S156: 8.5 | T156: 8.6 | U156: 24.6 | V156: 3.5 | W156: 5.5 | X156: 5.1 | Y156: 14.1 | Z156: 5.5 | AA156: 12 | AB156: 9.5 | AC156: 27 | AD156: 5.1 | AE156: 7.4 | AF156: 6.1 | AG156: 18.6 | AH156: 4.3 | AI156: 7.3 | AJ156: 6.5 | AK156: 3.5 | AL156: 10 | AM156: 4.9 | AN156: 20.8 | AO156: 15.7 | AP156: 36.5 | AQ156: 9.1 | AR156: 9.5 | AS156: 9.5 | AT156: 28.1 | AU156: 7.5 | AV156: 11.9 | AW156: 14.5 | AX156: 33.9 | AY156: 7.5 | AZ156: 9.5 | BA156: 18.4 | BB156: 35.4 | BC156: 7.5 | BD156: 9.5 | BE156: 9.5 | BF156: 26.5 | BG156: 7.5 | BH156: 19.1 | BI156: 12.6 | BJ156: 39.2 | BK156: 7.5 | BL156: 16.8 | BM156: 9.5 | BN156: 33.8 | BO156: 9.6 | BP156: 9.5 | BQ156: 9.5 | BR156: 28.6 | BS156: 141 | BT156: 374.1 | BU156: 3.6 | BV156: 4 | BW156: 7.3 | BX156: 14.9 | BY156: 3.5 | BZ156: 4 | CA156: 4 | CB156: 11.5 | CC156: دورثان | CD156: فى : لغة انجليزية - | CE156: 1 | CF156: 7 | CG156: 7/3 | CN156: لغة انجليزية - | DC156: 0 | DD156: 1
A157: 148 | B157: 273 | C157: داليا ناصر رجب محمود | D157: 6/1 | I157: بنات | J157: خدمات | K157: صباحى | M157: 768 | N157: 7.5 | O157: 8.5 | P157: 16.6 | Q157: 32.6 | R157: 9.3 | S157: 11.2 | T157: 17.6 | U157: 38.1 | V157: 3.5 | W157: 10.9 | X157: 10.6 | Y157: 25 | Z157: 5.5 | AA157: 14.9 | AB157: 17.8 | AC157: 38.2 | AD157: 3.5 | AE157: 5.5 | AF157: 6 | AG157: 15 | AH157: 3.5 | AI157: 3.5 | AJ157: 6.5 | AK157: 3.5 | AL157: 6.5 | AM157: 4 | AN157: 16.5 | AO157: 11 | AP157: 27.5 | AQ157: 7.5 | AR157: 17.6 | AS157: 9.5 | AT157: 34.6 | AU157: 8.8 | AV157: 10.1 | AW157: 9.5 | AX157: 28.4 | AY157: 7.5 | AZ157: 9.5 | BA157: 9.6 | BB157: 26.6 | BC157: 7.5 | BD157: 11.1 | BE157: 9.5 | BF157: 28.1 | BG157: 8.5 | BH157: 17.3 | BI157: 9.5 | BJ157: 35.3 | BK157: 7.5 | BL157: 9.5 | BM157: 9.5 | BN157: 26.5 | BO157: 8.7 | BP157: 9.5 | BQ157: 16 | BR157: 34.2 | BS157: 145.6 | BT157: 390.1 | BU157: 2 | BV157: 5.4 | BW157: 4 | BX157: 11.4 | BY157: 3.9 | BZ157: 7 | CA157: 4 | CB157: 14.9 | CC157: ناجحة | CD157: و منقولة للصف الثانى | CE157: 0 | CF157: 8 | CG157: 8/3 | DC157: 0 | DD157: 0
A158: 149 | B158: 274 | C158: دعاء سيد محمود حامد | D158: 6/1 | I158: بنات | J158: خدمات | K158: صباحى | M158: 767 | N158: 7.5 | O158: 18.6 | P158: 14.2 | Q158: 40.3 | R158: 9 | S158: 8.5 | T158: 8.5 | U158: 26 | V158: 4.4 | W158: 5.5 | X158: 4.5 | Y158: 14.4 | Z158: 5.5 | AA158: 14.4 | AB158: 19.8 | AC158: 39.7 | AD158: 3.5 | AE158: 6.5 | AF158: 6 | AG158: 16 | AH158: 5.8 | AI158: 3.5 | AJ158: 6.5 | AK158: 7.4 | AL158: 11.4 | AM158: 4.4 | AN158: 23.7 | AO158: 15.3 | AP158: 39 | AQ158: 7.5 | AR158: 13.1 | AS158: 14.8 | AT158: 35.4 | AU158: 7.5 | AV158: 17.6 | AW158: 19.4 | AX158: 44.5 | AY158: 7.5 | AZ158: 17.1 | BA158: 6.5 | BB158: 31.1 | BC158: 8.8 | BD158: 16.6 | BE158: 18.4 | BF158: 43.8 | BG158: 7.5 | BH158: 9.5 | BI158: 9.5 | BJ158: 26.5 | BK158: 8.3 | BL158: 10.1 | BM158: 11.9 | BN158: 30.3 | BO158: 7.5 | BP158: 9.5 | BQ158: 14 | BR158: 31 | BS158: 160.9 | BT158: 418 | BU158: 3.6 | BV158: 4 | BW158: 4 | BX158: 11.6 | BY158: 2.3 | BZ158: 5.2 | CA158: 4 | CB158: 11.5 | CC158: ناجحة | CD158: و منقولة للصف الثانى | CE158: 0 | CF158: 8 | CG158: 8/3 | DC158: 0 | DD158: 0
A159: 150 | B159: 275 | C159: رانيا فريد احمد قاسم | D159: 6/1 | I159: بنات | J159: خدمات | K159: صباحى | M159: 766 | N159: 7.5 | O159: 8.5 | P159: 8.8 | Q159: 24.8 | R159: 7.5 | S159: 8.5 | T159: 11.8 | U159: 27.8 | V159: 3.5 | W159: 9.8 | X159: 7.1 | Y159: 20.4 | Z159: 5.5 | AA159: 7.5 | AB159: 9.5 | AC159: 22.5 | AD159: 4.5 | AE159: 7.6 | AF159: 6 | AG159: 18.1 | AH159: 3.5 | AI159: 5.2 | AJ159: 11.3 | AK159: 3.5 | AL159: 9.1 | AM159: 5.1 | AN159: 23.9 | AO159: 13.8 | AP159: 37.7 | AQ159: 7.5 | AR159: 9.5 | AS159: 9.5 | AT159: 26.5 | AU159: 7.5 | AV159: 9.5 | AW159: 9.5 | AX159: 26.5 | AY159: 7.5 | AZ159: 18.5 | BA159: 9 | BB159: 35 | BC159: 7.5 | BD159: 9.5 | BE159: 9.5 | BF159: 26.5 | BG159: 7.5 | BH159: 14 | BI159: 18.6 | BJ159: 40.1 | BK159: 7.5 | BL159: 17.8 | BM159: 14.9 | BN159: 40.2 | BO159: 7.5 | BP159: 9.5 | BQ159: 15.4 | BR159: 32.4 | BS159: 145 | BT159: 378.5 | BU159: 2.2 | BV159: 4 | BW159: 5.2 | BX159: 11.4 | BY159: 3.6 | BZ159: 4 | CA159: 4 | CB159: 11.6 | CC159: دورثان | CD159: فى : لغة عربية - | CE159: 1 | CF159: 8 | CG159: 8/3 | CM159: لغة عربية - | DC159: 0 | DD159: 1
A160: 151 | B160: 276 | C160: رانيا ادريس حراجى احمد | D160: 6/1 | I160: بنات | J160: خدمات | K160: صباحى | M160: 765 | N160: 7.5 | O160: 8.9 | P160: 8.5 | Q160: 24.9 | R160: 8.8 | S160: 16.2 | T160: 17 | U160: 42 | V160: 3.5 | W160: 5.5 | X160: 10.2 | Y160: 19.2 | Z160: 5.5 | AA160: 14.1 | AB160: 19 | AC160: 38.6 | AD160: 4.6 | AE160: 7.9 | AF160: 6 | AG160: 18.5 | AH160: 3.5 | AI160: 4.1 | AJ160: 8.9 | AK160: 5.3 | AL160: 6.5 | AM160: 5.2 | AN160: 18.9 | AO160: 14.6 | AP160: 33.5 | AQ160: 7.5 | AR160: 9.5 | AS160: 9.5 | AT160: 26.5 | AU160: 7.5 | AV160: 9.5 | AW160: 9.5 | AX160: 26.5 | AY160: 8.8 | AZ160: 9.5 | BA160: 6.5 | BB160: 24.8 | BC160: 7.5 | BD160: 12.5 | BE160: 13.2 | BF160: 33.2 | BG160: 7.5 | BH160: 9.5 | BI160: 9.5 | BJ160: 26.5 | BK160: 7.5 | BL160: 10.1 | BM160: 11.1 | BN160: 28.7 | BO160: 7.5 | BP160: 9.5 | BQ160: 9.5 | BR160: 26.5 | BS160: 136.9 | BT160: 369.4 | BU160: 3.9 | BV160: 4 | BW160: 4.1 | BX160: 12 | BY160: 3.5 | BZ160: 4 | CA160: 7.1 | CB160: 14.6 | CC160: دورثان | CD160: فى : لغة عربية - سكرتارية اجنبية - | CE160: 2 | CF160: 8 | CG160: 8/3 | CM160: لغة عربية - | CU160: سكرتارية اجنبية - | DC160: 0 | DD160: 2
A161: 152 | B161: 277 | C161: رحاب حسن حسين احمد | D161: 7/1 | I161: بنات | J161: خدمات | K161: صباحى | M161: 764 | N161: 7.5 | O161: 8.5 | P161: 16.2 | Q161: 32.2 | R161: 8.9 | S161: 8.5 | T161: 8.5 | U161: 25.9 | V161: 3.5 | W161: 6 | X161: 4.8 | Y161: 14.3 | Z161: 5.5 | AA161: 14.2 | AB161: 16.9 | AC161: 36.6 | AD161: 3.5 | AE161: 5.5 | AF161: 11.6 | AG161: 20.6 | AH161: 3.5 | AI161: 6.6 | AJ161: 10.3 | AK161: 3.5 | AL161: 6.5 | AM161: 4 | AN161: 20.3 | AO161: 14.1 | AP161: 34.4 | AQ161: 8.2 | AR161: 9.5 | AS161: 10.2 | AT161: 27.9 | AU161: 7.5 | AV161: 20 | AW161: 9.5 | AX161: 37 | AY161: 9.8 | AZ161: 11.9 | BA161: 8.4 | BB161: 30.1 | BC161: 10 | BD161: 9.5 | BE161: 9.5 | BF161: 29 | BG161: 7.5 | BH161: 15.4 | BI161: 9.5 | BJ161: 32.4 | BK161: 7.5 | BL161: 15.4 | BM161: 15.6 | BN161: 38.5 | BO161: 7.7 | BP161: 9.5 | BQ161: 9.5 | BR161: 26.7 | BS161: 147.7 | BT161: 385.6 | BU161: 2 | BV161: 4 | BW161: 6.6 | BX161: 12.6 | BY161: 2.1 | BZ161: 4 | CA161: 7.9 | CB161: 14 | CC161: ناجحة | CD161: و منقولة للصف الثانى | CE161: 0 | CF161: 8 | CG161: 8/3 | DC161: 0 | DD161: 0
A162: 153 | B162: 278 | C162: رحاب حمدى محمد اليمنى | D162: 7/1 | I162: بنات | J162: خدمات | K162: صباحى | M162: 763 | N162: 7.5 | O162: 17.5 | P162: 11.8 | Q162: 36.8 | R162: 7.5 | S162: 8.5 | T162: 8.8 | U162: 24.8 | V162: 5.9 | W162: 5.5 | X162: 5.3 | Y162: 16.7 | Z162: 5.5 | AA162: 7.5 | AB162: 17.5 | AC162: 30.5 | AD162: 3.7 | AE162: 8.3 | AF162: 6 | AG162: 18 | AH162: 3.5 | AI162: 7.2 | AJ162: 8 | AK162: 3.5 | AL162: 6.5 | AM162: 5.5 | AN162: 18 | AO162: 16.2 | AP162: 34.2 | AQ162: 9 | AR162: 19.1 | AS162: 19.6 | AT162: 47.7 | AU162: 9.6 | AV162: 9.5 | AW162: 9.5 | AX162: 28.6 | AY162: 7.5 | AZ162: 11.3 | BA162: 8.7 | BB162: 27.5 | BC162: 7.5 | BD162: 9.5 | BE162: 9.5 | BF162: 26.5 | BG162: 9.3 | BH162: 14.8 | BI162: 9.5 | BJ162: 33.6 | BK162: 7.5 | BL162: 9.5 | BM162: 17 | BN162: 34 | BO162: 7.5 | BP162: 9.5 | BQ162: 9.5 | BR162: 26.5 | BS162: 142 | BT162: 385.4 | BU162: 3.7 | BV162: 4 | BW162: 7.2 | BX162: 14.9 | BY162: 2 | BZ162: 7.6 | CA162: 5.2 | CB162: 14.8 | CC162: دورثان | CD162: فى : لغة انجليزية - | CE162: 1 | CF162: 8 | CG162: 8/3 | CN162: لغة انجليزية - | DC162: 0 | DD162: 1
A163: 154 | B163: 279 | C163: رشا ربيع عبدالله البكرى | D163: 6/1 | I163: بنات | J163: خدمات | K163: صباحى | M163: 762 | N163: 7.5 | O163: 15 | P163: 12 | Q163: 34.5 | R163: 7.5 | S163: 8.5 | T163: 8.5 | U163: 24.5 | V163: 6 | W163: 9 | X163: 4.5 | Y163: 19.5 | Z163: 5.5 | AA163: 7.5 | AB163: 11.6 | AC163: 24.6 | AD163: 3.5 | AE163: 11.3 | AF163: 7.8 | AG163: 22.6 | AH163: 3.5 | AI163: 5.1 | AJ163: 8.2 | AK163: 3.5 | AL163: 6.5 | AM163: 7.6 | AN163: 18.2 | AO163: 16.2 | AP163: 34.4 | AQ163: 7.5 | AR163: 12.5 | AS163: 19.8 | AT163: 39.8 | AU163: 7.5 | AV163: 9.5 | AW163: 9.5 | AX163: 26.5 | AY163: 7.5 | AZ163: 14.5 | BA163: 6.5 | BB163: 28.5 | BC163: 7.5 | BD163: 9.5 | BE163: 10 | BF163: 27 | BG163: 7.5 | BH163: 9.5 | BI163: 12.4 | BJ163: 29.4 | BK163: 7.5 | BL163: 9.5 | BM163: 9.5 | BN163: 26.5 | BO163: 7.5 | BP163: 9.5 | BQ163: 18.3 | BR163: 35.3 | BS163: 137.5 | BT163: 373.1 | BU163: 2.4 | BV163: 4 | BW163: 5.1 | BX163: 11.5 | BY163: 2 | BZ163: 5 | CA163: 5.7 | CB163: 12.7 | CC163: دورثان | CD163: فى : لغة انجليزية - | CE163: 1 | CF163: 8 | CG163: 8/3 | CN163: لغة انجليزية - | DC163: 0 | DD163: 1
A164: 155 | B164: 280 | C164: زينب احمد حسن عكاشه | D164: 7/1 | I164: بنات | J164: خدمات | K164: صباحى | M164: 761 | N164: 8 | O164: 8.5 | P164: 14.3 | Q164: 30.8 | R164: 9.8 | S164: 16.8 | T164: 8.5 | U164: 35.1 | V164: 5.2 | W164: 10.1 | X164: 4.6 | Y164: 19.9 | Z164: 5.5 | AA164: 15.7 | AB164: 9.5 | AC164: 30.7 | AD164: 4.2 | AE164: 9.3 | AF164: 7.4 | AG164: 20.9 | AH164: 4.4 | AI164: 6 | AJ164: 6.5 | AK164: 3.5 | AL164: 6.5 | AM164: 6.2 | AN164: 17.4 | AO164: 15.7 | AP164: 33.1 | AQ164: 7.5 | AR164: 9.5 | AS164: 17.2 | AT164: 34.2 | AU164: 7.5 | AV164: 14.7 | AW164: 14.7 | AX164: 36.9 | AY164: 7.5 | AZ164: 9.5 | BA164: 11.1 | BB164: 28.1 | BC164: 7.5 | BD164: 9.5 | BE164: 9.5 | BF164: 26.5 | BG164: 7.5 | BH164: 11.3 | BI164: 11.4 | BJ164: 30.2 | BK164: 7.5 | BL164: 9.5 | BM164: 18.5 | BN164: 35.5 | BO164: 7.5 | BP164: 16.1 | BQ164: 14.7 | BR164: 38.3 | BS164: 150.5 | BT164: 400.2 | BU164: 2.9 | BV164: 5.3 | BW164: 6 | BX164: 14.2 | BY164: 3 | BZ164: 4 | CA164: 4.3 | CB164: 11.3 | CC164: ناجحة | CD164: و منقولة للصف الثانى | CE164: 0 | CF164: 8 | CG164: 8/3 | DC164: 0 | DD164: 0
A165: 156 | B165: 281 | C165: زينب احمد على عثمان | D165: 6/1 | I165: بنات | J165: خدمات | K165: صباحى | M165: 760 | N165: 7.5 | O165: 13.5 | P165: 8.5 | Q165: 29.5 | R165: 7.5 | S165: 8.5 | T165: 16.2 | U165: 32.2 | V165: 5.8 | W165: 5.5 | X165: 9.7 | Y165: 21 | Z165: 7.8 | AA165: 7.5 | AB165: 9.5 | AC165: 24.8 | AD165: 5.5 | AE165: 11.3 | AF165: 6.4 | AG165: 23.2 | AH165: 3.5 | AI165: 7.2 | AJ165: 10.5 | AK165: 3.5 | AL165: 9.9 | AM165: 7.5 | AN165: 23.9 | AO165: 18.2 | AP165: 42.1 | AQ165: 9 | AR165: 14.3 | AS165: 19.4 | AT165: 42.7 | AU165: 7.5 | AV165: 9.5 | AW165: 9.5 | AX165: 26.5 | AY165: 7.5 | AZ165: 9.5 | BA165: 10.3 | BB165: 27.3 | BC165: 7.5 | BD165: 9.5 | BE165: 9.5 | BF165: 26.5 | BG165: 7.5 | BH165: 9.5 | BI165: 9.5 | BJ165: 26.5 | BK165: 7.5 | BL165: 19.6 | BM165: 9.5 | BN165: 36.6 | BO165: 7.5 | BP165: 9.5 | BQ165: 9.5 | BR165: 26.5 | BS165: 141.7 | BT165: 385.4 | BU165: 2 | BV165: 5.8 | BW165: 7.2 | BX165: 15 | BY165: 3.1 | BZ165: 5.7 | CA165: 4 | CB165: 12.8 | CC165: ناجحة | CD165: و منقولة للصف الثانى | CE165: 0 | CF165: 8 | CG165: 8/3 | DC165: 0 | DD165: 0
A166: 157 | B166: 282 | C166: زينب سيد محمد حسين | D166: 6/1 | I166: بنات | J166: خدمات | K166: صباحى | M166: 759 | N166: 9.7 | O166: 8.5 | P166: 8.5 | Q166: 26.7 | R166: 9 | S166: 14.5 | T166: 8.5 | U166: 32 | V166: 3.5 | W166: 5.5 | X166: 5 | Y166: 14 | Z166: 5.5 | AA166: 14.4 | AB166: 9.5 | AC166: 29.4 | AD166: 3.5 | AE166: 5.5 | AF166: 6 | AG166: 15 | AH166: 4.4 | AI166: 4.9 | AJ166: 10.8 | AK166: 5 | AL166: 8.5 | AM166: 4 | AN166: 23.7 | AO166: 13.9 | AP166: 37.6 | AQ166: 7.5 | AR166: 17.1 | AS166: 9.5 | AT166: 34.1 | AU166: 8.6 | AV166: 11.9 | AW166: 14.5 | AX166: 35 | AY166: 7.5 | AZ166: 10.2 | BA166: 13.5 | BB166: 31.2 | BC166: 7.5 | BD166: 13.7 | BE166: 12.6 | BF166: 33.8 | BG166: 7.5 | BH166: 9.5 | BI166: 9.5 | BJ166: 26.5 | BK166: 7.5 | BL166: 9.5 | BM166: 17.6 | BN166: 34.6 | BO166: 7.5 | BP166: 19.3 | BQ166: 10.2 | BR166: 37 | BS166: 155.4 | BT166: 386.9 | BU166: 3.5 | BV166: 4 | BW166: 4.9 | BX166: 12.4 | BY166: 2 | BZ166: 6.9 | CA166: 4 | CB166: 12.9 | CC166: ناجحة | CD166: و منقولة للصف الثانى | CE166: 0 | CF166: 8 | CG166: 8/3 | DC166: 0 | DD166: 0
A167: 158 | B167: 283 | C167: زينب عبدالكريم احمد حفنى | D167: 6/1 | I167: بنات | J167: خدمات | K167: صباحى | M167: 758 | N167: 7.5 | O167: 8.5 | P167: 8.5 | Q167: 24.5 | R167: 7.5 | S167: 13.2 | T167: 17.8 | U167: 38.5 | V167: 5.4 | W167: 6.2 | X167: 10.7 | Y167: 22.3 | Z167: 5.5 | AA167: 11.9 | AB167: 15.6 | AC167: 33 | AD167: 3.5 | AE167: 5.5 | AF167: 8.6 | AG167: 17.6 | AH167: 3.5 | AI167: 6.7 | AJ167: 6.5 | AK167: 3.5 | AL167: 11.5 | AM167: 4 | AN167: 21.5 | AO167: 14.2 | AP167: 35.7 | AQ167: 8.4 | AR167: 9.5 | AS167: 18.1 | AT167: 36 | AU167: 7.5 | AV167: 16.5 | AW167: 9.5 | AX167: 33.5 | AY167: 7.5 | AZ167: 16.2 | BA167: 19.6 | BB167: 43.3 | BC167: 8.2 | BD167: 10.1 | BE167: 9.5 | BF167: 27.8 | BG167: 8 | BH167: 9.5 | BI167: 9.5 | BJ167: 27 | BK167: 7.5 | BL167: 9.5 | BM167: 12.5 | BN167: 29.5 | BO167: 7.5 | BP167: 11.5 | BQ167: 14.1 | BR167: 33.1 | BS167: 138.1 | BT167: 401.8 | BU167: 3.5 | BV167: 4 | BW167: 6.7 | BX167: 14.2 | BY167: 2 | BZ167: 4 | CA167: 4 | CB167: 10 | CC167: دورثان | CD167: فى : لغة عربية - | CE167: 1 | CF167: 8 | CG167: 8/3 | CM167: لغة عربية - | DC167: 0 | DD167: 1
A168: 159 | B168: 284 | C168: زينب على ابومخيمر احمد | D168: 6/1 | I168: بنات | J168: خدمات | K168: صباحى | M168: 757 | N168: 7.5 | O168: 8.5 | P168: 8.5 | Q168: 24.5 | R168: 7.5 | S168: 8.5 | T168: 15.3 | U168: 31.3 | V168: 5.4 | W168: 5.5 | X168: 9.2 | Y168: 20.1 | Z168: 5.5 | AA168: 7.5 | AB168: 18.7 | AC168: 31.7 | AD168: 4.8 | AE168: 8.7 | AF168: 6 | AG168: 19.5 | AH168: 3.5 | AI168: 3.5 | AJ168: 6.5 | AK168: 5.3 | AL168: 8.7 | AM168: 5.8 | AN168: 18.7 | AO168: 14.6 | AP168: 33.3 | AQ168: 7.5 | AR168: 11.7 | AS168: 18.1 | AT168: 37.3 | AU168: 7.5 | AV168: 11.4 | AW168: 9.5 | AX168: 28.4 | AY168: 9.4 | AZ168: 9.5 | BA168: 18.1 | BB168: 37 | BC168: 7.5 | BD168: 13.7 | BE168: 13.3 | BF168: 34.5 | BG168: 7.5 | BH168: 13.3 | BI168: 9.5 | BJ168: 30.3 | BK168: 7.5 | BL168: 18.5 | BM168: 9.5 | BN168: 35.5 | BO168: 7.5 | BP168: 14.4 | BQ168: 9.5 | BR168: 31.4 | BS168: 143 | BT168: 394.8 | BU168: 3.1 | BV168: 5.8 | BW168: 4 | BX168: 12.9 | BY168: 2 | BZ168: 4.7 | CA168: 7.5 | CB168: 14.2 | CC168: دورثان | CD168: فى : لغة عربية - | CE168: 1 | CF168: 8 | CG168: 8/3 | CM168: لغة عربية - | DC168: 0 | DD168: 1
A169: 160 | B169: 285 | C169: ساره سيد فراج سليمان | D169: 7/1 | I169: بنات | J169: خدمات | K169: صباحى | M169: 756 | N169: 8.1 | O169: 8.5 | P169: 8.5 | Q169: 25.1 | R169: 8.4 | S169: 19 | T169: 14.4 | U169: 41.8 | V169: 4.6 | W169: 8 | X169: 8.6 | Y169: 21.2 | Z169: 5.5 | AA169: 13.4 | AB169: 14 | AC169: 32.9 | AD169: 5.1 | AE169: 5.5 | AF169: 11.8 | AG169: 22.4 | AH169: 3.5 | AI169: 3.5 | AJ169: 6.5 | AK169: 3.5 | AL169: 6.5 | AM169: 4 | AN169: 16.5 | AO169: 11 | AP169: 27.5 | AQ169: 7.5 | AR169: 18.7 | AS169: 15.3 | AT169: 41.5 | AU169: 9.4 | AV169: 9.8 | AW169: 9.5 | AX169: 28.7 | AY169: 7.5 | AZ169: 9.5 | BA169: 6.5 | BB169: 23.5 | BC169: 7.5 | BD169: 13.2 | BE169: 10.1 | BF169: 30.8 | BG169: 7.5 | BH169: 9.5 | BI169: 14 | BJ169: 31 | BK169: 7.5 | BL169: 9.5 | BM169: 9.5 | BN169: 26.5 | BO169: 7.5 | BP169: 16.2 | BQ169: 11 | BR169: 34.7 | BS169: 150.8 | BT169: 387.6 | BU169: 3.1 | BV169: 8 | BW169: 4 | BX169: 15.1 | BY169: 3.3 | BZ169: 7.5 | CA169: 5.1 | CB169: 15.9 | CC169: دورثان | CD169: فى : سكرتارية اجنبية - | CE169: 1 | CF169: 8 | CG169: 8/3 | CU169: سكرتارية اجنبية - | DC169: 0 | DD169: 1
A170: 161 | B170: 286 | C170: سمر جمال فؤاد منصور | D170: 6/1 | I170: بنات | J170: خدمات | K170: صباحى | M170: 755 | N170: 7.5 | O170: 15.8 | P170: 8.5 | Q170: 31.8 | R170: 7.5 | S170: 12.9 | T170: 15.9 | U170: 36.3 | V170: 3.5 | W170: 11.7 | X170: 9.5 | Y170: 24.7 | Z170: 5.5 | AA170: 7.5 | AB170: 9.5 | AC170: 22.5 | AD170: 4.7 | AE170: 11.4 | AF170: 6 | AG170: 22.1 | AH170: 3.5 | AI170: 6.2 | AJ170: 6.5 | AK170: 3.5 | AL170: 6.5 | AM170: 7.6 | AN170: 16.5 | AO170: 17.3 | AP170: 33.8 | AQ170: 7.7 | AR170: 9.5 | AS170: 9.5 | AT170: 26.7 | AU170: 7.5 | AV170: 18.6 | AW170: 9.5 | AX170: 35.6 | AY170: 7.5 | AZ170: 9.5 | BA170: 8.5 | BB170: 25.5 | BC170: 9.3 | BD170: 18 | BE170: 9.5 | BF170: 36.8 | BG170: 9 | BH170: 9.5 | BI170: 9.5 | BJ170: 28 | BK170: 9 | BL170: 9.5 | BM170: 9.5 | BN170: 28 | BO170: 7.5 | BP170: 13.2 | BQ170: 9.5 | BR170: 30.2 | BS170: 157.1 | BT170: 382 | BU170: 2 | BV170: 4 | BW170: 6.2 | BX170: 12.2 | BY170: 3.9 | BZ170: 4 | CA170: 6 | CB170: 13.9 | CC170: ناجحة | CD170: و منقولة للصف الثانى | CE170: 0 | CF170: 8 | CG170: 8/3 | DC170: 0 | DD170: 0
A171: 162 | B171: 287 | C171: سناء عبدالناصر احمد حسن | D171: 6/1 | I171: بنات | J171: خدمات | K171: صباحى | M171: 754 | N171: 7.5 | O171: 8.5 | P171: 14.7 | Q171: 30.7 | R171: 7.5 | S171: 10.3 | T171: 14 | U171: 31.8 | V171: 3.5 | W171: 5.5 | X171: 8.4 | Y171: 17.4 | Z171: 5.5 | AA171: 7.5 | AB171: 9.5 | AC171: 22.5 | AD171: 4.1 | AE171: 11.4 | AF171: 6 | AG171: 21.5 | AH171: 3.6 | AI171: 3.5 | AJ171: 6.5 | AK171: 3.5 | AL171: 6.5 | AM171: 7.6 | AN171: 16.6 | AO171: 14.6 | AP171: 31.2 | AQ171: 7.5 | AR171: 16.1 | AS171: 9.5 | AT171: 33.1 | AU171: 8.1 | AV171: 18.9 | AW171: 12.2 | AX171: 39.2 | AY171: 7.5 | AZ171: 9.5 | BA171: 14.5 | BB171: 31.5 | BC171: 9.4 | BD171: 12 | BE171: 9.5 | BF171: 30.9 | BG171: 8.3 | BH171: 9.9 | BI171: 13.4 | BJ171: 31.6 | BK171: 7.5 | BL171: 15.5 | BM171: 12.3 | BN171: 35.3 | BO171: 7.5 | BP171: 13.6 | BQ171: 9.5 | BR171: 30.6 | BS171: 148.7 | BT171: 387.3 | BU171: 3.4 | BV171: 4 | BW171: 4 | BX171: 11.4 | BY171: 3.2 | BZ171: 6.5 | CA171: 5.5 | CB171: 15.2 | CC171: ناجحة | CD171: و منقولة للصف الثانى | CE171: 0 | CF171: 8 | CG171: 8/3 | DC171: 0 | DD171: 0
A172: 163 | B172: 288 | C172: سندس ياسر محمد محمود | D172: 7/1 | I172: بنات | J172: خدمات | K172: صباحى | M172: 753 | N172: 7.5 | O172: 8.5 | P172: 8.5 | Q172: 24.5 | R172: 7.5 | S172: 8.5 | T172: 15.8 | U172: 31.8 | V172: 3.5 | W172: 9.4 | X172: 9.5 | Y172: 22.4 | Z172: 5.5 | AA172: 7.5 | AB172: 9.5 | AC172: 22.5 | AD172: 3.5 | AE172: 10.2 | AF172: 6 | AG172: 19.7 | AH172: 5.4 | AI172: 6.6 | AJ172: 10.7 | AK172: 7.7 | AL172: 7.4 | AM172: 6.8 | AN172: 23.5 | AO172: 21.1 | AP172: 44.6 | AQ172: 8.2 | AR172: 9.5 | AS172: 9.5 | AT172: 27.2 | AU172: 7.5 | AV172: 9.5 | AW172: 18.1 | AX172: 35.1 | AY172: 7.5 | AZ172: 9.5 | BA172: 18.6 | BB172: 35.6 | BC172: 7.5 | BD172: 9.5 | BE172: 19.3 | BF172: 36.3 | BG172: 7.5 | BH172: 9.5 | BI172: 13.2 | BJ172: 30.2 | BK172: 7.5 | BL172: 9.5 | BM172: 9.5 | BN172: 26.5 | BO172: 7.5 | BP172: 9.5 | BQ172: 12.6 | BR172: 29.6 | BS172: 129 | BT172: 386 | BU172: 3.3 | BV172: 6.2 | BW172: 6.6 | BX172: 16.1 | BY172: 2.3 | BZ172: 4 | CA172: 4 | CB172: 10.3 | CC172: دورثان | CD172: فى : لغة عربية - | CE172: 1 | CF172: 8 | CG172: 8/3 | CM172: لغة عربية - | DC172: 0 | DD172: 1
A173: 164 | B173: 289 | C173: سهام كامل على ابراهيم | D173: 6/1 | I173: بنات | J173: خدمات | K173: صباحى | M173: 752 | N173: 7.9 | O173: 9.6 | P173: 14.4 | Q173: 31.9 | R173: 7.5 | S173: 11.7 | T173: 10.9 | U173: 30.1 | V173: 3.5 | W173: 5.5 | X173: 6.6 | Y173: 15.6 | Z173: 5.5 | AA173: 7.5 | AB173: 11.3 | AC173: 24.3 | AD173: 3.5 | AE173: 10.8 | AF173: 6 | AG173: 20.3 | AH173: 4 | AI173: 3.5 | AJ173: 6.5 | AK173: 5 | AL173: 6.5 | AM173: 7.2 | AN173: 17 | AO173: 15.7 | AP173: 32.7 | AQ173: 7.5 | AR173: 19.9 | AS173: 9.5 | AT173: 36.9 | AU173: 9.9 | AV173: 9.7 | AW173: 13.4 | AX173: 33 | AY173: 7.5 | AZ173: 9.5 | BA173: 9.2 | BB173: 26.2 | BC173: 7.5 | BD173: 13 | BE173: 12.5 | BF173: 33 | BG173: 7.5 | BH173: 17.2 | BI173: 12.1 | BJ173: 36.8 | BK173: 7.5 | BL173: 9.8 | BM173: 9.5 | BN173: 26.8 | BO173: 8.6 | BP173: 15.7 | BQ173: 16.5 | BR173: 40.8 | BS173: 151.4 | BT173: 388.4 | BU173: 2 | BV173: 4 | BW173: 4 | BX173: 10 | BY173: 3.4 | BZ173: 8 | CA173: 4 | CB173: 15.4 | CC173: ناجحة | CD173: و منقولة للصف الثانى | CE173: 0 | CF173: 8 | CG173: 8/3 | DC173: 0 | DD173: 0
A174: 165 | B174: 290 | C174: شاهيناز شاذلى على خليل | D174: 6/1 | I174: بنات | J174: خدمات | K174: صباحى | M174: 751 | N174: 7.5 | O174: 8.5 | P174: 11 | Q174: 27 | R174: 7.5 | S174: 15 | T174: 17.5 | U174: 40 | V174: 3.5 | W174: 11.6 | X174: 10.5 | Y174: 25.6 | Z174: 5.5 | AA174: 11.1 | AB174: 9.5 | AC174: 26.1 | AD174: 4.3 | AE174: 5.5 | AF174: 6 | AG174: 15.8 | AH174: 3.5 | AI174: 3.5 | AJ174: 6.5 | AK174: 6.7 | AL174: 6.5 | AM174: 4 | AN174: 16.5 | AO174: 14.2 | AP174: 30.7 | AQ174: 7.5 | AR174: 9.5 | AS174: 9.5 | AT174: 26.5 | AU174: 7.5 | AV174: 9.5 | AW174: 9.5 | AX174: 26.5 | AY174: 7.5 | AZ174: 14.4 | BA174: 6.5 | BB174: 28.4 | BC174: 7.5 | BD174: 11.2 | BE174: 16.7 | BF174: 35.4 | BG174: 8.9 | BH174: 14.6 | BI174: 13.8 | BJ174: 37.3 | BK174: 7.5 | BL174: 12.8 | BM174: 10.8 | BN174: 31.1 | BO174: 7.5 | BP174: 11 | BQ174: 12.7 | BR174: 31.2 | BS174: 147.9 | BT174: 381.6 | BU174: 2.3 | BV174: 4 | BW174: 4 | BX174: 10.3 | BY174: 3.9 | BZ174: 4 | CA174: 4 | CB174: 11.9 | CC174: ناجحة | CD174: و منقولة للصف الثانى | CE174: 0 | CF174: 8 | CG174: 8/3 | DC174: 0 | DD174: 0
A175: 166 | B175: 291 | C175: شهد محمد عبدالله رشيد | D175: 6/1 | I175: بنات | J175: خدمات | K175: صباحى | M175: 750 | N175: 8.3 | O175: 8.5 | P175: 8.5 | Q175: 25.3 | R175: 9.8 | S175: 9.1 | T175: 8.5 | U175: 27.4 | V175: 3.9 | W175: 12 | X175: 4.5 | Y175: 20.4 | Z175: 7.6 | AA175: 15.7 | AB175: 15.6 | AC175: 38.9 | AD175: 3.5 | AE175: 11.1 | AF175: 7.1 | AG175: 21.7 | AH175: 3.5 | AI175: 3.5 | AJ175: 11 | AK175: 3.5 | AL175: 6.5 | AM175: 7.4 | AN175: 21 | AO175: 14.4 | AP175: 35.4 | AQ175: 7.5 | AR175: 9.5 | AS175: 13.1 | AT175: 30.1 | AU175: 7.5 | AV175: 9.5 | AW175: 11.3 | AX175: 28.3 | AY175: 8.4 | AZ175: 9.5 | BA175: 6.5 | BB175: 24.4 | BC175: 7.5 | BD175: 19.9 | BE175: 11.1 | BF175: 38.5 | BG175: 7.5 | BH175: 9.5 | BI175: 11.6 | BJ175: 28.6 | BK175: 9.9 | BL175: 18.9 | BM175: 12.5 | BN175: 41.3 | BO175: 7.5 | BP175: 16.6 | BQ175: 18.9 | BR175: 43 | BS175: 164.3 | BT175: 403.3 | BU175: 2 | BV175: 5 | BW175: 4 | BX175: 11 | BY175: 2.6 | BZ175: 4 | CA175: 6.7 | CB175: 13.3 | CC175: دورثان | CD175: فى : سكرتارية اجنبية - | CE175: 1 | CF175: 8 | CG175: 8/3 | CU175: سكرتارية اجنبية - | DC175: 0 | DD175: 1
A176: 167 | B176: 292 | C176: شيماء حازم شحات ضوى | D176: 7/1 | I176: بنات | J176: خدمات | K176: صباحى | M176: 749 | N176: 7.5 | O176: 8.5 | P176: 8.5 | Q176: 24.5 | R176: 7.5 | S176: 18.1 | T176: 8.5 | U176: 34.1 | V176: 3.5 | W176: 8.3 | X176: 4.7 | Y176: 16.5 | Z176: 5.5 | AA176: 7.5 | AB176: 13.8 | AC176: 26.8 | AD176: 3.5 | AE176: 5.5 | AF176: 8.4 | AG176: 17.4 | AH176: 3.5 | AI176: 3.5 | AJ176: 10.9 | AK176: 3.5 | AL176: 10.2 | AM176: 4 | AN176: 24.6 | AO176: 11 | AP176: 35.6 | AQ176: 7.5 | AR176: 10.4 | AS176: 9.5 | AT176: 27.4 | AU176: 7.5 | AV176: 11.3 | AW176: 9.5 | AX176: 28.3 | AY176: 7.5 | AZ176: 9.5 | BA176: 16.6 | BB176: 33.6 | BC176: 7.5 | BD176: 9.5 | BE176: 10.9 | BF176: 27.9 | BG176: 8.7 | BH176: 9.5 | BI176: 13.5 | BJ176: 31.7 | BK176: 7.5 | BL176: 18.4 | BM176: 14.8 | BN176: 40.7 | BO176: 7.5 | BP176: 9.6 | BQ176: 19.9 | BR176: 37 | BS176: 140.5 | BT176: 381.5 | BU176: 2.6 | BV176: 4 | BW176: 4 | BX176: 10.6 | BY176: 2.7 | BZ176: 4.2 | CA176: 4 | CB176: 10.9 | CC176: دورثان | CD176: فى : لغة عربية - | CE176: 1 | CF176: 8 | CG176: 8/3 | CM176: لغة عربية - | DC176: 0 | DD176: 1
A177: 168 | B177: 293 | C177: شيماء خالد احمد ابراهيم | D177: 7/1 | I177: بنات | J177: خدمات | K177: صباحى | M177: 748 | N177: 7.5 | O177: 9.6 | P177: 17.4 | Q177: 34.5 | R177: 7.5 | S177: 8.5 | T177: 8.5 | U177: 24.5 | V177: 3.5 | W177: 8.3 | X177: 4.5 | Y177: 16.3 | Z177: 5.5 | AA177: 9.9 | AB177: 12.8 | AC177: 28.2 | AD177: 3.5 | AE177: 9.5 | AF177: 6 | AG177: 19 | AH177: 3.5 | AI177: 3.5 | AJ177: 6.5 | AK177: 4.5 | AL177: 8 | AM177: 6.3 | AN177: 18 | AO177: 14.3 | AP177: 32.3 | AQ177: 7.5 | AR177: 14.3 | AS177: 9.5 | AT177: 31.3 | AU177: 7.5 | AV177: 9.5 | AW177: 9.5 | AX177: 26.5 | AY177: 7.5 | AZ177: 10.1 | BA177: 17.5 | BB177: 35.1 | BC177: 7.5 | BD177: 13.8 | BE177: 11.3 | BF177: 32.6 | BG177: 7.9 | BH177: 9.5 | BI177: 11.1 | BJ177: 28.5 | BK177: 7.5 | BL177: 15.7 | BM177: 14.6 | BN177: 37.8 | BO177: 7.5 | BP177: 9.7 | BQ177: 9.5 | BR177: 26.7 | BS177: 139.4 | BT177: 373.3 | BU177: 2.4 | BV177: 6.6 | BW177: 4 | BX177: 13 | BY177: 3.6 | BZ177: 5.7 | CA177: 4 | CB177: 13.3 | CC177: دورثان | CD177: فى : لغة انجليزية - | CE177: 1 | CF177: 8 | CG177: 8/3 | CN177: لغة انجليزية - | DC177: 0 | DD177: 1
A178: 169 | B178: 294 | C178: صباح صالح ابراهيم مهدى | D178: 7/1 | I178: بنات | J178: خدمات | K178: صباحى | M178: 747 | N178: 7.5 | O178: 8.5 | P178: 12.6 | Q178: 28.6 | R178: 7.5 | S178: 13.4 | T178: 8.5 | U178: 29.4 | V178: 3.5 | W178: 5.5 | X178: 4.5 | Y178: 13.5 | Z178: 5.5 | AA178: 11.8 | AB178: 9.5 | AC178: 26.8 | AD178: 4.5 | AE178: 8.8 | AF178: 6.9 | AG178: 20.2 | AH178: 4.8 | AI178: 5.4 | AJ178: 6.8 | AK178: 3.5 | AL178: 9.9 | AM178: 5.8 | AN178: 21.5 | AO178: 14.7 | AP178: 36.2 | AQ178: 7.5 | AR178: 11.2 | AS178: 9.5 | AT178: 28.2 | AU178: 7.5 | AV178: 9.5 | AW178: 15.9 | AX178: 32.9 | AY178: 7.5 | AZ178: 10.8 | BA178: 15.8 | BB178: 34.1 | BC178: 7.5 | BD178: 9.5 | BE178: 9.5 | BF178: 26.5 | BG178: 9 | BH178: 9.5 | BI178: 9.5 | BJ178: 28 | BK178: 7.5 | BL178: 10.3 | BM178: 9.5 | BN178: 27.3 | BO178: 7.5 | BP178: 9.5 | BQ178: 9.6 | BR178: 26.6 | BS178: 128.6 | BT178: 358.3 | BU178: 3.9 | BV178: 4 | BW178: 5.4 | BX178: 13.3 | BY178: 2 | BZ178: 4.5 | CA178: 4 | CB178: 10.5 | CC178: ناجحة | CD178: و منقولة للصف الثانى | CE178: 0 | CF178: 8 | CG178: 8/3 | DC178: 0 | DD178: 0
A179: 170 | B179: 295 | C179: صفاء رفاعى احمد محمد | D179: 7/1 | I179: بنات | J179: خدمات | K179: صباحى | M179: 746 | N179: 7.5 | O179: 17.3 | P179: 16.9 | Q179: 41.7 | R179: 7.5 | S179: 17.8 | T179: 8.5 | U179: 33.8 | V179: 3.7 | W179: 5.5 | X179: 4.8 | Y179: 14 | Z179: 5.5 | AA179: 7.5 | AB179: 19 | AC179: 32 | AD179: 3.5 | AE179: 11.2 | AF179: 6.9 | AG179: 21.6 | AH179: 3.5 | AI179: 7.5 | AJ179: 10.4 | AK179: 7.9 | AL179: 6.5 | AM179: 7.5 | AN179: 20.4 | AO179: 22.9 | AP179: 43.3 | AQ179: 9.4 | AR179: 13.5 | AS179: 12.2 | AT179: 35.1 | AU179: 7.5 | AV179: 17.9 | AW179: 9.6 | AX179: 35 | AY179: 7.5 | AZ179: 13.1 | BA179: 16.7 | BB179: 37.3 | BC179: 9 | BD179: 15.2 | BE179: 19.8 | BF179: 44 | BG179: 8.7 | BH179: 16.1 | BI179: 14.8 | BJ179: 39.6 | BK179: 7.6 | BL179: 9.5 | BM179: 9.5 | BN179: 26.6 | BO179: 8.1 | BP179: 9.5 | BQ179: 9.5 | BR179: 27.1 | BS179: 172.4 | BT179: 431.1 | BU179: 2 | BV179: 4 | BW179: 7.5 | BX179: 13.5 | BY179: 2 | BZ179: 5.4 | CA179: 4.6 | CB179: 12 | CC179: ناجحة | CD179: و منقولة للصف الثانى | CE179: 0 | CF179: 9 | CG179: 9/3 | DC179: 0 | DD179: 0
A180: 171 | B180: 296 | C180: صفيه محمد محمود موسى | D180: 7/1 | I180: بنات | J180: خدمات | K180: صباحى | M180: 745 | N180: 8 | O180: 11.8 | P180: 17.8 | Q180: 37.6 | R180: 7.5 | S180: 8.5 | T180: 19.9 | U180: 35.9 | V180: 4 | W180: 11.6 | X180: 11.9 | Y180: 27.5 | Z180: 5.5 | AA180: 7.6 | AB180: 15.9 | AC180: 29 | AD180: 3.7 | AE180: 5.5 | AF180: 11.9 | AG180: 21.1 | AH180: 3.6 | AI180: 8 | AJ180: 6.5 | AK180: 4.8 | AL180: 6.5 | AM180: 4 | AN180: 16.6 | AO180: 16.8 | AP180: 33.4 | AQ180: 9.9 | AR180: 10.7 | AS180: 13.3 | AT180: 33.9 | AU180: 7.5 | AV180: 9.5 | AW180: 12 | AX180: 29 | AY180: 7.5 | AZ180: 16.8 | BA180: 10.7 | BB180: 35 | BC180: 7.5 | BD180: 9.5 | BE180: 12 | BF180: 29 | BG180: 7.5 | BH180: 19.9 | BI180: 9.5 | BJ180: 36.9 | BK180: 7.5 | BL180: 9.5 | BM180: 13.3 | BN180: 30.3 | BO180: 10 | BP180: 16 | BQ180: 9.5 | BR180: 35.5 | BS180: 148.2 | BT180: 414.1 | BU180: 2.3 | BV180: 5.7 | BW180: 8 | BX180: 16 | BY180: 2 | BZ180: 4.3 | CA180: 4.8 | CB180: 11.1 | CC180: ناجحة | CD180: و منقولة للصف الثانى | CE180: 0 | CF180: 9 | CG180: 9/3 | DC180: 0 | DD180: 0
A181: 172 | B181: 297 | C181: علياء الاسلام ياسر محمد سيد | D181: 7/1 | I181: بنات | J181: خدمات | K181: صباحى | M181: 744 | N181: 8.1 | O181: 15.1 | P181: 8.5 | Q181: 31.7 | R181: 7.5 | S181: 8.5 | T181: 10.2 | U181: 26.2 | V181: 3.5 | W181: 8.3 | X181: 6.1 | Y181: 17.9 | Z181: 5.5 | AA181: 7.6 | AB181: 14.5 | AC181: 27.6 | AD181: 3.5 | AE181: 10.9 | AF181: 11.2 | AG181: 25.6 | AH181: 3.5 | AI181: 5.5 | AJ181: 6.5 | AK181: 3.5 | AL181: 6.5 | AM181: 7.3 | AN181: 16.5 | AO181: 16.3 | AP181: 32.8 | AQ181: 7.5 | AR181: 15 | AS181: 11.8 | AT181: 34.3 | AU181: 7.5 | AV181: 9.6 | AW181: 9.5 | AX181: 26.6 | AY181: 7.5 | AZ181: 9.5 | BA181: 7.1 | BB181: 24.1 | BC181: 7.5 | BD181: 9.5 | BE181: 11.1 | BF181: 28.1 | BG181: 7.5 | BH181: 16.5 | BI181: 13.4 | BJ181: 37.4 | BK181: 7.5 | BL181: 9.5 | BM181: 14.8 | BN181: 31.8 | BO181: 8.3 | BP181: 16.1 | BQ181: 9.5 | BR181: 33.9 | BS181: 146.1 | BT181: 378 | BU181: 2 | BV181: 6.6 | BW181: 5.5 | BX181: 14.1 | BY181: 3.1 | BZ181: 6 | CA181: 4 | CB181: 13.1 | CC181: دورثان | CD181: فى : سكرتارية اجنبية - | CE181: 1 | CF181: 9 | CG181: 9/3 | CU181: سكرتارية اجنبية - | DC181: 0 | DD181: 1
A182: 173 | B182: 298 | C182: علياء محمد على محمد | D182: 7/1 | I182: بنات | J182: خدمات | K182: صباحى | M182: 743 | N182: 7.5 | O182: 18.6 | P182: 18.2 | Q182: 44.3 | R182: 7.5 | S182: 8.5 | T182: 14.6 | U182: 30.6 | V182: 3.5 | W182: 10.6 | X182: 8.8 | Y182: 22.9 | Z182: 5.5 | AA182: 10.6 | AB182: 9.5 | AC182: 25.6 | AD182: 4.3 | AE182: 5.5 | AF182: 6 | AG182: 15.8 | AH182: 3.5 | AI182: 5.5 | AJ182: 11.4 | AK182: 3.5 | AL182: 9.9 | AM182: 4 | AN182: 24.8 | AO182: 13 | AP182: 37.8 | AQ182: 7.5 | AR182: 9.5 | AS182: 9.5 | AT182: 26.5 | AU182: 7.5 | AV182: 9.5 | AW182: 9.5 | AX182: 26.5 | AY182: 8 | AZ182: 9.5 | BA182: 16.6 | BB182: 34.1 | BC182: 7.5 | BD182: 9.5 | BE182: 9.5 | BF182: 26.5 | BG182: 7.5 | BH182: 16.5 | BI182: 12.4 | BJ182: 36.4 | BK182: 7.5 | BL182: 9.5 | BM182: 9.5 | BN182: 26.5 | BO182: 8.3 | BP182: 14.7 | BQ182: 9.5 | BR182: 32.5 | BS182: 147.4 | BT182: 386 | BU182: 2 | BV182: 4 | BW182: 5.5 | BX182: 11.5 | BY182: 2 | BZ182: 4 | CA182: 6.4 | CB182: 12.4 | CC182: ناجحة | CD182: و منقولة للصف الثانى | CE182: 0 | CF182: 9 | CG182: 9/3 | DC182: 0 | DD182: 0
A183: 174 | B183: 299 | C183: فاطمه ابو القاسم احمد بريص | D183: 7/1 | I183: بنات | J183: خدمات | K183: صباحى | M183: 742 | N183: 7.5 | O183: 8.5 | P183: 19 | Q183: 35 | R183: 7.5 | S183: 8.5 | T183: 14.1 | U183: 30.1 | V183: 5.8 | W183: 5.5 | X183: 8.5 | Y183: 19.8 | Z183: 5.5 | AA183: 7.5 | AB183: 14.9 | AC183: 27.9 | AD183: 4.5 | AE183: 6 | AF183: 9.7 | AG183: 20.2 | AH183: 3.5 | AI183: 3.5 | AJ183: 6.5 | AK183: 3.5 | AL183: 10.5 | AM183: 4 | AN183: 20.5 | AO183: 11 | AP183: 31.5 | AQ183: 7.5 | AR183: 9.5 | AS183: 19.2 | AT183: 36.2 | AU183: 7.5 | AV183: 17.3 | AW183: 9.5 | AX183: 34.3 | AY183: 7.5 | AZ183: 9.5 | BA183: 10.4 | BB183: 27.4 | BC183: 8.7 | BD183: 10.6 | BE183: 9.5 | BF183: 28.8 | BG183: 8 | BH183: 9.5 | BI183: 18.7 | BJ183: 36.2 | BK183: 7.5 | BL183: 9.5 | BM183: 19.7 | BN183: 36.7 | BO183: 7.5 | BP183: 9.5 | BQ183: 16.8 | BR183: 33.8 | BS183: 121.4 | BT183: 397.9 | BU183: 2 | BV183: 4 | BW183: 4 | BX183: 10 | BY183: 2 | BZ183: 4 | CA183: 4 | CB183: 10 | CC183: ناجحة | CD183: و منقولة للصف الثانى | CE183: 0 | CF183: 9 | CG183: 9/3 | DC183: 0 | DD183: 0
A184: 175 | B184: 300 | C184: فاطمه حسن فراج محمود | D184: 6/1 | I184: بنات | J184: خدمات | K184: صباحى | M184: 741 | N184: 7.5 | O184: 10.9 | P184: 19.8 | Q184: 38.2 | R184: 7.5 | S184: 19.7 | T184: 8.5 | U184: 35.7 | V184: 5.8 | W184: 5.5 | X184: 4.5 | Y184: 15.8 | Z184: 5.5 | AA184: 7.5 | AB184: 9.5 | AC184: 22.5 | AD184: 5.5 | AE184: 5.5 | AF184: 9.2 | AG184: 20.2 | AH184: 3.5 | AI184: 3.5 | AJ184: 8.4 | AK184: 6.9 | AL184: 6.5 | AM184: 4 | AN184: 18.4 | AO184: 14.4 | AP184: 32.8 | AQ184: 7.5 | AR184: 12.4 | AS184: 19.4 | AT184: 39.3 | AU184: 7.5 | AV184: 18.5 | AW184: 9.5 | AX184: 35.5 | AY184: 7.5 | AZ184: 9.5 | BA184: 6.5 | BB184: 23.5 | BC184: 9.2 | BD184: 12.1 | BE184: 17.3 | BF184: 38.6 | BG184: 7.5 | BH184: 11.8 | BI184: 14 | BJ184: 33.3 | BK184: 7.5 | BL184: 13.3 | BM184: 17.6 | BN184: 38.4 | BO184: 7.5 | BP184: 9.5 | BQ184: 13.1 | BR184: 30.1 | BS184: 151.5 | BT184: 403.9 | BU184: 3.6 | BV184: 5.6 | BW184: 4 | BX184: 13.2 | BY184: 3.3 | BZ184: 5 | CA184: 5.8 | CB184: 14.1 | CC184: دورثان | CD184: فى : سكرتارية اجنبية - | CE184: 1 | CF184: 9 | CG184: 9/3 | CU184: سكرتارية اجنبية - | DC184: 0 | DD184: 1
A185: 176 | B185: 301 | C185: فاطمه سيد ادم موسى | D185: 7/1 | I185: بنات | J185: خدمات | K185: صباحى | M185: 740 | N185: 7.5 | O185: 8.5 | P185: 16.8 | Q185: 32.8 | R185: 7.5 | S185: 15.2 | T185: 13.4 | U185: 36.1 | V185: 5.2 | W185: 5.5 | X185: 8 | Y185: 18.7 | Z185: 5.5 | AA185: 7.5 | AB185: 19.6 | AC185: 32.6 | AD185: 3.5 | AE185: 7.2 | AF185: 6 | AG185: 16.7 | AH185: 3.5 | AI185: 5.2 | AJ185: 8.5 | AK185: 3.5 | AL185: 6.5 | AM185: 4.8 | AN185: 18.5 | AO185: 13.5 | AP185: 32 | AQ185: 7.5 | AR185: 17.5 | AS185: 17.4 | AT185: 42.4 | AU185: 8.8 | AV185: 19.5 | AW185: 9.5 | AX185: 37.8 | AY185: 7.5 | AZ185: 9.5 | BA185: 6.5 | BB185: 23.5 | BC185: 9.8 | BD185: 18.7 | BE185: 9.5 | BF185: 38 | BG185: 7.5 | BH185: 19.8 | BI185: 13.9 | BJ185: 41.2 | BK185: 9.4 | BL185: 15.2 | BM185: 9.5 | BN185: 34.1 | BO185: 9.9 | BP185: 10 | BQ185: 16.7 | BR185: 36.6 | BS185: 166.1 | BT185: 422.5 | BU185: 2 | BV185: 5.1 | BW185: 5.2 | BX185: 12.3 | BY185: 2 | BZ185: 7 | CA185: 4.5 | CB185: 13.5 | CC185: دورثان | CD185: فى : سكرتارية اجنبية - | CE185: 1 | CF185: 9 | CG185: 9/3 | CU185: سكرتارية اجنبية - | DC185: 0 | DD185: 1
A186: 177 | B186: 302 | C186: فاطمه عباس محمود عباس | D186: 7/1 | I186: بنات | J186: خدمات | K186: صباحى | M186: 739 | N186: 7.5 | O186: 12.7 | P186: 8.5 | Q186: 28.7 | R186: 7.5 | S186: 11.6 | T186: 11.4 | U186: 30.5 | V186: 3.5 | W186: 5.5 | X186: 6.8 | Y186: 15.8 | Z186: 5.5 | AA186: 7.5 | AB186: 13 | AC186: 26 | AD186: 4 | AE186: 5.5 | AF186: 7.6 | AG186: 17.1 | AH186: 3.5 | AI186: 6.8 | AJ186: 6.5 | AK186: 3.5 | AL186: 10.8 | AM186: 4 | AN186: 20.8 | AO186: 14.3 | AP186: 35.1 | AQ186: 8.5 | AR186: 9.5 | AS186: 9.5 | AT186: 27.5 | AU186: 7.5 | AV186: 16.9 | AW186: 9.5 | AX186: 33.9 | AY186: 7.5 | AZ186: 9.5 | BA186: 8.1 | BB186: 25.1 | BC186: 8.4 | BD186: 18.7 | BE186: 9.5 | BF186: 36.6 | BG186: 7.5 | BH186: 15.2 | BI186: 10.9 | BJ186: 33.6 | BK186: 9.4 | BL186: 9.5 | BM186: 9.5 | BN186: 28.4 | BO186: 7.6 | BP186: 9.5 | BQ186: 9.5 | BR186: 26.6 | BS186: 141.6 | BT186: 364.9 | BU186: 2.3 | BV186: 7.1 | BW186: 6.8 | BX186: 16.2 | BY186: 3.6 | BZ186: 4 | CA186: 4 | CB186: 11.6 | CC186: ناجحة | CD186: و منقولة للصف الثانى | CE186: 0 | CF186: 9 | CG186: 9/3 | DC186: 0 | DD186: 0
A187: 178 | B187: 303 | C187: فاطمه محمد حشمت سعدالدين | D187: 6/1 | I187: بنات | J187: خدمات | K187: صباحى | M187: 738 | N187: 7.5 | O187: 8.5 | P187: 8.5 | Q187: 24.5 | R187: 7.9 | S187: 12.1 | T187: 10.4 | U187: 30.4 | V187: 3.8 | W187: 5.5 | X187: 6.3 | Y187: 15.6 | Z187: 5.5 | AA187: 12.7 | AB187: 9.5 | AC187: 27.7 | AD187: 5.4 | AE187: 5.5 | AF187: 6 | AG187: 16.9 | AH187: 5.2 | AI187: 7.8 | AJ187: 11.6 | AK187: 7 | AL187: 7.3 | AM187: 4 | AN187: 24.1 | AO187: 18.8 | AP187: 42.9 | AQ187: 9.7 | AR187: 9.5 | AS187: 12.5 | AT187: 31.7 | AU187: 7.5 | AV187: 9.5 | AW187: 17.3 | AX187: 34.3 | AY187: 7.5 | AZ187: 15.5 | BA187: 6.5 | BB187: 29.5 | BC187: 7.5 | BD187: 17.9 | BE187: 17.5 | BF187: 42.9 | BG187: 7.5 | BH187: 9.5 | BI187: 9.5 | BJ187: 26.5 | BK187: 8.9 | BL187: 9.5 | BM187: 13.1 | BN187: 31.5 | BO187: 7.5 | BP187: 9.5 | BQ187: 16.7 | BR187: 33.7 | BS187: 143.8 | BT187: 388.1 | BU187: 2 | BV187: 6.5 | BW187: 7.8 | BX187: 16.3 | BY187: 2 | BZ187: 4 | CA187: 4 | CB187: 10 | CC187: دورثان | CD187: فى : لغة عربية - | CE187: 1 | CF187: 9 | CG187: 9/3 | CM187: لغة عربية - | DC187: 0 | DD187: 1
A188: 179 | B188: 304 | C188: فاطمه محمد يوسف ابوالحجاج | D188: 6/1 | I188: بنات | J188: خدمات | K188: صباحى | M188: 737 | N188: 7.5 | O188: 19.2 | P188: 10.1 | Q188: 36.8 | R188: 7.5 | S188: 8.5 | T188: 17.7 | U188: 33.7 | V188: 3.7 | W188: 10.8 | X188: 10.6 | Y188: 25.1 | Z188: 5.5 | AA188: 7.5 | AB188: 9.5 | AC188: 22.5 | AD188: 4.2 | AE188: 8.7 | AF188: 6 | AG188: 18.9 | AH188: 4.2 | AI188: 5.2 | AJ188: 6.5 | AK188: 3.5 | AL188: 6.5 | AM188: 5.8 | AN188: 17.2 | AO188: 14.5 | AP188: 31.7 | AQ188: 7.5 | AR188: 9.5 | AS188: 12.5 | AT188: 29.5 | AU188: 7.5 | AV188: 19 | AW188: 13.9 | AX188: 40.4 | AY188: 7.5 | AZ188: 17.3 | BA188: 7.5 | BB188: 32.3 | BC188: 9.5 | BD188: 9.5 | BE188: 9.5 | BF188: 28.5 | BG188: 7.5 | BH188: 11.2 | BI188: 14.4 | BJ188: 33.1 | BK188: 7.5 | BL188: 9.5 | BM188: 18.1 | BN188: 35.1 | BO188: 7.5 | BP188: 9.5 | BQ188: 9.5 | BR188: 26.5 | BS188: 150.2 | BT188: 394.1 | BU188: 3.3 | BV188: 4 | BW188: 5.2 | BX188: 12.5 | BY188: 2.1 | BZ188: 4 | CA188: 4 | CB188: 10.1 | CC188: ناجحة | CD188: و منقولة للصف الثانى | CE188: 0 | CF188: 9 | CG188: 9/3 | DC188: 0 | DD188: 0
A189: 180 | B189: 305 | C189: فايزه صلاح عبدالستار محمود | D189: 7/1 | I189: بنات | J189: خدمات | K189: صباحى | M189: 736 | N189: 7.5 | O189: 8.5 | P189: 8.5 | Q189: 24.5 | R189: 7.5 | S189: 10.2 | T189: 11.3 | U189: 29 | V189: 3.5 | W189: 5.5 | X189: 6.8 | Y189: 15.8 | Z189: 5.5 | AA189: 7.5 | AB189: 9.5 | AC189: 22.5 | AD189: 3.5 | AE189: 5.5 | AF189: 6 | AG189: 15 | AH189: 3.7 | AI189: 7.6 | AJ189: 6.5 | AK189: 7.7 | AL189: 7.4 | AM189: 4 | AN189: 17.6 | AO189: 19.3 | AP189: 36.9 | AQ189: 9.5 | AR189: 9.6 | AS189: 9.5 | AT189: 28.6 | AU189: 7.5 | AV189: 19.8 | AW189: 12.2 | AX189: 39.5 | AY189: 7.5 | AZ189: 9.5 | BA189: 13.7 | BB189: 30.7 | BC189: 9.9 | BD189: 9.5 | BE189: 19.2 | BF189: 38.6 | BG189: 7.5 | BH189: 9.5 | BI189: 9.7 | BJ189: 26.7 | BK189: 7.5 | BL189: 15.7 | BM189: 9.5 | BN189: 32.7 | BO189: 7.5 | BP189: 13.7 | BQ189: 9.5 | BR189: 30.7 | BS189: 138.7 | BT189: 371.2 | BU189: 2 | BV189: 7.2 | BW189: 7.6 | BX189: 16.8 | BY189: 2.1 | BZ189: 4 | CA189: 5.9 | CB189: 12 | CC189: دورثان | CD189: فى : لغة عربية - | CE189: 1 | CF189: 9 | CG189: 9/3 | CM189: لغة عربية - | DC189: 0 | DD189: 1
A190: 181 | B190: 306 | C190: فوزيه خالد حجاج احمد | D190: 7/1 | I190: بنات | J190: خدمات | K190: صباحى | M190: 735 | N190: 9.2 | O190: 18.5 | P190: 8.5 | Q190: 36.2 | R190: 8.2 | S190: 15.9 | T190: 17.8 | U190: 41.9 | V190: 3.5 | W190: 8.4 | X190: 10.7 | Y190: 22.6 | Z190: 5.5 | AA190: 13.1 | AB190: 9.5 | AC190: 28.1 | AD190: 3.5 | AE190: 5.5 | AF190: 11.6 | AG190: 20.6 | AH190: 3.5 | AI190: 5.8 | AJ190: 11.5 | AK190: 3.5 | AL190: 9.9 | AM190: 4 | AN190: 24.9 | AO190: 13.3 | AP190: 38.2 | AQ190: 7.5 | AR190: 9.5 | AS190: 10.5 | AT190: 27.5 | AU190: 7.5 | AV190: 15.2 | AW190: 9.5 | AX190: 32.2 | AY190: 7.5 | AZ190: 19.5 | BA190: 15.6 | BB190: 42.6 | BC190: 7.6 | BD190: 11.1 | BE190: 9.5 | BF190: 28.2 | BG190: 7.5 | BH190: 10.8 | BI190: 17.7 | BJ190: 36 | BK190: 7.5 | BL190: 11.5 | BM190: 13.5 | BN190: 32.5 | BO190: 7.5 | BP190: 18.4 | BQ190: 9.5 | BR190: 35.4 | BS190: 172.4 | BT190: 422 | BU190: 3.5 | BV190: 6.6 | BW190: 5.8 | BX190: 15.9 | BY190: 2 | BZ190: 4 | CA190: 4 | CB190: 10 | CC190: ناجحة | CD190: و منقولة للصف الثانى | CE190: 0 | CF190: 9 | CG190: 9/3 | DC190: 0 | DD190: 0
A191: 182 | B191: 307 | C191: لمياء محمد مصطفى محمد | D191: 7/1 | I191: بنات | J191: خدمات | K191: صباحى | M191: 734 | N191: 7.5 | O191: 12.4 | P191: 9.1 | Q191: 29 | R191: 7.5 | S191: 17.1 | T191: 15.3 | U191: 39.9 | V191: 3.5 | W191: 10 | X191: 9.2 | Y191: 22.7 | Z191: 5.5 | AA191: 10.3 | AB191: 9.5 | AC191: 25.3 | AD191: 5.7 | AE191: 5.5 | AF191: 6 | AG191: 17.2 | AH191: 3.5 | AI191: 3.5 | AJ191: 6.5 | AK191: 3.5 | AL191: 7.7 | AM191: 4 | AN191: 17.7 | AO191: 11 | AP191: 28.7 | AQ191: 7.5 | AR191: 15.5 | AS191: 9.5 | AT191: 32.5 | AU191: 7.7 | AV191: 14.9 | AW191: 11.8 | AX191: 34.4 | AY191: 8.4 | AZ191: 11.4 | BA191: 6.5 | BB191: 26.3 | BC191: 7.5 | BD191: 9.5 | BE191: 9.5 | BF191: 26.5 | BG191: 7.5 | BH191: 18.9 | BI191: 10.7 | BJ191: 37.1 | BK191: 7.5 | BL191: 13.6 | BM191: 9.5 | BN191: 30.6 | BO191: 9.5 | BP191: 9.9 | BQ191: 16.5 | BR191: 35.9 | BS191: 159 | BT191: 386.1 | BU191: 2 | BV191: 4 | BW191: 4 | BX191: 10 | BY191: 3.2 | BZ191: 6.2 | CA191: 6.7 | CB191: 16.1 | CC191: ناجحة | CD191: و منقولة للصف الثانى | CE191: 0 | CF191: 9 | CG191: 9/3 | DC191: 0 | DD191: 0
A192: 183 | B192: 308 | C192: مريم ابوزيد محمد امين | D192: 6/1 | I192: بنات | J192: خدمات | K192: صباحى | M192: 733 | N192: 7.5 | O192: 8.5 | P192: 8.5 | Q192: 24.5 | R192: 7.5 | S192: 8.5 | T192: 15.9 | U192: 31.9 | V192: 3.5 | W192: 5.5 | X192: 9.6 | Y192: 18.6 | Z192: 5.5 | AA192: 7.5 | AB192: 10.1 | AC192: 23.1 | AD192: 3.5 | AE192: 10 | AF192: 7.1 | AG192: 20.6 | AH192: 4 | AI192: 3.5 | AJ192: 6.5 | AK192: 7.5 | AL192: 6.5 | AM192: 6.7 | AN192: 17 | AO192: 17.7 | AP192: 34.7 | AQ192: 7.5 | AR192: 9.5 | AS192: 9.5 | AT192: 26.5 | AU192: 7.5 | AV192: 9.5 | AW192: 13.3 | AX192: 30.3 | AY192: 7.5 | AZ192: 9.5 | BA192: 8.2 | BB192: 25.2 | BC192: 7.5 | BD192: 9.5 | BE192: 18.8 | BF192: 35.8 | BG192: 7.5 | BH192: 17.1 | BI192: 9.5 | BJ192: 34.1 | BK192: 7.5 | BL192: 9.5 | BM192: 9.5 | BN192: 26.5 | BO192: 8.6 | BP192: 9.5 | BQ192: 9.5 | BR192: 27.6 | BS192: 128.1 | BT192: 359.4 | BU192: 2.3 | BV192: 4 | BW192: 4 | BX192: 10.3 | BY192: 2 | BZ192: 4 | CA192: 4 | CB192: 10 | CC192: دورثان | CD192: فى : لغة عربية - | CE192: 1 | CF192: 9 | CG192: 9/3 | CM192: لغة عربية - | DC192: 0 | DD192: 1
A193: 184 | B193: 309 | C193: منى احمد النوبى محمد | D193: 6/1 | I193: بنات | J193: خدمات | K193: صباحى | M193: 732 | N193: 7.5 | O193: 8.5 | P193: 8.5 | Q193: 24.5 | R193: 7.5 | S193: 10.8 | T193: 8.5 | U193: 26.8 | V193: 3.5 | W193: 9.8 | X193: 4.5 | Y193: 17.8 | Z193: 5.5 | AA193: 7.5 | AB193: 15.3 | AC193: 28.3 | AD193: 3.5 | AE193: 5.5 | AF193: 8.2 | AG193: 17.2 | AH193: 3.5 | AI193: 5.7 | AJ193: 6.5 | AK193: 7.6 | AL193: 6.5 | AM193: 4 | AN193: 16.5 | AO193: 17.3 | AP193: 33.8 | AQ193: 7.5 | AR193: 9.5 | AS193: 9.5 | AT193: 26.5 | AU193: 7.5 | AV193: 11.5 | AW193: 10.4 | AX193: 29.4 | AY193: 7.5 | AZ193: 12.2 | BA193: 9.2 | BB193: 28.9 | BC193: 7.5 | BD193: 16.1 | BE193: 18.9 | BF193: 42.5 | BG193: 7.5 | BH193: 9.5 | BI193: 15.6 | BJ193: 32.6 | BK193: 8.1 | BL193: 9.5 | BM193: 9.5 | BN193: 27.1 | BO193: 7.5 | BP193: 12.6 | BQ193: 18.8 | BR193: 38.9 | BS193: 137.1 | BT193: 374.3 | BU193: 3.8 | BV193: 4 | BW193: 5.7 | BX193: 13.5 | BY193: 3.8 | BZ193: 4 | CA193: 4 | CB193: 11.8 | CC193: دورثان | CD193: فى : لغة عربية - | CE193: 1 | CF193: 9 | CG193: 9/3 | CM193: لغة عربية - | DC193: 0 | DD193: 1
A194: 185 | B194: 310 | C194: منى حسين عبد الحفيظ جعفر | D194: 6/1 | I194: بنات | J194: خدمات | K194: صباحى | M194: 731 | N194: 7.5 | O194: 9.6 | P194: 10 | Q194: 27.1 | R194: 9.3 | S194: 8.5 | T194: 8.5 | U194: 26.3 | V194: 3.5 | W194: 9.8 | X194: 4.9 | Y194: 18.2 | Z194: 5.5 | AA194: 14.9 | AB194: 9.5 | AC194: 29.9 | AD194: 3.5 | AE194: 9.3 | AF194: 6 | AG194: 18.8 | AH194: 3.5 | AI194: 3.8 | AJ194: 6.5 | AK194: 3.5 | AL194: 6.5 | AM194: 6.2 | AN194: 16.5 | AO194: 13.5 | AP194: 30 | AQ194: 7.5 | AR194: 14.2 | AS194: 10 | AT194: 31.7 | AU194: 7.5 | AV194: 9.5 | AW194: 9.5 | AX194: 26.5 | AY194: 7.5 | AZ194: 9.5 | BA194: 6.5 | BB194: 23.5 | BC194: 7.5 | BD194: 15.1 | BE194: 9.5 | BF194: 32.1 | BG194: 9.8 | BH194: 15.7 | BI194: 19.4 | BJ194: 44.9 | BK194: 7.5 | BL194: 9.5 | BM194: 9.5 | BN194: 26.5 | BO194: 7.8 | BP194: 12.5 | BQ194: 14.4 | BR194: 34.7 | BS194: 148.1 | BT194: 370.2 | BU194: 3.1 | BV194: 4 | BW194: 4 | BX194: 11.1 | BY194: 3.6 | BZ194: 5.7 | CA194: 4 | CB194: 13.3 | CC194: دورثان | CD194: فى : سكرتارية اجنبية - | CE194: 1 | CF194: 9 | CG194: 9/3 | CU194: سكرتارية اجنبية - | DC194: 0 | DD194: 1
A195: 186 | B195: 311 | C195: منى عيد حسين محمد | D195: 7/1 | I195: بنات | J195: خدمات | K195: صباحى | M195: 730 | N195: 7.5 | O195: 8.5 | P195: 13.2 | Q195: 29.2 | R195: 7.6 | S195: 8.5 | T195: 12.1 | U195: 28.2 | V195: 4.3 | W195: 5.5 | X195: 7.2 | Y195: 17 | Z195: 5.5 | AA195: 12.2 | AB195: 9.5 | AC195: 27.2 | AD195: 3.5 | AE195: 11.7 | AF195: 7.8 | AG195: 23 | AH195: 3.5 | AI195: 3.5 | AJ195: 6.5 | AK195: 6.3 | AL195: 8 | AM195: 7.8 | AN195: 18 | AO195: 17.6 | AP195: 35.6 | AQ195: 7.5 | AR195: 9.5 | AS195: 14.4 | AT195: 31.4 | AU195: 7.5 | AV195: 19.1 | AW195: 9.5 | AX195: 36.1 | AY195: 7.5 | AZ195: 9.5 | BA195: 18.6 | BB195: 35.6 | BC195: 9.6 | BD195: 13.3 | BE195: 15.8 | BF195: 38.7 | BG195: 7.5 | BH195: 9.5 | BI195: 12.3 | BJ195: 29.3 | BK195: 7.5 | BL195: 9.5 | BM195: 9.5 | BN195: 26.5 | BO195: 7.5 | BP195: 9.5 | BQ195: 13.8 | BR195: 30.8 | BS195: 139.1 | BT195: 388.6 | BU195: 2 | BV195: 4 | BW195: 4 | BX195: 10 | BY195: 2.6 | BZ195: 4 | CA195: 4 | CB195: 10.6 | CC195: ناجحة | CD195: و منقولة للصف الثانى | CE195: 0 | CF195: 9 | CG195: 9/3 | DC195: 0 | DD195: 0
A196: 187 | B196: 312 | C196: منيرة عبد المؤمن عبد الرحيم محمد | D196: 7/1 | I196: بنات | J196: خدمات | K196: صباحى | M196: 729 | N196: 8.5 | O196: 19.9 | P196: 8.5 | Q196: 36.9 | R196: 7.5 | S196: 9 | T196: 8.5 | U196: 25 | V196: 4.8 | W196: 5.5 | X196: 4.5 | Y196: 14.8 | Z196: 5.5 | AA196: 10.6 | AB196: 16.2 | AC196: 32.3 | AD196: 3.5 | AE196: 9.6 | AF196: 8.9 | AG196: 22 | AH196: 3.5 | AI196: 3.5 | AJ196: 7.4 | AK196: 5.4 | AL196: 6.5 | AM196: 6.4 | AN196: 17.4 | AO196: 15.3 | AP196: 32.7 | AQ196: 7.5 | AR196: 9.5 | AS196: 16.2 | AT196: 33.2 | AU196: 7.5 | AV196: 19.2 | AW196: 9.5 | AX196: 36.2 | AY196: 8.7 | AZ196: 14.3 | BA196: 9.3 | BB196: 32.3 | BC196: 9.6 | BD196: 17.6 | BE196: 13.5 | BF196: 40.7 | BG196: 8.8 | BH196: 9.5 | BI196: 9.5 | BJ196: 27.8 | BK196: 8.8 | BL196: 9.5 | BM196: 11.7 | BN196: 30 | BO196: 7.5 | BP196: 17 | BQ196: 9.5 | BR196: 34 | BS196: 164 | BT196: 397.9 | BU196: 2.1 | BV196: 4 | BW196: 4 | BX196: 10.1 | BY196: 2.8 | BZ196: 4 | CA196: 7 | CB196: 13.8 | CC196: ناجحة | CD196: و منقولة للصف الثانى | CE196: 0 | CF196: 9 | CG196: 9/3 | DC196: 0 | DD196: 0
A197: 188 | B197: 313 | C197: مها احمد مرتضى نوبى | D197: 6/1 | I197: بنات | J197: خدمات | K197: صباحى | M197: 728 | N197: 7.5 | O197: 8.5 | P197: 8.5 | Q197: 24.5 | R197: 7.5 | S197: 14 | T197: 10.7 | U197: 32.2 | V197: 4.5 | W197: 7.5 | X197: 6.4 | Y197: 18.4 | Z197: 5.5 | AA197: 7.5 | AB197: 9.5 | AC197: 22.5 | AD197: 3.5 | AE197: 5.8 | AF197: 9.4 | AG197: 18.7 | AH197: 4.8 | AI197: 3.5 | AJ197: 8.2 | AK197: 7.3 | AL197: 10.2 | AM197: 4 | AN197: 23.2 | AO197: 14.8 | AP197: 38 | AQ197: 7.5 | AR197: 12.5 | AS197: 15 | AT197: 35 | AU197: 7.5 | AV197: 14.1 | AW197: 16.1 | AX197: 37.7 | AY197: 7.5 | AZ197: 17 | BA197: 18.1 | BB197: 42.6 | BC197: 7.5 | BD197: 16.6 | BE197: 18.2 | BF197: 42.3 | BG197: 8.9 | BH197: 15.8 | BI197: 9.5 | BJ197: 34.2 | BK197: 8.3 | BL197: 9.5 | BM197: 9.5 | BN197: 27.3 | BO197: 7.9 | BP197: 14.9 | BQ197: 13.3 | BR197: 36.1 | BS197: 159.2 | BT197: 409.5 | BU197: 2.4 | BV197: 4.8 | BW197: 4 | BX197: 11.2 | BY197: 2 | BZ197: 5 | CA197: 4 | CB197: 11 | CC197: دورثان | CD197: فى : لغة عربية - | CE197: 1 | CF197: 9 | CG197: 9/3 | CM197: لغة عربية - | DC197: 0 | DD197: 1
A198: 189 | B198: 314 | C198: مها محمود محمد حسنين | D198: 7/1 | I198: بنات | J198: خدمات | K198: صباحى | M198: 727 | N198: 7.5 | O198: 8.5 | P198: 8.5 | Q198: 24.5 | R198: 7.5 | S198: 10 | T198: 8.5 | U198: 26 | V198: 5.9 | W198: 5.5 | X198: 4.6 | Y198: 16 | Z198: 5.5 | AA198: 7.5 | AB198: 16.1 | AC198: 29.1 | AD198: 5.1 | AE198: 8.2 | AF198: 6 | AG198: 19.3 | AH198: 3.5 | AI198: 6.2 | AJ198: 6.5 | AK198: 3.5 | AL198: 9.6 | AM198: 5.5 | AN198: 19.6 | AO198: 15.2 | AP198: 34.8 | AQ198: 7.8 | AR198: 15.4 | AS198: 19.7 | AT198: 42.9 | AU198: 7.7 | AV198: 17.8 | AW198: 9.5 | AX198: 35 | AY198: 7.5 | AZ198: 9.5 | BA198: 6.5 | BB198: 23.5 | BC198: 8.9 | BD198: 17.2 | BE198: 9.5 | BF198: 35.6 | BG198: 7.5 | BH198: 9.5 | BI198: 9.5 | BJ198: 26.5 | BK198: 8.6 | BL198: 13.5 | BM198: 9.5 | BN198: 31.6 | BO198: 7.5 | BP198: 13 | BQ198: 9.5 | BR198: 30 | BS198: 145.6 | BT198: 374.8 | BU198: 2 | BV198: 4 | BW198: 6.2 | BX198: 12.2 | BY198: 2 | BZ198: 6.2 | CA198: 5.8 | CB198: 14 | CC198: دورثان | CD198: فى : لغة عربية - سكرتارية اجنبية - | CE198: 2 | CF198: 9 | CG198: 9/3 | CM198: لغة عربية - | CU198: سكرتارية اجنبية - | DC198: 0 | DD198: 2
A199: 190 | B199: 315 | C199: نعمة جابر سيد على | D199: 6/1 | I199: بنات | J199: خدمات | K199: صباحى | M199: 726 | N199: 7.5 | O199: 8.5 | P199: 8.5 | Q199: 24.5 | R199: 7.5 | S199: 8.5 | T199: 11.6 | U199: 27.6 | V199: 3.5 | W199: 7.5 | X199: 7 | Y199: 18 | Z199: 5.5 | AA199: 8.2 | AB199: 9.5 | AC199: 23.2 | AD199: 5.6 | AE199: 5.5 | AF199: 6 | AG199: 17.1 | AH199: 3.5 | AI199: 7.4 | AJ199: 10.3 | AK199: 3.5 | AL199: 6.5 | AM199: 4 | AN199: 20.3 | AO199: 14.9 | AP199: 35.2 | AQ199: 9.3 | AR199: 9.5 | AS199: 9.5 | AT199: 28.3 | AU199: 7.5 | AV199: 9.5 | AW199: 9.5 | AX199: 26.5 | AY199: 7.5 | AZ199: 16.1 | BA199: 12.7 | BB199: 36.3 | BC199: 7.5 | BD199: 9.5 | BE199: 9.5 | BF199: 26.5 | BG199: 7.5 | BH199: 12.5 | BI199: 9.5 | BJ199: 29.5 | BK199: 7.5 | BL199: 11.2 | BM199: 11.9 | BN199: 30.6 | BO199: 7.5 | BP199: 9.5 | BQ199: 18.4 | BR199: 35.4 | BS199: 129.8 | BT199: 358.7 | BU199: 3.6 | BV199: 4 | BW199: 7.4 | BX199: 15 | BY199: 3.7 | BZ199: 4 | CA199: 4 | CB199: 11.7 | CC199: دورثان | CD199: فى : لغة عربية - | CE199: 1 | CF199: 9 | CG199: 9/3 | CM199: لغة عربية - | DC199: 0 | DD199: 1
A200: 191 | B200: 401 | C200: نهلة شعبان محمود حسن | D200: 7/1 | I200: بنات | J200: خدمات | K200: مسائى | M200: 791 | N200: 7.5 | O200: 11 | P200: 13 | Q200: 31.5 | R200: 7.7 | S200: 18.9 | T200: 19.6 | U200: 46.2 | V200: 4.6 | W200: 5.5 | X200: 11.7 | Y200: 21.8 | Z200: 5.5 | AA200: 12.3 | AB200: 9.6 | AC200: 27.4 | AD200: 4.1 | AE200: 5.5 | AF200: 6 | AG200: 15.6 | AH200: 4.5 | AI200: 3.5 | AJ200: 8.6 | AK200: 3.5 | AL200: 6.5 | AM200: 4 | AN200: 19.6 | AO200: 11 | AP200: 30.6 | AQ200: 7.5 | AR200: 9.5 | AS200: 15.5 | AT200: 32.5 | AU200: 7.5 | AV200: 15.7 | AW200: 15.1 | AX200: 38.3 | AY200: 7.5 | AZ200: 9.5 | BA200: 14.6 | BB200: 31.6 | BC200: 7.8 | BD200: 16.3 | BE200: 9.5 | BF200: 33.6 | BG200: 7.5 | BH200: 13.9 | BI200: 9.5 | BJ200: 30.9 | BK200: 8.2 | BL200: 9.6 | BM200: 12.2 | BN200: 30 | BO200: 7.5 | BP200: 9.5 | BQ200: 9.5 | BR200: 26.5 | BS200: 149.3 | BT200: 396.5 | BU200: 2 | BV200: 4.9 | BW200: 4 | BX200: 10.9 | BY200: 2.1 | BZ200: 4 | CA200: 4 | CB200: 10.1 | CC200: ناجحة | CD200: و منقولة للصف الثانى | CE200: 0 | CF200: 1 | CG200: 11/2 | DC200: 0 | DD200: 0
A201: 192 | B201: 402 | C201: نور الهدى محمود احمد البربرى | D201: 7/1 | I201: بنات | J201: خدمات | K201: مسائى | M201: 792 | N201: 8.6 | O201: 18.5 | P201: 19.2 | Q201: 46.3 | R201: 7.5 | S201: 19.7 | T201: 8.5 | U201: 35.7 | V201: 3.5 | W201: 11.3 | X201: 4.5 | Y201: 19.3 | Z201: 5.5 | AA201: 7.5 | AB201: 9.5 | AC201: 22.5 | AD201: 4.9 | AE201: 5.5 | AF201: 6.9 | AG201: 17.3 | AH201: 5.2 | AI201: 3.5 | AJ201: 6.5 | AK201: 3.5 | AL201: 6.5 | AM201: 4 | AN201: 18.2 | AO201: 11 | AP201: 29.2 | AQ201: 7.5 | AR201: 9.5 | AS201: 9.5 | AT201: 26.5 | AU201: 7.5 | AV201: 10 | AW201: 17.3 | AX201: 34.8 | AY201: 7.5 | AZ201: 13.8 | BA201: 6.5 | BB201: 27.8 | BC201: 7.5 | BD201: 18.2 | BE201: 10.8 | BF201: 36.5 | BG201: 7.5 | BH201: 10.6 | BI201: 13.3 | BJ201: 31.4 | BK201: 9.1 | BL201: 9.5 | BM201: 9.5 | BN201: 28.1 | BO201: 7.5 | BP201: 17.3 | BQ201: 15.1 | BR201: 39.9 | BS201: 161.4 | BT201: 395.3 | BU201: 2 | BV201: 4 | BW201: 4 | BX201: 10 | BY201: 3.7 | BZ201: 4 | CA201: 4 | CB201: 11.7 | CC201: ناجحة | CD201: و منقولة للصف الثانى | CE201: 0 | CF201: 1 | CG201: 11/2 | DC201: 0 | DD201: 0
A202: 193 | B202: 403 | C202: نورا احمد جاد الكريم | D202: 6/1 | I202: بنات | J202: خدمات | K202: مسائى | M202: 793 | N202: 7.5 | O202: 10.8 | P202: 8.5 | Q202: =IF(P202="غ","غ",SUM(N202,O202,P202)) -> 26.8 | R202: 7.5 | S202: 11.8 | T202: 16.2 | U202: =IF(T202="غ","غ",SUM(R202,S202,T202)) -> 35.5 | V202: 3.5 | W202: 5.5 | X202: 9.7 | Y202: =IF(X202="غ","غ",SUM(V202,W202,X202)) -> 18.7 | Z202: 5.5 | AA202: 10.6 | AB202: 9.5 | AC202: =IF(AB202="غ","غ",SUM(Z202,AA202,AB202)) -> 25.6 | AD202: 5.3 | AE202: 5.5 | AF202: 6 | AG202: =IF(AF202="غ","غ",SUM(AD202,AE202,AF202)) -> 16.8 | AH202: 6 | AI202: 3.5 | AJ202: 10.8 | AK202: 3.5 | AL202: 10.9 | AM202: 4 | AN202: =IF(AL202="غ","غ",SUM(AH202,AJ202,AL202)) -> 27.7 | AO202: =IF(AM202="غ","غ",SUM(AI202,AK202,AM202)) -> 11 | AP202: =IF(OR(AN202="غ",AO202="غ"),"غ",SUM(AN202,AO202)) -> 38.7 | AQ202: 7.5 | AR202: 9.5 | AS202: 9.5 | AT202: =IF(AS202="غ","غ",SUM(AQ202,AR202,AS202)) -> 26.5 | AU202: 7.5 | AV202: 19.2 | AW202: 19.9 | AX202: =IF(AW202="غ","غ",SUM(AU202,AV202,AW202)) -> 46.6 | AY202: 7.5 | AZ202: 15.4 | BA202: 18.6 | BB202: =IF(BA202="غ","غ",SUM(AY202,AZ202,BA202)) -> 41.5 | BC202: 9.6 | BD202: 9.5 | BE202: 9.5 | BF202: =IF(BE202="غ","غ",SUM(BC202,BD202,BE202)) -> 28.6 | BG202: 7.5 | BH202: 11.4 | BI202: 9.5 | BJ202: =IF(BI202="غ","غ",SUM(BG202,BH202,BI202)) -> 28.4 | BK202: 7.5 | BL202: 9.5 | BM202: 11.7 | BN202: =IF(BM202="غ","غ",SUM(BK202,BL202,BM202)) -> 28.7 | BO202: 7.5 | BP202: 9.5 | BQ202: 10.3 | BR202: =IF(BQ202="غ","غ",SUM(BO202,BP202,BQ202)) -> 27.3 | BS202: =IF(C202="","",SUM(O202,S202,W202,AE202,AR202,AV202,AZ202,BD202,BH202,BL202,BP202,AA202,AJ202,AK202)) -> 142.5 | BT202: =SUM(Q202,U202,Y202,AG202,AT202,AX202,BB202,BF202,BJ202,BN202,BR202,AC202,AP202) -> 389.7 | BU202: 2.5 | BV202: 4 | BW202: 4 | BX202: =IF(BW202="غ","غ",SUM(BU202,BV202,BW202)) -> 10.5 | BY202: 2.7 | BZ202: 4 | CA202: 4.7 | CB202: =IF(CA202="غ","غ",SUM(BY202,BZ202,CA202)) -> 11.4 | CC202: =IF(I202="","",IF(I202="بنات",IF(CE202=0,"ناجحة",IF(DD202>2,"راسبة","دورثان")),IF(I202="بنين",IF(CE202=0,"ناجح",IF(DD202>2,"راسب","دورثان"))))) -> ناجحة | CD202: =IF(C202="","",IF(AND($L202="باقية",$CC202="راسبة"),"وليس لها حق الاعادة",IF(AND($L202<>"باقية",$CC202="راسبة"),"و لها حق الاعادة",IF(AND($L202="باقى",$CC202="راسب"),"وليس له حق الاعادة",IF(AND($L202<>"باقى",$CC202="راسب"),"و له حق الاعادة",IF($CC202="ناجحة","و منقولة للصف الثانى",IF($CC202="ناجح","و منقول للصف الثانى",IF($CC202="دورثان","فى : "&CONCATENATE($CM202,$CN202,$CO202,$CQ202,$CR202,$CS202,$CT202,$CU202,$CV202,$CW202,$CX202,$CY202,$CP202,$CZ202,$DA202,$DB202))))))))) -> و منقولة للصف الثانى | CE202: =IF(C202="","",$DC202+$DD202) -> 0 | CF202: 1 | CG202: 11/2 | CM202: =IF(C202="","",IF(OR(P202<$P$9,P202="غ",Q202<$Q$9),CM$5&" - ","")) ->  | CN202: =IF(C202="","",IF(OR(T202<$T$9,T202="غ",U202<$U$9),CN$5&" - ","")) ->  | CO202: =IF(C202="","",IF(OR(X202<$X$9,X202="غ",Y202<$Y$9),CO$5&" - ","")) ->  | CP202: =IF(C202="","",IF(OR(AB202<$AB$9,AB202="غ",AC202<$AC$9),CP$5&" - ","")) ->  | CQ202: =IF(C202="","",IF(OR(AF202<$AF$9,AF202="غ",AG202<$AG$9),CQ$5&" - ","")) ->  | CR202: =IF(C202="","",IF(OR(AL202<$AL$9,AM202<$AM$9,AN202<$AN$9,AN202="غ",AO202<$AO$9,AO202="غ"),CR$5&" - ","")) ->  | CS202: =IF(C202="","",IF(OR(AS202<$AS$9,AS202="غ",AT202<$AT$9),CS$5&" - ","")) ->  | CT202: =IF(C202="","",IF(OR(AW202<$AW$9,AW202="غ",AX202<$AX$9),CT$5&" - ","")) ->  | CU202: =IF(C202="","",IF(OR(BA202<$BA$9,BA202="غ",BB202<$BB$9),CU$5&" - ","")) ->  | CV202: =IF(C202="","",IF(OR(BE202<$BE$9,BE202="غ",BF202<$BF$9),CV$5&" - ","")) ->  | CW202: =IF(C202="","",IF(OR(BI202<$BI$9,BI202="غ",BJ202<$BJ$9),CW$5&" - ","")) ->  | CX202: =IF(C202="","",IF(OR(BM202<$BM$9,BM202="غ",BN202<$BN$9),CX$5&" - ","")) ->  | CY202: =IF(C202="","",IF(OR(BQ202<$BQ$9,BQ202="غ",BR202<$BR$9),CY$5&" - ","")) ->  | CZ202: =IF(C202="","",IF(BT202<$BT$9,CZ$5&" - ","")) ->  | DA202: =IF(C202="","",IF(OR(BW202<$BW$9,BW202="غ",BX202<$BX$9),DA$5,"")) ->  | DB202: =IF(C202="","",IF(OR(CA202<$CA$9,CA202="غ",CB202<$CB$9),DB$5,"")) ->  | DC202: =COUNTIF($CZ202:$DB202,"?*") -> 0 | DD202: =COUNTIF($CM202:$CY202,"?*") -> 0
... 500 more rows

Sheet شيت دور ثانى
C1: الدور الثانى | O1: =الرئيسية!$B$2&""&الرئيسية!$C$2 -> ادارة ….................... | AU1: شيت كنترول الصف الاول - الدور الثانى | BY1: الدور الثانى
O2: =الرئيسية!$B$3&" "&الرئيسية!$C$3 -> مدرسة ….................... | AU2: للعام الدراسى | BA2: =الرئيسية!$K$2 -> 2019 / 2020 | CD2: قم بتسجيل درجات الملحق اعلى درجة كل مادة من مواد الرسوب على حدة لكل طالب
A5: مسلسل | B5: بيانات أساسية | M5: سرى | N5: لغة عربية | R5: لغة انجليزية | V5: لغة فرنسية | Z5: جغرافيا | AD5: رياضة عامة | AH5: حاسب آلى | AQ5: اقتصاد | AU5: سكرتارية عربية | AY5: سكرتارية اجنبية | BC5: ادارة اعمال | BG5: محاسبة مالية | BK5: تسويق | BO5: قانون تجارى | BS5: مجموع نصف العام | BT5: مجموع كلى | BU5: تربية قومية | BY5: تربية دينية | CC5: النتيجة | CD5: مواد الرسوب | CE5: عدد المواد | CG5: نتيجة الدور الثانى
B6: جلوس | C6: اسم الطالب | D6: الفصل | E6: تاريخ الميلاد | F6: سن الطالب في | G6: الجنسية | H6: الديانة | I6: النوع | J6: الفئة | K6: الفترة | L6: الحــــالة | N6: اعمال السنة | O6: نصف العام | P6: آخر العام | Q6: المجموع | R6: اعمال السنة | S6: نصف العام | T6: آخر العام | U6: المجموع | V6: اعمال السنة | W6: نصف العام | X6: آخر العام | Y6: المجموع | Z6: اعمال السنة | AA6: نصف العام | AB6: آخر العام | AC6: المجموع | AD6: اعمال السنة | AE6: نصف العام | AF6: آخر العام | AG6: المجموع | AH6: اعمال السنة | AJ6: نصف العام | AL6: آخر العام | AN6: مج تحريرى | AO6: مج عملى | AP6: مج حاسب | AQ6: اعمال السنة | AR6: نصف العام | AS6: آخر العام | AT6: المجموع | AU6: اعمال السنة | AV6: نصف العام | AW6: آخر العام | AX6: المجموع | AY6: اعمال السنة | AZ6: نصف العام | BA6: آخر العام | BB6: المجموع | BC6: اعمال السنة | BD6: نصف العام | BE6: آخر العام | BF6: المجموع | BG6: اعمال السنة | BH6: نصف العام | BI6: آخر العام | BJ6: المجموع | BK6: اعمال السنة | BL6: نصف العام | BM6: آخر العام | BN6: المجموع | BO6: اعمال السنة | BP6: نصف العام | BQ6: آخر العام | BR6: المجموع | BU6: اعمال السنة | BV6: نصف العام | BW6: آخر العام | BX6: المجموع | BY6: اعمال السنة | BZ6: نصف العام | CA6: آخر العام | CB6: المجموع
AH7: تحريرى | AI7: عملى | AJ7: تحريرى | AK7: عملى | AL7: تحريرى | AM7: عملى
M8: عظمى | N8: 10 | O8: 20 | P8: 20 | Q8: 50 | R8: 10 | S8: 20 | T8: 20 | U8: 50 | V8: 6 | W8: 12 | X8: 12 | Y8: 30 | Z8: 8 | AA8: 16 | AB8: 16 | AC8: 40 | AD8: 6 | AE8: 12 | AF8: 12 | AG8: 30 | AH8: 6 | AI8: 4 | AJ8: 12 | AK8: 8 | AL8: 12 | AM8: 8 | AN8: 30 | AO8: 20 | AP8: 50 | AQ8: 10 | AR8: 20 | AS8: 20 | AT8: 50 | AU8: 10 | AV8: 20 | AW8: 20 | AX8: 50 | AY8: 10 | AZ8: 20 | BA8: 20 | BB8: 50 | BC8: 10 | BD8: 20 | BE8: 20 | BF8: 50 | BG8: 10 | BH8: 20 | BI8: 20 | BJ8: 50 | BK8: 10 | BL8: 20 | BM8: 20 | BN8: 50 | BO8: 10 | BP8: 20 | BQ8: 20 | BR8: 50 | BS8: 240 | BT8: 600 | BU8: 4 | BV8: 8 | BW8: 8 | BX8: 20 | BY8: 4 | BZ8: 8 | CA8: 8 | CB8: 20
F9: 2021-10-01 | M9: صغرى | N9: 0 | O9: 0 | P9: 5 | Q9: 25 | R9: 0 | S9: 0 | T9: 5 | U9: 25 | V9: 0 | W9: 0 | X9: 3 | Y9: 9 | Z9: 0 | AA9: 0 | AB9: 4 | AC9: 20 | AD9: 0 | AE9: 0 | AF9: 3 | AG9: 15 | AH9: 0 | AI9: 0 | AJ9: 0 | AK9: 0 | AL9: 3 | AM9: 2 | AN9: 15 | AO9: 10 | AP9: 25 | AQ9: 0 | AR9: 0 | AS9: 5 | AT9: 25 | AU9: 0 | AV9: 0 | AW9: 5 | AX9: 20 | AY9: 0 | AZ9: 0 | BA9: 5 | BB9: 25 | BC9: 0 | BD9: 0 | BE9: 5 | BF9: 25 | BG9: 0 | BH9: 0 | BI9: 5 | BJ9: 25 | BK9: 0 | BL9: 0 | BM9: 5 | BN9: 25 | BO9: 0 | BP9: 0 | BQ9: 5 | BR9: 25 | BS9: 0 | BT9: 300 | BU9: 0 | BV9: 0 | BW9: 2 | BX9: 10 | BY9: 0 | BZ9: 0 | CA9: 2 | CB9: 10
A11: 1 | B11: 101 | C11: ابتسام قاسم محمد حسن | D11: 1/1 | E11: 3/22/2004 | F11: 10 - 06 - 17 | I11: بنات | J11: انتظام | K11: صباحى | M11: 675 | N11: 7.5 | O11: 14.1 | P11: 8.5 | Q11: 30.1 | R11: 7.5 | S11: غ | T11: 15 | U11: 22.5 | V11: 3.5 | W11: 5.5 | X11: غ | Y11: غ | Z11: 5.5 | AA11: 7.5 | AB11: 11.1 | AC11: 24.1 | AD11: 4.9 | AE11: 10.9 | AF11: 11.7 | AG11: 27.5 | AH11: 5.6 | AI11: 4 | AJ11: 6.5 | AK11: 3.5 | AL11: 7.3 | AM11: 7.3 | AN11: 19.4 | AO11: 14.8 | AP11: 34.2 | AQ11: 7.5 | AR11: 9.5 | AS11: 9.5 | AT11: 26.5 | AU11: 7.5 | AV11: 17.7 | AW11: 18.6 | AX11: 43.8 | AY11: 7.6 | AZ11: 19.1 | BA11: 12.6 | BB11: 39.3 | BC11: 8.8 | BD11: 9.5 | BE11: 9.5 | BF11: 27.8 | BG11: 7.5 | BH11: 9.5 | BI11: 15 | BJ11: 32 | BK11: 7.5 | BL11: 10.7 | BM11: 9.5 | BN11: 27.7 | BO11: 7.5 | BP11: 9.7 | BQ11: 9.5 | BR11: 26.7 | BS11: 133.7 | BT11: 362.2 | BU11: 2.3 | BV11: 7 | BW11: 4 | BX11: 13.3 | BY11: 3.6 | BZ11: 4 | CA11: 6.1 | CB11: 13.7 | CC11: دورثان | CD11: فى : لغة انجليزية - لغة فرنسية - | CE11: 2
A13: 2 | B13: 102 | C13: ابتسام محمود احمد عبدالرحيم | D13: 2/1 | E13: 11/1/2003 | F13: 00 - 11 - 17 | I13: بنات | J13: انتظام | K13: صباحى | M13: 674 | N13: غ | O13: 10.7 | P13: 16.3 | Q13: 27 | R13: 8.9 | S13: 8.5 | T13: 16.2 | U13: 33.6 | V13: 3.5 | W13: 5.5 | X13: 9.7 | Y13: 18.7 | Z13: 5.5 | AA13: 14.2 | AB13: 16.5 | AC13: 36.2 | AD13: 3.5 | AE13: 5.5 | AF13: 3 | AG13: 12 | AH13: 5.9 | AI13: 6.7 | AJ13: 6.5 | AK13: 7.3 | AL13: 9.8 | AM13: 4 | AN13: 22.2 | AO13: 18 | AP13: 40.2 | AQ13: 8.4 | AR13: 9.9 | AS13: 9.5 | AT13: 27.8 | AU13: 7.5 | AV13: 11.3 | AW13: 19.8 | AX13: 38.6 | AY13: 7.5 | AZ13: 9.5 | BA13: 12.1 | BB13: 29.1 | BC13: 7.5 | BD13: 13 | BE13: 18.3 | BF13: 38.8 | BG13: 7.5 | BH13: 9.5 | BI13: 9.5 | BJ13: 26.5 | BK13: 7.5 | BL13: 15.2 | BM13: 17.2 | BN13: 39.9 | BO13: 7.5 | BP13: 9.5 | BQ13: 11.8 | BR13: 28.8 | BS13: 136.1 | BT13: 397.2 | BU13: 2 | BV13: 4 | BW13: 6.7 | BX13: 12.7 | BY13: 2.1 | BZ13: 4 | CA13: 5.2 | CB13: 11.3 | CC13: دورثان | CD13: فى : رياضة عامة - | CE13: 1
A15: 3 | B15: 104 | C15: اسراء سيد ركابى مصطفى | D15: 1/1 | E15: 9/18/2003 | F15: 13 - 00 - 18 | I15: بنات | J15: انتظام | K15: صباحى | L15: باقية | M15: 672 | N15: 7.5 | O15: 8.5 | P15: 8.5 | Q15: 24.5 | R15: 7.5 | S15: غ | T15: 8.5 | U15: 16 | V15: 3.5 | W15: 7.6 | X15: 4.5 | Y15: 15.6 | Z15: 5.5 | AA15: 7.5 | AB15: 9.5 | AC15: 22.5 | AD15: 3.5 | AE15: 6 | AF15: 6 | AG15: 15.5 | AH15: 4.6 | AI15: 6.9 | AJ15: 7.2 | AK15: 3.5 | AL15: 6.5 | AM15: 4 | AN15: 18.3 | AO15: 14.4 | AP15: 32.7 | AQ15: 8.7 | AR15: 17.4 | AS15: 9.5 | AT15: 35.6 | AU15: 8.7 | AV15: 15 | AW15: 15.4 | AX15: 39.1 | AY15: 7.5 | AZ15: 16 | BA15: 6.5 | BB15: 30 | BC15: 7.5 | BD15: 16.2 | BE15: 9.5 | BF15: 33.2 | BG15: 7.5 | BH15: 9.5 | BI15: 14.7 | BJ15: 31.7 | BK15: 8.1 | BL15: 9.5 | BM15: 9.5 | BN15: 27.1 | BO15: 7.5 | BP15: 9.5 | BQ15: 17 | BR15: 34 | BS15: 133.4 | BT15: 357.5 | BU15: 2 | BV15: 4 | BW15: 6.9 | BX15: 12.9 | BY15: 3.5 | BZ15: 6.9 | CA15: 4 | CB15: 14.4 | CC15: دورثان | CD15: فى : لغة عربية - لغة انجليزية - | CE15: 2
A17: 4 | B17: 105 | C17: اسماء عبدالمنعم محمد محمود | D17: 2/1 | I17: بنات | J17: انتظام | K17: صباحى | M17: 671 | N17: 7.5 | O17: 8.5 | P17: 8.5 | Q17: 24.5 | R17: 7.5 | S17: 12.9 | T17: 8.5 | U17: 28.9 | V17: 5.6 | W17: 5.5 | X17: 4.5 | Y17: 15.6 | Z17: 7.6 | AA17: 7.5 | AB17: 9.5 | AC17: 24.6 | AD17: 3.5 | AE17: 10.5 | AF17: 10.2 | AG17: 24.2 | AH17: 3.5 | AI17: 3.5 | AJ17: 6.5 | AK17: 3.5 | AL17: 6.5 | AM17: 7 | AN17: 16.5 | AO17: 14 | AP17: 30.5 | AQ17: 7.5 | AR17: 13.4 | AS17: 18.8 | AT17: 39.7 | AU17: 7.5 | AV17: 12.5 | AW17: 9.5 | AX17: 29.5 | AY17: 7.5 | AZ17: 9.8 | BA17: 6.5 | BB17: 23.8 | BC17: 7.5 | BD17: 9.5 | BE17: 9.5 | BF17: 26.5 | BG17: 7.8 | BH17: 13.9 | BI17: 9.5 | BJ17: 31.2 | BK17: 7.5 | BL17: 19.1 | BM17: 9.5 | BN17: 36.1 | BO17: 7.5 | BP17: 9.5 | BQ17: 10.9 | BR17: 27.9 | BS17: 142.6 | BT17: 363 | BU17: 3.4 | BV17: 4 | BW17: 4 | BX17: 11.4 | BY17: 3.4 | BZ17: 5.4 | CA17: 4 | CB17: 12.8 | CC17: دورثان | CD17: فى : لغة عربية - سكرتارية اجنبية - | CE17: 2
A19: 5 | B19: 106 | C19: اسماء فاروق دياب مكى | D19: 1/1 | I19: بنات | J19: انتظام | K19: صباحى | M19: 670 | N19: غ | O19: 15.5 | P19: 8.5 | Q19: 24 | R19: 7.5 | S19: 17 | T19: 8.5 | U19: 33 | V19: 3.5 | W19: 5.5 | X19: غ | Y19: غ | Z19: 5.5 | AA19: 7.5 | AB19: 14.4 | AC19: 27.4 | AD19: 5 | AE19: 5.5 | AF19: 6 | AG19: 16.5 | AH19: 3.8 | AI19: 3.5 | AJ19: 10.3 | AK19: 3.5 | AL19: 6.5 | AM19: 4 | AN19: 20.6 | AO19: 11 | AP19: 31.6 | AQ19: 7.5 | AR19: 9.5 | AS19: 9.5 | AT19: 26.5 | AU19: 7.5 | AV19: 13.6 | AW19: 12.5 | AX19: 33.6 | AY19: 7.5 | AZ19: 9.5 | BA19: 14.8 | BB19: 31.8 | BC19: 7.5 | BD19: 11.9 | BE19: 9.5 | BF19: 28.9 | BG19: 7.5 | BH19: 15.4 | BI19: 17.9 | BJ19: 40.8 | BK19: 7.5 | BL19: 9.5 | BM19: 15.5 | BN19: 32.5 | BO19: 7.7 | BP19: 16.1 | BQ19: 9.5 | BR19: 33.3 | BS19: 150.3 | BT19: 359.9 | BU19: 4 | BV19: 4.8 | BW19: 4 | BX19: 12.8 | BY19: 2 | BZ19: 4 | CA19: 4 | CB19: 10 | CC19: دورثان | CD19: فى : لغة عربية - لغة فرنسية - | CE19: 2
A21: 6 | B21: 111 | C21: اميره خالد وحيدالدين محمود | D21: 2/1 | I21: بنات | J21: انتظام | K21: صباحى | M21: 665 | N21: 7.5 | O21: 8.5 | P21: 9.6 | Q21: 25.6 | R21: 7.5 | S21: 8.5 | T21: 8.5 | U21: 24.5 | V21: 3.5 | W21: 9.7 | X21: 4.5 | Y21: 17.7 | Z21: 5.5 | AA21: 9.4 | AB21: 16.1 | AC21: 31 | AD21: 3.5 | AE21: 6.1 | AF21: 6 | AG21: 15.6 | AH21: 3.5 | AI21: 3.5 | AJ21: 9.1 | AK21: 3.5 | AL21: 10.3 | AM21: 4.1 | AN21: 22.9 | AO21: 11.1 | AP21: 34 | AQ21: 7.5 | AR21: 9.5 | AS21: 9.8 | AT21: 26.8 | AU21: 7.5 | AV21: 12.9 | AW21: 9.5 | AX21: 29.9 | AY21: 7.5 | AZ21: 9.5 | BA21: 6.5 | BB21: 23.5 | BC21: 7.5 | BD21: 9.5 | BE21: 9.5 | BF21: 26.5 | BG21: 9.5 | BH21: 9.5 | BI21: 12.5 | BJ21: 31.5 | BK21: 7.5 | BL21: 14.1 | BM21: 9.5 | BN21: 31.1 | BO21: 7.5 | BP21: 9.5 | BQ21: 15.4 | BR21: 32.4 | BS21: 129.3 | BT21: 350.1 | BU21: 2 | BV21: 6.8 | BW21: 4 | BX21: 12.8 | BY21: 2 | BZ21: 4 | CA21: 4 | CB21: 10 | CC21: دورثان | CD21: فى : لغة انجليزية - سكرتارية اجنبية - | CE21: 2
A23: 7 | B23: 113 | C23: اميره محمد احمد رشيد | D23: 3/1 | I23: بنات | J23: انتظام | K23: صباحى | M23: 663 | N23: 7.5 | O23: 17.3 | P23: 8.5 | Q23: 33.3 | R23: 7.5 | S23: 8.5 | T23: 8.5 | U23: 24.5 | V23: 3.5 | W23: 5.5 | X23: غ | Y23: غ | Z23: 5.5 | AA23: 8.1 | AB23: 9.5 | AC23: 23.1 | AD23: 3.5 | AE23: 5.5 | AF23: 7.2 | AG23: 16.2 | AH23: 6 | AI23: 3.5 | AJ23: 6.5 | AK23: 4.9 | AL23: 6.5 | AM23: 4 | AN23: 19 | AO23: 12.4 | AP23: 31.4 | AQ23: 7.5 | AR23: 12.3 | AS23: 9.6 | AT23: 29.4 | AU23: 7.5 | AV23: 18.8 | AW23: 19.9 | AX23: 46.2 | AY23: 7.5 | AZ23: 9.5 | BA23: 19.6 | BB23: 36.6 | BC23: 9.4 | BD23: 9.5 | BE23: 12.2 | BF23: 31.1 | BG23: 7.5 | BH23: 14.8 | BI23: 19.1 | BJ23: 41.4 | BK23: 7.5 | BL23: 17.7 | BM23: 9.5 | BN23: 34.7 | BO23: 7.5 | BP23: 9.5 | BQ23: 19.3 | BR23: 36.3 | BS23: 148.4 | BT23: 384.2 | BU23: 2.2 | BV23: 4 | BW23: 4 | BX23: 10.2 | BY23: 2 | BZ23: 4.9 | CA23: 4 | CB23: 10.9 | CC23: دورثان | CD23: فى : لغة انجليزية - لغة فرنسية - | CE23: 2
A25: 8 | B25: 114 | C25: اميره محمد على عبدالمولى | D25: 3/1 | I25: بنات | J25: انتظام | K25: صباحى | M25: 662 | N25: 7.5 | O25: 15.8 | P25: 8.5 | Q25: 31.8 | R25: 7.5 | S25: 8.9 | T25: 8.5 | U25: 24.9 | V25: 3.5 | W25: 9.5 | X25: 4.5 | Y25: 17.5 | Z25: 5.5 | AA25: 11.2 | AB25: 9.5 | AC25: 26.2 | AD25: 5.9 | AE25: 11.7 | AF25: 6 | AG25: 23.6 | AH25: 3.5 | AI25: 5 | AJ25: 6.5 | AK25: 3.5 | AL25: 6.5 | AM25: 7.8 | AN25: 16.5 | AO25: 16.3 | AP25: 32.8 | AQ25: 7.5 | AR25: 12 | AS25: 10.1 | AT25: 29.6 | AU25: 7.5 | AV25: 9.5 | AW25: 9.5 | AX25: 26.5 | AY25: 9.9 | AZ25: 19.8 | BA25: 16.7 | BB25: 46.4 | BC25: 7.5 | BD25: 9.5 | BE25: 9.5 | BF25: 26.5 | BG25: 7.5 | BH25: 16.7 | BI25: 13.9 | BJ25: 38.1 | BK25: 7.5 | BL25: 9.5 | BM25: 9.5 | BN25: 26.5 | BO25: 8.3 | BP25: 9.5 | BQ25: 9.5 | BR25: 27.3 | BS25: 153.6 | BT25: 377.7 | BU25: 3.6 | BV25: 6.7 | BW25: 5 | BX25: 15.3 | BY25: 2 | BZ25: 4.8 | CA25: 7.9 | CB25: 14.7 | CC25: دورثان | CD25: فى : لغة انجليزية - | CE25: 1
A27: 9 | B27: 115 | C27: ايمان حمدى حسن العدل | D27: 3/1 | I27: بنات | J27: انتظام | K27: صباحى | M27: 661 | N27: 7.5 | O27: 8.5 | P27: 17.1 | Q27: 33.1 | R27: 7.5 | S27: 8.5 | T27: 8.5 | U27: 24.5 | V27: 3.5 | W27: 10.4 | X27: 4.5 | Y27: 18.4 | Z27: 5.5 | AA27: 7.5 | AB27: 14.4 | AC27: 27.4 | AD27: 5.5 | AE27: 5.5 | AF27: 6 | AG27: 17 | AH27: 3.5 | AI27: 6.8 | AJ27: 6.5 | AK27: 3.5 | AL27: 7 | AM27: 4 | AN27: 17 | AO27: 14.3 | AP27: 31.3 | AQ27: 8.4 | AR27: 15.5 | AS27: 10.8 | AT27: 34.7 | AU27: 7.8 | AV27: 9.5 | AW27: 10.3 | AX27: 27.6 | AY27: 7.5 | AZ27: 11.7 | BA27: 6.5 | BB27: 25.7 | BC27: 7.5 | BD27: 9.5 | BE27: 9.5 | BF27: 26.5 | BG27: 8.9 | BH27: 9.5 | BI27: 9.5 | BJ27: 27.9 | BK27: 7.5 | BL27: 9.5 | BM27: 9.5 | BN27: 26.5 | BO27: 7.5 | BP27: 9.5 | BQ27: 11 | BR27: 28 | BS27: 125.1 | BT27: 348.6 | BU27: 2.7 | BV27: 4 | BW27: 6.8 | BX27: 13.5 | BY27: 3 | BZ27: 6.2 | CA27: 4 | CB27: 13.2 | CC27: دورثان | CD27: فى : لغة انجليزية - | CE27: 1
A29: 10 | B29: 116 | C29: ايمان خالد محمود عبدالحميد | D29: 1/1 | I29: بنات | J29: انتظام | K29: صباحى | M29: 660 | N29: 8.1 | O29: 19.2 | P29: 8.5 | Q29: 35.8 | R29: 7.5 | S29: 17.6 | T29: 11.1 | U29: 36.2 | V29: 3.5 | W29: 11.8 | X29: غ | Y29: غ | Z29: 7.7 | AA29: 7.5 | AB29: 9.5 | AC29: 24.7 | AD29: 5.4 | AE29: 8.1 | AF29: 6 | AG29: 19.5 | AH29: 3.6 | AI29: 4.6 | AJ29: 7 | AK29: 3.5 | AL29: 6.5 | AM29: 5.4 | AN29: 17.1 | AO29: 13.5 | AP29: 30.6 | AQ29: 7.5 | AR29: 9.5 | AS29: 10.5 | AT29: 27.5 | AU29: 7.5 | AV29: 9.6 | AW29: 12.1 | AX29: 29.2 | AY29: 8.4 | AZ29: 18.1 | BA29: 12.1 | BB29: 38.6 | BC29: 7.5 | BD29: 9.5 | BE29: 9.5 | BF29: 26.5 | BG29: 7.5 | BH29: 9.5 | BI29: 9.5 | BJ29: 26.5 | BK29: 7.5 | BL29: 19.2 | BM29: 17.1 | BN29: 43.8 | BO29: 7.5 | BP29: 16.1 | BQ29: 9.5 | BR29: 33.1 | BS29: 166.2 | BT29: 372 | BU29: 2 | BV29: 4 | BW29: 4.6 | BX29: 10.6 | BY29: 2 | BZ29: 4 | CA29: 6.7 | CB29: 12.7 | CC29: دورثان | CD29: فى : لغة فرنسية - | CE29: 1
A31: 11 | B31: 117 | C31: ايمان عامر عباس رزق | D31: 1/1 | I31: بنات | J31: انتظام | K31: صباحى | M31: 659 | N31: 7.5 | O31: 17.4 | P31: 12.2 | Q31: 37.1 | R31: 7.5 | S31: 12.2 | T31: 15.7 | U31: 35.4 | V31: 6 | W31: 5.5 | X31: 9.4 | Y31: 20.9 | Z31: 5.5 | AA31: 7.5 | AB31: 9.5 | AC31: 22.5 | AD31: 3.5 | AE31: 8.3 | AF31: 6 | AG31: 17.8 | AH31: 4.4 | AI31: 7.7 | AJ31: 6.5 | AK31: 3.5 | AL31: 6.5 | AM31: 5.5 | AN31: 17.4 | AO31: 16.7 | AP31: 34.1 | AQ31: 9.7 | AR31: 9.5 | AS31: 20 | AT31: 39.2 | AU31: 7.5 | AV31: 14.3 | AW31: 14.7 | AX31: 36.5 | AY31: 7.5 | AZ31: 9.5 | BA31: 6.5 | BB31: 23.5 | BC31: 7.5 | BD31: 9.5 | BE31: 9.5 | BF31: 26.5 | BG31: 7.5 | BH31: 9.5 | BI31: 9.5 | BJ31: 26.5 | BK31: 7.5 | BL31: 9.5 | BM31: 18.8 | BN31: 35.8 | BO31: 7.5 | BP31: 9.5 | BQ31: 18.7 | BR31: 35.7 | BS31: 132.2 | BT31: 391.5 | BU31: 2 | BV31: 6.7 | BW31: 7.7 | BX31: 16.4 | BY31: 2 | BZ31: 4 | CA31: 4 | CB31: 10 | CC31: دورثان | CD31: فى : سكرتارية اجنبية - | CE31: 1
A33: 12 | B33: 118 | C33: ايه السيد محمود موسى | D33: 3/1 | I33: بنات | J33: انتظام | K33: صباحى | M33: 658 | N33: 7.5 | O33: 8.5 | P33: 8.5 | Q33: 24.5 | R33: 7.5 | S33: 8.5 | T33: 8.5 | U33: 24.5 | V33: 3.5 | W33: 5.6 | X33: 4.5 | Y33: 13.6 | Z33: 7.6 | AA33: 10.5 | AB33: 9.5 | AC33: 27.6 | AD33: 3.8 | AE33: 8.8 | AF33: 9.1 | AG33: 21.7 | AH33: 3.5 | AI33: 7.8 | AJ33: 6.6 | AK33: 3.5 | AL33: 6.5 | AM33: 5.9 | AN33: 16.6 | AO33: 17.2 | AP33: 33.8 | AQ33: 9.8 | AR33: 9.5 | AS33: 9.5 | AT33: 28.8 | AU33: 7.5 | AV33: 9.5 | AW33: 9.5 | AX33: 26.5 | AY33: 7.5 | AZ33: 17.5 | BA33: 6.5 | BB33: 31.5 | BC33: 7.5 | BD33: 10.2 | BE33: 9.5 | BF33: 27.2 | BG33: 7.5 | BH33: 9.5 | BI33: 9.5 | BJ33: 26.5 | BK33: 7.5 | BL33: 19 | BM33: 12.4 | BN33: 38.9 | BO33: 7.5 | BP33: 12.9 | BQ33: 9.5 | BR33: 29.9 | BS33: 140.1 | BT33: 355 | BU33: 2 | BV33: 6.6 | BW33: 7.8 | BX33: 16.4 | BY33: 2 | BZ33: 4 | CA33: 4 | CB33: 10 | CC33: دورثان | CD33: فى : لغة عربية - لغة انجليزية - | CE33: 2
A35: 13 | B35: 123 | C35: تبارك الشاذلى محمد حسن | D35: 2/1 | I35: بنات | J35: انتظام | K35: صباحى | M35: 653 | N35: 7.5 | O35: 8.5 | P35: 8.8 | Q35: 24.8 | R35: 7.5 | S35: 10.3 | T35: 11 | U35: 28.8 | V35: 3.5 | W35: 6.9 | X35: 6.6 | Y35: 17 | Z35: 5.5 | AA35: 7.8 | AB35: 19 | AC35: 32.3 | AD35: 3.5 | AE35: 8 | AF35: 7.3 | AG35: 18.8 | AH35: 3.5 | AI35: 3.5 | AJ35: 6.5 | AK35: 3.5 | AL35: 7.9 | AM35: 5.3 | AN35: 17.9 | AO35: 12.3 | AP35: 30.2 | AQ35: 7.5 | AR35: 9.5 | AS35: 11.8 | AT35: 28.8 | AU35: 7.5 | AV35: 15.2 | AW35: 9.5 | AX35: 32.2 | AY35: 7.5 | AZ35: 9.5 | BA35: 6.5 | BB35: 23.5 | BC35: 7.6 | BD35: 16.7 | BE35: 9.5 | BF35: 33.8 | BG35: 8.6 | BH35: 18.6 | BI35: 14.9 | BJ35: 42.1 | BK35: 8.3 | BL35: 9.5 | BM35: 17.1 | BN35: 34.9 | BO35: 9.3 | BP35: 10.2 | BQ35: 16.8 | BR35: 36.3 | BS35: 140.7 | BT35: 383.5 | BU35: 2 | BV35: 4 | BW35: 4 | BX35: 10 | BY35: 2 | BZ35: 4 | CA35: 4 | CB35: 10 | CC35: دورثان | CD35: فى : لغة عربية - سكرتارية اجنبية - | CE35: 2
A37: 14 | B37: 129 | C37: دعاء زين العابدين احمد خليل | D37: 3/1 | I37: بنات | J37: انتظام | K37: صباحى | M37: 647 | N37: 7.5 | O37: 8.5 | P37: 8.5 | Q37: 24.5 | R37: 7.5 | S37: 8.5 | T37: 18.5 | U37: 34.5 | V37: 3.5 | W37: 9.3 | X37: 11.1 | Y37: 23.9 | Z37: 5.5 | AA37: 10.2 | AB37: 9.5 | AC37: 25.2 | AD37: 3.5 | AE37: 7.4 | AF37: 9.2 | AG37: 20.1 | AH37: 3.5 | AI37: 6.5 | AJ37: 6.5 | AK37: 7.5 | AL37: 11.4 | AM37: 4.9 | AN37: 21.4 | AO37: 18.9 | AP37: 40.3 | AQ37: 8.2 | AR37: 13.4 | AS37: 9.5 | AT37: 31.1 | AU37: 7.5 | AV37: 9.5 | AW37: 9.5 | AX37: 26.5 | AY37: 7.5 | AZ37: 14.1 | BA37: 6.5 | BB37: 28.1 | BC37: 7.5 | BD37: 19.2 | BE37: 18.8 | BF37: 45.5 | BG37: 7.5 | BH37: 10 | BI37: 9.5 | BJ37: 27 | BK37: 9.6 | BL37: 9.5 | BM37: 18.4 | BN37: 37.5 | BO37: 7.5 | BP37: 9.5 | BQ37: 9.5 | BR37: 26.5 | BS37: 143.1 | BT37: 390.7 | BU37: 2 | BV37: 4.4 | BW37: 6.5 | BX37: 12.9 | BY37: 2 | BZ37: 5.4 | CA37: 4 | CB37: 11.4 | CC37: دورثان | CD37: فى : لغة عربية - | CE37: 1
A39: 15 | B39: 130 | C39: دعاء عبدالناصر فراج احمد | D39: 1/1 | I39: بنات | J39: انتظام | K39: صباحى | M39: 646 | N39: 7.5 | O39: 8.5 | P39: 8.5 | Q39: 24.5 | R39: 7.5 | S39: 8.5 | T39: 11.8 | U39: 27.8 | V39: 3.5 | W39: 8 | X39: 7.1 | Y39: 18.6 | Z39: 5.5 | AA39: 12 | AB39: 13.4 | AC39: 30.9 | AD39: 3.5 | AE39: 5.5 | AF39: 8.6 | AG39: 17.6 | AH39: 3.9 | AI39: 3.7 | AJ39: 6.5 | AK39: 5.6 | AL39: 6.5 | AM39: 4 | AN39: 16.9 | AO39: 13.3 | AP39: 30.2 | AQ39: 7.5 | AR39: 17.3 | AS39: 11.2 | AT39: 36 | AU39: 8.7 | AV39: 9.5 | AW39: 13.1 | AX39: 31.3 | AY39: 7.6 | AZ39: 9.5 | BA39: 9 | BB39: 26.1 | BC39: 7.5 | BD39: 17.9 | BE39: 14 | BF39: 39.4 | BG39: 7.5 | BH39: 9.5 | BI39: 14.2 | BJ39: 31.2 | BK39: 8.9 | BL39: 9.5 | BM39: 14.1 | BN39: 32.5 | BO39: 7.5 | BP39: 9.5 | BQ39: 18.9 | BR39: 35.9 | BS39: 137.3 | BT39: 382 | BU39: 2 | BV39: 4 | BW39: 4 | BX39: 10 | BY39: 2.9 | BZ39: 6.9 | CA39: 6.1 | CB39: 15.9 | CC39: دورثان | CD39: فى : لغة عربية - | CE39: 1
A41: 16 | B41: 134 | C41: رحاب عبدالله احمد جابر | D41: 2/1 | I41: بنات | J41: انتظام | K41: صباحى | M41: 642 | N41: 8.4 | O41: 19.7 | P41: 17.5 | Q41: 45.6 | R41: 7.5 | S41: 14.1 | T41: 16.7 | U41: 38.3 | V41: 3.5 | W41: 9.3 | X41: 10 | Y41: 22.8 | Z41: 7.5 | AA41: 7.5 | AB41: 9.5 | AC41: 24.5 | AD41: 5 | AE41: 7.6 | AF41: 6.6 | AG41: 19.2 | AH41: 4.6 | AI41: 3.5 | AJ41: 6.5 | AK41: 3.5 | AL41: 6.5 | AM41: 5.1 | AN41: 17.6 | AO41: 12.1 | AP41: 29.7 | AQ41: 7.5 | AR41: 9.6 | AS41: 9.5 | AT41: 26.6 | AU41: 7.5 | AV41: 9.5 | AW41: 15.2 | AX41: 32.2 | AY41: 7.5 | AZ41: 9.5 | BA41: 7.1 | BB41: 24.1 | BC41: 7.5 | BD41: 9.5 | BE41: 9.5 | BF41: 26.5 | BG41: 10 | BH41: 9.5 | BI41: 16.3 | BJ41: 35.8 | BK41: 7.5 | BL41: 18.7 | BM41: 15.2 | BN41: 41.4 | BO41: 7.5 | BP41: 16.8 | BQ41: 9.5 | BR41: 33.8 | BS41: 151.3 | BT41: 400.5 | BU41: 3.7 | BV41: 4 | BW41: 4 | BX41: 11.7 | BY41: 2 | BZ41: 4 | CA41: 4 | CB41: 10 | CC41: دورثان | CD41: فى : سكرتارية اجنبية - | CE41: 1
A43: 17 | B43: 135 | C43: رحاب محمد ابوالوفا خليفه | D43: 3/1 | I43: بنات | J43: انتظام | K43: صباحى | M43: 641 | N43: 7.5 | O43: 18.2 | P43: 8.5 | Q43: 34.2 | R43: 7.5 | S43: 8.5 | T43: 8.5 | U43: 24.5 | V43: 3.5 | W43: 5.7 | X43: 4.5 | Y43: 13.7 | Z43: 5.5 | AA43: 7.5 | AB43: 9.5 | AC43: 22.5 | AD43: 3.5 | AE43: 6.6 | AF43: 6.1 | AG43: 16.2 | AH43: 3.5 | AI43: 3.5 | AJ43: 8.8 | AK43: 6 | AL43: 6.5 | AM43: 4.4 | AN43: 18.8 | AO43: 13.9 | AP43: 32.7 | AQ43: 7.5 | AR43: 18.7 | AS43: 9.5 | AT43: 35.7 | AU43: 9.4 | AV43: 9.5 | AW43: 9.5 | AX43: 28.4 | AY43: 9.5 | AZ43: 18.3 | BA43: 15.7 | BB43: 43.5 | BC43: 7.5 | BD43: 9.5 | BE43: 15.1 | BF43: 32.1 | BG43: 7.5 | BH43: 9.5 | BI43: 19.1 | BJ43: 36.1 | BK43: 7.5 | BL43: 9.5 | BM43: 15.4 | BN43: 32.4 | BO43: 7.5 | BP43: 9.5 | BQ43: 9.5 | BR43: 26.5 | BS43: 145.8 | BT43: 378.5 | BU43: 2 | BV43: 7.9 | BW43: 4 | BX43: 13.9 | BY43: 2.2 | BZ43: 7.5 | CA43: 7.6 | CB43: 17.3 | CC43: دورثان | CD43: فى : لغة انجليزية - | CE43: 1
A45: 18 | B45: 137 | C45: رحاب محمد عباس كجه | D45: 2/1 | I45: بنات | J45: انتظام | K45: صباحى | M45: 639 | N45: 7.5 | O45: 13.9 | P45: 16.2 | Q45: 37.6 | R45: 9.3 | S45: 14.8 | T45: 8.5 | U45: 32.6 | V45: 3.7 | W45: 6.8 | X45: 4.5 | Y45: 15 | Z45: 5.5 | AA45: 14.8 | AB45: 18.6 | AC45: 38.9 | AD45: 3.5 | AE45: 10.1 | AF45: 6 | AG45: 19.6 | AH45: 5.9 | AI45: 3.5 | AJ45: 6.5 | AK45: 3.5 | AL45: 6.5 | AM45: 6.7 | AN45: 18.9 | AO45: 13.7 | AP45: 32.6 | AQ45: 7.5 | AR45: 9.5 | AS45: 12.4 | AT45: 29.4 | AU45: 7.5 | AV45: 17.4 | AW45: 19.8 | AX45: 44.7 | AY45: 8.8 | AZ45: 9.5 | BA45: 6.5 | BB45: 24.8 | BC45: 8.7 | BD45: 11.6 | BE45: 9.5 | BF45: 29.8 | BG45: 7.5 | BH45: 16.1 | BI45: 14.8 | BJ45: 38.4 | BK45: 7.5 | BL45: 9.5 | BM45: 12.9 | BN45: 29.9 | BO45: 8 | BP45: 9.5 | BQ45: 9.5 | BR45: 27 | BS45: 153.5 | BT45: 400.3 | BU45: 2 | BV45: 4 | BW45: 4 | BX45: 10 | BY45: 2 | BZ45: 4 | CA45: 7 | CB45: 13 | CC45: دورثان | CD45: فى : سكرتارية اجنبية - | CE45: 1
A47: 19 | B47: 138 | C47: رحاب محمد على احمد | D47: 2/1 | I47: بنات | J47: انتظام | K47: صباحى | M47: 638 | N47: 7.5 | O47: 19.6 | P47: 11.5 | Q47: 38.6 | R47: 7.5 | S47: 8.8 | T47: 8.5 | U47: 24.8 | V47: 4.6 | W47: 5.5 | X47: 4.5 | Y47: 14.6 | Z47: 5.5 | AA47: 7.5 | AB47: 12.5 | AC47: 25.5 | AD47: 3.5 | AE47: 11.2 | AF47: 6 | AG47: 20.7 | AH47: 5.1 | AI47: 4.3 | AJ47: 6.5 | AK47: 3.5 | AL47: 6.6 | AM47: 7.5 | AN47: 18.2 | AO47: 15.3 | AP47: 33.5 | AQ47: 7.5 | AR47: 17.3 | AS47: 15.3 | AT47: 40.1 | AU47: 8.6 | AV47: 16.7 | AW47: 17.1 | AX47: 42.4 | AY47: 7.5 | AZ47: 18.6 | BA47: 19.1 | BB47: 45.2 | BC47: 8.4 | BD47: 17.8 | BE47: 9.5 | BF47: 35.7 | BG47: 9.8 | BH47: 16.5 | BI47: 9.5 | BJ47: 35.8 | BK47: 8.9 | BL47: 9.5 | BM47: 9.5 | BN47: 27.9 | BO47: 8.3 | BP47: 15.1 | BQ47: 18.9 | BR47: 42.3 | BS47: 174.1 | BT47: 427.1 | BU47: 2 | BV47: 7.8 | BW47: 4.3 | BX47: 14.1 | BY47: 2 | BZ47: 6.9 | CA47: 4 | CB47: 12.9 | CC47: دورثان | CD47: فى : لغة انجليزية - | CE47: 1
A49: 20 | B49: 139 | C49: رضا احمد بسطاوى احمد | D49: 2/1 | I49: بنات | J49: انتظام | K49: صباحى | M49: 637 | N49: 8.2 | O49: 8.5 | P49: 12.8 | Q49: 29.5 | R49: 7.5 | S49: 8.5 | T49: 8.7 | U49: 24.7 | V49: 3.5 | W49: 5.5 | X49: 5.2 | Y49: 14.2 | Z49: 5.5 | AA49: 8.7 | AB49: 9.5 | AC49: 23.7 | AD49: 3.5 | AE49: 5.5 | AF49: 6 | AG49: 15 | AH49: 3.5 | AI49: 6.6 | AJ49: 11 | AK49: 3.5 | AL49: 6.5 | AM49: 4 | AN49: 21 | AO49: 14.1 | AP49: 35.1 | AQ49: 8.3 | AR49: 9.5 | AS49: 9.5 | AT49: 27.3 | AU49: 7.5 | AV49: 10.7 | AW49: 9.5 | AX49: 27.7 | AY49: 7.5 | AZ49: 9.5 | BA49: 14.8 | BB49: 31.8 | BC49: 7.5 | BD49: 15.7 | BE49: 9.5 | BF49: 32.7 | BG49: 7.5 | BH49: 9.5 | BI49: 9.5 | BJ49: 26.5 | BK49: 7.8 | BL49: 15.8 | BM49: 17.6 | BN49: 41.2 | BO49: 7.5 | BP49: 16.4 | BQ49: 9.5 | BR49: 33.4 | BS49: 138.3 | BT49: 362.8 | BU49: 2 | BV49: 4 | BW49: 6.6 | BX49: 12.6 | BY49: 2 | BZ49: 4 | CA49: 4 | CB49: 10 | CC49: دورثان | CD49: فى : لغة انجليزية - | CE49: 1
A51: 21 | B51: 143 | C51: زينب احمد زغلول احمد | D51: 1/1 | I51: بنات | J51: انتظام | K51: صباحى | M51: 633 | N51: 7.5 | O51: 13.5 | P51: 11.2 | Q51: 32.2 | R51: 7.5 | S51: 8.5 | T51: 8.5 | U51: 24.5 | V51: 5.1 | W51: 5.5 | X51: 4.5 | Y51: 15.1 | Z51: 5.5 | AA51: 7.5 | AB51: 10.5 | AC51: 23.5 | AD51: 4.5 | AE51: 5.5 | AF51: 6 | AG51: 16 | AH51: 3.5 | AI51: 3.5 | AJ51: 6.5 | AK51: 3.5 | AL51: 9.2 | AM51: 4 | AN51: 19.2 | AO51: 11 | AP51: 30.2 | AQ51: 7.5 | AR51: 14.6 | AS51: 16.9 | AT51: 39 | AU51: 7.5 | AV51: 20 | AW51: 9.5 | AX51: 37 | AY51: 7.5 | AZ51: 9.5 | BA51: 7.3 | BB51: 24.3 | BC51: 10 | BD51: 9.5 | BE51: 11.1 | BF51: 30.6 | BG51: 7.5 | BH51: 9.5 | BI51: 9.5 | BJ51: 26.5 | BK51: 7.5 | BL51: 14.8 | BM51: 9.5 | BN51: 31.8 | BO51: 7.5 | BP51: 11.8 | BQ51: 15.1 | BR51: 34.4 | BS51: 140.2 | BT51: 365.1 | BU51: 2 | BV51: 4.2 | BW51: 4 | BX51: 10.2 | BY51: 2 | BZ51: 5.8 | CA51: 4 | CB51: 11.8 | CC51: دورثان | CD51: فى : لغة انجليزية - سكرتارية اجنبية - | CE51: 2
A53: 22 | B53: 147 | C53: زينب شعبان على محمد | D53: 2/1 | I53: بنات | J53: انتظام | K53: صباحى | M53: 629 | N53: 9.2 | O53: 8.5 | P53: 17 | Q53: 34.7 | R53: 7.5 | S53: 19.1 | T53: 16.5 | U53: 43.1 | V53: 3.5 | W53: 5.5 | X53: 9.9 | Y53: 18.9 | Z53: 5.5 | AA53: 7.5 | AB53: 14.5 | AC53: 27.5 | AD53: 3.5 | AE53: 7 | AF53: 7.9 | AG53: 18.4 | AH53: 4.2 | AI53: 7.1 | AJ53: 10.7 | AK53: 5.3 | AL53: 6.5 | AM53: 4.7 | AN53: 21.4 | AO53: 17.1 | AP53: 38.5 | AQ53: 8.9 | AR53: 11.3 | AS53: 9.5 | AT53: 29.7 | AU53: 7.5 | AV53: 9.5 | AW53: 14.1 | AX53: 31.1 | AY53: 7.5 | AZ53: 9.5 | BA53: 6.5 | BB53: 23.5 | BC53: 7.5 | BD53: 9.5 | BE53: 13.3 | BF53: 30.3 | BG53: 7.5 | BH53: 9.5 | BI53: 18.3 | BJ53: 35.3 | BK53: 7.5 | BL53: 11.7 | BM53: 9.5 | BN53: 28.7 | BO53: 7.5 | BP53: 18.4 | BQ53: 9.5 | BR53: 35.4 | BS53: 143 | BT53: 395.1 | BU53: 2.2 | BV53: 4 | BW53: 7.1 | BX53: 13.3 | BY53: 3.6 | BZ53: 4.5 | CA53: 4.6 | CB53: 12.7 | CC53: دورثان | CD53: فى : سكرتارية اجنبية - | CE53: 1
A55: 23 | B55: 149 | C55: زينب محمود احمد عبدالله | D55: 1/1 | I55: بنات | J55: انتظام | K55: صباحى | M55: 627 | N55: 7.5 | O55: 8.5 | P55: 8.7 | Q55: 24.7 | R55: 7.5 | S55: 18.8 | T55: 8.5 | U55: 34.8 | V55: 3.5 | W55: 5.5 | X55: 4.5 | Y55: 13.5 | Z55: 5.5 | AA55: 7.5 | AB55: 9.5 | AC55: 22.5 | AD55: 3.5 | AE55: 6.3 | AF55: 6 | AG55: 15.8 | AH55: 3.5 | AI55: 3.5 | AJ55: 8.7 | AK55: 7 | AL55: 6.5 | AM55: 4.2 | AN55: 18.7 | AO55: 14.7 | AP55: 33.4 | AQ55: 7.5 | AR55: 9.5 | AS55: 9.5 | AT55: 26.5 | AU55: 7.5 | AV55: 17.5 | AW55: 9.5 | AX55: 34.5 | AY55: 7.5 | AZ55: 9.5 | BA55: 10.7 | BB55: 27.7 | BC55: 8.8 | BD55: 17.7 | BE55: 17.5 | BF55: 44 | BG55: 9.5 | BH55: 18.4 | BI55: 9.5 | BJ55: 37.4 | BK55: 8.8 | BL55: 9.5 | BM55: 17.8 | BN55: 36.1 | BO55: 9.2 | BP55: 9.5 | BQ55: 11.1 | BR55: 29.8 | BS55: 153.9 | BT55: 380.7 | BU55: 2 | BV55: 4 | BW55: 4 | BX55: 10 | BY55: 2 | BZ55: 4 | CA55: 4 | CB55: 10 | CC55: دورثان | CD55: فى : لغة عربية - | CE55: 1
A57: 24 | B57: 150 | C57: زينب ممدوح احمد عبدالله | D57: 3/1 | I57: بنات | J57: انتظام | K57: صباحى | M57: 626 | N57: 7.5 | O57: 8.5 | P57: 9.6 | Q57: 25.6 | R57: 7.5 | S57: 8.5 | T57: 8.5 | U57: 24.5 | V57: 3.5 | W57: 5.5 | X57: 4.5 | Y57: 13.5 | Z57: 5.5 | AA57: 7.5 | AB57: 15.8 | AC57: 28.8 | AD57: 3.5 | AE57: 5.7 | AF57: 6 | AG57: 15.2 | AH57: 4.3 | AI57: 3.5 | AJ57: 8.1 | AK57: 7.8 | AL57: 8.3 | AM57: 4 | AN57: 20.7 | AO57: 15.3 | AP57: 36 | AQ57: 7.5 | AR57: 9.5 | AS57: 9.5 | AT57: 26.5 | AU57: 7.5 | AV57: 11.8 | AW57: 14.3 | AX57: 33.6 | AY57: 9.8 | AZ57: 10 | BA57: 7.7 | BB57: 27.5 | BC57: 7.5 | BD57: 12.6 | BE57: 19.4 | BF57: 39.5 | BG57: 7.5 | BH57: 11.3 | BI57: 9.5 | BJ57: 28.3 | BK57: 7.5 | BL57: 9.5 | BM57: 19.9 | BN57: 36.9 | BO57: 7.5 | BP57: 10.3 | BQ57: 9.5 | BR57: 27.3 | BS57: 126.6 | BT57: 363.2 | BU57: 2 | BV57: 6.5 | BW57: 4 | BX57: 12.5 | BY57: 2 | BZ57: 4 | CA57: 7.9 | CB57: 13.9 | CC57: دورثان | CD57: فى : لغة انجليزية - | CE57: 1
A59: 25 | B59: 151 | C59: زينب يحى ابوالمجد احمد | D59: 2/1 | I59: بنات | J59: انتظام | K59: صباحى | M59: 625 | N59: 7.5 | O59: 8.5 | P59: 8.5 | Q59: 24.5 | R59: 7.7 | S59: 19.7 | T59: 12.5 | U59: 39.9 | V59: 3.5 | W59: 10.6 | X59: 7.5 | Y59: 21.6 | Z59: 5.5 | AA59: 12.4 | AB59: 10.5 | AC59: 28.4 | AD59: 3.5 | AE59: 7 | AF59: 6 | AG59: 16.5 | AH59: 3.5 | AI59: 6.2 | AJ59: 6.7 | AK59: 3.5 | AL59: 6.5 | AM59: 4.7 | AN59: 16.7 | AO59: 14.4 | AP59: 31.1 | AQ59: 7.7 | AR59: 14.9 | AS59: 9.5 | AT59: 32.1 | AU59: 7.5 | AV59: 14.3 | AW59: 9.5 | AX59: 31.3 | AY59: 7.5 | AZ59: 18.7 | BA59: 6.5 | BB59: 32.7 | BC59: 7.5 | BD59: 9.5 | BE59: 9.5 | BF59: 26.5 | BG59: 7.5 | BH59: 9.5 | BI59: 9.5 | BJ59: 26.5 | BK59: 7.5 | BL59: 14.6 | BM59: 9.5 | BN59: 31.6 | BO59: 7.5 | BP59: 9.5 | BQ59: 17.2 | BR59: 34.2 | BS59: 159.4 | BT59: 376.9 | BU59: 2.9 | BV59: 4 | BW59: 6.2 | BX59: 13.1 | BY59: 3.2 | BZ59: 6 | CA59: 5.1 | CB59: 14.3 | CC59: دورثان | CD59: فى : لغة عربية - | CE59: 1
A61: 26 | B61: 152 | C61: ساره نظمى بولس شاكر | D61: 1/1 | I61: بنات | J61: انتظام | K61: صباحى | M61: 624 | N61: 7.5 | O61: 8.5 | P61: 8.5 | Q61: 24.5 | R61: 7.5 | S61: 12.7 | T61: 12.5 | U61: 32.7 | V61: 3.5 | W61: 7 | X61: 7.5 | Y61: 18 | Z61: 5.5 | AA61: 11.2 | AB61: 9.5 | AC61: 26.2 | AD61: 3.5 | AE61: 9.3 | AF61: 7.4 | AG61: 20.2 | AH61: 4.9 | AI61: 6.9 | AJ61: 6.5 | AK61: 3.5 | AL61: 10.7 | AM61: 6.2 | AN61: 22.1 | AO61: 16.6 | AP61: 38.7 | AQ61: 8.6 | AR61: 9.5 | AS61: 9.5 | AT61: 27.6 | AU61: 7.5 | AV61: 19.5 | AW61: 16.2 | AX61: 43.2 | AY61: 8.7 | AZ61: 9.5 | BA61: 6.5 | BB61: 24.7 | BC61: 9.7 | BD61: 12.4 | BE61: 9.5 | BF61: 31.6 | BG61: 8.1 | BH61: 13.4 | BI61: 15.1 | BJ61: 36.6 | BK61: 7.5 | BL61: 9.5 | BM61: 17.3 | BN61: 34.3 | BO61: 7.5 | BP61: 9.5 | BQ61: 19.2 | BR61: 36.2 | BS61: 142 | BT61: 394.5 | BU61: 3.8 | BV61: 4 | BW61: 6.9 | BX61: 14.7 | BY61: 2 | BZ61: 4 | CA61: 7 | CB61: 13 | CC61: دورثان | CD61: فى : لغة عربية - سكرتارية اجنبية - | CE61: 2
A63: 27 | B63: 158 | C63: سمر خالد محمد حسن | D63: 2/1 | I63: بنات | J63: انتظام | K63: صباحى | M63: 618 | N63: 7.5 | O63: 8.5 | P63: 8.5 | Q63: 24.5 | R63: 7.5 | S63: 8.5 | T63: 12.4 | U63: 28.4 | V63: 3.8 | W63: 9.9 | X63: 7.4 | Y63: 21.1 | Z63: 7.9 | AA63: 7.5 | AB63: 16.6 | AC63: 32 | AD63: 3.5 | AE63: 5.5 | AF63: 6 | AG63: 15 | AH63: 5 | AI63: 3.5 | AJ63: 7.2 | AK63: 7.5 | AL63: 6.5 | AM63: 4 | AN63: 18.7 | AO63: 15 | AP63: 33.7 | AQ63: 7.5 | AR63: 9.5 | AS63: 12.6 | AT63: 29.6 | AU63: 7.5 | AV63: 9.5 | AW63: 16.7 | AX63: 33.7 | AY63: 7.5 | AZ63: 9.5 | BA63: 6.5 | BB63: 23.5 | BC63: 7.5 | BD63: 15.4 | BE63: 18.8 | BF63: 41.7 | BG63: 7.5 | BH63: 17.9 | BI63: 16.6 | BJ63: 42 | BK63: 7.7 | BL63: 19.8 | BM63: 18.8 | BN63: 46.3 | BO63: 8.9 | BP63: 9.5 | BQ63: 10.5 | BR63: 28.9 | BS63: 145.7 | BT63: 400.4 | BU63: 3.3 | BV63: 4 | BW63: 4 | BX63: 11.3 | BY63: 2 | BZ63: 4 | CA63: 5.9 | CB63: 11.9 | CC63: دورثان | CD63: فى : لغة عربية - سكرتارية اجنبية - | CE63: 2
A65: 28 | B65: 159 | C65: سها رمضان على مغربى | D65: 3/1 | I65: بنات | J65: انتظام | K65: صباحى | M65: 617 | N65: 9.8 | O65: 8.5 | P65: 15.9 | Q65: 34.2 | R65: 7.5 | S65: 8.8 | T65: 8.5 | U65: 24.8 | V65: 3.5 | W65: 5.5 | X65: 4.5 | Y65: 13.5 | Z65: 5.5 | AA65: 9.7 | AB65: 12.4 | AC65: 27.6 | AD65: 3.7 | AE65: 5.5 | AF65: 6 | AG65: 15.2 | AH65: 3.5 | AI65: 6 | AJ65: 6.5 | AK65: 3.5 | AL65: 6.5 | AM65: 4 | AN65: 16.5 | AO65: 13.5 | AP65: 30 | AQ65: 7.6 | AR65: 15.1 | AS65: 9.5 | AT65: 32.2 | AU65: 7.6 | AV65: 9.9 | AW65: 9.7 | AX65: 27.2 | AY65: 7.5 | AZ65: 18.7 | BA65: 10 | BB65: 36.2 | BC65: 7.5 | BD65: 11 | BE65: 9.5 | BF65: 28 | BG65: 7.5 | BH65: 9.5 | BI65: 11.4 | BJ65: 28.4 | BK65: 7.5 | BL65: 18.4 | BM65: 9.5 | BN65: 35.4 | BO65: 7.5 | BP65: 19.5 | BQ65: 10.5 | BR65: 37.5 | BS65: 150.1 | BT65: 370.2 | BU65: 2 | BV65: 4 | BW65: 6 | BX65: 12 | BY65: 2 | BZ65: 6 | CA65: 4.7 | CB65: 12.7 | CC65: دورثان | CD65: فى : لغة انجليزية - | CE65: 1
A67: 29 | B67: 161 | C67: سيمون عادل اسحاق | D67: 2/1 | I67: بنات | J67: انتظام | K67: صباحى | M67: 615 | N67: 7.5 | O67: 8.5 | P67: 17.5 | Q67: 33.5 | R67: 7.5 | S67: 8.5 | T67: 15.2 | U67: 31.2 | V67: 3.5 | W67: 5.5 | X67: 9.1 | Y67: 18.1 | Z67: 5.5 | AA67: 11.1 | AB67: 19.1 | AC67: 35.7 | AD67: 3.5 | AE67: 6.3 | AF67: 6 | AG67: 15.8 | AH67: 3.7 | AI67: 6.8 | AJ67: 10.2 | AK67: 7.1 | AL67: 6.5 | AM67: 4.2 | AN67: 20.4 | AO67: 18.1 | AP67: 38.5 | AQ67: 8.5 | AR67: 9.5 | AS67: 9.5 | AT67: 27.5 | AU67: 7.5 | AV67: 11.2 | AW67: 12.5 | AX67: 31.2 | AY67: 7.5 | AZ67: 9.5 | BA67: 7.1 | BB67: 24.1 | BC67: 7.5 | BD67: 15.1 | BE67: 17.7 | BF67: 40.3 | BG67: 7.5 | BH67: 18.5 | BI67: 9.5 | BJ67: 35.5 | BK67: 7.6 | BL67: 16 | BM67: 19.9 | BN67: 43.5 | BO67: 9.2 | BP67: 12.9 | BQ67: 14.9 | BR67: 37 | BS67: 149.9 | BT67: 411.9 | BU67: 2.1 | BV67: 5.7 | BW67: 6.8 | BX67: 14.6 | BY67: 2.9 | BZ67: 4 | CA67: 4 | CB67: 10.9 | CC67: دورثان | CD67: فى : سكرتارية اجنبية - | CE67: 1
A69: 30 | B69: 163 | C69: شهد سليمان محمد سليمان | D69: 3/1 | I69: بنات | J69: انتظام | K69: صباحى | M69: 613 | N69: 7.5 | O69: 14.3 | P69: 19.9 | Q69: 41.7 | R69: 7.5 | S69: 8.5 | T69: 8.5 | U69: 24.5 | V69: 3.5 | W69: 11.9 | X69: 4.5 | Y69: 19.9 | Z69: 5.5 | AA69: 11.8 | AB69: 10.7 | AC69: 28 | AD69: 4.4 | AE69: 5.5 | AF69: 8.9 | AG69: 18.8 | AH69: 3.5 | AI69: 5.4 | AJ69: 6.5 | AK69: 3.5 | AL69: 6.5 | AM69: 4 | AN69: 16.5 | AO69: 12.9 | AP69: 29.4 | AQ69: 7.5 | AR69: 9.5 | AS69: 10.6 | AT69: 27.6 | AU69: 7.5 | AV69: 10.7 | AW69: 11.8 | AX69: 30 | AY69: 7.5 | AZ69: 9.5 | BA69: 6.5 | BB69: 23.5 | BC69: 7.5 | BD69: 12.8 | BE69: 9.5 | BF69: 29.8 | BG69: 7.5 | BH69: 9.5 | BI69: 12.1 | BJ69: 29.1 | BK69: 7.5 | BL69: 9.5 | BM69: 11.8 | BN69: 28.8 | BO69: 7.5 | BP69: 9.5 | BQ69: 9.7 | BR69: 26.7 | BS69: 133 | BT69: 357.8 | BU69: 2 | BV69: 4 | BW69: 5.4 | BX69: 11.4 | BY69: 3.3 | BZ69: 4 | CA69: 4.7 | CB69: 12 | CC69: دورثان | CD69: فى : لغة انجليزية - سكرتارية اجنبية - | CE69: 2
A71: 31 | B71: 166 | C71: شهندا محمد سعيد احمد | D71: 1/1 | I71: بنات | J71: انتظام | K71: صباحى | M71: 610 | N71: 7.5 | O71: 8.5 | P71: 8.5 | Q71: 24.5 | R71: 7.5 | S71: 11.6 | T71: 15.2 | U71: 34.3 | V71: 4.6 | W71: 5.5 | X71: 9.1 | Y71: 19.2 | Z71: 5.5 | AA71: 7.5 | AB71: 10.4 | AC71: 23.4 | AD71: 3.5 | AE71: 5.5 | AF71: 6 | AG71: 15 | AH71: 5.6 | AI71: 3.5 | AJ71: 6.5 | AK71: 3.5 | AL71: 6.5 | AM71: 4 | AN71: 18.6 | AO71: 11 | AP71: 29.6 | AQ71: 7.5 | AR71: 18.5 | AS71: 15.4 | AT71: 41.4 | AU71: 9.3 | AV71: 14.9 | AW71: 18.6 | AX71: 42.8 | AY71: 7.5 | AZ71: 9.5 | BA71: 6.5 | BB71: 23.5 | BC71: 7.5 | BD71: 11.7 | BE71: 9.5 | BF71: 28.7 | BG71: 7.5 | BH71: 10.3 | BI71: 9.5 | BJ71: 27.3 | BK71: 7.5 | BL71: 9.5 | BM71: 9.5 | BN71: 26.5 | BO71: 7.5 | BP71: 12.7 | BQ71: 9.5 | BR71: 29.7 | BS71: 135.7 | BT71: 365.9 | BU71: 2 | BV71: 4 | BW71: 4 | BX71: 10 | BY71: 2 | BZ71: 7.4 | CA71: 4 | CB71: 13.4 | CC71: دورثان | CD71: فى : لغة عربية - سكرتارية اجنبية - | CE71: 2
A73: 32 | B73: 167 | C73: شيرين سلامه عبدالفتاح احمد | D73: 3/1 | I73: بنات | J73: انتظام | K73: صباحى | M73: 609 | N73: 9.3 | O73: 8.5 | P73: 8.5 | Q73: 26.3 | R73: 7.5 | S73: 8.5 | T73: 8.5 | U73: 24.5 | V73: 4.8 | W73: 5.5 | X73: 4.5 | Y73: 14.8 | Z73: 5.5 | AA73: 7.5 | AB73: 14.2 | AC73: 27.2 | AD73: 3.6 | AE73: 8.3 | AF73: 6 | AG73: 17.9 | AH73: 3.7 | AI73: 6.9 | AJ73: 8.2 | AK73: 3.5 | AL73: 9.7 | AM73: 5.5 | AN73: 21.6 | AO73: 15.9 | AP73: 37.5 | AQ73: 8.6 | AR73: 9.5 | AS73: 16.1 | AT73: 34.2 | AU73: 7.5 | AV73: 17.4 | AW73: 12.4 | AX73: 37.3 | AY73: 9.7 | AZ73: 9.5 | BA73: 6.5 | BB73: 25.7 | BC73: 8.7 | BD73: 12.8 | BE73: 9.5 | BF73: 31 | BG73: 7.5 | BH73: 9.5 | BI73: 12.1 | BJ73: 29.1 | BK73: 7.5 | BL73: 9.5 | BM73: 9.5 | BN73: 26.5 | BO73: 7.5 | BP73: 18.7 | BQ73: 9.5 | BR73: 35.7 | BS73: 136.9 | BT73: 367.7 | BU73: 2.7 | BV73: 4 | BW73: 6.9 | BX73: 13.6 | BY73: 2.9 | BZ73: 4 | CA73: 7.7 | CB73: 14.6 | CC73: دورثان | CD73: فى : لغة انجليزية - | CE73: 1
A75: 33 | B75: 170 | C75: شيماء عبدالحارس جبريل | D75: 3/1 | I75: بنات | J75: انتظام | K75: صباحى | M75: 606 | N75: 7.5 | O75: 9.2 | P75: 8.9 | Q75: 25.6 | R75: 7.9 | S75: 8.5 | T75: 8.5 | U75: 24.9 | V75: 3.5 | W75: 7.3 | X75: 4.5 | Y75: 15.3 | Z75: 5.5 | AA75: 12.6 | AB75: 9.5 | AC75: 27.6 | AD75: 3.5 | AE75: 11.3 | AF75: 6 | AG75: 20.8 | AH75: 5.9 | AI75: 3.5 | AJ75: 11.1 | AK75: 3.5 | AL75: 9.1 | AM75: 7.6 | AN75: 26.1 | AO75: 14.6 | AP75: 40.7 | AQ75: 7.5 | AR75: 9.5 | AS75: 9.5 | AT75: 26.5 | AU75: 7.5 | AV75: 11.5 | AW75: 19.7 | AX75: 38.7 | AY75: 7.6 | AZ75: 10.1 | BA75: 12.5 | BB75: 30.2 | BC75: 7.5 | BD75: 9.5 | BE75: 9.5 | BF75: 26.5 | BG75: 7.5 | BH75: 18.1 | BI75: 9.5 | BJ75: 35.1 | BK75: 7.5 | BL75: 16.1 | BM75: 18.9 | BN75: 42.5 | BO75: 9 | BP75: 9.5 | BQ75: 11 | BR75: 29.5 | BS75: 147.8 | BT75: 383.9 | BU75: 3.5 | BV75: 5.4 | BW75: 4 | BX75: 12.9 | BY75: 2 | BZ75: 4 | CA75: 6.1 | CB75: 12.1 | CC75: دورثان | CD75: فى : لغة انجليزية - | CE75: 1
A77: 34 | B77: 171 | C77: شيماء على عبداللطيف على | D77: 3/1 | I77: بنات | J77: انتظام | K77: صباحى | M77: 605 | N77: 7.5 | O77: 18.1 | P77: 12.3 | Q77: 37.9 | R77: 7.5 | S77: 13 | T77: 19 | U77: 39.5 | V77: 3.5 | W77: 7 | X77: 11.4 | Y77: 21.9 | Z77: 5.5 | AA77: 8.3 | AB77: 9.5 | AC77: 23.3 | AD77: 3.5 | AE77: 5.5 | AF77: 6 | AG77: 15 | AH77: 3.5 | AI77: 3.5 | AJ77: 7.1 | AK77: 7.2 | AL77: 9.7 | AM77: 4 | AN77: 20.3 | AO77: 14.7 | AP77: 35 | AQ77: 7.5 | AR77: 9.5 | AS77: 9.5 | AT77: 26.5 | AU77: 7.5 | AV77: 18.2 | AW77: 9.5 | AX77: 35.2 | AY77: 7.5 | AZ77: 9.5 | BA77: 6.5 | BB77: 23.5 | BC77: 9.1 | BD77: 17.2 | BE77: 18 | BF77: 44.3 | BG77: 7.5 | BH77: 9.5 | BI77: 9.5 | BJ77: 26.5 | BK77: 8.6 | BL77: 9.5 | BM77: 19.9 | BN77: 38 | BO77: 7.5 | BP77: 9.5 | BQ77: 17.8 | BR77: 34.8 | BS77: 149.1 | BT77: 401.4 | BU77: 4 | BV77: 6.2 | BW77: 4 | BX77: 14.2 | BY77: 2 | BZ77: 4 | CA77: 5.2 | CB77: 11.2 | CC77: دورثان | CD77: فى : سكرتارية اجنبية - | CE77: 1
A79: 35 | B79: 172 | C79: شيماء عيد جامع عبدالفراج | D79: 1/1 | I79: بنات | J79: انتظام | K79: صباحى | L79: باقية | M79: 604 | N79: 8.8 | O79: 8.5 | P79: 8.5 | Q79: 25.8 | R79: 7.5 | S79: 18 | T79: 19.7 | U79: 45.2 | V79: 3.8 | W79: 10.3 | X79: 11.8 | Y79: 25.9 | Z79: 5.5 | AA79: 9.6 | AB79: 9.5 | AC79: 24.6 | AD79: 3.5 | AE79: 8.1 | AF79: 6 | AG79: 17.6 | AH79: 3.8 | AI79: 3.5 | AJ79: 11.1 | AK79: 6.9 | AL79: 6.5 | AM79: 5.4 | AN79: 21.4 | AO79: 15.8 | AP79: 37.2 | AQ79: 7.5 | AR79: 9.7 | AS79: 12.7 | AT79: 29.9 | AU79: 7.5 | AV79: 9.5 | AW79: 12.5 | AX79: 29.5 | AY79: 7.5 | AZ79: 9.5 | BA79: 6.5 | BB79: 23.5 | BC79: 7.5 | BD79: 9.5 | BE79: 17.2 | BF79: 34.2 | BG79: 7.5 | BH79: 9.5 | BI79: 9.5 | BJ79: 26.5 | BK79: 7.5 | BL79: 9.5 | BM79: 9.5 | BN79: 26.5 | BO79: 7.5 | BP79: 17.6 | BQ79: 10.6 | BR79: 35.7 | BS79: 147.3 | BT79: 382.1 | BU79: 3.7 | BV79: 4 | BW79: 4 | BX79: 11.7 | BY79: 2 | BZ79: 4 | CA79: 4 | CB79: 10 | CC79: دورثان | CD79: فى : سكرتارية اجنبية - | CE79: 1
A81: 36 | B81: 173 | C81: شيماء محمود ابوالحجاج محمود | D81: 1/1 | I81: بنات | J81: انتظام | K81: صباحى | M81: 603 | N81: 7.5 | O81: 15.7 | P81: 8.5 | Q81: 31.7 | R81: 7.5 | S81: 8.5 | T81: 8.5 | U81: 24.5 | V81: 3.5 | W81: 5.5 | X81: 4.5 | Y81: 13.5 | Z81: 5.5 | AA81: 7.5 | AB81: 9.5 | AC81: 22.5 | AD81: 3.5 | AE81: 12 | AF81: 6 | AG81: 21.5 | AH81: 3.5 | AI81: 3.5 | AJ81: 7.3 | AK81: 3.5 | AL81: 6.5 | AM81: 8 | AN81: 17.3 | AO81: 15 | AP81: 32.3 | AQ81: 7.5 | AR81: 13.1 | AS81: 9.6 | AT81: 30.2 | AU81: 7.5 | AV81: 9.5 | AW81: 9.5 | AX81: 26.5 | AY81: 7.5 | AZ81: 9.5 | BA81: 6.5 | BB81: 23.5 | BC81: 7.5 | BD81: 9.5 | BE81: 9.5 | BF81: 26.5 | BG81: 9.6 | BH81: 16.9 | BI81: 12.6 | BJ81: 39.1 | BK81: 7.5 | BL81: 13 | BM81: 11.5 | BN81: 32 | BO81: 8.5 | BP81: 9.5 | BQ81: 9.5 | BR81: 27.5 | BS81: 141 | BT81: 351.3 | BU81: 3.7 | BV81: 4 | BW81: 4 | BX81: 11.7 | BY81: 2 | BZ81: 5.3 | CA81: 4 | CB81: 11.3 | CC81: دورثان | CD81: فى : لغة انجليزية - سكرتارية اجنبية - | CE81: 2
A83: 37 | B83: 175 | C83: عبير حسن محمد محمود | D83: 2/1 | I83: بنات | J83: انتظام | K83: صباحى | M83: 601 | N83: 9.7 | O83: 8.5 | P83: 13.7 | Q83: 31.9 | R83: 7.5 | S83: 16.9 | T83: 15.6 | U83: 40 | V83: 3.5 | W83: 7.6 | X83: 9.4 | Y83: 20.5 | Z83: 5.5 | AA83: 7.5 | AB83: 14.6 | AC83: 27.6 | AD83: 3.5 | AE83: 5.5 | AF83: 6.5 | AG83: 15.5 | AH83: 5.8 | AI83: 6 | AJ83: 6.5 | AK83: 3.5 | AL83: 6.5 | AM83: 4 | AN83: 18.8 | AO83: 13.5 | AP83: 32.3 | AQ83: 7.5 | AR83: 18.2 | AS83: 9.5 | AT83: 35.2 | AU83: 9.1 | AV83: 9.5 | AW83: 19.4 | AX83: 38 | AY83: 7.5 | AZ83: 9.5 | BA83: 6.5 | BB83: 23.5 | BC83: 7.5 | BD83: 9.5 | BE83: 9.5 | BF83: 26.5 | BG83: 7.5 | BH83: 9.5 | BI83: 9.5 | BJ83: 26.5 | BK83: 7.5 | BL83: 9.5 | BM83: 9.5 | BN83: 26.5 | BO83: 7.5 | BP83: 19.3 | BQ83: 13.3 | BR83: 40.1 | BS83: 141 | BT83: 384.1 | BU83: 2.3 | BV83: 7.9 | BW83: 6 | BX83: 16.2 | BY83: 2 | BZ83: 7.3 | CA83: 5.7 | CB83: 15 | CC83: دورثان | CD83: فى : سكرتارية اجنبية - | CE83: 1
A85: 38 | B85: 176 | C85: عفاف صادق سليم حميد | D85: 3/1 | I85: بنات | J85: انتظام | K85: صباحى | M85: 676 | N85: 7.5 | O85: 18.4 | P85: 10.5 | Q85: 36.4 | R85: 8.9 | S85: 8.8 | T85: 8.5 | U85: 26.2 | V85: 3.5 | W85: 5.5 | X85: 5.1 | Y85: 14.1 | Z85: 5.5 | AA85: 14.3 | AB85: 9.5 | AC85: 29.3 | AD85: 3.5 | AE85: 5.5 | AF85: 6.5 | AG85: 15.5 | AH85: 3.5 | AI85: 5.4 | AJ85: 6.5 | AK85: 5.1 | AL85: 11.5 | AM85: 4 | AN85: 21.5 | AO85: 14.5 | AP85: 36 | AQ85: 7.5 | AR85: 9.5 | AS85: 9.5 | AT85: 26.5 | AU85: 7.5 | AV85: 9.5 | AW85: 9.5 | AX85: 26.5 | AY85: 7.5 | AZ85: 9.5 | BA85: 6.5 | BB85: 23.5 | BC85: 7.5 | BD85: 10.9 | BE85: 12.9 | BF85: 31.3 | BG85: 7.5 | BH85: 9.5 | BI85: 9.5 | BJ85: 26.5 | BK85: 7.5 | BL85: 9.5 | BM85: 9.5 | BN85: 26.5 | BO85: 7.5 | BP85: 11.4 | BQ85: 9.5 | BR85: 28.4 | BS85: 133.9 | BT85: 346.7 | BU85: 2.5 | BV85: 6.2 | BW85: 5.4 | BX85: 14.1 | BY85: 2 | BZ85: 4 | CA85: 4 | CB85: 10 | CC85: دورثان | CD85: فى : سكرتارية اجنبية - | CE85: 1
A87: 39 | B87: 181 | C87: فاطمه صابر حسن سليم | D87: 2/1 | I87: بنات | J87: انتظام | K87: صباحى | M87: 681 | N87: 7.5 | O87: 11.2 | P87: 13.7 | Q87: 32.4 | R87: 7.5 | S87: 8.5 | T87: 8.5 | U87: 24.5 | V87: 3.5 | W87: 5.5 | X87: 4.5 | Y87: 13.5 | Z87: 5.5 | AA87: 11.5 | AB87: 11.8 | AC87: 28.8 | AD87: 3.5 | AE87: 5.6 | AF87: 6 | AG87: 15.1 | AH87: 4.8 | AI87: 6.2 | AJ87: 9.7 | AK87: 3.5 | AL87: 6.5 | AM87: 4 | AN87: 21 | AO87: 13.7 | AP87: 34.7 | AQ87: 7.8 | AR87: 10.6 | AS87: 9.5 | AT87: 27.9 | AU87: 7.5 | AV87: 9.5 | AW87: 15.9 | AX87: 32.9 | AY87: 7.5 | AZ87: 15.5 | BA87: 15.7 | BB87: 38.7 | BC87: 7.5 | BD87: 9.5 | BE87: 9.7 | BF87: 26.7 | BG87: 7.5 | BH87: 9.5 | BI87: 9.5 | BJ87: 26.5 | BK87: 7.5 | BL87: 9.5 | BM87: 9.5 | BN87: 26.5 | BO87: 7.5 | BP87: 9.5 | BQ87: 9.5 | BR87: 26.5 | BS87: 129.1 | BT87: 354.7 | BU87: 2 | BV87: 4.1 | BW87: 6.2 | BX87: 12.3 | BY87: 2 | BZ87: 4.2 | CA87: 4 | CB87: 10.2 | CC87: دورثان | CD87: فى : لغة انجليزية - | CE87: 1
A89: 40 | B89: 182 | C89: فاطمه عادل احمد محمود | D89: 3/1 | I89: بنات | J89: انتظام | K89: صباحى | M89: 682 | N89: 7.5 | O89: 13.9 | P89: 14 | Q89: 35.4 | R89: 7.5 | S89: 8.5 | T89: 8.5 | U89: 24.5 | V89: 5.3 | W89: 9.5 | X89: 4.5 | Y89: 19.3 | Z89: 5.5 | AA89: 7.5 | AB89: 9.5 | AC89: 22.5 | AD89: 3.6 | AE89: 5.5 | AF89: 6 | AG89: 15.1 | AH89: 3.7 | AI89: 3.5 | AJ89: 6.5 | AK89: 5 | AL89: 6.5 | AM89: 4 | AN89: 16.7 | AO89: 12.5 | AP89: 29.2 | AQ89: 7.5 | AR89: 10.6 | AS89: 17.7 | AT89: 35.8 | AU89: 7.5 | AV89: 16.1 | AW89: 12.5 | AX89: 36.1 | AY89: 7.5 | AZ89: 9.5 | BA89: 12.2 | BB89: 29.2 | BC89: 8.1 | BD89: 9.5 | BE89: 12.6 | BF89: 30.2 | BG89: 7.5 | BH89: 9.5 | BI89: 9.5 | BJ89: 26.5 | BK89: 7.5 | BL89: 9.5 | BM89: 18.1 | BN89: 35.1 | BO89: 7.5 | BP89: 9.5 | BQ89: 9.5 | BR89: 26.5 | BS89: 130.6 | BT89: 365.4 | BU89: 2 | BV89: 4.2 | BW89: 4 | BX89: 10.2 | BY89: 3.3 | BZ89: 4.2 | CA89: 5.1 | CB89: 12.6 | CC89: دورثان | CD89: فى : لغة انجليزية - | CE89: 1
A91: 41 | B91: 184 | C91: فاطمه محمد احمد شحاته | D91: 3/1 | I91: بنات | J91: انتظام | K91: صباحى | M91: 684 | N91: 7.5 | O91: 16.7 | P91: 14.3 | Q91: 38.5 | R91: 7.5 | S91: 8.5 | T91: 8.9 | U91: 24.9 | V91: 4.2 | W91: 7.3 | X91: 5.3 | Y91: 16.8 | Z91: 5.5 | AA91: 7.5 | AB91: 16.8 | AC91: 29.8 | AD91: 4.3 | AE91: 5.5 | AF91: 6 | AG91: 15.8 | AH91: 3.6 | AI91: 4.7 | AJ91: 6.5 | AK91: 7.3 | AL91: 6.5 | AM91: 4 | AN91: 16.6 | AO91: 16 | AP91: 32.6 | AQ91: 7.5 | AR91: 15.9 | AS91: 13.9 | AT91: 37.3 | AU91: 8 | AV91: 10.6 | AW91: 11.8 | AX91: 30.4 | AY91: 7.5 | AZ91: 11.5 | BA91: 13.7 | BB91: 32.7 | BC91: 7.5 | BD91: 13.7 | BE91: 18.3 | BF91: 39.5 | BG91: 7.5 | BH91: 9.5 | BI91: 17.3 | BJ91: 34.3 | BK91: 7.5 | BL91: 9.5 | BM91: 13.3 | BN91: 30.3 | BO91: 7.5 | BP91: 9.5 | BQ91: 11.5 | BR91: 28.5 | BS91: 139.5 | BT91: 391.4 | BU91: 3.5 | BV91: 4 | BW91: 4.7 | BX91: 12.2 | BY91: 2 | BZ91: 6.4 | CA91: 4 | CB91: 12.4 | CC91: دورثان | CD91: فى : لغة انجليزية - | CE91: 1
A93: 42 | B93: 185 | C93: فاطمه محمد اسماعيل محمد | D93: 3/1 | I93: بنات | J93: انتظام | K93: صباحى | M93: 685 | N93: 7.5 | O93: 8.5 | P93: 8.5 | Q93: 24.5 | R93: 9.5 | S93: 12.4 | T93: 10.3 | U93: 32.2 | V93: 3.5 | W93: 5.5 | X93: 6.2 | Y93: 15.2 | Z93: 5.5 | AA93: 15.2 | AB93: 9.5 | AC93: 30.2 | AD93: 4.5 | AE93: 11.9 | AF93: 7.8 | AG93: 24.2 | AH93: 4 | AI93: 3.5 | AJ93: 6.7 | AK93: 6.3 | AL93: 6.5 | AM93: 8 | AN93: 17.2 | AO93: 17.8 | AP93: 35 | AQ93: 7.5 | AR93: 19.9 | AS93: 9.5 | AT93: 36.9 | AU93: 10 | AV93: 18 | AW93: 13.3 | AX93: 41.3 | AY93: 8.6 | AZ93: 9.5 | BA93: 10.9 | BB93: 29 | BC93: 9 | BD93: 10.6 | BE93: 15.9 | BF93: 35.5 | BG93: 7.5 | BH93: 12.3 | BI93: 10.1 | BJ93: 29.9 | BK93: 7.5 | BL93: 17.6 | BM93: 12.9 | BN93: 38 | BO93: 7.5 | BP93: 11.5 | BQ93: 9.5 | BR93: 28.5 | BS93: 165.9 | BT93: 400.4 | BU93: 2 | BV93: 6.5 | BW93: 4 | BX93: 12.5 | BY93: 3.3 | BZ93: 8 | CA93: 6.9 | CB93: 18.2 | CC93: دورثان | CD93: فى : لغة عربية - | CE93: 1
A95: 43 | B95: 193 | C95: منى حمزة يوسف محمود | D95: 1/1 | I95: بنات | J95: انتظام | K95: صباحى | M95: 693 | N95: 8.7 | O95: 8.5 | P95: 13.8 | Q95: 31 | R95: 7.5 | S95: 8.5 | T95: 8.5 | U95: 24.5 | V95: 3.5 | W95: 5.5 | X95: 4.5 | Y95: 13.5 | Z95: 5.5 | AA95: 7.8 | AB95: 19.1 | AC95: 32.4 | AD95: 3.5 | AE95: 5.7 | AF95: 6 | AG95: 15.2 | AH95: 5.2 | AI95: 3.5 | AJ95: 6.5 | AK95: 7 | AL95: 6.5 | AM95: 4 | AN95: 18.2 | AO95: 14.5 | AP95: 32.7 | AQ95: 7.5 | AR95: 19.6 | AS95: 9.5 | AT95: 36.6 | AU95: 9.8 | AV95: 9.5 | AW95: 17.2 | AX95: 36.5 | AY95: 9.9 | AZ95: 9.5 | BA95: 6.5 | BB95: 25.9 | BC95: 7.5 | BD95: 9.5 | BE95: 17.6 | BF95: 34.6 | BG95: 7.5 | BH95: 17.9 | BI95: 15.3 | BJ95: 40.7 | BK95: 7.5 | BL95: 9.5 | BM95: 9.5 | BN95: 26.5 | BO95: 9 | BP95: 17.4 | BQ95: 11.1 | BR95: 37.5 | BS95: 142.4 | BT95: 387.6 | BU95: 3.4 | BV95: 7.8 | BW95: 4 | BX95: 15.2 | BY95: 2 | BZ95: 7.9 | CA95: 7.9 | CB95: 17.8 | CC95: دورثان | CD95: فى : لغة انجليزية - | CE95: 1
A97: 44 | B97: 195 | C97: منى عبد الحميد محمد سعيد صالح | D97: 1/1 | I97: بنات | J97: انتظام | K97: صباحى | M97: 695 | N97: 7.5 | O97: 8.5 | P97: 8.5 | Q97: 24.5 | R97: 9.4 | S97: 8.5 | T97: 9.7 | U97: 27.6 | V97: 3.5 | W97: 5.5 | X97: 5.8 | Y97: 14.8 | Z97: 5.5 | AA97: 15 | AB97: 12.4 | AC97: 32.9 | AD97: 5.9 | AE97: 5.5 | AF97: 7.1 | AG97: 18.5 | AH97: 4.8 | AI97: 4.9 | AJ97: 6.5 | AK97: 3.5 | AL97: 6.5 | AM97: 4 | AN97: 17.8 | AO97: 12.4 | AP97: 30.2 | AQ97: 7.5 | AR97: 9.5 | AS97: 9.5 | AT97: 26.5 | AU97: 7.5 | AV97: 12 | AW97: 15.8 | AX97: 35.3 | AY97: 7.5 | AZ97: 9.5 | BA97: 16.9 | BB97: 33.9 | BC97: 7.5 | BD97: 9.5 | BE97: 9.5 | BF97: 26.5 | BG97: 7.5 | BH97: 9.5 | BI97: 9.5 | BJ97: 26.5 | BK97: 7.5 | BL97: 9.5 | BM97: 17.6 | BN97: 34.6 | BO97: 7.5 | BP97: 9.5 | BQ97: 17.2 | BR97: 34.2 | BS97: 122 | BT97: 366 | BU97: 3.8 | BV97: 5.5 | BW97: 4.9 | BX97: 14.2 | BY97: 2 | BZ97: 4 | CA97: 4 | CB97: 10 | CC97: دورثان | CD97: فى : لغة عربية - | CE97: 1
A99: 45 | B99: 197 | C99: مها محمد حسين احمد | D99: 3/1 | I99: بنات | J99: انتظام | K99: صباحى | M99: 697 | N99: 7.5 | O99: 8.5 | P99: 8.8 | Q99: 24.8 | R99: 7.5 | S99: 17.8 | T99: 11.8 | U99: 37.1 | V99: 3.5 | W99: 5.5 | X99: 7.1 | Y99: 16.1 | Z99: 5.5 | AA99: 7.5 | AB99: 16.7 | AC99: 29.7 | AD99: 4.2 | AE99: 5.5 | AF99: 6 | AG99: 15.7 | AH99: 3.5 | AI99: 3.5 | AJ99: 6.5 | AK99: 6.4 | AL99: 6.5 | AM99: 4 | AN99: 16.5 | AO99: 13.9 | AP99: 30.4 | AQ99: 7.5 | AR99: 17.3 | AS99: 9.5 | AT99: 34.3 | AU99: 8.7 | AV99: 10.2 | AW99: 10.5 | AX99: 29.4 | AY99: 7.5 | AZ99: 9.5 | BA99: 6.5 | BB99: 23.5 | BC99: 7.5 | BD99: 9.5 | BE99: 16 | BF99: 33 | BG99: 7.5 | BH99: 13.1 | BI99: 15 | BJ99: 35.6 | BK99: 7.5 | BL99: 9.5 | BM99: 9.5 | BN99: 26.5 | BO99: 7.5 | BP99: 9.5 | BQ99: 10.3 | BR99: 27.3 | BS99: 136.3 | BT99: 363.4 | BU99: 2 | BV99: 4 | BW99: 4 | BX99: 10 | BY99: 2 | BZ99: 6.9 | CA99: 4.4 | CB99: 13.3 | CC99: دورثان | CD99: فى : لغة عربية - سكرتارية اجنبية - | CE99: 2
A101: 46 | B101: 200 | C101: مى سيد حجاجى عبدالكريم | D101: 2/1 | I101: بنات | J101: انتظام | K101: صباحى | M101: 700 | N101: 7.5 | O101: 8.5 | P101: 8.5 | Q101: 24.5 | R101: 9.1 | S101: 8.5 | T101: 8.5 | U101: 26.1 | V101: 3.5 | W101: 5.5 | X101: 4.5 | Y101: 13.5 | Z101: 5.5 | AA101: 14.5 | AB101: 9.5 | AC101: 29.5 | AD101: 3.5 | AE101: 9.3 | AF101: 6 | AG101: 18.8 | AH101: 3.5 | AI101: 7.9 | AJ101: 6.5 | AK101: 3.5 | AL101: 10.4 | AM101: 6.2 | AN101: 20.4 | AO101: 17.6 | AP101: 38 | AQ101: 9.9 | AR101: 19.4 | AS101: 9.5 | AT101: 38.8 | AU101: 9.7 | AV101: 18.8 | AW101: 9.5 | AX101: 38 | AY101: 8.7 | AZ101: 18.6 | BA101: 6.5 | BB101: 33.8 | BC101: 9.4 | BD101: 11.7 | BE101: 9.5 | BF101: 30.6 | BG101: 7.5 | BH101: 13.3 | BI101: 19.1 | BJ101: 39.9 | BK101: 7.5 | BL101: 18.2 | BM101: 19.5 | BN101: 45.2 | BO101: 7.5 | BP101: 11.5 | BQ101: 13.2 | BR101: 32.2 | BS101: 167.8 | BT101: 408.9 | BU101: 2.1 | BV101: 5.4 | BW101: 7.9 | BX101: 15.4 | BY101: 2 | BZ101: 7.7 | CA101: 6.9 | CB101: 16.6 | CC101: دورثان | CD101: فى : لغة عربية - | CE101: 1
A103: 47 | B103: 201 | C103: نادية كمال الدين احمد عبد الماجد | D103: 3/1 | I103: بنات | J103: انتظام | K103: صباحى | M103: 701 | N103: 7.5 | O103: 8.5 | P103: 8.9 | Q103: 24.9 | R103: 8.3 | S103: 8.5 | T103: 13.4 | U103: 30.2 | V103: 5.2 | W103: 9.4 | X103: 8.1 | Y103: 22.7 | Z103: 5.5 | AA103: 13.2 | AB103: 19.3 | AC103: 38 | AD103: 3.5 | AE103: 5.5 | AF103: 6 | AG103: 15 | AH103: 4.1 | AI103: 3.5 | AJ103: 10.7 | AK103: 3.5 | AL103: 6.5 | AM103: 4 | AN103: 21.3 | AO103: 11 | AP103: 32.3 | AQ103: 7.5 | AR103: 9.5 | AS103: 17.4 | AT103: 34.4 | AU103: 7.5 | AV103: 18.5 | AW103: 13.7 | AX103: 39.7 | AY103: 7.5 | AZ103: 19.1 | BA103: 13.8 | BB103: 40.4 | BC103: 9.3 | BD103: 11.7 | BE103: 9.5 | BF103: 30.5 | BG103: 7.5 | BH103: 9.5 | BI103: 9.6 | BJ103: 26.6 | BK103: 7.5 | BL103: 9.5 | BM103: 9.5 | BN103: 26.5 | BO103: 7.5 | BP103: 9.5 | BQ103: 19.5 | BR103: 36.5 | BS103: 146.6 | BT103: 397.7 | BU103: 2 | BV103: 4.2 | BW103: 4 | BX103: 10.2 | BY103: 2 | BZ103: 4 | CA103: 4 | CB103: 10 | CC103: دورثان | CD103: فى : لغة عربية - | CE103: 1
A105: 48 | B105: 202 | C105: نادية مصطفى يونس محمود | D105: 1/1 | I105: بنات | J105: انتظام | K105: صباحى | L105: باقية | M105: 702 | N105: 8.7 | O105: 9.8 | P105: 8.5 | Q105: 27 | R105: 7.5 | S105: 8.5 | T105: 8.5 | U105: 24.5 | V105: 3.5 | W105: 5.5 | X105: 4.5 | Y105: 13.5 | Z105: 5.5 | AA105: 7.5 | AB105: 9.5 | AC105: 22.5 | AD105: 3.5 | AE105: 9.1 | AF105: 7 | AG105: 19.6 | AH105: 3.5 | AI105: 3.5 | AJ105: 6.5 | AK105: 3.5 | AL105: 6.5 | AM105: 6.1 | AN105: 16.5 | AO105: 13.1 | AP105: 29.6 | AQ105: 7.5 | AR105: 9.5 | AS105: 10.8 | AT105: 27.8 | AU105: 7.5 | AV105: 9.5 | AW105: 9.5 | AX105: 26.5 | AY105: 7.5 | AZ105: 9.5 | BA105: 6.5 | BB105: 23.5 | BC105: 7.5 | BD105: 9.5 | BE105: 9.5 | BF105: 26.5 | BG105: 7.8 | BH105: 9.5 | BI105: 13.9 | BJ105: 31.2 | BK105: 7.5 | BL105: 13.8 | BM105: 9.5 | BN105: 30.8 | BO105: 7.5 | BP105: 17.4 | BQ105: 9.5 | BR105: 34.4 | BS105: 129.1 | BT105: 337.4 | BU105: 2 | BV105: 4 | BW105: 4 | BX105: 10 | BY105: 3.5 | BZ105: 4 | CA105: 4 | CB105: 11.5 | CC105: دورثان | CD105: فى : لغة انجليزية - سكرتارية اجنبية - | CE105: 2
A107: 49 | B107: 205 | C107: نحمده عبد القادر احمد الطاهر | D107: 1/1 | I107: بنات | J107: انتظام | K107: صباحى | M107: 705 | N107: 7.5 | O107: 8.5 | P107: 8.5 | Q107: 24.5 | R107: 7.5 | S107: 19.6 | T107: 16.6 | U107: 43.7 | V107: 3.5 | W107: 5.5 | X107: 10 | Y107: 19 | Z107: 5.5 | AA107: 7.5 | AB107: 15.3 | AC107: 28.3 | AD107: 3.5 | AE107: 5.5 | AF107: 10.8 | AG107: 19.8 | AH107: 3.5 | AI107: 4.3 | AJ107: 10.9 | AK107: 8 | AL107: 8.1 | AM107: 4 | AN107: 22.5 | AO107: 16.3 | AP107: 38.8 | AQ107: 7.5 | AR107: 9.5 | AS107: 9.5 | AT107: 26.5 | AU107: 7.5 | AV107: 16.5 | AW107: 9.5 | AX107: 33.5 | AY107: 7.5 | AZ107: 15.9 | BA107: 13.4 | BB107: 36.8 | BC107: 8.2 | BD107: 9.5 | BE107: 19.9 | BF107: 37.6 | BG107: 7.5 | BH107: 17.6 | BI107: 9.5 | BJ107: 34.6 | BK107: 7.5 | BL107: 9.5 | BM107: 9.8 | BN107: 26.8 | BO107: 8.8 | BP107: 9.5 | BQ107: 9.5 | BR107: 27.8 | BS107: 153.5 | BT107: 397.7 | BU107: 3.3 | BV107: 4 | BW107: 4.3 | BX107: 11.6 | BY107: 2.4 | BZ107: 4 | CA107: 4.3 | CB107: 10.7 | CC107: دورثان | CD107: فى : لغة عربية - | CE107: 1
A109: 50 | B109: 208 | C109: ندى رجب جاد طه | D109: 2/1 | I109: بنات | J109: انتظام | K109: صباحى | M109: 708 | N109: 9 | O109: 8.5 | P109: 10.9 | Q109: 28.4 | R109: 7.5 | S109: 14.6 | T109: 12.4 | U109: 34.5 | V109: 3.5 | W109: 5.5 | X109: 7.4 | Y109: 16.4 | Z109: 5.5 | AA109: 7.5 | AB109: 9.5 | AC109: 22.5 | AD109: 3.5 | AE109: 7.8 | AF109: 6 | AG109: 17.3 | AH109: 3.6 | AI109: 3.5 | AJ109: 7.8 | AK109: 5.2 | AL109: 10.5 | AM109: 5.2 | AN109: 21.9 | AO109: 13.9 | AP109: 35.8 | AQ109: 7.5 | AR109: 12.4 | AS109: 9.5 | AT109: 29.4 | AU109: 7.5 | AV109: 10.4 | AW109: 12 | AX109: 29.9 | AY109: 7.5 | AZ109: 9.5 | BA109: 6.5 | BB109: 23.5 | BC109: 7.5 | BD109: 9.5 | BE109: 13.1 | BF109: 30.1 | BG109: 7.5 | BH109: 9.5 | BI109: 14.7 | BJ109: 31.7 | BK109: 7.5 | BL109: 14.4 | BM109: 10.2 | BN109: 32.1 | BO109: 7.5 | BP109: 18 | BQ109: 9.5 | BR109: 35 | BS109: 140.6 | BT109: 366.6 | BU109: 2.2 | BV109: 4.2 | BW109: 4 | BX109: 10.4 | BY109: 2 | BZ109: 5 | CA109: 4 | CB109: 11 | CC109: دورثان | CD109: فى : سكرتارية اجنبية - | CE109: 1
A111: 51 | B111: 210 | C111: ندى عويس النوبى عويس | D111: 1/1 | I111: بنات | J111: انتظام | K111: صباحى | M111: 710 | N111: 7.5 | O111: 13.1 | P111: 8.5 | Q111: 29.1 | R111: 7.5 | S111: 8.5 | T111: 8.5 | U111: 24.5 | V111: 3.5 | W111: 7.4 | X111: 4.9 | Y111: 15.8 | Z111: 5.5 | AA111: 7.5 | AB111: 9.5 | AC111: 22.5 | AD111: 5.7 | AE111: 10.5 | AF111: 6 | AG111: 22.2 | AH111: 4.1 | AI111: 6.4 | AJ111: 6.5 | AK111: 3.5 | AL111: 7.3 | AM111: 7 | AN111: 17.9 | AO111: 16.9 | AP111: 34.8 | AQ111: 8 | AR111: 19.3 | AS111: 10.4 | AT111: 37.7 | AU111: 9.6 | AV111: 18.9 | AW111: 13.7 | AX111: 42.2 | AY111: 9.3 | AZ111: 19.4 | BA111: 8.5 | BB111: 37.2 | BC111: 9.5 | BD111: 9.5 | BE111: 9.5 | BF111: 28.5 | BG111: 7.5 | BH111: 16.2 | BI111: 9.5 | BJ111: 33.2 | BK111: 7.5 | BL111: 10.7 | BM111: 12.7 | BN111: 30.9 | BO111: 8.1 | BP111: 11.2 | BQ111: 12.5 | BR111: 31.8 | BS111: 162.2 | BT111: 390.4 | BU111: 2 | BV111: 4 | BW111: 6.4 | BX111: 12.4 | BY111: 2 | BZ111: 7.7 | CA111: 7.4 | CB111: 17.1 | CC111: دورثان | CD111: فى : لغة انجليزية - | CE111: 1
A113: 52 | B113: 212 | C113: نسمة حسن شاذلى محمد | D113: 2/1 | I113: بنات | J113: انتظام | K113: صباحى | M113: 712 | N113: 7.5 | O113: 8.5 | P113: 8.5 | Q113: 24.5 | R113: 8.6 | S113: 16.6 | T113: 8.5 | U113: 33.7 | V113: 3.5 | W113: 5.5 | X113: 4.9 | Y113: 13.9 | Z113: 5.5 | AA113: 13.8 | AB113: 9.5 | AC113: 28.8 | AD113: 3.5 | AE113: 5.5 | AF113: 11.8 | AG113: 20.8 | AH113: 4.7 | AI113: 6 | AJ113: 8.4 | AK113: 3.5 | AL113: 6.5 | AM113: 4 | AN113: 19.6 | AO113: 13.5 | AP113: 33.1 | AQ113: 7.5 | AR113: 9.5 | AS113: 9.5 | AT113: 26.5 | AU113: 7.5 | AV113: 9.5 | AW113: 15.7 | AX113: 32.7 | AY113: 9.3 | AZ113: 9.5 | BA113: 11.1 | BB113: 29.9 | BC113: 7.5 | BD113: 16.4 | BE113: 9.5 | BF113: 33.4 | BG113: 9.8 | BH113: 17.7 | BI113: 9.5 | BJ113: 37 | BK113: 8.2 | BL113: 9.5 | BM113: 9.5 | BN113: 27.2 | BO113: 8.8 | BP113: 13.1 | BQ113: 9.5 | BR113: 31.4 | BS113: 147 | BT113: 372.9 | BU113: 2 | BV113: 4 | BW113: 6 | BX113: 12 | BY113: 2.5 | BZ113: 4 | CA113: 7.5 | CB113: 14 | CC113: دورثان | CD113: فى : لغة عربية - | CE113: 1
A115: 53 | B115: 215 | C115: نها حمدى محمود على | D115: 3/1 | I115: بنات | J115: انتظام | K115: صباحى | M115: 715 | N115: 9.1 | O115: 9.2 | P115: 8.5 | Q115: 26.8 | R115: 9.5 | S115: 8.5 | T115: 16.7 | U115: 34.7 | V115: 3.5 | W115: 5.5 | X115: 10 | Y115: 19 | Z115: 5.5 | AA115: 15.3 | AB115: 9.5 | AC115: 30.3 | AD115: 4.9 | AE115: 11.9 | AF115: 10.5 | AG115: 27.3 | AH115: 3.5 | AI115: 6.3 | AJ115: 6.5 | AK115: 6.1 | AL115: 6.5 | AM115: 7.9 | AN115: 16.5 | AO115: 20.3 | AP115: 36.8 | AQ115: 7.9 | AR115: 9.5 | AS115: 9.5 | AT115: 26.9 | AU115: 7.5 | AV115: 10.8 | AW115: 9.5 | AX115: 27.8 | AY115: 7.5 | AZ115: 9.5 | BA115: 6.5 | BB115: 23.5 | BC115: 7.5 | BD115: 9.5 | BE115: 15.2 | BF115: 32.2 | BG115: 7.5 | BH115: 9.5 | BI115: 11.9 | BJ115: 28.9 | BK115: 7.5 | BL115: 15.8 | BM115: 9.5 | BN115: 32.8 | BO115: 7.5 | BP115: 18.2 | BQ115: 10.4 | BR115: 36.1 | BS115: 145.8 | BT115: 383.1 | BU115: 2 | BV115: 4 | BW115: 6.3 | BX115: 12.3 | BY115: 2 | BZ115: 4 | CA115: 4 | CB115: 10 | CC115: دورثان | CD115: فى : سكرتارية اجنبية - | CE115: 1
A117: 54 | B117: 220 | C117: نيرة حسن احمد محمد | D117: 3/1 | I117: بنات | J117: انتظام | K117: صباحى | M117: 720 | N117: 7.5 | O117: 8.5 | P117: 8.5 | Q117: 24.5 | R117: 7.5 | S117: 8.5 | T117: 11.6 | U117: 27.6 | V117: 4.5 | W117: 11.2 | X117: 7 | Y117: 22.7 | Z117: 5.5 | AA117: 7.5 | AB117: 9.5 | AC117: 22.5 | AD117: 4.2 | AE117: 5.5 | AF117: 8.3 | AG117: 18 | AH117: 3.5 | AI117: 5 | AJ117: 9 | AK117: 3.5 | AL117: 11 | AM117: 4 | AN117: 23.5 | AO117: 12.5 | AP117: 36 | AQ117: 7.5 | AR117: 9.5 | AS117: 15 | AT117: 32 | AU117: 7.5 | AV117: 9.5 | AW117: 9.5 | AX117: 26.5 | AY117: 7.5 | AZ117: 9.5 | BA117: 17.8 | BB117: 34.8 | BC117: 7.5 | BD117: 14.5 | BE117: 10.4 | BF117: 32.4 | BG117: 7.5 | BH117: 18.7 | BI117: 19.1 | BJ117: 45.3 | BK117: 7.5 | BL117: 9.5 | BM117: 17.7 | BN117: 34.7 | BO117: 9.4 | BP117: 9.5 | BQ117: 11.3 | BR117: 30.2 | BS117: 134.4 | BT117: 387.2 | BU117: 3.1 | BV117: 5.2 | BW117: 5 | BX117: 13.3 | BY117: 3.5 | BZ117: 4 | CA117: 4 | CB117: 11.5 | CC117: دورثان | CD117: فى : لغة عربية - | CE117: 1
A119: 55 | B119: 221 | C119: هاجر زكير عبده محمد | D119: 3/1 | I119: بنات | J119: انتظام | K119: صباحى | M119: 721 | N119: 7.5 | O119: 8.5 | P119: 8.5 | Q119: 24.5 | R119: 7.5 | S119: 8.5 | T119: 18.1 | U119: 34.1 | V119: 3.5 | W119: 5.5 | X119: 10.9 | Y119: 19.9 | Z119: 8 | AA119: 7.5 | AB119: 14.1 | AC119: 29.6 | AD119: 3.5 | AE119: 7.9 | AF119: 10.2 | AG119: 21.6 | AH119: 3.5 | AI119: 4.1 | AJ119: 6.5 | AK119: 3.5 | AL119: 6.5 | AM119: 5.3 | AN119: 16.5 | AO119: 12.9 | AP119: 29.4 | AQ119: 7.5 | AR119: 9.5 | AS119: 9.5 | AT119: 26.5 | AU119: 7.5 | AV119: 11.9 | AW119: 9.5 | AX119: 28.9 | AY119: 7.5 | AZ119: 17.3 | BA119: 11.1 | BB119: 35.9 | BC119: 7.5 | BD119: 15.5 | BE119: 9.5 | BF119: 32.5 | BG119: 7.5 | BH119: 9.5 | BI119: 9.5 | BJ119: 26.5 | BK119: 7.8 | BL119: 19.9 | BM119: 10.9 | BN119: 38.6 | BO119: 7.5 | BP119: 9.5 | BQ119: 12.4 | BR119: 29.4 | BS119: 141 | BT119: 377.4 | BU119: 2 | BV119: 4 | BW119: 4.1 | BX119: 10.1 | BY119: 3.4 | BZ119: 4 | CA119: 4 | CB119: 11.4 | CC119: دورثان | CD119: فى : لغة عربية - | CE119: 1
A121: 56 | B121: 222 | C121: هاجر محمد اسماعيل حماد | D121: 1/1 | I121: بنات | J121: انتظام | K121: صباحى | L121: باقية | M121: 722 | N121: 8.4 | O121: 8.5 | P121: 13.5 | Q121: 30.4 | R121: 7.5 | S121: 8.5 | T121: 15.5 | U121: 31.5 | V121: 3.5 | W121: 6.6 | X121: 9.3 | Y121: 19.4 | Z121: 5.5 | AA121: 7.6 | AB121: 9.5 | AC121: 22.6 | AD121: 5.6 | AE121: 11.8 | AF121: 6 | AG121: 23.4 | AH121: 3.5 | AI121: 6.1 | AJ121: 7.2 | AK121: 3.5 | AL121: 6.5 | AM121: 7.9 | AN121: 17.2 | AO121: 17.5 | AP121: 34.7 | AQ121: 7.7 | AR121: 12.3 | AS121: 9.5 | AT121: 29.5 | AU121: 7.5 | AV121: 9.8 | AW121: 9.5 | AX121: 26.8 | AY121: 7.5 | AZ121: 9.5 | BA121: 6.5 | BB121: 23.5 | BC121: 7.5 | BD121: 9.5 | BE121: 9.5 | BF121: 26.5 | BG121: 7.5 | BH121: 9.5 | BI121: 10.2 | BJ121: 27.2 | BK121: 7.5 | BL121: 18.4 | BM121: 9.5 | BN121: 35.4 | BO121: 7.5 | BP121: 16.7 | BQ121: 12.9 | BR121: 37.1 | BS121: 139.4 | BT121: 368 | BU121: 2 | BV121: 5.1 | BW121: 6.1 | BX121: 13.2 | BY121: 2 | BZ121: 4.9 | CA121: 4 | CB121: 10.9 | CC121: دورثان | CD121: فى : سكرتارية اجنبية - | CE121: 1
